Workbook

Sheet IMP-RESUMEN
B1: ENSA
B3: INGRESO MÁXIMO PERMITIDO = IMP
B5: En miles de Balboas
B7: INGRESO MÁXIMO PERMITIDO | C7: JUL22/ JUN23 | D7: JUL23 / JUN24 | E7: JUL24 / JUN25 | F7: JUL25/ JUN26
B9: IPSD - Ingreso Máximo Permitido por Distribución | C9: =+IMPD!D15 -> 128494.4382 | D9: =+IMPD!E15 -> 133507.4943 | E9: =+IMPD!F15 -> 138210.8778 | F9: =+IMPD!G15 -> 140763.683
B10: IMPCO - Ingreso Máximo Permitido por Comercialización | C10: =+IMPCO!D14 -> 51946.09509 | D10: =+IMPCO!E14 -> 53097.30423 | E10: =+IMPCO!F14 -> 54114.85967 | F10: =+IMPCO!G14 -> 54963.8761
B11: ALUMPU - Ingreso Máximo Permitido por Alumbrado Público | C11: =+ALUMPU!D14 -> 5027.805797 | D11: =+ALUMPU!E14 -> 5390.061676 | E11: =+ALUMPU!F14 -> 5715.024057 | F11: =+ALUMPU!G14 -> 6047.309164
B12: IPPD - Ingreso Máximo Permitido por Pérdidas en Distribución | C12: =+IMPD!D20 -> 53072.45588 | D12: =+IMPD!E20 -> 53590.34777 | E12: =+IMPD!F20 -> 58403.1668 | F12: =+IMPD!G20 -> 62315.11355
B13: INVNE - Descuento por Inversiones no Ejecutadas en periodo anterior | C13: -4355.390957
B15: IMP - Ingreso Máximo Permitido | C15: =+C9+C12+C10+C11+C13 -> 234185.404 | D15: =+D9+D12+D10+D11+D13 -> 245585.208 | E15: =+E9+E12+E10+E11+E13 -> 256443.9283 | F15: =+F9+F12+F10+F11+F13 -> 264089.9818
B17: Factor de Descuento | C17: =1/(1+RETORNO!D40) -> 0.9191176471 | D17: =1/(1+RETORNO!D40)*1/(1+RETORNO!D40) -> 0.8447772491 | E17: =1/(1+RETORNO!D40)*1/(1+RETORNO!D40)*1/(1+RETORNO!D40) -> 0.7764496775 | F17: =1/(1+RETORNO!D40)*1/(1+RETORNO!D40)*1/(1+RETORNO!D40)*1/(1+RETORNO!D40) -> 0.7136486007
B18: Factor de Descuento Aplicado | C18: =+(1+C17)/2 -> 0.9595588235 | D18: =+(C17+D17)/2 -> 0.8819474481 | E18: =+(D17+E17)/2 -> 0.8106134633 | F18: =+(E17+F17)/2 -> 0.7450491391
B20: VPN DEL INGRESO MÁXIMO PERMITIDO | C20: =C7 -> JUL22/ JUN23 | D20: =D7 -> JUL23 / JUN24 | E20: JUL24 / JUN25 | F20: JUL25/ JUN26
B22: IPSD | C22: =+(C9+$C$13/SUM($C$9:$C$12)*C9)*C$18 -> 121046.7391 | D22: =+D9*D$18 -> 117746.5939 | E22: 112035.5983 | F22: 104875.8608
B23: IMPCO | C23: =+(C10+$C$13/SUM($C$9:$C$12)*C10)*C$18 -> 48935.23414 | D23: 46829.03197 | E23: 43866.23381 | F23: 40950.78857
B24: ALUMPU | C24: =+(C11+$C$13/SUM($C$9:$C$12)*C11)*C$18 -> 4736.387855 | D24: 4753.75114 | E24: 4632.675443 | F24: 4505.542487
B25: IPPD | C25: =+(C12+$C$13/SUM($C$9:$C$12)*C12)*C$18 -> 49996.30965 | D25: 47263.87045 | E25: 47342.39331 | F25: 46427.82171
B27: IMP | C27: =SUM(C22:C26) -> 224714.6708 | D27: =SUM(D22:D26) -> 216593.2475 | E27: =SUM(E22:E26) -> 207876.9009 | F27: =SUM(F22:F26) -> 196760.0136
B29: Energía Facturada (MWh) sin incluir AP | C29: =C18*DEMANDA!E13 -> 3702144.02 | D29: =D18*DEMANDA!F13 -> 3524364.315 | E29: =E18*DEMANDA!G13 -> 3356882.084 | F29: =F18*DEMANDA!H13 -> 3198336.268
B32: VALOR PRESENTE NETO - INGRESO MÁXIMO PERMITIDO
B33: Expresado a junio 2022 | C33: UNIDADES | D33: JULIO/22-JUNIO/26
B35: VP-IPSD - DISTRIBUCIÓN | C35: Miles de B/. | D35: =+C22+D22+E22+F22 -> 455704.7922
B36: VP-IMPCO - COMERCIALIZACIÓN | C36: Miles de B/. | D36: =+C23+D23+E23+F23 -> 180581.2885
B37: VP-ALUMPU - ALUMBRADO PÚBLICO | C37: Miles de B/. | D37: =+C24+D24+E24+F24 -> 18628.35693
B38: SUB-TOTAL | C38: Miles de B/. | D38: =SUM(D35:D37) -> 654914.4377
B39: VP-IPPD - PÉRDIDAS DE DISTRIBUCIÓN | C39: Miles de B/. | D39: =+C25+D25+E25+F25 -> 191030.3951
B40: IMP TOTAL | C40: Miles de B/. | D40: =SUM(D35:D37)+D39 -> 845944.8328
B41: ENERGIA FACTURADA (sin AP) | C41: MWh | D41: =+C29+D29+E29+F29 -> 13781726.69
B42: IMP | C42: B/./MWh | D42: =+D40/D41*1000 -> 61.38162888
B43: IMP S/Pérdidas | C43: B/./MWh | D43: =D42-(D39*1000/D41) -> 47.52049235
B45: (1) Las pérdidas estándar de energía se han fijado conforme a las ecuaciones de eficiencia, no obstante, el monto (en B/.) es un valor de referencia.
B46: El mismo se revisa semestralmente, según varía el costo real de la energía.
C48: Considerando Inversiones para Soterramiento
C49: SI

Sheet IMPD
B2: ENSA
B4: INGRESO MÁXIMO PERMITIDO POR DISTRIBUCIÓN = IMPD
B5: En miles de Balboas
B7: DISTRIBUCIÓN | D7: ='IMP-RESUMEN'!C7:C8 -> JUL22/ JUN23 | E7: ='IMP-RESUMEN'!D7:D8 -> JUL23 / JUN24 | F7: ='IMP-RESUMEN'!E7:E8 -> JUL24 / JUN25 | G7: ='IMP-RESUMEN'!F7:F8 -> JUL25/ JUN26
B10: Rentabilidad sobre Activos | C10: BCDN * RR | D10: =+ACTIVOS!G14*RETORNO!$D$40 -> 36940.5544 | E10: =+ACTIVOS!H14*RETORNO!$D$40 -> 38917.16415 | F10: =+ACTIVOS!I14*RETORNO!$D$40 -> 40815.51165 | G10: =+ACTIVOS!J14*RETORNO!$D$40 -> 43931.68383
B11: Depreciación | C11: Depo+INVi * DEP% | D11: ='BC y Dep'!D80/1000+((ACTIVOS!G9-ACTIVOS!F9)/2)*'PERDIDAS y OTROS'!E$12 -> 27038.46859 | E11: ='BC y Dep'!E80/1000+(ACTIVOS!G9-ACTIVOS!F9)*'PERDIDAS y OTROS'!E$12+((ACTIVOS!H9-ACTIVOS!G9)/2)*'PERDIDAS y OTROS'!F$12 -> 28080.74625 | F11: ='BC y Dep'!F80/1000+(ACTIVOS!G9-ACTIVOS!F9)*'PERDIDAS y OTROS'!E$12+(ACTIVOS!H9-ACTIVOS!G9)*'PERDIDAS y OTROS'!F$12+((ACTIVOS!I9-ACTIVOS!H9)/2)*'PERDIDAS y OTROS'!G$12 -> 28829.88024 | G11: ='BC y Dep'!G80/1000+(ACTIVOS!G9-ACTIVOS!F9)*'PERDIDAS y OTROS'!E$12+(ACTIVOS!H9-ACTIVOS!G9)*'PERDIDAS y OTROS'!F$12+(ACTIVOS!I9-ACTIVOS!H9)*'PERDIDAS y OTROS'!G$12+((ACTIVOS!J9-ACTIVOS!I9))/2*'PERDIDAS y OTROS'!H$12 -> 26146.97006
B12: Operación y Mantenimiento | C12: OM | D12: ='Costos y Pérdidas Eficientes'!N74/1000 -> 42496.37885 | E12: ='Costos y Pérdidas Eficientes'!O74/1000 -> 43841.24805 | F12: ='Costos y Pérdidas Eficientes'!P74/1000 -> 45228.69258 | G12: ='Costos y Pérdidas Eficientes'!Q74/1000 -> 46660.05657
B13: Administración | C13: ADM | D13: ='Costos y Pérdidas Eficientes'!N76/1000 -> 22019.0364 | E13: ='Costos y Pérdidas Eficientes'!O76/1000 -> 22668.33587 | F13: ='Costos y Pérdidas Eficientes'!P76/1000 -> 23336.79333 | G13: ='Costos y Pérdidas Eficientes'!Q76/1000 -> 24024.97256
B15: IPSD | D15: =+D13+D12+D11+D10 -> 128494.4382 | E15: =+E13+E12+E11+E10 -> 133507.4943 | F15: =+F13+F12+F11+F10 -> 138210.8778 | G15: =+G13+G12+G11+G10 -> 140763.683
B17: Pérdidas Ecuaciones de Eficiencia | C17: (PDEcEf%) * MWhD * CMM | D17: =(('PERDIDAS y OTROS'!E9)*DEMANDA!E7/1000)*'PERDIDAS y OTROS'!E8 -> 42638.30871 | E17: =(('PERDIDAS y OTROS'!F9)*DEMANDA!F7/1000)*'PERDIDAS y OTROS'!F8 -> 43053.83264 | F17: =(('PERDIDAS y OTROS'!G9)*DEMANDA!G7/1000)*'PERDIDAS y OTROS'!G8 -> 46919.7851 | G17: =(('PERDIDAS y OTROS'!H9)*DEMANDA!H7/1000)*'PERDIDAS y OTROS'!H8 -> 50061.90075
B18: Pérdidas No Técnicas en Zonas Rojas (PNT) | C18: (PDNT%) * MWhD * CMM | D18: =(('PERDIDAS y OTROS'!E11)*DEMANDA!E7/1000)*'PERDIDAS y OTROS'!E8 -> 9818.768817 | E18: =(('PERDIDAS y OTROS'!F11)*DEMANDA!F7/1000)*'PERDIDAS y OTROS'!F8 -> 9915.096203 | F18: =(('PERDIDAS y OTROS'!G11)*DEMANDA!G7/1000)*'PERDIDAS y OTROS'!G8 -> 10806.11528 | G18: =(('PERDIDAS y OTROS'!H11)*DEMANDA!H7/1000)*'PERDIDAS y OTROS'!H8 -> 11530.53953
B19: Pérdidas carga EDEMET | C19: (PDEDEMET%) * MWhD * CMM | D19: =+'PERDIDAS y OTROS'!E10*DEMANDA!E8/1000*'PERDIDAS y OTROS'!E8 -> 615.3783473 | E19: =+'PERDIDAS y OTROS'!F10*DEMANDA!F8/1000*'PERDIDAS y OTROS'!F8 -> 621.4189244 | F19: =+'PERDIDAS y OTROS'!G10*DEMANDA!G8/1000*'PERDIDAS y OTROS'!G8 -> 677.2664155 | G19: =+'PERDIDAS y OTROS'!H10*DEMANDA!H8/1000*'PERDIDAS y OTROS'!H8 -> 722.673275
B20: IPPD | D20: =+D17+D18+D19 -> 53072.45588 | E20: =+E17+E18+E19 -> 53590.34777 | F20: 58403.1668 | G20: 62315.11355
B22: IMPD | D22: =+D15+D20 -> 181566.8941 | E22: =+E15+E20 -> 187097.8421 | F22: =+F15+F20 -> 196614.0446 | G22: =+G15+G20 -> 203078.7966

Sheet IMPCO
B2: ENSA
B4: INGRESO MÁXIMO PERMITIDO POR COMERCIALIZACIÓN = IMPCO
B5: En miles de Balboas
B7: COMERCIALIZACION | D7: =IMPD!D7 -> JUL22/ JUN23 | E7: =IMPD!E7 -> JUL23 / JUN24 | F7: =IMPD!F7 -> JUL24 / JUN25 | G7: =IMPD!G7 -> JUL25/ JUN26
B10: Rentabilidad sobre Activos | C10: BCNC * RR | D10: =+ACTIVOS!G15*RETORNO!$D$40 -> 6182.475745 | E10: =+ACTIVOS!H15*RETORNO!$D$40 -> 5985.204837 | F10: =+ACTIVOS!I15*RETORNO!$D$40 -> 5791.7352 | G10: =+ACTIVOS!J15*RETORNO!$D$40 -> 5650.571109
B11: Depreciación | C11: Depo+INVi * DEP% | D11: ='BC y Dep'!D82/1000+((ACTIVOS!G10-ACTIVOS!F10)/2)*'PERDIDAS y OTROS'!E$13 -> 5898.526829 | E11: ='BC y Dep'!E82/1000+(ACTIVOS!G10-ACTIVOS!F10)*'PERDIDAS y OTROS'!E$13+((ACTIVOS!H10-ACTIVOS!G10)/2)*'PERDIDAS y OTROS'!F$13 -> 5867.351022 | F11: ='BC y Dep'!F82/1000+(ACTIVOS!G10-ACTIVOS!F10)*'PERDIDAS y OTROS'!E$13+(ACTIVOS!H10-ACTIVOS!G10)*'PERDIDAS y OTROS'!F$13+((ACTIVOS!I10-ACTIVOS!H10)/2)*'PERDIDAS y OTROS'!G$13 -> 5650.94044 | G11: ='BC y Dep'!G82/1000+(ACTIVOS!G10-ACTIVOS!F10)*'PERDIDAS y OTROS'!E$13+(ACTIVOS!H10-ACTIVOS!G10)*'PERDIDAS y OTROS'!F$13+(ACTIVOS!I10-ACTIVOS!H10)*'PERDIDAS y OTROS'!G$13+((ACTIVOS!J10-ACTIVOS!I10)/2)*'PERDIDAS y OTROS'!H$13 -> 5164.2532
B12: Comercialización | C12: COM | D12: ='Costos y Pérdidas Eficientes'!N75/1000 -> 39865.09251 | E12: ='Costos y Pérdidas Eficientes'!O75/1000 -> 41244.74837 | F12: ='Costos y Pérdidas Eficientes'!P75/1000 -> 42672.18403 | G12: ='Costos y Pérdidas Eficientes'!Q75/1000 -> 44149.05179
B14: IMPCO | D14: =+D10+D11+D12 -> 51946.09509 | E14: =+E10+E11+E12 -> 53097.30423 | F14: =+F10+F11+F12 -> 54114.85967 | G14: =+G10+G11+G12 -> 54963.8761

Sheet ALUMPU
B2: ENSA
B4: INGRESO MÁXIMO PERMITIDO POR ALUMBRADO PÚBLICO = ALUMPU
B5: En miles de Balboas
B7: ALUMBRADO PÚBLICO | D7: =IMPCO!D7 -> JUL22/ JUN23 | E7: =IMPCO!E7 -> JUL23 / JUN24 | F7: =IMPCO!F7 -> JUL24 / JUN25 | G7: =IMPCO!G7 -> JUL25/ JUN26
B10: Rentabilidad sobre Activos | C10: ACTNalum * RR | D10: =+ACTIVOS!G16*RETORNO!$D$40 -> 2321.813053 | E10: =+ACTIVOS!H16*RETORNO!$D$40 -> 2457.174606 | F10: =+ACTIVOS!I16*RETORNO!$D$40 -> 2587.484713 | G10: =+ACTIVOS!J16*RETORNO!$D$40 -> 2711.547208
B11: Depreciación | C11: Depo+INVi * DEP% | D11: ='BC y Dep'!D81/1000+((ACTIVOS!G11-ACTIVOS!F11)/2)*'PERDIDAS y OTROS'!E$14 -> 1868.183302 | E11: ='BC y Dep'!E81/1000+(ACTIVOS!G11-ACTIVOS!F11)*'PERDIDAS y OTROS'!E$14+((ACTIVOS!H11-ACTIVOS!G11)/2)*'PERDIDAS y OTROS'!F$14 -> 1992.126877 | F11: ='BC y Dep'!F81/1000+(ACTIVOS!G11-ACTIVOS!F11)*'PERDIDAS y OTROS'!E$14+(ACTIVOS!H11-ACTIVOS!G11)*'PERDIDAS y OTROS'!F$14+((ACTIVOS!I11-ACTIVOS!H11)/2)*'PERDIDAS y OTROS'!G$14 -> 2049.529665 | G11: ='BC y Dep'!G81/1000+(ACTIVOS!G11-ACTIVOS!F11)*'PERDIDAS y OTROS'!E$14+(ACTIVOS!H11-ACTIVOS!G11)*'PERDIDAS y OTROS'!F$14+(ACTIVOS!I11-ACTIVOS!H11)*'PERDIDAS y OTROS'!G$14+((ACTIVOS!J11-ACTIVOS!I11)/2)*'PERDIDAS y OTROS'!H$14 -> 2120.525256
B12: Operación y Mantenimiento | C12: OMalum | D12: =$D$26*(D25+E25)/2/1000 -> 837.8094415 | E12: =$D$26*(E25+F25)/2/1000 -> 940.7601937 | F12: =$D$26*(F25+G25)/2/1000 -> 1078.009679 | G12: =$D$26*(G25+H25)/2/1000 -> 1215.2367
B14: ALUMPU | D14: =+D10+D11+D12 -> 5027.805797 | E14: =+E10+E11+E12 -> 5390.061676 | F14: 5715.024057 | G14: 6047.309164
D23: 2022-06-01 | E23: 2023-06-01 | F23: 2024-06-01 | G23: 2025-06-01 | H23: 2026-06-01
B24: Operación y Mantenimiento | C24: OMalum | E24: =D12 -> 837.8094415 | F24: =E12 -> 940.7601937 | G24: =F12 -> 1078.009679 | H24: =G12 -> 1215.2367
B25: Cantidad de luminarias al 30/6 | D25: 125190 | E25: =+D25+INVERSIONES!D36 -> 135884 | F25: =+E25+INVERSIONES!E36 -> 157271 | G25: =+F25+INVERSIONES!F36 -> 178653 | H25: =+G25+INVERSIONES!G36 -> 200033
B26: Costo O&M por luminaria [B/. /año] | D26: =D36 -> 6.418176007
E28: =+(E25+D25)/2 -> 130537 | F28: =+(F25+E25)/2 -> 146577.5 | G28: =+(G25+F25)/2 -> 167962 | H28: 189343
B30: Detalle | C30: Unidad | D30: 2018 | E30: 2019 | F30: 2020 | G30: 2021 | H30: Promedio
B31: Costo AP | C31: B/. | D31: 706978.5782 | E31: 770357.3726 | F31: 899846.6906 | G31: 837743.9346 | H31: =AVERAGE(D31:G31) -> 803731.644
B32: Luminarias | C32: Cant. | D32: 115872.5 | E32: 117900.0833 | F32: 120894.5833 | G32: 123626.4167 | H32: =AVERAGE(D32:G32) -> 119573.3958
B34: Costo Mant./lum Cont. | D34: =D31/D32 -> 6.10134914 | E34: =E31/E32 -> 6.533984971 | F34: 7.443234145 | G34: 6.776415245 | H34: 6.721659433
B36: Costo Mant./lum RT-1 | D36: =6.41*C50 -> 6.418176007
B38: Costo Mant./lum | D38: =D36 -> 6.418176007
B41: Actualización Semestral
B42: Detalle | C42: Jul-Dic/2018 | D42: Ene-Jun/2019 | E42: Jul-Dic/2019 | F42: Ene-Jun/2020 | G42: Jul-Dic/2020 | H42: Ene-Jun/2021 | I42: Jul-Dic/2021 | J42: Ene-Jun/2022
B43: FAC de Comercialización | C43: 1.001640116 | D43: 1.009003272 | E43: 0.9921990476 | F43: 1.002362788 | G43: 0.9976440077 | H43: 0.9866108654 | I43: 0.9983986315 | J43: 1.016045054
B44: FAC de redes de Distribución, conexión | C44: 1.000897396 | D44: 1.004926179 | E44: 0.9957580952 | F44: 1.001284808 | G44: 0.9987188878 | H44: 0.9927194231 | I44: 0.9991292278 | J44: 1.00872478
B45: FAC por Servicio de Alumbrado Público | C45: 1.000441466 | D45: 1.002423388 | E45: 0.9981790476 | F45: 1.000551538 | G45: 0.9994500479 | H45: 0.9968746154 | I45: 0.9996261975 | J45: 1.003745348
B47: Acumulado Anual
C48: 2018 | D48: 2019 | E48: 2020 | F48: 2021
B49: Actualización | C49: =PRODUCT(C45:$J$45) -> 1.001275508 | D49: =PRODUCT(E45:$J$45) -> 0.9984141297 | E49: =PRODUCT(G45:$J$45) -> 0.9996841466 | F49: =J45 -> 1.003745348
B50: Act a Jun 22 | C50: =C49 -> 1.001275508

Sheet DEMANDA
B3: ENSA
B5: IMPULSORES DE COSTOS | C5: Unidades | D5: BASE | E5: =ALUMPU!D7 -> JUL22/ JUN23 | F5: =ALUMPU!E7 -> JUL23 / JUN24 | G5: =ALUMPU!F7 -> JUL24 / JUN25 | H5: =ALUMPU!G7 -> JUL25/ JUN26 | I5: CREC.a.a.
B6: Demanda Máxima | C6: MW | D6: =(D7+D8)/8760/D18 -> 882.3287538 | E6: =(E7+E8)/8760/E18 -> 906.5681801 | F6: 937.9855468 | G6: 971.2280775 | H6: 1005.956802 | I6: =(H6/D6)^(1/4)-1 -> 0.03332568543
B7: Energía ingresada al sist. Propio (eficiente) sin EDEMET | C7: MWh | D7: =+(D13+D14)/(1-D16) -> 4208102.634 | E7: =+(E13+E14)/(1-E16) -> 4353979.746 | F7: 4509624.896 | G7: 4673284.324 | H7: 4844363.403 | I7: =(H7/D7)^(1/4)-1 -> 0.03582788377
B8: Energía ingresada para EDEMET | C8: MWh | D8: =+D15/(1-D17) -> 309450.0896 | E8: =+E15/(1-E17) -> 320179.1075 | F8: 331626.6095 | G8: 343663.6173 | H8: 356246.4038 | I8: =(H8/D8)^(1/4)-1 -> 0.03583353949
B9: Clientes | C9: Nº clientes | D9: 513472.5 | E9: 537390.5 | F9: 556188.5 | G9: 575644.5 | H9: 595781.5 | I9: =(H9/D9)^(1/4)-1 -> 0.03786879893
B10: DEM/CLIENTE | C10: KW/CL | D10: =D6/D9*1000 -> 1.718356395 | E10: 1.836935005 | F10: 1.814307922 | G10: 1.784533004 | H10: 1.806068282
B11: ENERGIA-AÑO/CLIENTE | C11: MWh/CL | D11: =+D13/D9 -> 7.262098586 | E11: 9.060038081 | F11: 9.32608498 | G11: 8.982732672 | H11: 9.039666561
B13: Energia facturada sin AP | C13: MWh | D13: 3728887.916 | E13: 3858173.078 | F13: 3996116.008 | G13: 4141162.51 | H13: 4292785.67 | I13: =(H13/D13)^(1/4)-1 -> 0.03583353949
B14: Energía facturada AP | C14: MWh | D14: 83512.78764 | E14: 86408.2794 | F14: 89497.67196 | G14: 92746.1573 | H14: 96141.93455 | I14: =(H14/D14)^(1/4)-1 -> 0.03583353949
B15: Energia EDEMET | C15: MWh | D15: 304808.3383 | E15: 315376.4208 | F15: 326652.2103 | G15: 338508.663 | H15: 350902.7077 | I15: =(H15/D15)^(1/4)-1 -> 0.03583353949
B16: Perdidas eficientes | D16: =7.06578409415217%*D21 -> 0.09403333636 | E16: =7.06578409415217%*E21 -> 0.09402854693 | F16: 0.09402361092 | G16: 0.09401860154 | H16: 0.09401354954
B17: Perdidas carga EDEMET | D17: 0.015 | E17: =D17 -> 0.015 | F17: =E17 -> 0.015 | G17: 0.015 | H17: 0.015
B18: Factor de carga | D18: 0.5844787031 | E18: 0.5885710414 | F18: 0.5891927476 | G18: 0.5896770959 | H18: 0.5901614435
D19: 0 | E19: 0 | F19: 0 | G19: 0 | H19: 0
C21: Factor de Ajuste | D21: 1.33082663 | E21: 1.330758847 | F21: 1.330688989 | G21: 1.330618093 | H21: 1.330546593
D23: =D16*1000000000-('Costos y Pérdidas Eficientes'!M92+'PERDIDAS y OTROS'!E11)*1000000000 -> -1.639127731e-07 | E23: =E16*1000000000-('Costos y Pérdidas Eficientes'!N92+'PERDIDAS y OTROS'!E11)*1000000000 -> 2.235174179e-07 | F23: =F16*1000000000-('Costos y Pérdidas Eficientes'!O92+'PERDIDAS y OTROS'!F11)*1000000000 -> -1.639127731e-07 | G23: =G16*1000000000-('Costos y Pérdidas Eficientes'!P92+'PERDIDAS y OTROS'!G11)*1000000000 -> 1.490116119e-07 | H23: =H16*1000000000-('Costos y Pérdidas Eficientes'!Q92+'PERDIDAS y OTROS'!H11)*1000000000 -> -1.341104507e-07

Sheet Costos y Pérdidas Eficientes
A1: ENSA | K1: Estimaciones de los costos a partir de parametros estimados y las variables reales, actualizados U$S junio 2018
K3: ALTERNATIVA 2: UTILIZANDO NUEVOS MODELOS ESTADISTICOS PROPUESTO PARA EL PRESENTE ESTUDIO | S3: Variable Exógena / Variable Endógena | T3: AD | U3: AC | V3: OM | W3: COM | X3: ADM
K4: Tabla de parametos estimados CAPEX y OPEX | S4: Constante | T4: 9.694333 | U4: 6.288137 | V4: 5.872265 | W4: 4.666887 | X4: 1.482066
K5: Variable | L5: AD | M5: AC | N5: OMD | O5: COM | P5: ADM | S5: ln Clientes Totales | U5: 0.9362113 | W5: 0.9895434
K6: Ln(Mom_elec) | M6: 0 | O6: 0 | P6: 0 | S6: ln Demanda máxima | T6: 0.9654499
K7: Ln(Cl) | M7: =U5 -> 0.9362113 | N7: 0 | O7: =W5 -> 0.9895434 | P7: 0 | S7: ln Demanda máxima por cliente | T7: -0.8242876
K8: Ln(km red aerea) | L8: 0 | M8: 0 | N8: 0 | O8: 0 | P8: 0 | S8: ln Longitud total de red | V8: 0.9140084
K9: Ln(km red subt) | L9: 0 | M9: 0 | N9: 0 | O9: 0 | P9: 0 | S9: ln (Clientes/Longitud total de red) | V9: 0.9011067
K10: Ln(km red total) | L10: 0 | M10: 0 | N10: =$V$8 -> 0.9140084 | O10: 0 | P10: 0 | S10: ln (OM Distribución) | X10: 0.4379561
K11: Ln(cl_km) | L11: 0 | M11: 0 | N11: =V9 -> 0.9011067 | O11: 0 | P11: 0 | S11: ln (OM Comercialización) | X11: 0.4531271
K12: Ln(dem_max) | L12: =T6 -> 0.9654499 | M12: 0 | O12: 0 | P12: 0 | S12: R cuadrado total | T12: 0.9504 | U12: 0.9198 | V12: 0.8982 | W12: 0.882 | X12: 0.8327
K13: Ln(km_cuad) | L13: 0 | M13: 0 | N13: 0 | O13: 0 | P13: 0
K14: Ln(dem_max_cliente) | L14: =T7 -> -0.8242876 | M14: 0 | N14: 0 | O14: 0 | P14: 0
K15: Ln(energ_vend) | L15: 0 | M15: 0 | N15: 0 | O15: 0 | P15: 0
K16: Ln(oym_dist) | L16: 0 | M16: 0 | N16: 0 | O16: 0 | P16: =X10 -> 0.4379561
K17: Ln(oym_com) | L17: 0 | M17: 0 | N17: 0 | O17: 0 | P17: =X11 -> 0.4531271
K18: Ln(opexdiscom) | L18: 0 | M18: 0 | N18: 0 | O18: 0 | P18: 0
K19: Constante | L19: =T4 -> 9.694333 | M19: =U4 -> 6.288137 | N19: =V4 -> 5.872265 | O19: =W4 -> 4.666887 | P19: =X4 -> 1.482066
K21: Tabla de Datos Proyectados | M21: Base
K22: Variable | L22: Unidad | M22: 2021 | N22: =+M22+1 -> 2022 | O22: =+N22+1 -> 2023 | P22: =+O22+1 -> 2024 | Q22: =+P22+1 -> 2025 | R22: =+Q22+1 -> 2026
K23: Demanda Máxima | L23: MW | N23: =DEMANDA!D6 -> 882.3287538 | O23: =DEMANDA!E6 -> 906.5681801 | P23: =DEMANDA!F6 -> 937.9855468 | Q23: =DEMANDA!G6 -> 971.2280775 | R23: =DEMANDA!H6 -> 1005.956802
K24: Longitud de red áerea | L24: km | M24: 11362.98382 | N24: 11517.1012 | O24: 11673.03173 | P24: 11831.68198 | Q24: 11992.14537 | R24: 12154.4219
K25: Longitud de red subterranea | L25: km | M25: 1171.016176 | N25: 1186.898796 | O25: 1202.968269 | P25: 1219.318024 | Q25: 1235.854634 | R25: 1252.578098
K26: Venta totales de energía [MWh] | L26: MWh | N26: =DEMANDA!D13+DEMANDA!D14+DEMANDA!D15 -> 4117209.042 | O26: =DEMANDA!E13+DEMANDA!E14+DEMANDA!E15 -> 4259957.778 | P26: =DEMANDA!F13+DEMANDA!F14+DEMANDA!F15 -> 4412265.89 | Q26: =DEMANDA!G13+DEMANDA!G14+DEMANDA!G15 -> 4572417.33 | R26: =DEMANDA!H13+DEMANDA!H14+DEMANDA!H15 -> 4739830.312
K27: Costos OyM (D) | L27: USD | N27: =+M35 -> 56108078.29 | O27: 58467987.45 | P27: 60318304.99 | Q27: 62227199.14 | R27: 64196519.22
K28: Costos OyM (C) | L28: USD | N28: =+M36 -> 47600100.19 | O28: 49793643.57 | P28: 51516907.9 | Q28: 53299851.77 | R28: 55144539
K29: Clientes | L29: Cant. | N29: =DEMANDA!D9 -> 513472.5 | O29: =DEMANDA!E9 -> 537390.5 | P29: =DEMANDA!F9 -> 556188.5 | Q29: =DEMANDA!G9 -> 575644.5 | R29: =DEMANDA!H9 -> 595781.5
N30: =N24+N25 -> 12704 | O30: =O24+O25 -> 12876 | P30: 13051 | Q30: 13228 | R30: 13407
K31: Tabla de Costos sin Ajuste en USD (EEUU) a junio 2020
K32: COSTO | L32: =+M22 -> 2021 | M32: =+L32+1 -> 2022 | N32: =+M32+1 -> 2023 | O32: =+N32+1 -> 2024 | P32: =+O32+1 -> 2025 | Q32: =+P32+1 -> 2026
K33: AD | M33: =EXP($L$19+$L$6*LN(N23*SUM(N24:N25))+$L$7*LN(N29)+$L$8*LN(N24)+$L$9*LN(N25)+$L$10*LN(SUM(N24:N25))+$L$11*LN(N29/SUM(N24:N25))+$L$12*LN(N23)+$L$13*LN(SUM(N24:N25)*SUM(N24:N25))+$L$14*LN(N23/N29)+$L$15*LN(N26)+$L$16*LN(N27)+$L$17*LN(N28)+$L$18*LN(N27+N28)) -> 2153355842 | N33: 2244273384 | O33: 2319917974 | P33: 2398370512 | Q33: 2479584690
K34: AC | M34: =EXP($M$19+$M$6*LN(N23*SUM(N24:N25))+$M$7*LN(N29)+$M$8*LN(N24)+$M$9*LN(N25)+$M$10*LN(SUM(N24:N25))+$M$11*LN(N29/SUM(N24:N25))+$M$12*LN(N23)+$M$13*LN(SUM(N24:N25)*SUM(N24:N25))+$M$14*LN(N23/N29)+$M$15*LN(N26)+$M$16*LN(N27)+$M$17*LN(N28)+$M$18*LN(N27+N28)) -> 119441135 | N34: 124642294.9 | O34: 128719683.3 | P34: 132930550 | Q34: 137279257.4
K35: OMD | M35: =EXP($N$19+$N$6*LN(N23*SUM(N24:N25))+$N$7*LN(N29)+$N$8*LN(N24)+$N$9*LN(N25)+$N$10*LN(SUM(N24:N25))+$N$11*LN(N29/SUM(N24:N25))+$N$12*LN(N23)+$N$13*(LN(SUM(N24:N25)))^2+$N$14*LN(N23/N29)+$N$15*LN(N26)) -> 56108078.29 | N35: 58467987.45 | O35: 60318304.99 | P35: 62227199.14 | Q35: 64196519.22
K36: COM | M36: =EXP($O$19+$O$6*LN(N23*SUM(N24:N25))+$O$7*LN(N29)+$O$8*LN(N24)+$O$9*LN(N25)+$O$10*LN(SUM(N24:N25))+$O$11*LN(N29/SUM(N24:N25))+$O$12*LN(N23)+$O$13*LN(SUM(N24:N25)*SUM(N24:N25))+$O$14*LN(N23/N29)+$O$15*LN(N26)) -> 47600100.19 | N36: 49793643.57 | O36: 51516907.9 | P36: 53299851.77 | Q36: 55144539
K37: ADM | M37: =EXP($P$19+$P$6*LN(N23*SUM(N24:N25))+$P$7*LN(N29)+$P$8*LN(N24)+$P$9*LN(N25)+$P$10*LN(SUM(N24:N25))+$P$11*LN(N29/SUM(N24:N25))+$P$12*LN(N23)+$P$13*LN(SUM(N24:N25)*SUM(N24:N25))+$P$14*LN(N23/N29)+$P$15*LN(N26)+$P$16*LN(N27)+$P$17*LN(N28)+$P$18*LN(N27+N28)) -> 32833578.13 | N37: 34120890.4 | O37: 35127050.52 | P37: 36162898 | Q37: 37229306.53 | S37: 22552646.61 | T37: 23471967.19 | U37: 24192938.87 | V37: 24936122.85 | W37: 25702203.04
M38: =M33+M34 -> 2272796977 | N38: =N33+N34 -> 2368915679 | O38: 2448637657 | P38: 2531301062 | Q38: 2616863948 | S38: 2299367085 | T38: 2398183577 | U38: 2479968980 | V38: 2564796737 | W38: 2652632710
B40: Tabla de factores de ajuste del Componente Mano de Obra
C41: 2016 | D41: =+C41+1 -> 2017 | E41: =+D41+1 -> 2018 | F41: =+E41+1 -> 2019 | G41: =+F41+1 -> 2020 | H41: =+G41+1 -> 2021
B42: Costo laboral relativo 2016 | C42: 0.3857969036 | D42: =+$C$42/$C$55*D55 -> 0.3857969036 | E42: =+$C$42/$C$55*E55 -> 0.3857969036 | F42: 0.3857969036 | G42: 0.3857969036 | H42: 0.3857969036
B43: Costo laboral relativo de cada año | C43: =+$C$42/$C$55*C56 -> 0.4338109288 | D43: =+$C$42/$C$55*D56 -> 0.418648605 | E43: 0.4127521458 | F43: 0.4043286326 | G43: 0.3857969036 | H43: 0.3782157418
B45: Participación de la mano de obra en los costos totales | C45: En Panama | D45: En EEUU
B46: AD | C46: 0.4197043015 | D46: 0.6059682657
B47: AC | C47: 0.1675096761 | D47: 0.3344783372
B48: OMD | C48: 0.4333405763
B49: COM | C49: 0.2589053425 | K49: Costos resultantes de las ecuaciones de eficiencia dados en Balboas a junio 2020 (utilizando Parametros del estudio actual)
B50: ADM | C50: 0.5143458539 | K50: COSTO | L50: =+$L$32 -> 2021 | M50: =+L50+1 -> 2022 | N50: =+M50+1 -> 2023 | O50: =+N50+1 -> 2024 | P50: =+O50+1 -> 2025 | Q50: =+P50+1 -> 2026
K51: AD | M51: =M33*($D46*$C42+(1-$D46)*$D59*$C$55+(1-$D46)*(1-$D59)) -> 1200079334 | N51: =N33*($D46*$C42+(1-$D46)*$D59*$C$55+(1-$D46)*(1-$D59)) -> 1250748277 | O51: 1292905503 | P51: 1336627616 | Q51: 1381888811
K52: AC | M52: =M34*($D47*$C42+(1-$D47)*$D60*$C$55+(1-$D47)*(1-$D60)) -> 92093923.9 | N52: =N34*($D47*$C42+(1-$D47)*$D60*$C$55+(1-$D47)*(1-$D60)) -> 96104227.53 | O52: 99248058.17 | P52: 102494805.9 | Q52: 105847834.4
B53: Tabla de factores de ajuste del Componente Materiables a PPP de cada año | K53: OMD | M53: =M35*($C48*$C42+(1-$C48)*$C61*$C$55+(1-$C48)*(1-$C61)) -> 39451157.25 | N53: =N35*($C48*$C42+(1-$C48)*$C61*$C$55+(1-$C48)*(1-$C61)) -> 41110475.31 | O53: 42411485.26 | P53: 43753682.06 | Q53: 45138366.03
C54: 2016 | D54: =+C54+1 -> 2017 | E54: =+D54+1 -> 2018 | F54: =+E54+1 -> 2019 | G54: =+F54+1 -> 2020 | H54: =+G54+1 -> 2021 | K54: COM | M54: =M36*($C49*$C42+(1-$C49)*$C62*$C$55+(1-$C49)*(1-$C62)) -> 37162756.79 | N54: =N36*($C49*$C42+(1-$C49)*$C62*$C$55+(1-$C49)*(1-$C62)) -> 38875318.71 | O54: 40220720.36 | P54: 41612715.52 | Q54: 43052915.49
B55: PPP 2016 | C55: 0.458 | D55: =C55 -> 0.458 | E55: =D55 -> 0.458 | F55: =E55 -> 0.458 | G55: =F55 -> 0.458 | H55: =G55 -> 0.458 | K55: ADM | M55: =M37*($C50*$C42+(1-$C50)*$C63*$C$55+(1-$C50)*(1-$C63)) -> 20300379.07 | N55: =N37*($C50*$C42+(1-$C50)*$C63*$C$55+(1-$C50)*(1-$C63)) -> 21096299.85 | O55: 21718389.58 | P55: 22358834.45 | Q55: 23018174.63
B56: PPP de cada año | C56: 0.515 | D56: 0.497 | E56: 0.49 | F56: 0.48 | G56: 0.458 | H56: 0.449 | M56: =SUM(M51:M52) -> 1292173258 | N56: =SUM(N51:N52) -> 1346852504 | O56: =SUM(O51:O52) -> 1392153561 | P56: 1439122422 | Q56: 1487736645
B58: % Nacional | C58: En Panama | D58: En EEUU
B59: AD | C59: 0.1841545092 | D59: 0.3301373827 | K59: Activos proyectados con ecuaciones de eficiencia y mercado Proy Dda a precios de junio 2022
B60: AC | C60: 0.03096048266 | D60: 0.06521008622 | K60: Actividad | M60: 2022 | N60: =+M60+1 -> 2023 | O60: =+N60+1 -> 2024 | P60: =+O60+1 -> 2025 | Q60: =+P60+1 -> 2026
B61: OMD | C61: 0.1 | K61: AD (Ecuación de eficiencia) | M61: =M51*$E68 -> 1243554713 | N61: 1296059244 | O61: 1339743703 | P61: 1385049742 | Q61: 1431950618
B62: COM | C62: 0.15 | K62: AC (Ecuación de eficiencia) | M62: 93318555.56 | N62: 97382186.76 | O62: 100567822.9 | P62: 103857744.8 | Q62: 107255360.6
B63: ADM | C63: 0.25 | K63: Total | M63: =SUM(M61:M62) -> 1336873269 | N63: =SUM(N61:N62) -> 1393441431 | O63: 1440311526 | P63: 1488907487 | Q63: 1539205978
K65: Inversiones proyectadas con ecuaciones de eficiencia y mercado Proy Dda a precios de junio 2022
A66: Factor de Ajuste Jun 2022/Jun 2020 | K66: Actividad | M66: 2022 | N66: =+M66+1 -> 2023 | O66: =+N66+1 -> 2024 | P66: =+O66+1 -> 2025 | Q66: =+P66+1 -> 2026
A67: Costo | B67: % Total costos locales | C67: IPC 22/20 | D67: TC US$ 22/20 | E67: FA | K67: AD (Ecuación de eficiencia) | N67: =(N61-M61) -> 52504530.58 | O67: =(O61-N61) -> 43684459.43 | P67: 45306038.75 | Q67: =(Q61-P61) -> 46900875.58
A68: AD | B68: =C46+(1-C46)*C59 -> 0.526568371 | C68: =C76/C75 -> 1.06879845 | D68: =C78/C77 -> 1 | E68: =B68*C68+(1-B68)*D68 -> 1.036227088 | K68: AC (Ecuación de eficiencia) | N68: 4063631.199 | O68: 3185636.163 | P68: 3289921.839 | Q68: 3397615.8
A69: AC | B69: =C47+(1-C47)*C60 -> 0.1932839783 | C69: =C68 -> 1.06879845 | D69: =D68 -> 1 | E69: =B69*C69+(1-B69)*D69 -> 1.013297638 | K69: Total | N69: =+SUM(N67:N68) -> 56568161.78 | O69: =+SUM(O67:O68) -> 46870095.6 | P69: =+SUM(P67:P68) -> 48595960.59 | Q69: =+SUM(Q67:Q68) -> 50298491.38
A70: OMD | B70: 0.4900065187 | C70: =C69 -> 1.06879845 | D70: 1 | E70: 1.033711689
A71: COM | B71: 0.3700695411 | C71: 1.06879845 | D71: 1 | E71: 1.025460211
A72: ADM | B72: 0.6357593904 | C72: 1.06879845 | D72: 1 | E72: 1.04373926 | K72: Costos proyectados con ecuaciones de eficiencia y mercado Proy Dda a precios de junio 2022
K73: Actividad | L73: 2021 | M73: 2022 | N73: =+M73+1 -> 2023 | O73: =+N73+1 -> 2024 | P73: =+O73+1 -> 2025 | Q73: =+P73+1 -> 2026
K74: OMD | N74: =N53*$E70 -> 42496378.85 | O74: 43841248.05 | P74: 45228692.58 | Q74: 46660056.57
B75: IPC jun 2020 | C75: 103.2 | K75: COM | N75: 39865092.51 | O75: 41244748.37 | P75: 42672184.03 | Q75: 44149051.79
B76: IPC jun 2022 | C76: 110.3 | K76: ADM | N76: 22019036.4 | O76: 22668335.87 | P76: 23336793.33 | Q76: 24024972.56
B77: TC US$ 2020 | C77: 1 | N77: =SUM(N74:N76) -> 104380507.8 | O77: =SUM(O74:O76) -> 107754332.3 | P77: =SUM(P74:P76) -> 111237669.9 | Q77: =SUM(Q74:Q76) -> 114834080.9 | S77: 95397221.82 | T77: 98521828 | U77: 101749144.7 | V77: 105082549.5
B78: TC US$ 2022 | C78: 1
S79: Variable explicada: lnPE | T79: Modelo 1
K80: 2 - PÉRDIDAS | S80: Constante | T80: -2.54329
K81: Variable | L81: EP | S81: ln Energia Inyectada | T81: 0.9981612
K82: Ln(EF)(β) | L82: =T81 -> 0.9981612 | S82: ln Long Red Total
K83: Constante (α) | L83: =T80 -> -2.54329 | S83: ln Long Red Total por cliente
S84: R cuadrado total | T84: 0.9975
K86: RESULTADOS PÉRDIDAS
K89: Porcentaje
K90: COSTO | M90: =M73 -> 2022 | N90: =N73 -> 2023 | O90: =O73 -> 2024 | P90: =P73 -> 2025 | Q90: =Q73 -> 2026
K91: PE_MWH | M91: =EXP($L$83+$L$82*LN(DEMANDA!D7)) -> 321639.3241 | N91: =EXP($L$83+$L$82*LN(DEMANDA!E7)) -> 332768.3454 | O91: =EXP($L$83+$L$82*LN(DEMANDA!F7)) -> 344641.8185 | P91: =EXP($L$83+$L$82*LN(DEMANDA!G7)) -> 357125.8526 | Q91: =EXP($L$83+$L$82*LN(DEMANDA!H7)) -> 370175.0029
K92: PE_% | M92: =M91/DEMANDA!D7 -> 0.07643333636 | N92: =N91/DEMANDA!E7 -> 0.07642854693 | O92: =O91/DEMANDA!F7 -> 0.07642361092 | P92: =P91/DEMANDA!G7 -> 0.07641860154 | Q92: =Q91/DEMANDA!H7 -> 0.07641354954
A175: =+A174+1 -> 1 | B175: 102.8 | C175: =(B175/B174)-1 ->  | D175: 0.97
A176: 2 | B176: 103.5 | C176: 0.006809338521 | D176: 0.97
A177: 3 | B177: 104.4 | C177: 0.008695652174 | D177: 0.96
A178: 4 | B178: 105.2 | C178: 0.007662835249 | D178: 0.95
A179: 5 | B179: 104.9 | C179: -0.002851711027 | D179: 0.95
A180: 6 | B180: 103.2 | C180: -0.01620591039 | D180: 0.97
A181: 7 | B181: 104.9 | C181: 0.01647286822 | D181: 0.95
A184: (a) Las ponderaciones utilizadas para el cálculo del Índice del sector Importación se basan en el
A185: valor CIF de las importaciones registradas en 1985; para el sector Industrial se utilizó el valor
A186: de las ventas de la industria manufacturera en la República, obtenido a través de la Encuesta
A187: de la Industria Manufacturera de 1985, complementado con otras fuentes y en el sector
A188: Agropecuario se utilizó el valor de la producción destinada a la venta en 1985.
A190: .. Dato no aplicable al grupo o categoría

Sheet INVERSIONES
B1: ENSA | J1: ENSA | T1: ENSA
B3: INVERSIONES | J3: INVERSIONES | T3: INVERSIONES
B4: En miles de Balboas | J4: En Balboas | T4: En Balboas
B6: INVERSIONES TOTALES | D6: JUL22/ JUN23 | E6: JUL23 / JUN24 | F6: JUL24 / JUN25 | G6: JUL25/ JUN26 | H6: TOTALES | J6: INVERSION EN SUBESTACIONES Y LÍNEAS EN AT NO CONTEMPLADAS EN LAS ECUACIONES DE EFICIENCIA
D7: Miles de Balboas | E7: Miles de Balboas | F7: Miles de Balboas | G7: Miles de Balboas | H7: Miles de Balboas | J7: Concepto | K7: 2022 2do Sem | L7: 2023 1er Sem | M7: 2023 2do Sem | N7: 2024 1er Sem | O7: 2024 2do Sem | P7: 2025 1er Sem | Q7: 2025 2do Sem | R7: 2026 1er Sem | S7: TOTAL | T7: Concepto | U7: =DEMANDA!E5 -> JUL22/ JUN23 | V7: =DEMANDA!F5 -> JUL23 / JUN24 | W7: =DEMANDA!G5 -> JUL24 / JUN25 | X7: =DEMANDA!H5 -> JUL25/ JUN26 | Y7: TOTAL | AA7: =T7 -> Concepto | AB7: =U7 -> JUL22/ JUN23 | AC7: =V7 -> JUL23 / JUN24 | AD7: JUL24 / JUN25 | AE7: JUL25/ JUN26 | AF7: TOTAL
B8: Distribución | C8: ID | D8: =D14+D40 -> 52833.10258 | E8: =E14+E40 -> 50542.22075 | F8: 50402.01084 | G8: 61558.01758 | H8: =SUM(D8:G8) -> 215335.3518 | J8: EXPANSIÓN EN S/E AT Y LINEAS AT | K8: =SUM(K9:K14) -> 0 | L8: 0 | M8: 5584617.32 | N8: 616000 | O8: 1100000 | P8: 0 | Q8: 14000000 | R8: 0 | S8: =SUM(K8:R8) -> 21300617.32 | T8: EXPANSIÓN EN S/E AT Y LINEAS AT | U8: =SUM(U9:U14) -> 0 | V8: =SUM(V9:V14) -> 6200617.32 | W8: 1100000 | X8: 14000000 | Y8: 21300617.32
B9: Comercialización | C9: IC | D9: =D15+D41 -> 4441.831199 | E9: =E15+E41 -> 3625.636163 | F9: 3452.421839 | G9: 3560.1158 | H9: =SUM(D9:G9) -> 15080.005 | J9: Expansión S/E Calzada Larga | K9: 0 | L9: 0 | M9: 2585000 | N9: 0 | O9: 0 | P9: 0 | Q9: 0 | R9: 0 | S9: =SUM(K9:R9) -> 2585000 | T9: Expansión S/E Calzada Larga | U9: =K9+L9 -> 0 | V9: =M9+N9 -> 2585000 | W9: =O9+P9 -> 0 | X9: =Q9+R9 -> 0 | Y9: =SUM(U9:X9) -> 2585000 | AA9: Expansión S/E Calzada Larga | AB9: =U9/1000 -> 0 | AC9: =V9/1000 -> 2585 | AD9: =W9/1000 -> 0 | AE9: =X9/1000 -> 0 | AF9: =SUM(AB9:AE9) -> 2585
B10: Alumbrado Público | C10: IAP | D10: =+D30 -> 1923.19093 | E10: =+E30 -> 3530.32634 | F10: =+F30 -> 3530.32634 | G10: =+G30 -> 3530.32634 | H10: 12514.16995 | J10: Nueva SE Pacora | K10: 0 | L10: 0 | M10: 1650000 | N10: 0 | O10: 0 | P10: 0 | Q10: 0 | R10: 0 | S10: =SUM(K10:R10) -> 1650000 | T10: Nueva SE Pacora | U10: =K10+L10 -> 0 | V10: =M10+N10 -> 1650000 | W10: =O10+P10 -> 0 | X10: =Q10+R10 -> 0 | Y10: =SUM(U10:X10) -> 1650000 | AA10: Nueva SE Pacora | AB10: =U10/1000 -> 0 | AC10: 1650 | AD10: 0 | AE10: 0 | AF10: =SUM(AB10:AE10) -> 1650
B11: TOTAL INVERSIONES | D11: =+D8+D9+D10 -> 59198.12471 | E11: =+E8+E9+E10 -> 57698.18326 | F11: =+F8+F9+F10 -> 57384.75902 | G11: =+G8+G9+G10 -> 68648.45972 | H11: =SUM(D11:G11) -> 242929.5267 | J11: TX 24 de Diciembre (Pacora) | K11: 0 | L11: 0 | M11: 1349617.32 | N11: 0 | O11: 0 | P11: 0 | Q11: 0 | R11: 0 | S11: 1349617.32 | T11: TX 24 de Diciembre (Pacora) | U11: 0 | V11: 1349617.32 | W11: 0 | X11: 0 | Y11: 1349617.32 | AA11: TX 24 de Diciembre (Pacora) | AB11: 0 | AC11: 1349.61732 | AD11: 0 | AE11: 0 | AF11: 1349.61732
J12: Confiabilidad Subestaciones Zona Colón (LAT 115-30/31) | K12: 0 | L12: 0 | M12: 0 | N12: 616000 | O12: 0 | P12: 0 | Q12: 0 | R12: 0 | S12: 616000 | T12: Confiabilidad Subestaciones Zona Colón (LAT 115-30/31) | U12: 0 | V12: 616000 | W12: 0 | X12: 0 | Y12: 616000 | AA12: Confiabilidad Subestaciones Zona Colón (LAT 115-30/31) | AB12: 0 | AC12: 616 | AD12: 0 | AE12: 0 | AF12: 616
B13: INVERSIONES Ecuaciones | D13: =D6 -> JUL22/ JUN23 | E13: =E6 -> JUL23 / JUN24 | F13: JUL24 / JUN25 | G13: JUL25/ JUN26 | H13: TOTALES | J13: TX8 Subestación Bahía Las Minas | K13: 0 | L13: 0 | M13: 0 | N13: 0 | O13: 1100000 | P13: 0 | Q13: 0 | R13: 0 | S13: 1100000 | T13: TX8 Subestación Bahía Las Minas | U13: 0 | V13: 0 | W13: 1100000 | X13: 0 | Y13: 1100000 | AA13: TX8 Subestación Bahía Las Minas | AB13: 0 | AC13: 0 | AD13: 1100 | AE13: 0 | AF13: 1100
B14: Distribución | C14: ID | D14: ='Costos y Pérdidas Eficientes'!N67/1000 -> 52504.53058 | E14: ='Costos y Pérdidas Eficientes'!O67/1000 -> 43684.45943 | F14: ='Costos y Pérdidas Eficientes'!P67/1000 -> 45306.03875 | G14: ='Costos y Pérdidas Eficientes'!Q67/1000 -> 46900.87558 | H14: =SUM(D14:G14) -> 188395.9043 | J14: Nueva SE Gonzalillo | K14: 0 | L14: 0 | M14: 0 | N14: 0 | O14: 0 | P14: 0 | Q14: 14000000 | R14: 0 | S14: 14000000 | T14: Nueva SE Gonzalillo | U14: 0 | V14: 0 | W14: 0 | X14: 14000000 | Y14: 14000000 | AA14: Nueva SE Gonzalillo | AB14: 0 | AC14: 0 | AD14: 0 | AE14: 14000 | AF14: 14000
B15: Comercialización | C15: IC | D15: ='Costos y Pérdidas Eficientes'!N68/1000 -> 4063.631199 | E15: ='Costos y Pérdidas Eficientes'!O68/1000 -> 3185.636163 | F15: ='Costos y Pérdidas Eficientes'!P68/1000 -> 3289.921839 | G15: ='Costos y Pérdidas Eficientes'!Q68/1000 -> 3397.6158 | H15: =SUM(D15:G15) -> 13936.805 | T15: Total | U15: =SUM(U9:U14) -> 0 | V15: =SUM(V9:V14) -> 6200617.32 | W15: 1100000 | X15: 14000000 | Y15: 21300617.32 | AA15: Total | AB15: =SUM(AB9:AB14) -> 0 | AC15: =SUM(AC9:AC14) -> 6200.61732 | AD15: 1100 | AE15: 14000 | AF15: 21300.61732
J16: INVERSION EN OTROS CIRCUITOS NO CONTEMPLADAS EN LAS ECUACIONES DE EFICIENCIA
B17: INVERSIONES NO CONTEMPLADAS EN LAS ECUACIONES DE EFICIENCIA | D17: =D6 -> JUL22/ JUN23 | E17: =E6 -> JUL23 / JUN24 | F17: =F6 -> JUL24 / JUN25 | G17: =G6 -> JUL25/ JUN26 | H17: TOTALES | J17: Concepto | K17: 2022 2do Sem | L17: 2023 1er Sem | M17: 2023 2do Sem | N17: 2024 1er Sem | O17: 2024 2do Sem | P17: 2025 1er Sem | Q17: 2025 2do Sem | R17: 2026 1er Sem | S17: TOTAL | T17: Concepto | U17: =U7 -> JUL22/ JUN23 | V17: =V7 -> JUL23 / JUN24 | W17: JUL24 / JUN25 | X17: JUL25/ JUN26 | Y17: =Y7 -> TOTAL | AA17: Concepto | AB17: =AB7 -> JUL22/ JUN23 | AC17: =AC7 -> JUL23 / JUN24 | AD17: JUL24 / JUN25 | AE17: JUL25/ JUN26 | AF17: =AF7 -> TOTAL
J18: Proyectos Especiales Distribución | K18: =SUM(K19:K21) -> 0 | L18: =SUM(L19:L21) -> 0 | M18: 0 | N18: 0 | O18: 1838830.09 | P18: 1500000 | Q18: 0 | R18: 0 | S18: =SUM(S19:S21) -> 3338830.09 | T18: Proyectos Especiales Distribución | U18: =SUM(U19:U21) -> 0 | V18: 0 | W18: 3338830.09 | X18: 0 | Y18: 3338830.09
B19: Distribución (Subestaciones, Arquitectura asociada y líneas en AT) | C19: ID | D19: =U8/1000 -> 0 | E19: =V8/1000 -> 6200.61732 | F19: 1100 | G19: 14000 | H19: =SUM(D19:G19) -> 21300.61732 | J19: EMB para la subestación Chilibre | K19: 0 | L19: 0 | M19: 0 | N19: 0 | O19: 1000000 | P19: 0 | Q19: 0 | R19: 0 | S19: =SUM(L19:R19) -> 1000000 | T19: EMB para la subestación Chilibre | U19: =K19+L19 -> 0 | V19: =M19+N19 -> 0 | W19: =O19+P19 -> 1000000 | X19: =Q19+R19 -> 0 | Y19: =SUM(U19:X19) -> 1000000 | AA19: EMB para la subestación Chilibre | AB19: =U19/1000 -> 0 | AC19: =V19/1000 -> 0 | AD19: =W19/1000 -> 1000 | AE19: =X19/1000 -> 0 | AF19: =SUM(AB19:AE19) -> 1000
B20: Distribución (Circuitos en MT y Refuerzos en Plantas Potabilizadoras) | C20: ID | D20: =U18/1000 -> 0 | E20: =V18/1000 -> 0 | F20: 3338.83009 | G20: 0 | H20: =SUM(D20:G20) -> 3338.83009 | J20: Reposición de 2 EMB en Subestaciones de la provincia de Colón | K20: 0 | L20: 0 | M20: 0 | N20: 0 | O20: 0 | P20: 1500000 | Q20: 0 | R20: 0 | S20: =SUM(L20:R20) -> 1500000 | T20: Reposición de 2 EMB en Subestaciones de la provincia de Colón | U20: =K20+L20 -> 0 | V20: =M20+N20 -> 0 | W20: =O20+P20 -> 1500000 | X20: =Q20+R20 -> 0 | Y20: =SUM(U20:X20) -> 1500000 | AA20: Reposición de 2 EMB en Subestaciones de la provincia de Colón | AB20: 0 | AC20: 0 | AD20: 1500 | AE20: 0 | AF20: =SUM(AB20:AE20) -> 1500
B21: Otras Inversiones | C21: IC | D21: =U22/1000 -> 378.2 | E21: =V22/1000 -> 440 | F21: =W22/1000 -> 162.5 | G21: =X22/1000 -> 162.5 | H21: =SUM(D21:G21) -> 1143.2 | J21: Sistema Aislado Comunidad Ailigandi | K21: 0 | L21: 0 | M21: 0 | N21: 0 | O21: 838830.09 | Q21: 0 | R21: 0 | S21: =SUM(L21:R21) -> 838830.09 | T21: Reposición de 2 EMB en Subestaciones de la provincia de Colón | U21: =K21+L21 -> 0 | V21: =M21+N21 -> 0 | W21: =O21+P21 -> 838830.09 | X21: =Q21+R21 -> 0 | Y21: =SUM(U21:X21) -> 838830.09 | AA21: Reposición de 2 EMB en Subestaciones de la provincia de Colón | AB21: 0 | AC21: 0 | AD21: 838.83009 | AE21: 0 | AF21: =SUM(AB21:AE21) -> 838.83009
B22: Electrificación Rural | C22: ID | D22: =U26/1000 -> 328.572 | E22: =V26/1000 -> 657.144 | F22: =W26/1000 -> 657.142 | G22: =X26/1000 -> 657.142 | H22: 2300 | J22: Medidores Inteligentes 140 medidores (100 kW) 296 medidores (50 a 100 kW) 1,648 medidores (menores 50 kW) | K22: 0 | L22: 378200 | M22: 0 | N22: 440000 | O22: 0 | P22: 162500 | Q22: 0 | R22: 162500 | S22: =SUM(L22:R22) -> 1143200 | T22: Medidores Inteligentes 140 medidores (100 kW) 296 medidores (50 a 100 kW) 1,648 medidores (menores 50 kW) | U22: =K22+L22 -> 378200 | V22: =M22+N22 -> 440000 | W22: =O22+P22 -> 162500 | X22: =Q22+R22 -> 162500 | Y22: =SUM(U22:X22) -> 1143200 | AA22: Medidores Inteligentes 140 medidores (100 kW) 296 medidores (50 a 100 kW) 1,648 medidores (menores 50 kW) | AB22: 378.2 | AC22: 440 | AD22: 162.5 | AE22: 162.5 | AF22: =SUM(AB22:AE22) -> 1143.2
B23: Estas inversiones se agregan a las que resultan de las ecuaciones de eficiencia | J23: TOTAL | K23: =SUM(K18+K22) -> 0 | L23: 378200 | M23: 0 | N23: 440000 | O23: 1838830.09 | P23: 1662500 | Q23: 0 | R23: 162500 | S23: 4482030.09 | T23: TOTAL | U23: =SUM(U18+U22) -> 378200 | V23: =SUM(V18+V22) -> 440000 | W23: =SUM(W18+W22) -> 3501330.09 | X23: =SUM(X18+X22) -> 162500 | Y23: =SUM(Y18+Y22) -> 4482030.09 | AA23: TOTAL | AB23: =SUM(AB19:AB22) -> 378.2 | AC23: =SUM(AC19:AC22) -> 440 | AD23: 3501.33009 | AE23: 162.5 | AF23: 4482.03009
B25: INVERSIONES EN ALUMBRADO PÚBLICO | D25: =D17 -> JUL22/ JUN23 | E25: =E17 -> JUL23 / JUN24 | F25: JUL24 / JUN25 | G25: JUL25/ JUN26 | H25: TOTALES | J25: Concepto | K25: 2022 2do Sem | L25: 2023 1er Sem | M25: 2023 2do Sem | N25: 2024 1er Sem | O25: 2024 2do Sem | P25: 2025 1er Sem | Q25: 2025 2do Sem | R25: 2026 1er Sem | S25: TOTAL | T25: Concepto | U25: =U17 -> JUL22/ JUN23 | V25: =V17 -> JUL23 / JUN24 | W25: =W17 -> JUL24 / JUN25 | X25: =X17 -> JUL25/ JUN26 | Y25: =Y17 -> TOTAL | AA25: Concepto | AB25: =AB17 -> JUL22/ JUN23 | AC25: =AC17 -> JUL23 / JUN24 | AD25: =AD17 -> JUL24 / JUN25 | AE25: =AE17 -> JUL25/ JUN26 | AF25: =AF17 -> TOTAL
B26: Reposición Y Mejoras de AP | C26: IAP | D26: =U31/1000 -> 536.12615 | E26: =V31/1000 -> 1072.2523 | F26: =W31/1000 -> 1072.2523 | G26: =X31/1000 -> 1072.2523 | H26: =SUM(D26:G26) -> 3752.88305 | J26: ELECTRIFICACIÓN RURAL | K26: 0 | L26: 328572 | M26: 328572 | N26: 328572 | O26: 328571 | P26: 328571 | Q26: 328571 | R26: 328571 | S26: =SUM(L26:R26) -> 2300000 | T26: ELECTRIFICACIÓN RURAL | U26: =K26+L26 -> 328572 | V26: =M26+N26 -> 657144 | W26: =O26+P26 -> 657142 | X26: =Q26+R26 -> 657142 | Y26: =SUM(U26:X26) -> 2300000 | AA26: ELECTRIFICACIÓN RURAL | AB26: =U26/1000 -> 328.572 | AC26: =V26/1000 -> 657.144 | AD26: =W26/1000 -> 657.142 | AE26: =X26/1000 -> 657.142 | AF26: =SUM(AB26:AE26) -> 2300
B27: Crecimiento Vegetativo - Sodio | C27: IAP
B28: Crecimiento Vegetativo - LED | C28: IAP | D28: =U32/1000 -> 387.06478 | E28: 458.07404 | F28: 458.07404 | G28: 458.07404 | H28: =SUM(D28:G28) -> 1761.2869 | J28: INVERSIONES EN ALUMBRADO PÚBLICO
B29: Proyectos especiales | C29: IAP | D29: 1000 | E29: 2000 | F29: 2000 | G29: 2000 | H29: =SUM(D29:G29) -> 7000 | J29: DETALLE | K29: 2022 2do Sem | L29: 2023 1er Sem | M29: 2023 2do Sem | N29: 2024 1er Sem | O29: 2024 2do Sem | P29: 2025 1er Sem | Q29: 2025 2do Sem | R29: 2026 1er Sem | S29: TOTAL | T29: DETALLE | U29: =U25 -> JUL22/ JUN23 | V29: =V25 -> JUL23 / JUN24 | W29: JUL24 / JUN25 | X29: JUL25/ JUN26 | Y29: TOTAL | AA29: DETALLE | AB29: =AB25 -> JUL22/ JUN23 | AC29: =AC25 -> JUL23 / JUN24 | AD29: JUL24 / JUN25 | AE29: JUL25/ JUN26 | AF29: TOTAL
B30: TOTAL | D30: =SUM(D26:D29) -> 1923.19093 | E30: =SUM(E26:E29) -> 3530.32634 | F30: 3530.32634 | G30: 3530.32634 | H30: 12514.16995 | J30: ALUMBRADO PÚBLICO | K30: =SUM(K31:K32) -> 130527.76 | L30: =SUM(L31:L32) -> 792663.17 | M30: 765163.17 | N30: 765163.17 | O30: 765163.17 | P30: 765163.17 | Q30: 765163.17 | R30: 765163.17 | S30: =SUM(K30:R30) -> 5514169.95 | T30: ALUMBRADO PÚBLICO | U30: =SUM(U31:U32) -> 923190.93 | V30: =SUM(V31:V32) -> 1530326.34 | W30: 1530326.34 | X30: 1530326.34 | Y30: 5514169.95 | AA30: ALUMBRADO PÚBLICO | AB30: =SUM(AB31:AB32) -> 923.19093 | AC30: =SUM(AC31:AC32) -> 1530.32634 | AD30: 1530.32634 | AE30: 1530.32634 | AF30: 5514.16995
J31: Reposición Y Mejoras de AP | K31: 0 | L31: 536126.15 | M31: 536126.15 | N31: 536126.15 | O31: 536126.15 | P31: 536126.15 | Q31: 536126.15 | R31: 536126.15 | S31: =SUM(K31:R31) -> 3752883.05 | T31: Reposición Y Mejoras de AP | U31: =K31+L31 -> 536126.15 | V31: =M31+N31 -> 1072252.3 | W31: =O31+P31 -> 1072252.3 | X31: =Q31+R31 -> 1072252.3 | Y31: =SUM(U31:X31) -> 3752883.05 | AA31: Reposición Y Mejoras de AP | AB31: =U31/1000 -> 536.12615 | AC31: =V31/1000 -> 1072.2523 | AD31: =W31/1000 -> 1072.2523 | AE31: =X31/1000 -> 1072.2523 | AF31: =SUM(AB31:AE31) -> 3752.88305
B32: LUMINARIAS QUE SE INCORPORAN | D32: =D17 -> JUL22/ JUN23 | E32: =E17 -> JUL23 / JUN24 | F32: JUL24 / JUN25 | G32: JUL25/ JUN26 | H32: TOTALES | J32: Crecimiento Vegetativo LED | K32: 130527.76 | L32: 256537.02 | M32: 229037.02 | N32: 229037.02 | O32: 229037.02 | P32: 229037.02 | Q32: 229037.02 | R32: 229037.02 | S32: =SUM(K32:R32) -> 1761286.9 | T32: Crecimiento Vegetativo LED | U32: 387064.78 | V32: 458074.04 | W32: 458074.04 | X32: 458074.04 | Y32: 1761286.9 | AA32: Crecimiento Vegetativo LED | AB32: 387.06478 | AC32: 458.07404 | AD32: 458.07404 | AE32: 458.07404 | AF32: 1761.2869
B33: Crecimiento Vegetativo - Sodio | H33: =SUM(D33:G33) -> 0 | J33: Proyectos Especiales de Alumbrado Público | K33: =SUM(K34:K35) -> 0 | L33: 1000000 | M33: 1000000 | N33: 1000000 | O33: 1000000 | P33: 1000000 | Q33: 1000000 | R33: 1000000 | S33: =SUM(K33:R33) -> 7000000 | T33: Proyectos Especiales de Alumbrado Público | U33: =SUM(U34:U35) -> 1000000 | V33: 2000000 | W33: 2000000 | X33: 2000000 | Y33: 7000000 | AA33: Proyectos Especiales de Alumbrado Público | AB33: =SUM(AB34:AB35) -> 1000 | AC33: 2000 | AD33: 2000 | AE33: 2000 | AF33: 7000
B34: Crecimiento Vegetativo - LED | D34: =U43+U44 -> 5658 | E34: =V43+V44 -> 11316 | F34: =W43+W44 -> 11314 | G34: =X43+X44 -> 11312 | H34: =SUM(D34:G34) -> 39600 | J34: Sustitución de luminarias de Sodio por LED | K34: 0 | L34: 971429 | M34: 971429 | N34: 971429 | O34: 971429 | P34: 971428 | Q34: 971428 | R34: 971428 | S34: 6800000 | T34: Sustitución de luminarias de Sodio por LED | U34: =K34+L34 -> 971429 | V34: =M34+N34 -> 1942858 | W34: =O34+P34 -> 1942857 | X34: =Q34+R34 -> 1942856 | Y34: =SUM(U34:X34) -> 6800000 | AA34: Sustitución de luminarias de Sodio por LED | AB34: =U34/1000 -> 971.429 | AC34: =V34/1000 -> 1942.858 | AD34: =W34/1000 -> 1942.857 | AE34: =X34/1000 -> 1942.856 | AF34: =SUM(AB34:AE34) -> 6800
B35: Proyectos especiales | D35: =U45 -> 5036 | E35: =V45 -> 10071 | F35: =W45 -> 10068 | G35: =X45 -> 10068 | H35: 35243 | J35: Iluminación para pasos peatonales tipo LED | K35: 0 | L35: 28571 | M35: 28571 | N35: 28571 | O35: 28571 | P35: 28572 | Q35: 28572 | R35: 28572 | S35: =SUM(K35:R35) -> 200000 | T35: Iluminación para pasos peatonales tipo LED | U35: 28571 | V35: 57142 | W35: 57143 | X35: 57144 | Y35: 200000 | AA35: Iluminación para pasos peatonales tipo LED | AB35: 28.571 | AC35: 57.142 | AD35: 57.143 | AE35: 57.144 | AF35: 200
B36: TOTAL LUMINARIAS ADICIONALES | D36: =SUM(D33:D35) -> 10694 | E36: =SUM(E33:E35) -> 21387 | F36: =SUM(F33:F35) -> 21382 | G36: =SUM(G33:G35) -> 21380 | H36: =SUM(D36:G36) -> 74843 | J36: TOTAL | K36: =K30+K33 -> 130527.76 | L36: =L30+L33 -> 1792663.17 | M36: 1765163.17 | N36: 1765163.17 | O36: 1765163.17 | P36: 1765163.17 | Q36: 1765163.17 | R36: 1765163.17 | S36: 12514169.95 | T36: TOTAL | U36: =U30+U33 -> 1923190.93 | V36: =V30+V33 -> 3530326.34 | W36: 3530326.34 | X36: 3530326.34 | Y36: 12514169.95 | AA36: TOTAL | AB36: =AB30+AB33 -> 1923.19093 | AC36: =AC30+AC33 -> 3530.32634 | AD36: 3530.32634 | AE36: 3530.32634 | AF36: 12514.16995
B38: INVERSIONES NO CONTEMPLADAS EN LAS ECUACIONES DE EFICIENCIA | D38: =D17 -> JUL22/ JUN23 | E38: =E17 -> JUL23 / JUN24 | F38: =F17 -> JUL24 / JUN25 | G38: =G17 -> JUL25/ JUN26 | H38: TOTALES | U38: =U8+U23+U26+U36 -> 2629962.93 | V38: =V8+V23+V26+V36 -> 10828087.66 | W38: =W8+W23+W26+W36 -> 8788798.43 | X38: =X8+X23+X26+X36 -> 18349968.34 | Y38: =Y8+Y23+Y26+Y36 -> 40596817.36 | AB38: =AB15+AB23+AB26+AB36 -> 2629.96293 | AC38: 10828.08766 | AD38: 8788.79843 | AE38: 18349.96834 | AF38: =AF15+AF23+AF26+AF36 -> 40596.81736
D39: Miles de Balboas | E39: Miles de Balboas | F39: Miles de Balboas | G39: Miles de Balboas | H39: Miles de Balboas
B40: Inverisones adicionales Distribucion | C40: ID | D40: =+D19+D20+D22 -> 328.572 | E40: =+E19+E20+E22 -> 6857.76132 | F40: =+F19+F20+F22 -> 5095.97209 | G40: =+G19+G20+G22 -> 14657.142 | H40: =+H19+H20+H22 -> 26939.44741
B41: Inverisones adicionales Comercialización | C41: IC | D41: =+D21 -> 378.2 | E41: =+E21 -> 440 | F41: =+F21 -> 162.5 | G41: =+G21 -> 162.5 | H41: =+H21 -> 1143.2 | J41: CANTIDAD DE LUMINARIAS ADICIONALES (ALUMBRADO PÚBLICO)
B42: Inversiones adicionales en alumbrado | C42: IAP | D42: =+D30 -> 1923.19093 | E42: =+E30 -> 3530.32634 | F42: 3530.32634 | G42: 3530.32634 | H42: 12514.16995 | J42: DETALLE | K42: 2022 2do Sem | L42: 2023 1er Sem | M42: 2023 2do Sem | N42: 2024 1er Sem | O42: 2024 2do Sem | P42: 2025 1er Sem | Q42: 2025 2do Sem | R42: 2026 1er Sem | T42: DETALLE | U42: =U29 -> JUL22/ JUN23 | V42: =V29 -> JUL23 / JUN24 | W42: JUL24 / JUN25 | X42: JUL25/ JUN26 | Y42: TOTAL
D43: =SUM(D40:D42)-U38/1000 -> 0 | E43: =SUM(E40:E42)-V38/1000 -> 0 | F43: =SUM(F40:F42)-W38/1000 -> 0 | G43: =SUM(G40:G42)-X38/1000 -> 0 | H43: =SUM(H40:H42)-Y38/1000 -> 0 | J43: Crecimiento Vegetativo - LED | K43: =SUM(K44:K45) -> 0 | L43: 1372 | M43: 1372 | N43: 1372 | O43: 1371 | P43: 1371 | Q43: 1371 | R43: 1371 | T43: Crecimiento Vegetativo - LED | U43: =K43+L43 -> 1372 | V43: =M43+N43 -> 2744 | W43: =O43+P43 -> 2742 | X43: =Q43+R43 -> 2742 | Y43: =SUM(U43:X43) -> 9600
J44: Reposición y Mejoras de AP | K44: 0 | L44: 4286 | M44: 4286 | N44: 4286 | O44: 4286 | P44: 4286 | Q44: 4285 | R44: 4285 | T44: Reposición y Mejoras de AP | U44: 4286 | V44: 8572 | W44: 8572 | X44: 8570 | Y44: 30000
J45: Proyectos Especiales | K45: =SUM(K46:K47) -> 0 | L45: =SUM(L46:L47) -> 5036 | M45: 5036 | N45: 5035 | O45: 5034 | P45: 5034 | Q45: 5034 | R45: =SUM(R46:R47) -> 5034 | T45: Proyectos Especiales | U45: =SUM(U46:U47) -> 5036 | V45: =SUM(V46:V47) -> 10071 | W45: 10068 | X45: 10068 | Y45: 35243
J46: Sustitución de luminarias de Sodio por LED (cant. 35,135) | K46: 0 | L46: 5020 | M46: 5020 | N46: 5019 | O46: 5019 | P46: 5019 | Q46: 5019 | R46: 5019 | T46: Sustitución de luminarias de Sodio por LED (cant. 35,135) | U46: =K46+L46 -> 5020 | V46: =M46+N46 -> 10039 | W46: =O46+P46 -> 10038 | X46: =Q46+R46 -> 10038 | Y46: =SUM(U46:X46) -> 35135
J47: Iluminación para pasos peatonales tipo LED (Cant. 108) | K47: 0 | L47: 16 | M47: 16 | N47: 16 | O47: 15 | P47: 15 | Q47: 15 | R47: 15 | T47: Iluminación para pasos peatonales tipo LED (Cant. 108) | U47: 16 | V47: 32 | W47: 30 | X47: 30 | Y47: 108
J48: TOTAL | K48: =SUM(K43:K45) -> 0 | L48: =SUM(L43:L45) -> 10694 | M48: 10694 | N48: 10693 | O48: 10691 | P48: 10691 | Q48: 10690 | R48: =SUM(R43:R45) -> 10690 | T48: TOTAL | U48: =SUM(U43:U45) -> 10694 | V48: =SUM(V43:V45) -> 21387 | W48: 21382 | X48: 21380 | Y48: 74843
J50: Inversiones en Electrificación Rural
J51: PROVINCIA / COMARCA | K51: DISTRITO | L51: CORREGIMIENTO | M51: POBLADO | N51: KM | O51: VIVIENDAS
J52: COLÓN | K52: SANTA ISABEL | L52: PALMIRA | M52: EL PROGRESO | N52: 6.39 | O52: 24
J53: DARIÉN | K53: CHEPIGANA | L53: LA PALMA | M53: ALTO DE VISTA ALEGRE | N53: 1 | O53: 13
J54: DARIÉN | K54: PINOGANA | L54: METETÍ | M54: SANSON ARRIBA | N54: 7 | O54: 15
J55: DARIÉN | K55: SANTA FE | L55: AGUA FRÍA | M55: QUEBRADA JABON-VALLE ALEGRE | N55: 8.61 | O55: 10
J56: DARIÉN | K56: SANTA FE | L56: CUCUNATÍ | M56: RÍO ROMAN | N56: 6.7 | O56: 27
J57: DARIÉN | K57: SANTA FE | L57: RÍO CONGO ARRIBA | M57: BUENA VISTA ARRIBA | N57: 2.91 | O57: 13
J58: DARIÉN | K58: SANTA FE | L58: RÍO CONGO ARRIBA | M58: LA GLORIA | N58: 3 | O58: 24
J59: DARIÉN | K59: SANTA FE | L59: RÍO CONGO ARRIBA | M59: RÍO BONITO ARRIBA | N59: 4.64 | O59: 13
J60: DARIÉN | K60: SANTA FE | L60: SANTA FE | M60: AGUA BUENA N°2 | N60: 3.3 | O60: 6
J61: DARIÉN | K61: SANTA FE | L61: SANTA FE | M61: COREDO | N61: 8.17 | O61: 24
J62: DARIÉN | K62: SANTA FE | L62: SANTA FE | M62: TAMARINDO VÍA HACIA ZIMBA | N62: 1 | O62: 6
J63: DARIÉN | K63: SANTA FE | L63: SANTA FE | M63: TAMARINDO VÍA HACIA GUAYABILLO | N63: 1.1 | O63: 9
J64: DARIÉN | K64: SANTA FE | L64: SANTA FE | M64: QUEBRADA CAÑAZAS | N64: 1 | O64: 7
J65: DARIÉN | K65: SANTA FE | L65: SANTA FE | M65: CANDELILLA VIA CABUYA | N65: 3.6 | O65: 10
J66: DARIÉN | K66: SANTA FE | L66: ZAPALLAL | M66: ALTOS DEL CRISTO | N66: 0.61 | O66: 11
J67: PANAMÁ | K67: CHEPO | L67: EL LLANO | M67: AGUA BUENA | N67: 6.5 | O67: 33
J68: PANAMÁ | K68: PANAMÁ CAP | L68: PACORA | M68: NUEVO SITIO PACORA | N68: 3.54 | O68: 18
J69: PANAMÁ | K69: CHEPO | L69: TORTI | M69: SAN JOSE | N69: 4.6 | O69: 32
J70: COMARCA EMBERÁ WOUNAAN | K70: CÉMACO | L70: LAJAS BLANCAS | M70: BAJA - PURU | N70: 3.2 | O70: 20
L71: TOTAL | M71: 18 | N71: 76.87 | O71: 315

Sheet ACTIVOS
B2: ENSA
B4: ACTIVOS TARIFARIOS PERMITIDOS
B5: En miles de Balboas
B7: BASE DE CAPITAL | D7: ACT.JUN22 | E7: AJUSTE ACTNOREG | F7: BASE | G7: =INVERSIONES!D25 -> JUL22/ JUN23 | H7: =INVERSIONES!E25 -> JUL23 / JUN24 | I7: =INVERSIONES!F25 -> JUL24 / JUN25 | J7: =INVERSIONES!G25 -> JUL25/ JUN26
B9: Valor Bruto Base de Capital Distribución | C9: BCD | D9: ='BC y Dep'!C68/1000 -> 791570.041 | E9: =G29 -> 0.9598211005 | F9: =D9*E9 -> 759765.6278 | G9: =+F9+INVERSIONES!D8 -> 812598.7304 | H9: =+G9+INVERSIONES!E8 -> 863140.9512 | I9: =+H9+INVERSIONES!F8 -> 913542.962 | J9: =+I9+INVERSIONES!G8 -> 975100.9796
B10: Valor Bruto Base de Capital Comercialización | C10: BCC | D10: ='BC y Dep'!C70/1000 -> 134103.1511 | E10: =+E9 -> 0.9598211005 | F10: =D10*E10 -> 128715.0341 | G10: =+F10+INVERSIONES!D9 -> 133156.8653 | H10: =+G10+INVERSIONES!E9 -> 136782.5014 | I10: =+H10+INVERSIONES!F9 -> 140234.9233 | J10: =+I10+INVERSIONES!G9 -> 143795.0391
B11: Valor Bruto Activos Fijos Alumbrado Público | C11: ACTalum | D11: ='BC y Dep'!C69/1000 -> 49639.45806 | E11: =+E9 -> 0.9598211005 | F11: =D11*E11 -> 47644.99926 | G11: =+F11+INVERSIONES!D10 -> 49568.19019 | H11: =+G11+INVERSIONES!E10 -> 53098.51653 | I11: =+H11+INVERSIONES!F10 -> 56628.84287 | J11: =+I11+INVERSIONES!G10 -> 60159.16921
D12: =SUM(D9:D11) -> 975312.6501 | F12: =SUM(F9:F11) -> 936125.6612 | G12: =SUM(G9:G11) -> 995323.7859 | H12: 1053021.969 | I12: 1110406.728 | J12: 1179055.188
B14: Valor Neto Base Capital Distribución | C14: BCND | D14: ='BC y Dep'!C76/1000 -> 410476.9035 | E14: =+E9 -> 0.9598211005 | F14: =D14*E14 -> 393984.3933 | G14: =F14+(G9-F9)-'BC y Dep'!D80/1000-((G9-F9)/2)*'PERDIDAS y OTROS'!E$12 -> 419779.0272 | H14: =G14+(H9-G9)-'BC y Dep'!E80/1000-(G9-F9)*'PERDIDAS y OTROS'!E$12-((H9-G9)/2)*'PERDIDAS y OTROS'!F$12 -> 442240.5017 | I14: =H14+(I9-H9)-'BC y Dep'!F80/1000-(G9-F9)*'PERDIDAS y OTROS'!E$12-(H9-G9)*'PERDIDAS y OTROS'!F$12-((I9-H9)/2)*'PERDIDAS y OTROS'!G$12 -> 463812.6323 | J14: =I14+(J9-I9)-'BC y Dep'!G80/1000-(G9-F9)*'PERDIDAS y OTROS'!E$12-(H9-G9)*'PERDIDAS y OTROS'!F$12-(I9-H9)*'PERDIDAS y OTROS'!G$12-((J9-I9)/2)*'PERDIDAS y OTROS'!H$12 -> 499223.6799
B15: Valor Neto Base Capital Comercialización | C15: BCNC | D15: ='BC y Dep'!C78/1000 -> 74714.0293 | E15: =+E9 -> 0.9598211005 | F15: =D15*E15 -> 71712.10182 | G15: =F15+(G10-F10)-'BC y Dep'!D82/1000-((G10-F10)/2)*'PERDIDAS y OTROS'!E$13 -> 70255.40619 | H15: =G15+(H10-G10)-'BC y Dep'!E82/1000-(G10-F10)*'PERDIDAS y OTROS'!E$13-((H10-G10)/2)*'PERDIDAS y OTROS'!F$13 -> 68013.69133 | I15: =H15+(I10-H10)-'BC y Dep'!F82/1000-(G10-F10)*'PERDIDAS y OTROS'!E$13-(H10-G10)*'PERDIDAS y OTROS'!F$13-((I10-H10)/2)*'PERDIDAS y OTROS'!G$13 -> 65815.17273 | J15: =I15+(J10-I10)-'BC y Dep'!G82/1000-(G10-F10)*'PERDIDAS y OTROS'!E$13-(H10-G10)*'PERDIDAS y OTROS'!F$13-(I10-H10)*'PERDIDAS y OTROS'!G$13-((J10-I10)/2)*'PERDIDAS y OTROS'!H$13 -> 64211.03533
B16: Valor Neto Activos Fijos Alumbrado Público | C16: ACTN alum | D16: ='BC y Dep'!C77/1000 -> 27431.39487 | E16: =+E9 -> 0.9598211005 | F16: =D16*E16 -> 26329.23161 | G16: =F16+(G11-F11)-'BC y Dep'!D81/1000-((G11-F11)/2)*'PERDIDAS y OTROS'!E$14 -> 26384.23924 | H16: =G16+(H11-G11)-'BC y Dep'!E81/1000-(G11-F11)*'PERDIDAS y OTROS'!E$14-((H11-G11)/2)*'PERDIDAS y OTROS'!F$14 -> 27922.4387 | I16: =H16+(I11-H11)-'BC y Dep'!F81/1000-(G11-F11)*'PERDIDAS y OTROS'!E$14-(H11-G11)*'PERDIDAS y OTROS'!F$14-((I11-H11)/2)*'PERDIDAS y OTROS'!G$14 -> 29403.23538 | J16: =I16+(J11-I11)-'BC y Dep'!G81/1000-(G11-F11)*'PERDIDAS y OTROS'!E$14-(H11-G11)*'PERDIDAS y OTROS'!F$14-(I11-H11)*'PERDIDAS y OTROS'!G$14-((J11-I11)/2)*'PERDIDAS y OTROS'!H$14 -> 30813.03646
D17: =SUM(D14:D16) -> 512622.3277 | F17: =SUM(F14:F16) -> 492025.7267 | G17: =SUM(G14:G16) -> 516418.6727 | H17: 538176.6318 | I17: 559031.0405 | J17: 594247.7517
B18: Check | D18: =D12-'BC y Dep'!C71/1000 -> 0 | G18: =F17+INVERSIONES!D11-(IMPD!D11+IMPCO!D11+ALUMPU!D11)-G17 -> 0 | H18: =G17+INVERSIONES!E11-(IMPD!E11+IMPCO!E11+ALUMPU!E11)-H17 -> 0 | I18: =H17+INVERSIONES!F11-(IMPD!F11+IMPCO!F11+ALUMPU!F11)-I17 -> 0 | J18: =I17+INVERSIONES!G11-(IMPD!G11+IMPCO!G11+ALUMPU!G11)-J17 -> 0
D19: =D17-'BC y Dep'!C79/1000 -> 0
B20: Ajuste Activos no Regulados
B22: Detalle | C22: 2018 | D22: 2019 | E22: 2020 | F22: 2021 | G22: Promedio
B23: Ingresos no regulados | C23: 6356404.78 | D23: 6800759.31 | E23: 5906574.52 | F23: 3687854.58 | G23: =AVERAGE(C23:F23) -> 5687898.297
B24: Ingresos por venta de energía | C24: 670553981 | D24: 726169128 | E24: 547280809 | F24: 521183013 | G24: =AVERAGE(C24:F24) -> 616296732.8
B25: Compras de energía | C25: -537377656 | D25: -583893777 | E25: -418703632 | F25: -381706208 | G25: =AVERAGE(C25:F25) -> -480420318.2
B26: otros ingresos
B27: Ingreso Neto por actividades reguladas | C27: =C24+C25+C26 -> 133176325 | D27: 142275351 | E27: 128577177 | F27: 139476805 | G27: =AVERAGE(C27:F27) -> 135876414.5
B29: Factor de ajuste | C29: =C27/(C27+C23) -> 0.9544450625 | D29: 0.9543806228 | E29: 0.9560796419 | F29: 0.9742404683 | G29: =G27/(G27+G23) -> 0.9598211005

Sheet BC y Dep
A1: PLANILLA AA-01
A2: LÍNEA DE NEGOCIO | B2: CUENTAS | C2: Vida útil estándar | D2: t<2001 | G2: 2002 | K2: 2003 | O2: 2004 | S2: 2005 | W2: 2006 | AA2: 2007 | AE2: 2008 | AI2: 2009 | AM2: 2010 | AQ2: 2011 | AU2: 2012 | AY2: 2013 | BC2: 2014 | BG2: 2015 | BK2: 2016 | BO2: 2017 | BS2: 2018 | BW2: 2019 | CA2: 2020 | CE2: 2021 | CI2: 2021.5 | DJ2: =CI2 -> 2021.5 | DP2: 2002 | DQ2: =DP2+1 -> 2003 | DR2: =DQ2+1 -> 2004 | DS2: 2005 | DT2: 2006 | DU2: 2007 | DV2: 2008 | DW2: 2009 | DX2: 2010 | DY2: 2011 | DZ2: 2012 | EA2: 2013 | EB2: 2014 | EC2: 2015 | ED2: 2016 | EE2: 2017 | EF2: 2018 | EG2: 2019 | EH2: 2020 | EI2: 2021 | EJ2: =EI2+0.5 -> 2021.5 | EK2: 2022.5 | EM2: 2002 | EN2: =EM2+1 -> 2003 | EO2: =EN2+1 -> 2004 | EP2: 2005 | EQ2: 2006 | ER2: 2007 | ES2: 2008 | ET2: 2009 | EU2: 2010 | EV2: 2011 | EW2: 2012 | EX2: 2013 | EY2: 2014 | EZ2: 2015 | FA2: 2016 | FB2: 2017 | FC2: 2018 | FD2: 2019 | FE2: 2020 | FF2: 2021 | FG2: =FF2+0.5 -> 2021.5 | FH2: 2023.5 | FJ2: 2002 | FK2: =FJ2+1 -> 2003 | FL2: =FK2+1 -> 2004 | FM2: 2005 | FN2: 2006 | FO2: 2007 | FP2: 2008 | FQ2: 2009 | FR2: 2010 | FS2: 2011 | FT2: 2012 | FU2: 2013 | FV2: 2014 | FW2: 2015 | FX2: 2016 | FY2: 2017 | FZ2: 2018 | GA2: 2019 | GB2: 2020 | GC2: 2021 | GD2: =GC2+0.5 -> 2021.5 | GE2: 2024.5 | GG2: 2002 | GH2: =GG2+1 -> 2003 | GI2: =GH2+1 -> 2004 | GJ2: 2005 | GK2: 2006 | GL2: 2007 | GM2: 2008 | GN2: 2009 | GO2: 2010 | GP2: 2011 | GQ2: 2012 | GR2: 2013 | GS2: 2014 | GT2: 2015 | GU2: 2016 | GV2: 2017 | GW2: 2018 | GX2: 2019 | GY2: 2020 | GZ2: 2021 | HA2: =GZ2+0.5 -> 2021.5 | HB2: 2025.5
D3: BC BRUTA 31/12/01 | E3: RETIROS ACUMUL | F3: BC NETA 31/12/01 | G3: ADICIONES | H3: ATR | I3: RETIROS ACUMUL | J3: ATR Retiros acumul | K3: ADICIONES | L3: ATR | M3: RETIROS ACUMUL | N3: ATR Retiros acumul | O3: ADICIONES | P3: ATR | Q3: RETIROS ACUMUL | R3: ATR Retiros acumul | S3: ADICIONES | T3: ATR | U3: RETIROS ACUMUL | V3: ATR Retiros acumul | W3: ADICIONES | X3: ATR | Y3: RETIROS ACUMUL | Z3: ATR Retiros acumul | AA3: ADICIONES | AB3: ATR | AC3: RETIROS ACUMUL | AD3: ATR Retiros acumul | AE3: ADICIONES | AF3: ATR | AG3: RETIROS ACUMUL | AH3: ATR Retiros acumul | AI3: ADICIONES | AJ3: ATR | AK3: RETIROS ACUMUL | AL3: ATR Retiros acumul | AM3: ADICIONES | AN3: ATR | AO3: RETIROS ACUMUL | AP3: ATR Retiros acumul | AQ3: ADICIONES | AR3: ATR | AS3: RETIROS ACUMUL | AT3: ATR Retiros acumul | AU3: ADICIONES | AV3: ATR | AW3: RETIROS ACUMUL | AX3: ATR Retiros acumul | AY3: ADICIONES | AZ3: ATR | BA3: RETIROS ACUMUL | BB3: ATR Retiros acumul | BC3: ADICIONES | BD3: ATR | BE3: RETIROS ACUMUL | BF3: ATR Retiros acumul | BG3: ADICIONES | BH3: ATR | BI3: RETIROS ACUMUL | BJ3: ATR Retiros acumul | BK3: ADICIONES | BL3: ATR | BM3: RETIROS ACUMUL | BN3: ATR Retiros acumul | BO3: ADICIONES | BP3: ATR | BQ3: RETIROS ACUMUL | BR3: ATR Retiros acumul | BS3: ADICIONES | BT3: ATR | BU3: RETIROS ACUMUL | BV3: ATR Retiros acumul | BW3: ADICIONES | BX3: ATR | BY3: RETIROS ACUMUL | BZ3: ATR Retiros acumul | CA3: ADICIONES | CB3: ATR | CC3: RETIROS ACUMUL | CD3: ATR Retiros acumul | CE3: ADICIONES | CF3: ATR | CG3: RETIROS ACUMUL | CH3: ATR Retiros acumul | CI3: ADICIONES | CJ3: ATR | CK3: RETIROS ACUMUL | CL3: ATR Retiros acumul | CM3: Año de alta activos < 2005 | CN3: Vida activos < 2001 | CO3: Vida activos 2002 | CP3: Vida activos 2003 | CQ3: Vida activos 2004 | CR3: Vida activos 2005 | CS3: Vida activos 2006 | CT3: Vida activos 2007 | CU3: Vida activos 2008 | CV3: Vida activos 2009 | CW3: Vida activos 2010 | CX3: Vida activos 2011 | CY3: Vida activos 2012 | CZ3: Vida activos 2013 | DA3: Vida activos 2014 | DB3: Vida activos 2015 | DC3: Vida activos 2016 | DD3: Vida activos 2017 | DE3: Vida activos 2018 | DF3: Vida activos 2019 | DG3: Vida activos 2020 | DH3: Vida activos 2021 | DI3: Vida activos 2021.5 | DJ3: Depreciación | DK3: BC BRUTA 30/06 | DL3: BC BRUTA tdep 30/06 | DM3: BC NETA 30/06 | DN3: Depreciación | DO3: Vida activos < 2001 | DP3: Vida activos 2002 | DQ3: Vida activos 2003 | DR3: Vida activos 2004 | DS3: Vida activos 2005 | DT3: Vida activos 2006 | DU3: Vida activos 2007 | DV3: Vida activos 2008 | DW3: Vida activos 2009 | DX3: Vida activos 2010 | DY3: Vida activos 2011 | DZ3: Vida activos 2012 | EA3: Vida activos 2013 | EB3: Vida activos 2014 | EC3: Vida activos 2015 | ED3: Vida activos 2016 | EE3: Vida activos 2017 | EF3: Vida activos 2018 | EG3: Vida activos 2019 | EH3: Vida activos 2020 | EI3: Vida activos 2021 | EJ3: Vida activos 2021.5 | EK3: Depreciación | EL3: Vida activos < 2001 | EM3: Vida activos 2002 | EN3: Vida activos 2003 | EO3: Vida activos 2004 | EP3: Vida activos 2005 | EQ3: Vida activos 2006 | ER3: Vida activos 2007 | ES3: Vida activos 2008 | ET3: Vida activos 2009 | EU3: Vida activos 2010 | EV3: Vida activos 2011 | EW3: Vida activos 2012 | EX3: Vida activos 2013 | EY3: Vida activos 2014 | EZ3: Vida activos 2015 | FA3: Vida activos 2016 | FB3: Vida activos 2017 | FC3: Vida activos 2018 | FD3: Vida activos 2019 | FE3: Vida activos 2020 | FF3: Vida activos 2021 | FG3: Vida activos 2021.5 | FH3: Depreciación | FI3: Vida activos < 2001 | FJ3: Vida activos 2002 | FK3: Vida activos 2003 | FL3: Vida activos 2004 | FM3: Vida activos 2005 | FN3: Vida activos 2006 | FO3: Vida activos 2007 | FP3: Vida activos 2008 | FQ3: Vida activos 2009 | FR3: Vida activos 2010 | FS3: Vida activos 2011 | FT3: Vida activos 2012 | FU3: Vida activos 2013 | FV3: Vida activos 2014 | FW3: Vida activos 2015 | FX3: Vida activos 2016 | FY3: Vida activos 2017 | FZ3: Vida activos 2018 | GA3: Vida activos 2019 | GB3: Vida activos 2020 | GC3: Vida activos 2021 | GD3: Vida activos 2021.5 | GE3: Depreciación | GF3: Vida activos < 2001 | GG3: Vida activos 2002 | GH3: Vida activos 2003 | GI3: Vida activos 2004 | GJ3: Vida activos 2005 | GK3: Vida activos 2006 | GL3: Vida activos 2007 | GM3: Vida activos 2008 | GN3: Vida activos 2009 | GO3: Vida activos 2010 | GP3: Vida activos 2011 | GQ3: Vida activos 2012 | GR3: Vida activos 2013 | GS3: Vida activos 2014 | GT3: Vida activos 2015 | GU3: Vida activos 2016 | GV3: Vida activos 2017 | GW3: Vida activos 2018 | GX3: Vida activos 2019 | GY3: Vida activos 2020 | GZ3: Vida activos 2021 | HA3: Vida activos 2021.5 | HB3: Depreciación
A5: PROPIEDADES Y PLANTA | B5: Planta Intangible | C5: 4 | D5: 0 | E5: 0 | F5: 0 | G5: 287388 | H5: 0 | I5: 0 | J5: 0 | K5: 52836 | L5: 0 | M5: 0 | N5: 0 | O5: 67109.46 | P5: 0 | Q5: 0 | R5: 0 | S5: 672369.21 | T5: 0 | U5: 0 | V5: 0 | W5: 243754.56 | X5: 0 | Y5: 0 | Z5: 0 | AA5: 14899.23 | AB5: 0 | AC5: 0 | AD5: 0 | AE5: 202018.18 | AF5: 0 | AG5: 0 | AH5: 0 | AI5: 287685.76 | AJ5: 0 | AK5: 0 | AL5: 0 | AM5: 170892.94 | AN5: 0 | AO5: 0 | AP5: 0 | AQ5: 1530069.93 | AR5: 0 | AS5: 0 | AT5: 0 | AU5: 987858.74 | AV5: 0 | AW5: 0 | AX5: 0 | AY5: 1611707.59 | AZ5: 0 | BA5: 0 | BB5: 0 | BC5: 10187732.37 | BD5: 0 | BE5: 0 | BF5: 0 | BG5: 6034292.13 | BH5: 0 | BI5: 0 | BJ5: 0 | BK5: 3140812.26 | BL5: 0 | BM5: 0 | BN5: 0 | BO5: 1834846.59 | BP5: 0 | BQ5: 0 | BR5: 0 | BS5: 2623156.86 | BT5: 0 | BU5: 0 | BV5: 0 | BW5: 5103070.91 | BX5: 0 | BY5: 0 | BZ5: 0 | CA5: 3848424.69 | CB5: 0 | CC5: 0 | CD5: 0 | CE5: 10829659.36 | CF5: 0 | CG5: 0 | CH5: 0 | CI5: 1733029.14 | CJ5: 0 | CK5: 0 | CL5: 0 | CM5: =IF(D5=0,0,2001-(D5-F5)*C5/D5) -> 0 | CN5: =IF((1-($DJ$2-$CM5)/$C5)>0,(1-($DJ$2-$CM5)/$C5),0) -> 0 | CO5: =IF((1-($DJ$2-G$2)/$C5)>0,(1-($DJ$2-G$2)/$C5),0) -> 0 | CP5: =IF((1-($DJ$2-K$2)/$C5)>0,(1-($DJ$2-K$2)/$C5),0) -> 0 | CQ5: =IF((1-($DJ$2-O$2)/$C5)>0,(1-($DJ$2-O$2)/$C5),0) -> 0 | CR5: =IF((1-($DJ$2-S$2)/$C5)>0,(1-($DJ$2-S$2)/$C5),0) -> 0 | CS5: =IF((1-($DJ$2-W$2)/$C5)>0,(1-($DJ$2-W$2)/$C5),0) -> 0 | CT5: =IF((1-($DJ$2-AA$2)/$C5)>0,(1-($DJ$2-AA$2)/$C5),0) -> 0 | CU5: =IF((1-($DJ$2-AE$2)/$C5)>0,(1-($DJ$2-AE$2)/$C5),0) -> 0 | CV5: =IF((1-($DJ$2-AI$2)/$C5)>0,(1-($DJ$2-AI$2)/$C5),0) -> 0 | CW5: =IF((1-($DJ$2-AM$2)/$C5)>0,(1-($DJ$2-AM$2)/$C5),0) -> 0 | CX5: =IF((1-($DJ$2-AQ$2)/$C5)>0,(1-($DJ$2-AQ$2)/$C5),0) -> 0 | CY5: =IF((1-($DJ$2-AU$2)/$C5)>0,(1-($DJ$2-AU$2)/$C5),0) -> 0 | CZ5: =IF((1-($DJ$2-AY$2)/$C5)>0,(1-($DJ$2-AY$2)/$C5),0) -> 0 | DA5: =IF((1-($DJ$2-BC$2)/$C5)>0,(1-($DJ$2-BC$2)/$C5),0) -> 0 | DB5: =IF((1-($DJ$2-BG$2)/$C5)>0,(1-($DJ$2-BG$2)/$C5),0) -> 0 | DC5: =IF((1-($DJ$2-BK$2)/$C5)>0,(1-($DJ$2-BK$2)/$C5),0) -> 0 | DD5: =IF((1-($DJ$2-BO$2)/$C5)>0,(1-($DJ$2-BO$2)/$C5),0) -> 0 | DE5: =IF((1-($DJ$2-BS$2)/$C5)>0,(1-($DJ$2-BS$2)/$C5),0) -> 0.125 | DF5: =IF((1-($DJ$2-BW$2)/$C5)>0,(1-($DJ$2-BW$2)/$C5),0) -> 0.375 | DG5: =IF((1-($DJ$2-CA$2)/$C5)>0,(1-($DJ$2-CA$2)/$C5),0) -> 0.625 | DH5: =IF((1-($DJ$2-CE$2)/$C5)>0,(1-($DJ$2-CE$2)/$C5),0) -> 0.875 | DI5: =IF((1-($DJ$2-CI$2)/$C5)>0,(1-($DJ$2-CI$2)/$C5),0) -> 1 | DJ5: =IF(CN5=0,0,($D5-$E5)*1/$C5)+IF(CO5=0,0,($G5-$H5-$I5)*$G$60*1/$C5)+IF(CP5=0,0,($K5-$L5-$M5)*$K$60*1/$C5)+IF(CQ5=0,0,($O5-$P5-$Q5)*$O$60*1/$C5)+IF(CR5=0,0,($S5-$T5-$U5)*$S$60*1/$C5)+IF(CS5=0,0,($W5-$X5-$Y5)*$W$60*1/$C5)+IF(CT5=0,0,($AA5-$AB5-$AC5)*$AA$60*1/$C5)+IF(CU5=0,0,($AE5-$AF5-$AG5)*$AE$60*1/$C5)+IF(CV5=0,0,($AI5-$AJ5-$AK5)*$AI$60*1/$C5)+IF(CW5=0,0,($AM5-$AN5-$AO5)*$AM$60*1/$C5)+IF(CX5=0,0,($AQ5-$AR5-$AS5)*$AQ$60*1/$C5)+IF(CY5=0,0,($AU5-$AV5-$AW5)*$AU$60*1/$C5)+IF(CZ5=0,0,($AY5-$AZ5-$BA5)*$AY$60*1/$C5)+IF(DA5=0,0,($BC5-$BD5-$BE5)*$BC$60*1/$C5)+IF(DB5=0,0,($BG5-$BH5-$BI5)*$BG$60*1/$C5)+IF(DC5=0,0,($BK5-$BL5-$BM5)*$BK$60*1/$C5)+IF(DD5=0,0,($BO5-$BP5-$BQ5)*$BO$60*1/$C5)+IF(DE5=0,0,($BS5-$BT5-$BU5)*$BS$60*1/$C5)+IF(DF5=0,0,($BW5-$BX5-$BY5)*$BW$60*1/$C5)+IF(DG5=0,0,($CA5-$CB5-$CC5)*$CA$60*1/$C5)+IF(DH5=0,0,($CE5-$CF5-$CG5)*$CE$60*1/$C5)+IF(DI5=0,0,($CI5-$CJ5-$CK5)*$CI$60*1/$C5) -> 5237684.384 | DK5: =D5-E5+(G5-H5-I5)*G$60+(K5-L5-M5)*K$60+(O5-P5-Q5)*O$60+(S5-T5-U5)*S$60+(W5-X5-Y5)*W$60+(AA5-AB5-AC5)*AA$60+(AE5-AF5-AG5)*AE$60+(AI5-AJ5-AK5)*AI$60+(AM5-AN5-AO5)*AM$60+(AQ5-AR5-AS5)*$AQ$60+(AU5-AV5-AW5)*$AU$60+(AY5-AZ5-BA5)*$AY$60+(BC5-BD5-BE5)*$BC$60+(BG5-BH5-BI5)*$BG$60+(BK5-BL5-BM5)*$BK$60+(BO5-BP5-BQ5)*$BO$60+(BS5-BT5-BU5)*$BS$60+(BW5-BX5-BY5)*$BW$60+(CA5-CB5-CC5)*$CA$60+(CE5-CF5-CG5)*$CE$60+(CI5-CJ5-CK5)*$CI$60 -> 44592091.03 | DL5: =IF(CN5=0,D5-E5,0)+IF(CO5=0,(G5-H5-I5)*G$60,0)+IF(CP5=0,(K5-L5-M5)*K$60,0)+IF(CQ5=0,(O5-P5-Q5)*O$60,0)+IF(CR5=0,(S5-T5-U5)*S$60,0)+IF(CS5=0,(W5-X5-Y5)*W$60,0)+IF(CT5=0,(AA5-AB5-AC5)*AA$60,0)+IF(CU5=0,(AE5-AF5-AG5)*AE$60,0)+IF(CV5=0,(AI5-AJ5-AK5)*AI$60,0)+IF(CW5=0,(AM5-AN5-AO5)*AM$60,0)+IF(CX5=0,(AQ5-AR5-AS5)*$AQ$60,0)+IF(CY5=0,(AU5-AV5-AW5)*$AU$60,0)+IF(CZ5=0,(AY5-AZ5-BA5)*$AY$60,0)++IF(DA5=0,(BC5-BD5-BE5)*$BC$60,0)+IF(DB5=0,(BG5-BH5-BI5)*$BG$60,0)+IF(DC5=0,(BK5-BL5-BM5)*$BK$60,0)+IF(DD5=0,(BO5-BP5-BQ5)*$BO$60,0)+IF(DE5=0,(BS5-BT5-BU5)*$BS$60,0)+IF(DF5=0,(BW5-BX5-BY5)*$BW$60,0)+IF(DG5=0,(CA5-CB5-CC5)*$CA$60,0)+IF(DH5=0,(CE5-CF5-CG5)*$CE$60,0)+IF(DI5=0,(CI5-CJ5-CK5)*$CI$60,0) -> 23641353.5 | DM5: =(D5-E5)*CN5+((G5-H5-(I5-J5))*G$60)*CO5+((K5-L5-(M5-N5))*K$60)*CP5+((O5-P5-(Q5-R5))*O$60)*CQ5+((S5-T5-(U5-V5))*S$60)*CR5+((W5-X5-(Y5-Z5))*W$60)*CS5+((AA5-AB5-(AC5-AD5))*AA$60)*CT5+((AE5-AF5-(AG5-AH5))*AE$60)*CU5+((AI5-AJ5-(AK5-AL5))*AI$60)*CV5+((AM5-AN5-(AO5-AP5))*$AM$60)*CW5+((AQ5-AR5-(AS5-AT5))*$AQ$60)*CX5+((AU5-AV5-(AW5-AX5))*$AU$60)*CY5+((AY5-AZ5-(BA5-BB5))*$AY$60)*CZ5+((BC5-BD5-(BE5-BF5))*$BC$60)*DA5+((BG5-BH5-(BI5-BJ5))*$BG$60)*DB5+((BK5-BL5-(BM5-BN5))*$BK$60)*DC5+((BO5-BP5-(BQ5-BR5))*$BO$60)*DD5+((BS5-BT5-(BU5-BV5))*$BS$60)*DE5+((BW5-BX5-(BY5-BZ5))*$BW$60)*DF5+((CA5-CB5-(CC5-CD5))*$CA$60)*DG5+((CE5-CF5-(CG5-CH5))*$CE$60)*DH5+((CI5-CJ5-(CK5-CL5))*$CI$60)*DI5 -> 13546566.85 | DN5: =(DK5-DL5)*1/C5 -> 5237684.384 | DO5: =IF((1-($EK$2-$CM5)/$C5)>0,(1-($EK$2-$CM5)/$C5),0) -> 0 | DP5: =IF((1-($EK$2-DP$2)/$C5)>0,(1-($EK$2-DP$2)/$C5),0) -> 0 | DQ5: 0 | DR5: 0 | DS5: 0 | DT5: 0 | DU5: 0 | DV5: 0 | DW5: 0 | DX5: 0 | DY5: 0 | DZ5: =IF((1-($EK$2-DZ$2)/$C5)>0,(1-($EK$2-DZ$2)/$C5),0) -> 0 | EA5: 0 | EB5: 0 | EC5: 0 | ED5: 0 | EE5: 0 | EF5: 0 | EG5: 0.125 | EH5: 0.375 | EI5: 0.625 | EJ5: 0.75 | EK5: =IF(DO5=0,0,($D5-$E5)*1/$C5)+IF(DP5=0,0,($G5-$H5-$I5)*$G$60*1/$C5)+IF(DQ5=0,0,($K5-$L5-$M5)*$K$60*1/$C5)+IF(DR5=0,0,($O5-$P5-$Q5)*$O$60*1/$C5)+IF(DS5=0,0,($S5-$T5-$U5)*$S$60*1/$C5)+IF(DT5=0,0,($W5-$X5-$Y5)*$W$60*1/$C5)+IF(DU5=0,0,($AA5-$AB5-$AC5)*$AA$60*1/$C5)+IF(DV5=0,0,($AE5-$AF5-$AG5)*$AE$60*1/$C5)+IF(DW5=0,0,($AI5-$AJ5-$AK5)*$AI$60*1/$C5)+IF(DX5=0,0,($AM5-$AN5-$AO5)*$AM$60*1/$C5)+IF(DY5=0,0,($AQ5-$AR5-$AS5)*$AQ$60*1/$C5)+IF(DZ5=0,0,($AU5-$AV5-$AW5)*$AU$60*1/$C5)+IF(EA5=0,0,($AY5-$AZ5-$BA5)*$AY$60*1/$C5)+IF(EB5=0,0,($BC5-$BD5-$BE5)*$BC$60*1/$C5)+IF(EC5=0,0,($BG5-$BH5-$BI5)*$BG$60*1/$C5)+IF(ED5=0,0,($BK5-$BL5-$BM5)*$BK$60*1/$C5)+IF(EE5=0,0,($BO5-$BP5-$BQ5)*$BO$60*1/$C5)+IF(EF5=0,0,($BS5-$BT5-$BU5)*$BS$60*1/$C5)+IF(EG5=0,0,($BW5-$BX5-$BY5)*$BW$60*1/$C5)+IF(EH5=0,0,($CA5-$CB5-$CC5)*$CA$60*1/$C5)+IF(EI5=0,0,($CE5-$CF5-$CG5)*$CE$60*1/$C5)+IF(EJ5=0,0,($CI5-$CJ5-$CK5)*$CI$60*1/$C5) -> 4647474.091 | EL5: =IF((1-($FH$2-$CM5)/$C5)>0,(1-($FH$2-$CM5)/$C5),0) -> 0 | EM5: =IF((1-($FH$2-EM$2)/$C5)>0,(1-($FH$2-EM$2)/$C5),0) -> 0 | EN5: 0 | EO5: 0 | EP5: 0 | EQ5: 0 | ER5: 0 | ES5: 0 | ET5: 0 | EU5: 0 | EV5: 0 | EW5: =IF((1-($FH$2-EW$2)/$C5)>0,(1-($FH$2-EW$2)/$C5),0) -> 0 | EX5: 0 | EY5: 0 | EZ5: 0 | FA5: 0 | FB5: 0 | FC5: 0 | FD5: 0 | FE5: 0.125 | FF5: 0.375 | FG5: 0.5 | FH5: =IF(EL5=0,0,($D5-$E5)*1/$C5)+IF(EM5=0,0,($G5-$H5-$I5)*$G$60*1/$C5)+IF(EN5=0,0,($K5-$L5-$M5)*$K$60*1/$C5)+IF(EO5=0,0,($O5-$P5-$Q5)*$O$60*1/$C5)+IF(EP5=0,0,($S5-$T5-$U5)*$S$60*1/$C5)+IF(EQ5=0,0,($W5-$X5-$Y5)*$W$60*1/$C5)+IF(ER5=0,0,($AA5-$AB5-$AC5)*$AA$60*1/$C5)+IF(ES5=0,0,($AE5-$AF5-$AG5)*$AE$60*1/$C5)+IF(ET5=0,0,($AI5-$AJ5-$AK5)*$AI$60*1/$C5)+IF(EU5=0,0,($AM5-$AN5-$AO5)*$AM$60*1/$C5)+IF(EV5=0,0,($AQ5-$AR5-$AS5)*$AQ$60*1/$C5)+IF(EW5=0,0,($AU5-$AV5-$AW5)*$AU$60*1/$C5)+IF(EX5=0,0,($AY5-$AZ5-$BA5)*$AY$60*1/$C5)+IF(EY5=0,0,($BC5-$BD5-$BE5)*$BC$60*1/$C5)+IF(EZ5=0,0,($BG5-$BH5-$BI5)*$BG$60*1/$C5)+IF(FA5=0,0,($BK5-$BL5-$BM5)*$BK$60*1/$C5)+IF(FB5=0,0,($BO5-$BP5-$BQ5)*$BO$60*1/$C5)+IF(FC5=0,0,($BS5-$BT5-$BU5)*$BS$60*1/$C5)+IF(FD5=0,0,($BW5-$BX5-$BY5)*$BW$60*1/$C5)+IF(FE5=0,0,($CA5-$CB5-$CC5)*$CA$60*1/$C5)+IF(FF5=0,0,($CE5-$CF5-$CG5)*$CE$60*1/$C5)+IF(FG5=0,0,($CI5-$CJ5-$CK5)*$CI$60*1/$C5) -> 3499283.136 | FI5: =IF((1-($GE$2-$CM5)/$C5)>0,(1-($GE$2-$CM5)/$C5),0) -> 0 | FJ5: =IF((1-($GE$2-FJ$2)/$C5)>0,(1-($GE$2-FJ$2)/$C5),0) -> 0 | FK5: 0 | FL5: 0 | FM5: 0 | FN5: 0 | FO5: 0 | FP5: 0 | FQ5: 0 | FR5: 0 | FS5: 0 | FT5: =IF((1-($GE$2-FT$2)/$C5)>0,(1-($GE$2-FT$2)/$C5),0) -> 0 | FU5: 0 | FV5: 0 | FW5: 0 | FX5: 0 | FY5: 0 | FZ5: 0 | GA5: 0 | GB5: 0 | GC5: 0.125 | GD5: 0.25 | GE5: =IF(FI5=0,0,($D5-$E5)*1/$C5)+IF(FJ5=0,0,($G5-$H5-$I5)*$G$60*1/$C5)+IF(FK5=0,0,($K5-$L5-$M5)*$K$60*1/$C5)+IF(FL5=0,0,($O5-$P5-$Q5)*$O$60*1/$C5)+IF(FM5=0,0,($S5-$T5-$U5)*$S$60*1/$C5)+IF(FN5=0,0,($W5-$X5-$Y5)*$W$60*1/$C5)+IF(FO5=0,0,($AA5-$AB5-$AC5)*$AA$60*1/$C5)+IF(FP5=0,0,($AE5-$AF5-$AG5)*$AE$60*1/$C5)+IF(FQ5=0,0,($AI5-$AJ5-$AK5)*$AI$60*1/$C5)+IF(FR5=0,0,($AM5-$AN5-$AO5)*$AM$60*1/$C5)+IF(FS5=0,0,($AQ5-$AR5-$AS5)*$AQ$60*1/$C5)+IF(FT5=0,0,($AU5-$AV5-$AW5)*$AU$60*1/$C5)+IF(FU5=0,0,($AY5-$AZ5-$BA5)*$AY$60*1/$C5)+IF(FV5=0,0,($BC5-$BD5-$BE5)*$BC$60*1/$C5)+IF(FW5=0,0,($BG5-$BH5-$BI5)*$BG$60*1/$C5)+IF(FX5=0,0,($BK5-$BL5-$BM5)*$BK$60*1/$C5)+IF(FY5=0,0,($BO5-$BP5-$BQ5)*$BO$60*1/$C5)+IF(FZ5=0,0,($BS5-$BT5-$BU5)*$BS$60*1/$C5)+IF(GA5=0,0,($BW5-$BX5-$BY5)*$BW$60*1/$C5)+IF(GB5=0,0,($CA5-$CB5-$CC5)*$CA$60*1/$C5)+IF(GC5=0,0,($CE5-$CF5-$CG5)*$CE$60*1/$C5)+IF(GD5=0,0,($CI5-$CJ5-$CK5)*$CI$60*1/$C5) -> 2633387.581 | GF5: =IF((1-($HB$2-$CM5)/$C5)>0,(1-($HB$2-$CM5)/$C5),0) -> 0 | GG5: =IF((1-($HB$2-GG$2)/$C5)>0,(1-($HB$2-GG$2)/$C5),0) -> 0 | GH5: 0 | GI5: 0 | GJ5: 0 | GK5: 0 | GL5: 0 | GM5: 0 | GN5: 0 | GO5: 0 | GP5: 0 | GQ5: =IF((1-($HB$2-GQ$2)/$C5)>0,(1-($HB$2-GQ$2)/$C5),0) -> 0 | GR5: 0 | GS5: 0 | GT5: 0 | GU5: 0 | GV5: 0 | GW5: 0 | GX5: 0 | GY5: 0 | GZ5: 0 | HA5: 0 | HB5: =IF(GF5=0,0,($D5-$E5)*1/$C5)+IF(GG5=0,0,($G5-$I5)*$G$60*1/$C5)+IF(GH5=0,0,($K5-$M5)*$K$60*1/$C5)+IF(GI5=0,0,($O5-$Q5)*$O$60*1/$C5)+IF(GJ5=0,0,($S5-$U5)*$S$60*1/$C5)+IF(GK5=0,0,($W5-$Y5)*$W$60*1/$C5)+IF(GL5=0,0,($AA5-$AC5)*$AA$60*1/$C5)+IF(GM5=0,0,($AE5-$AG5)*$AE$60*1/$C5)+IF(GN5=0,0,($AI5-$AK5)*$AI$60*1/$C5)+IF(GO5=0,0,($AM5-$AO5)*$AM$60*1/$C5)+IF(GP5=0,0,($AQ5-$AS5)*$AQ$60*1/$C5)+IF(GQ5=0,0,($AU5-$AW5)*$AU$60*1/$C5)+IF(GR5=0,0,($AY5-$BA5)*$AY$60*1/$C5)+IF(GS5=0,0,($BC5-$BE5)*$BC$60*1/$C5)+IF(GT5=0,0,($BG5-$BI5)*$BG$60*1/$C5)+IF(GU5=0,0,($BK5-$BM5)*$BK$60*1/$C5)+IF(GV5=0,0,($BO5-$BQ5)*$BO$60*1/$C5)+IF(GW5=0,0,($BS5-$BU5)*$BS$60*1/$C5)+IF(GX5=0,0,($BW5-$BY5)*$BW$60*1/$C5)+IF(GY5=0,0,($CA5-$CC5)*$CA$60*1/$C5)+IF(GZ5=0,0,($CE5-$CG5)*$CE$60*1/$C5)+IF(HA5=0,0,($CI5-$CK5)*$CI$60*1/$C5) -> 0 | HD5: =DJ5-(IF(CN5=0,0,D5-E5)+IF(CO5=0,0,(G5-I5)*G$60)+IF(CP5=0,0,(K5-M5)*K$60)+IF(CQ5=0,0,(O5-Q5)*O$60)+IF(CR5=0,0,(S5-U5)*S$60)+IF(CS5=0,0,(W5-Y5)*W$60)+IF(CT5=0,0,(AA5-AC5)*AA$60)+IF(CU5=0,0,(AE5-AG5)*AE$60)+IF(CV5=0,0,(AI5-AK5)*AI$60)+IF(CW5=0,0,(AM5-AO5)*AM$60)+IF(CX5=0,0,(AQ5-AS5)*$AQ$60)+IF(CY5=0,0,(AU5-AW5)*$AU$60)+IF(CZ5=0,0,(AY5-BA5)*$AY$60)++IF(DA5=0,0,(BC5-BE5)*$BC$60)+IF(DB5=0,0,(BG5-BI5)*$BG$60)+IF(DC5=0,0,(BK5-BM5)*$BK$60)+IF(DD5=0,0,(BO5-BQ5)*$BO$60)+IF(DE5=0,0,(BS5-BU5)*$BS$60)+IF(DF5=0,0,(BW5-BY5)*$BW$60)+IF(DG5=0,0,(CA5-CC5)*$CA$60)+IF(DH5=0,0,(CE5-CG5)*$CE$60)+IF(DI5=0,0,(CI5-CK5)*$CI$60)) -> -15713053.15
B6: Terrenos | C6: 1000 | D6: 221523.7605 | E6: 0 | F6: 221523.7605 | G6: 0 | H6: 0 | I6: 0 | J6: 0 | K6: 0 | L6: 0 | M6: 0 | N6: 0 | O6: 0 | P6: 0 | Q6: 0 | R6: 0 | S6: 0 | T6: 0 | U6: 0 | V6: 0 | W6: 0 | X6: 0 | Y6: 0 | Z6: 0 | AA6: 0 | AB6: 0 | AC6: 0 | AD6: 0 | AE6: 0 | AF6: 0 | AG6: 0 | AH6: 0 | AI6: 0 | AJ6: 0 | AK6: 0 | AL6: 0 | AM6: 1761274.58 | AN6: 0 | AO6: 0 | AP6: 0 | AQ6: 446829.54 | AR6: 0 | AS6: 0 | AT6: 0 | AU6: 2164835 | AV6: 0 | AW6: 0 | AX6: 0 | AY6: 884628.87 | AZ6: 0 | BA6: 0 | BB6: 0 | BC6: 663090.93 | BD6: 0 | BE6: 0 | BF6: 0 | BG6: 5674899.26 | BH6: 0 | BI6: 0 | BJ6: 0 | BK6: 2117720.66 | BL6: 0 | BM6: 0 | BN6: 0 | BO6: 0 | BP6: 0 | BQ6: 0 | BR6: 0 | BS6: 209717.41 | BT6: 0 | BU6: 0 | BV6: 0 | BW6: 0 | BX6: 0 | BY6: 0 | BZ6: 0 | CA6: 0 | CB6: 0 | CC6: 0 | CD6: 0 | CE6: 0 | CF6: 0 | CG6: 0 | CH6: 0 | CI6: 0 | CJ6: 0 | CK6: 0 | CL6: 0 | CM6: 2001 | CN6: 0.9795 | CO6: 0.9805 | CP6: 0.9815 | CQ6: 0.9825 | CR6: 0.9835 | CS6: 0.9845 | CT6: 0.9855 | CU6: 0.9865 | CV6: 0.9875 | CW6: 0.9885 | CX6: 0.9895 | CY6: 0.9905 | CZ6: 0.9915 | DA6: 0.9925 | DB6: 0.9935 | DC6: 0.9945 | DD6: 0.9955 | DE6: 0.9965 | DF6: 0.9975 | DG6: 0.9985 | DH6: 0.9995 | DI6: 1 | DJ6: =IF(CN6=0,0,($D6-$E6)*1/$C6)+IF(CO6=0,0,($G6-$H6-$I6)*$G$60*1/$C6)+IF(CP6=0,0,($K6-$L6-$M6)*$K$60*1/$C6)+IF(CQ6=0,0,($O6-$P6-$Q6)*$O$60*1/$C6)+IF(CR6=0,0,($S6-$T6-$U6)*$S$60*1/$C6)+IF(CS6=0,0,($W6-$X6-$Y6)*$W$60*1/$C6)+IF(CT6=0,0,($AA6-$AB6-$AC6)*$AA$60*1/$C6)+IF(CU6=0,0,($AE6-$AF6-$AG6)*$AE$60*1/$C6)+IF(CV6=0,0,($AI6-$AJ6-$AK6)*$AI$60*1/$C6)+IF(CW6=0,0,($AM6-$AN6-$AO6)*$AM$60*1/$C6)+IF(CX6=0,0,($AQ6-$AR6-$AS6)*$AQ$60*1/$C6)+IF(CY6=0,0,($AU6-$AV6-$AW6)*$AU$60*1/$C6)+IF(CZ6=0,0,($AY6-$AZ6-$BA6)*$AY$60*1/$C6)+IF(DA6=0,0,($BC6-$BD6-$BE6)*$BC$60*1/$C6)+IF(DB6=0,0,($BG6-$BH6-$BI6)*$BG$60*1/$C6)+IF(DC6=0,0,($BK6-$BL6-$BM6)*$BK$60*1/$C6)+IF(DD6=0,0,($BO6-$BP6-$BQ6)*$BO$60*1/$C6)+IF(DE6=0,0,($BS6-$BT6-$BU6)*$BS$60*1/$C6)+IF(DF6=0,0,($BW6-$BX6-$BY6)*$BW$60*1/$C6)+IF(DG6=0,0,($CA6-$CB6-$CC6)*$CA$60*1/$C6)+IF(DH6=0,0,($CE6-$CF6-$CG6)*$CE$60*1/$C6)+IF(DI6=0,0,($CI6-$CJ6-$CK6)*$CI$60*1/$C6) -> 12009.36647 | DK6: =D6-E6+(G6-H6-I6)*G$60+(K6-L6-M6)*K$60+(O6-P6-Q6)*O$60+(S6-T6-U6)*S$60+(W6-X6-Y6)*W$60+(AA6-AB6-AC6)*AA$60+(AE6-AF6-AG6)*AE$60+(AI6-AJ6-AK6)*AI$60+(AM6-AN6-AO6)*AM$60+(AQ6-AR6-AS6)*$AQ$60+(AU6-AV6-AW6)*$AU$60+(AY6-AZ6-BA6)*$AY$60+(BC6-BD6-BE6)*$BC$60+(BG6-BH6-BI6)*$BG$60+(BK6-BL6-BM6)*$BK$60+(BO6-BP6-BQ6)*$BO$60+(BS6-BT6-BU6)*$BS$60+(BW6-BX6-BY6)*$BW$60+(CA6-CB6-CC6)*$CA$60+(CE6-CF6-CG6)*$CE$60+(CI6-CJ6-CK6)*$CI$60 -> 12009366.47 | DL6: =IF(CN6=0,D6-E6,0)+IF(CO6=0,(G6-H6-I6)*G$60,0)+IF(CP6=0,(K6-L6-M6)*K$60,0)+IF(CQ6=0,(O6-P6-Q6)*O$60,0)+IF(CR6=0,(S6-T6-U6)*S$60,0)+IF(CS6=0,(W6-X6-Y6)*W$60,0)+IF(CT6=0,(AA6-AB6-AC6)*AA$60,0)+IF(CU6=0,(AE6-AF6-AG6)*AE$60,0)+IF(CV6=0,(AI6-AJ6-AK6)*AI$60,0)+IF(CW6=0,(AM6-AN6-AO6)*AM$60,0)+IF(CX6=0,(AQ6-AR6-AS6)*$AQ$60,0)+IF(CY6=0,(AU6-AV6-AW6)*$AU$60,0)+IF(CZ6=0,(AY6-AZ6-BA6)*$AY$60,0)++IF(DA6=0,(BC6-BD6-BE6)*$BC$60,0)+IF(DB6=0,(BG6-BH6-BI6)*$BG$60,0)+IF(DC6=0,(BK6-BL6-BM6)*$BK$60,0)+IF(DD6=0,(BO6-BP6-BQ6)*$BO$60,0)+IF(DE6=0,(BS6-BT6-BU6)*$BS$60,0)+IF(DF6=0,(BW6-BX6-BY6)*$BW$60,0)+IF(DG6=0,(CA6-CB6-CC6)*$CA$60,0)+IF(DH6=0,(CE6-CF6-CG6)*$CE$60,0)+IF(DI6=0,(CI6-CJ6-CK6)*$CI$60,0) -> 0 | DM6: =(D6-E6)*CN6+((G6-H6-(I6-J6))*G$60)*CO6+((K6-L6-(M6-N6))*K$60)*CP6+((O6-P6-(Q6-R6))*O$60)*CQ6+((S6-T6-(U6-V6))*S$60)*CR6+((W6-X6-(Y6-Z6))*W$60)*CS6+((AA6-AB6-(AC6-AD6))*AA$60)*CT6+((AE6-AF6-(AG6-AH6))*AE$60)*CU6+((AI6-AJ6-(AK6-AL6))*AI$60)*CV6+((AM6-AN6-(AO6-AP6))*$AM$60)*CW6+((AQ6-AR6-(AS6-AT6))*$AQ$60)*CX6+((AU6-AV6-(AW6-AX6))*$AU$60)*CY6+((AY6-AZ6-(BA6-BB6))*$AY$60)*CZ6+((BC6-BD6-(BE6-BF6))*$BC$60)*DA6+((BG6-BH6-(BI6-BJ6))*$BG$60)*DB6+((BK6-BL6-(BM6-BN6))*$BK$60)*DC6+((BO6-BP6-(BQ6-BR6))*$BO$60)*DD6+((BS6-BT6-(BU6-BV6))*$BS$60)*DE6+((BW6-BX6-(BY6-BZ6))*$BW$60)*DF6+((CA6-CB6-(CC6-CD6))*$CA$60)*DG6+((CE6-CF6-(CG6-CH6))*$CE$60)*DH6+((CI6-CJ6-(CK6-CL6))*$CI$60)*DI6 -> 11915814.22 | DN6: 12009.36647 | DO6: 0.9785 | DP6: 0.9795 | DQ6: 0.9805 | DR6: 0.9815 | DS6: 0.9825 | DT6: 0.9835 | DU6: 0.9845 | DV6: 0.9855 | DW6: 0.9865 | DX6: 0.9875 | DY6: 0.9885 | DZ6: 0.9895 | EA6: 0.9905 | EB6: 0.9915 | EC6: 0.9925 | ED6: 0.9935 | EE6: 0.9945 | EF6: 0.9955 | EG6: 0.9965 | EH6: 0.9975 | EI6: 0.9985 | EJ6: 0.999 | EK6: =IF(DO6=0,0,($D6-$E6)*1/$C6)+IF(DP6=0,0,($G6-$H6-$I6)*$G$60*1/$C6)+IF(DQ6=0,0,($K6-$L6-$M6)*$K$60*1/$C6)+IF(DR6=0,0,($O6-$P6-$Q6)*$O$60*1/$C6)+IF(DS6=0,0,($S6-$T6-$U6)*$S$60*1/$C6)+IF(DT6=0,0,($W6-$X6-$Y6)*$W$60*1/$C6)+IF(DU6=0,0,($AA6-$AB6-$AC6)*$AA$60*1/$C6)+IF(DV6=0,0,($AE6-$AF6-$AG6)*$AE$60*1/$C6)+IF(DW6=0,0,($AI6-$AJ6-$AK6)*$AI$60*1/$C6)+IF(DX6=0,0,($AM6-$AN6-$AO6)*$AM$60*1/$C6)+IF(DY6=0,0,($AQ6-$AR6-$AS6)*$AQ$60*1/$C6)+IF(DZ6=0,0,($AU6-$AV6-$AW6)*$AU$60*1/$C6)+IF(EA6=0,0,($AY6-$AZ6-$BA6)*$AY$60*1/$C6)+IF(EB6=0,0,($BC6-$BD6-$BE6)*$BC$60*1/$C6)+IF(EC6=0,0,($BG6-$BH6-$BI6)*$BG$60*1/$C6)+IF(ED6=0,0,($BK6-$BL6-$BM6)*$BK$60*1/$C6)+IF(EE6=0,0,($BO6-$BP6-$BQ6)*$BO$60*1/$C6)+IF(EF6=0,0,($BS6-$BT6-$BU6)*$BS$60*1/$C6)+IF(EG6=0,0,($BW6-$BX6-$BY6)*$BW$60*1/$C6)+IF(EH6=0,0,($CA6-$CB6-$CC6)*$CA$60*1/$C6)+IF(EI6=0,0,($CE6-$CF6-$CG6)*$CE$60*1/$C6)+IF(EJ6=0,0,($CI6-$CJ6-$CK6)*$CI$60*1/$C6) -> 12009.36647 | EL6: 0.9775 | EM6: 0.9785 | EN6: 0.9795 | EO6: 0.9805 | EP6: 0.9815 | EQ6: 0.9825 | ER6: 0.9835 | ES6: 0.9845 | ET6: 0.9855 | EU6: 0.9865 | EV6: 0.9875 | EW6: 0.9885 | EX6: 0.9895 | EY6: 0.9905 | EZ6: 0.9915 | FA6: 0.9925 | FB6: 0.9935 | FC6: 0.9945 | FD6: 0.9955 | FE6: 0.9965 | FF6: 0.9975 | FG6: 0.998 | FH6: =IF(EL6=0,0,($D6-$E6)*1/$C6)+IF(EM6=0,0,($G6-$H6-$I6)*$G$60*1/$C6)+IF(EN6=0,0,($K6-$L6-$M6)*$K$60*1/$C6)+IF(EO6=0,0,($O6-$P6-$Q6)*$O$60*1/$C6)+IF(EP6=0,0,($S6-$T6-$U6)*$S$60*1/$C6)+IF(EQ6=0,0,($W6-$X6-$Y6)*$W$60*1/$C6)+IF(ER6=0,0,($AA6-$AB6-$AC6)*$AA$60*1/$C6)+IF(ES6=0,0,($AE6-$AF6-$AG6)*$AE$60*1/$C6)+IF(ET6=0,0,($AI6-$AJ6-$AK6)*$AI$60*1/$C6)+IF(EU6=0,0,($AM6-$AN6-$AO6)*$AM$60*1/$C6)+IF(EV6=0,0,($AQ6-$AR6-$AS6)*$AQ$60*1/$C6)+IF(EW6=0,0,($AU6-$AV6-$AW6)*$AU$60*1/$C6)+IF(EX6=0,0,($AY6-$AZ6-$BA6)*$AY$60*1/$C6)+IF(EY6=0,0,($BC6-$BD6-$BE6)*$BC$60*1/$C6)+IF(EZ6=0,0,($BG6-$BH6-$BI6)*$BG$60*1/$C6)+IF(FA6=0,0,($BK6-$BL6-$BM6)*$BK$60*1/$C6)+IF(FB6=0,0,($BO6-$BP6-$BQ6)*$BO$60*1/$C6)+IF(FC6=0,0,($BS6-$BT6-$BU6)*$BS$60*1/$C6)+IF(FD6=0,0,($BW6-$BX6-$BY6)*$BW$60*1/$C6)+IF(FE6=0,0,($CA6-$CB6-$CC6)*$CA$60*1/$C6)+IF(FF6=0,0,($CE6-$CF6-$CG6)*$CE$60*1/$C6)+IF(FG6=0,0,($CI6-$CJ6-$CK6)*$CI$60*1/$C6) -> 12009.36647 | FI6: 0.9765 | FJ6: 0.9775 | FK6: 0.9785 | FL6: 0.9795 | FM6: 0.9805 | FN6: 0.9815 | FO6: 0.9825 | FP6: 0.9835 | FQ6: 0.9845 | FR6: 0.9855 | FS6: 0.9865 | FT6: 0.9875 | FU6: 0.9885 | FV6: 0.9895 | FW6: 0.9905 | FX6: 0.9915 | FY6: 0.9925 | FZ6: 0.9935 | GA6: 0.9945 | GB6: 0.9955 | GC6: 0.9965 | GD6: 0.997 | GE6: =IF(FI6=0,0,($D6-$E6)*1/$C6)+IF(FJ6=0,0,($G6-$H6-$I6)*$G$60*1/$C6)+IF(FK6=0,0,($K6-$L6-$M6)*$K$60*1/$C6)+IF(FL6=0,0,($O6-$P6-$Q6)*$O$60*1/$C6)+IF(FM6=0,0,($S6-$T6-$U6)*$S$60*1/$C6)+IF(FN6=0,0,($W6-$X6-$Y6)*$W$60*1/$C6)+IF(FO6=0,0,($AA6-$AB6-$AC6)*$AA$60*1/$C6)+IF(FP6=0,0,($AE6-$AF6-$AG6)*$AE$60*1/$C6)+IF(FQ6=0,0,($AI6-$AJ6-$AK6)*$AI$60*1/$C6)+IF(FR6=0,0,($AM6-$AN6-$AO6)*$AM$60*1/$C6)+IF(FS6=0,0,($AQ6-$AR6-$AS6)*$AQ$60*1/$C6)+IF(FT6=0,0,($AU6-$AV6-$AW6)*$AU$60*1/$C6)+IF(FU6=0,0,($AY6-$AZ6-$BA6)*$AY$60*1/$C6)+IF(FV6=0,0,($BC6-$BD6-$BE6)*$BC$60*1/$C6)+IF(FW6=0,0,($BG6-$BH6-$BI6)*$BG$60*1/$C6)+IF(FX6=0,0,($BK6-$BL6-$BM6)*$BK$60*1/$C6)+IF(FY6=0,0,($BO6-$BP6-$BQ6)*$BO$60*1/$C6)+IF(FZ6=0,0,($BS6-$BT6-$BU6)*$BS$60*1/$C6)+IF(GA6=0,0,($BW6-$BX6-$BY6)*$BW$60*1/$C6)+IF(GB6=0,0,($CA6-$CB6-$CC6)*$CA$60*1/$C6)+IF(GC6=0,0,($CE6-$CF6-$CG6)*$CE$60*1/$C6)+IF(GD6=0,0,($CI6-$CJ6-$CK6)*$CI$60*1/$C6) -> 12009.36647 | GF6: 0.9755 | GG6: 0.9765 | GH6: 0.9775 | GI6: 0.9785 | GJ6: 0.9795 | GK6: 0.9805 | GL6: 0.9815 | GM6: 0.9825 | GN6: 0.9835 | GO6: 0.9845 | GP6: 0.9855 | GQ6: 0.9865 | GR6: 0.9875 | GS6: 0.9885 | GT6: 0.9895 | GU6: 0.9905 | GV6: 0.9915 | GW6: 0.9925 | GX6: 0.9935 | GY6: 0.9945 | GZ6: 0.9955 | HA6: 0.996 | HB6: =IF(GF6=0,0,($D6-$E6)*1/$C6)+IF(GG6=0,0,($G6-$I6)*$G$60*1/$C6)+IF(GH6=0,0,($K6-$M6)*$K$60*1/$C6)+IF(GI6=0,0,($O6-$Q6)*$O$60*1/$C6)+IF(GJ6=0,0,($S6-$U6)*$S$60*1/$C6)+IF(GK6=0,0,($W6-$Y6)*$W$60*1/$C6)+IF(GL6=0,0,($AA6-$AC6)*$AA$60*1/$C6)+IF(GM6=0,0,($AE6-$AG6)*$AE$60*1/$C6)+IF(GN6=0,0,($AI6-$AK6)*$AI$60*1/$C6)+IF(GO6=0,0,($AM6-$AO6)*$AM$60*1/$C6)+IF(GP6=0,0,($AQ6-$AS6)*$AQ$60*1/$C6)+IF(GQ6=0,0,($AU6-$AW6)*$AU$60*1/$C6)+IF(GR6=0,0,($AY6-$BA6)*$AY$60*1/$C6)+IF(GS6=0,0,($BC6-$BE6)*$BC$60*1/$C6)+IF(GT6=0,0,($BG6-$BI6)*$BG$60*1/$C6)+IF(GU6=0,0,($BK6-$BM6)*$BK$60*1/$C6)+IF(GV6=0,0,($BO6-$BQ6)*$BO$60*1/$C6)+IF(GW6=0,0,($BS6-$BU6)*$BS$60*1/$C6)+IF(GX6=0,0,($BW6-$BY6)*$BW$60*1/$C6)+IF(GY6=0,0,($CA6-$CC6)*$CA$60*1/$C6)+IF(GZ6=0,0,($CE6-$CG6)*$CE$60*1/$C6)+IF(HA6=0,0,($CI6-$CK6)*$CI$60*1/$C6) -> 12009.36647
B7: Edificios y mejoras | C7: 40 | D7: 580007.3501 | E7: 0 | F7: 536566.1437 | G7: 317455 | H7: 0 | I7: 0 | J7: 0 | K7: 69289 | L7: 0 | M7: 0 | N7: 0 | O7: 473648.75 | P7: 0 | Q7: 0 | R7: 0 | S7: 25725 | T7: 0 | U7: 0 | V7: 0 | W7: 28840.86 | X7: 0 | Y7: 0 | Z7: 0 | AA7: 1205953.12 | AB7: 0 | AC7: 0 | AD7: 0 | AE7: 197890.73 | AF7: 0 | AG7: 0 | AH7: 0 | AI7: 199788.26 | AJ7: 0 | AK7: 0 | AL7: 0 | AM7: 301192.66 | AN7: 0 | AO7: 0 | AP7: 0 | AQ7: 422304.54 | AR7: 0 | AS7: 0 | AT7: 0 | AU7: 395004.46 | AV7: 0 | AW7: 0 | AX7: 0 | AY7: 203644.44 | AZ7: 0 | BA7: 0 | BB7: 0 | BC7: 1219011.11 | BD7: 0 | BE7: 0 | BF7: 0 | BG7: 3274535.54 | BH7: 0 | BI7: 0 | BJ7: 0 | BK7: 19074507.6 | BL7: 0 | BM7: 0 | BN7: 0 | BO7: 8517340.3 | BP7: 0 | BQ7: 0 | BR7: 0 | BS7: 1969613.19 | BT7: 0 | BU7: 0 | BV7: 0 | BW7: 949681.73 | BX7: 0 | BY7: 0 | BZ7: 0 | CA7: 3311003.69 | CB7: 0 | CC7: 0 | CD7: 0 | CE7: 845796.73 | CF7: 0 | CG7: 0 | CH7: 0 | CI7: 1161020.79 | CJ7: 0 | CK7: 0 | CL7: 0 | CM7: 1998.004093 | CN7: 0.4126023174 | CO7: 0.5125 | CP7: 0.5375 | CQ7: 0.5625 | CR7: 0.5875 | CS7: 0.6125 | CT7: 0.6375 | CU7: 0.6625 | CV7: 0.6875 | CW7: 0.7125 | CX7: 0.7375 | CY7: 0.7625 | CZ7: 0.7875 | DA7: 0.8125 | DB7: 0.8375 | DC7: 0.8625 | DD7: 0.8875 | DE7: 0.9125 | DF7: 0.9375 | DG7: 0.9625 | DH7: 0.9875 | DI7: 1 | DJ7: 992628.7045 | DK7: 39705148.18 | DL7: 0 | DM7: 34037592.33 | DN7: 992628.7045 | DO7: 0.3876023174 | DP7: 0.4875 | DQ7: 0.5125 | DR7: 0.5375 | DS7: 0.5625 | DT7: 0.5875 | DU7: 0.6125 | DV7: 0.6375 | DW7: 0.6625 | DX7: 0.6875 | DY7: 0.7125 | DZ7: 0.7375 | EA7: 0.7625 | EB7: 0.7875 | EC7: 0.8125 | ED7: 0.8375 | EE7: 0.8625 | EF7: 0.8875 | EG7: 0.9125 | EH7: 0.9375 | EI7: 0.9625 | EJ7: 0.975 | EK7: 992628.7045 | EL7: 0.3626023174 | EM7: 0.4625 | EN7: 0.4875 | EO7: 0.5125 | EP7: 0.5375 | EQ7: 0.5625 | ER7: 0.5875 | ES7: 0.6125 | ET7: 0.6375 | EU7: 0.6625 | EV7: 0.6875 | EW7: 0.7125 | EX7: 0.7375 | EY7: 0.7625 | EZ7: 0.7875 | FA7: 0.8125 | FB7: 0.8375 | FC7: 0.8625 | FD7: 0.8875 | FE7: 0.9125 | FF7: 0.9375 | FG7: 0.95 | FH7: 992628.7045 | FI7: 0.3376023174 | FJ7: 0.4375 | FK7: 0.4625 | FL7: 0.4875 | FM7: 0.5125 | FN7: 0.5375 | FO7: 0.5625 | FP7: 0.5875 | FQ7: 0.6125 | FR7: 0.6375 | FS7: 0.6625 | FT7: 0.6875 | FU7: 0.7125 | FV7: 0.7375 | FW7: 0.7625 | FX7: 0.7875 | FY7: 0.8125 | FZ7: 0.8375 | GA7: 0.8625 | GB7: 0.8875 | GC7: 0.9125 | GD7: 0.925 | GE7: 992628.7045 | GF7: 0.3126023174 | GG7: 0.4125 | GH7: 0.4375 | GI7: 0.4625 | GJ7: 0.4875 | GK7: 0.5125 | GL7: 0.5375 | GM7: 0.5625 | GN7: 0.5875 | GO7: 0.6125 | GP7: 0.6375 | GQ7: 0.6625 | GR7: 0.6875 | GS7: 0.7125 | GT7: 0.7375 | GU7: 0.7625 | GV7: 0.7875 | GW7: 0.8125 | GX7: 0.8375 | GY7: 0.8625 | GZ7: 0.8875 | HA7: 0.9 | HB7: 992628.7045
B8: Mobiliario y equipo de oficina | C8: 7 | D8: 3527073.473 | E8: 0 | F8: 2196534.411 | G8: 41591 | H8: 0 | I8: 0 | J8: 0 | K8: 38057 | L8: 0 | M8: 0 | N8: 0 | O8: 66341 | P8: 0 | Q8: 0 | R8: 0 | S8: 10238.7 | T8: 0 | U8: 0 | V8: 0 | W8: 1190.28 | X8: 0 | Y8: 0 | Z8: 0 | AA8: 337294.97 | AB8: 0 | AC8: 0 | AD8: 0 | AE8: 185114.05 | AF8: 0 | AG8: 0 | AH8: 0 | AI8: 21824.53 | AJ8: 0 | AK8: 0 | AL8: 0 | AM8: 25294.7 | AN8: 0 | AO8: 0 | AP8: 0 | AQ8: 293654.97 | AR8: 0 | AS8: 0 | AT8: 0 | AU8: 57779.52 | AV8: 0 | AW8: 0 | AX8: 0 | AY8: 182516.04 | AZ8: 0 | BA8: 0 | BB8: 0 | BC8: 48581.91 | BD8: 0 | BE8: 0 | BF8: 0 | BG8: 205581.72 | BH8: 0 | BI8: 0 | BJ8: 0 | BK8: 20046.87 | BL8: 0 | BM8: 0 | BN8: 0 | BO8: 1954431.76 | BP8: 0 | BQ8: 0 | BR8: 0 | BS8: 29151.04 | BT8: 0 | BU8: 0 | BV8: 0 | BW8: 38603.8 | BX8: 0 | BY8: 0 | BZ8: 0 | CA8: 80219.52 | CB8: 0 | CC8: 0 | CD8: 0 | CE8: 42186.15 | CF8: 0 | CG8: 0 | CH8: 0 | CI8: 30356.38 | CJ8: 0 | CK8: 0 | CL8: 0 | CM8: 1998.359348 | CN8: 0 | CO8: 0 | CP8: 0 | CQ8: 0 | CR8: 0 | CS8: 0 | CT8: 0 | CU8: 0 | CV8: 0 | CW8: 0 | CX8: 0 | CY8: 0 | CZ8: 0 | DA8: 0 | DB8: 0.07142857143 | DC8: 0.2142857143 | DD8: 0.3571428571 | DE8: 0.5 | DF8: 0.6428571429 | DG8: 0.7857142857 | DH8: 0.9285714286 | DI8: 1 | DJ8: 307477.9045 | DK8: 6688146.773 | DL8: 4535801.441 | DM8: 791983.7364 | DN8: 307477.9045 | DO8: 0 | DP8: 0 | DQ8: 0 | DR8: 0 | DS8: 0 | DT8: 0 | DU8: 0 | DV8: 0 | DW8: 0 | DX8: 0 | DY8: 0 | DZ8: 0 | EA8: 0 | EB8: 0 | EC8: 0 | ED8: 0.07142857143 | EE8: 0.2142857143 | EF8: 0.3571428571 | EG8: 0.5 | EH8: 0.6428571429 | EI8: 0.7857142857 | EJ8: 0.8571428571 | EK8: 281045.9691 | EL8: 0 | EM8: 0 | EN8: 0 | EO8: 0 | EP8: 0 | EQ8: 0 | ER8: 0 | ES8: 0 | ET8: 0 | EU8: 0 | EV8: 0 | EW8: 0 | EX8: 0 | EY8: 0 | EZ8: 0 | FA8: 0 | FB8: 0.07142857143 | FC8: 0.2142857143 | FD8: 0.3571428571 | FE8: 0.5 | FF8: 0.6428571429 | FG8: 0.7142857143 | FH8: 278468.5144 | FI8: 0 | FJ8: 0 | FK8: 0 | FL8: 0 | FM8: 0 | FN8: 0 | FO8: 0 | FP8: 0 | FQ8: 0 | FR8: 0 | FS8: 0 | FT8: 0 | FU8: 0 | FV8: 0 | FW8: 0 | FX8: 0 | FY8: 0 | FZ8: 0.07142857143 | GA8: 0.2142857143 | GB8: 0.3571428571 | GC8: 0.5 | GD8: 0.5714285714 | GE8: 27184.43097 | GF8: 0 | GG8: 0 | GH8: 0 | GI8: 0 | GJ8: 0 | GK8: 0 | GL8: 0 | GM8: 0 | GN8: 0 | GO8: 0 | GP8: 0 | GQ8: 0 | GR8: 0 | GS8: 0 | GT8: 0 | GU8: 0 | GV8: 0 | GW8: 0 | GX8: 0.07142857143 | GY8: 0.2142857143 | GZ8: 0.3571428571 | HA8: 0.4285714286 | HB8: 23436.44012
B9: Equipo de computación | C9: 4 | D9: 1103173.068 | E9: 0 | F9: 1015622.319 | G9: 176958 | H9: 0 | I9: 0 | J9: 0 | K9: 24713 | L9: 0 | M9: 0 | N9: 0 | O9: 465414 | P9: 0 | Q9: 0 | R9: 0 | S9: 247690.5 | T9: 0 | U9: 0 | V9: 0 | W9: 146862.53 | X9: 0 | Y9: 0 | Z9: 0 | AA9: 0 | AB9: 0 | AC9: 0 | AD9: 0 | AE9: 146772.83 | AF9: 0 | AG9: 0 | AH9: 0 | AI9: 515072.17 | AJ9: 0 | AK9: 0 | AL9: 0 | AM9: 237279.38 | AN9: 0 | AO9: 0 | AP9: 0 | AQ9: 506958.58 | AR9: 0 | AS9: 0 | AT9: 0 | AU9: 367178.45 | AV9: 0 | AW9: 0 | AX9: 0 | AY9: 611407.41 | AZ9: 0 | BA9: 0 | BB9: 0 | BC9: 710171.34 | BD9: 0 | BE9: 0 | BF9: 0 | BG9: 1321504.94 | BH9: 0 | BI9: 0 | BJ9: 0 | BK9: 758320.35 | BL9: 0 | BM9: 0 | BN9: 0 | BO9: 2050368.06 | BP9: 0 | BQ9: 0 | BR9: 0 | BS9: 959880.56 | BT9: 0 | BU9: 0 | BV9: 0 | BW9: 747701.29 | BX9: 0 | BY9: 0 | BZ9: 0 | CA9: 1523031.14 | CB9: 0 | CC9: 0 | CD9: 0 | CE9: 2131078.53 | CF9: 0 | CG9: 0 | CH9: 0 | CI9: 1267017.18 | CJ9: 0 | CK9: 0 | CL9: 0 | CM9: 2000.682549 | CN9: 0 | CO9: 0 | CP9: 0 | CQ9: 0 | CR9: 0 | CS9: 0 | CT9: 0 | CU9: 0 | CV9: 0 | CW9: 0 | CX9: 0 | CY9: 0 | CZ9: 0 | DA9: 0 | DB9: 0 | DC9: 0 | DD9: 0 | DE9: 0.125 | DF9: 0.375 | DG9: 0.625 | DH9: 0.875 | DI9: 1 | DJ9: 1402799.513 | DK9: 13816151.82 | DL9: 8204953.767 | DM9: 3690626.925 | DN9: 1402799.513 | DO9: 0 | DP9: 0 | DQ9: 0 | DR9: 0 | DS9: 0 | DT9: 0 | DU9: 0 | DV9: 0 | DW9: 0 | DX9: 0 | DY9: 0 | DZ9: 0 | EA9: 0 | EB9: 0 | EC9: 0 | ED9: 0 | EE9: 0 | EF9: 0 | EG9: 0.125 | EH9: 0.375 | EI9: 0.625 | EJ9: 0.75 | EK9: 1186826.387 | EL9: 0 | EM9: 0 | EN9: 0 | EO9: 0 | EP9: 0 | EQ9: 0 | ER9: 0 | ES9: 0 | ET9: 0 | EU9: 0 | EV9: 0 | EW9: 0 | EX9: 0 | EY9: 0 | EZ9: 0 | FA9: 0 | FB9: 0 | FC9: 0 | FD9: 0 | FE9: 0.125 | FF9: 0.375 | FG9: 0.5 | FH9: 1018593.597 | FI9: 0 | FJ9: 0 | FK9: 0 | FL9: 0 | FM9: 0 | FN9: 0 | FO9: 0 | FP9: 0 | FQ9: 0 | FR9: 0 | FS9: 0 | FT9: 0 | FU9: 0 | FV9: 0 | FW9: 0 | FX9: 0 | FY9: 0 | FZ9: 0 | GA9: 0 | GB9: 0 | GC9: 0.125 | GD9: 0.25 | GE9: 675911.5905 | GF9: 0 | GG9: 0 | GH9: 0 | GI9: 0 | GJ9: 0 | GK9: 0 | GL9: 0 | GM9: 0 | GN9: 0 | GO9: 0 | GP9: 0 | GQ9: 0 | GR9: 0 | GS9: 0 | GT9: 0 | GU9: 0 | GV9: 0 | GW9: 0 | GX9: 0 | GY9: 0 | GZ9: 0 | HA9: 0 | HB9: 0
B10: Equipos de transporte y carga | C10: 5 | D10: 3800054.162 | E10: 0 | F10: 1250795.267 | G10: 66062 | H10: 0 | I10: 0 | J10: 0 | K10: 12581 | L10: 0 | M10: 0 | N10: 0 | O10: 73500 | P10: 0 | Q10: 0 | R10: 0 | S10: 54739 | T10: 0 | U10: 0 | V10: 0 | W10: 0 | X10: 0 | Y10: 0 | Z10: 0 | AA10: 0 | AB10: 0 | AC10: 0 | AD10: 0 | AE10: 188844.95 | AF10: 0 | AG10: 0 | AH10: 0 | AI10: 8402 | AJ10: 0 | AK10: 0 | AL10: 0 | AM10: 523011.97 | AN10: 0 | AO10: 0 | AP10: 0 | AQ10: 668495.99 | AR10: 0 | AS10: 0 | AT10: 0 | AU10: 476895.13 | AV10: 0 | AW10: 0 | AX10: 0 | AY10: 272443.65 | AZ10: 0 | BA10: 0 | BB10: 0 | BC10: 2092541.22 | BD10: 0 | BE10: 0 | BF10: 0 | BG10: 690928.83 | BH10: 0 | BI10: 0 | BJ10: 0 | BK10: 1475074.11 | BL10: 0 | BM10: 0 | BN10: 0 | BO10: 135135 | BP10: 0 | BQ10: 0 | BR10: 0 | BS10: 57990 | BT10: 0 | BU10: 0 | BV10: 0 | BW10: 362633.37 | BX10: 0 | BY10: 0 | BZ10: 0 | CA10: 45000.01 | CB10: 0 | CC10: 0 | CD10: 0 | CE10: 184844.03 | CF10: 0 | CG10: 0 | CH10: 0 | CI10: 645695.73 | CJ10: 0 | CK10: 0 | CL10: 0 | CM10: 1997.64576 | CN10: 0 | CO10: 0 | CP10: 0 | CQ10: 0 | CR10: 0 | CS10: 0 | CT10: 0 | CU10: 0 | CV10: 0 | CW10: 0 | CX10: 0 | CY10: 0 | CZ10: 0 | DA10: 0 | DB10: 0 | DC10: 0 | DD10: 0.1 | DE10: 0.3 | DF10: 0.5 | DG10: 0.7 | DH10: 0.9 | DI10: 1 | DJ10: 228041.1859 | DK10: 10464445.96 | DL10: 9324240.029 | DM10: 802914.0171 | DN10: 228041.1859 | DO10: 0 | DP10: 0 | DQ10: 0 | DR10: 0 | DS10: 0 | DT10: 0 | DU10: 0 | DV10: 0 | DW10: 0 | DX10: 0 | DY10: 0 | DZ10: 0 | EA10: 0 | EB10: 0 | EC10: 0 | ED10: 0 | EE10: 0 | EF10: 0.1 | EG10: 0.3 | EH10: 0.5 | EI10: 0.7 | EJ10: 0.8 | EK10: 203716.8859 | EL10: 0 | EM10: 0 | EN10: 0 | EO10: 0 | EP10: 0 | EQ10: 0 | ER10: 0 | ES10: 0 | ET10: 0 | EU10: 0 | EV10: 0 | EW10: 0 | EX10: 0 | EY10: 0 | EZ10: 0 | FA10: 0 | FB10: 0 | FC10: 0 | FD10: 0.1 | FE10: 0.3 | FF10: 0.5 | FG10: 0.6 | FH10: 193278.6859 | FI10: 0 | FJ10: 0 | FK10: 0 | FL10: 0 | FM10: 0 | FN10: 0 | FO10: 0 | FP10: 0 | FQ10: 0 | FR10: 0 | FS10: 0 | FT10: 0 | FU10: 0 | FV10: 0 | FW10: 0 | FX10: 0 | FY10: 0 | FZ10: 0 | GA10: 0 | GB10: 0.1 | GC10: 0.3 | GD10: 0.4 | GE10: 128004.6793 | GF10: 0 | GG10: 0 | GH10: 0 | GI10: 0 | GJ10: 0 | GK10: 0 | GL10: 0 | GM10: 0 | GN10: 0 | GO10: 0 | GP10: 0 | GQ10: 0 | GR10: 0 | GS10: 0 | GT10: 0 | GU10: 0 | GV10: 0 | GW10: 0 | GX10: 0 | GY10: 0 | GZ10: 0.1 | HA10: 0.2 | HB10: 119904.6775
B11: Equipos de comunicaciones | C11: 8 | D11: 2480336.603 | E11: 0 | F11: 1769732.541 | G11: 31891 | H11: 0 | I11: 0 | J11: 0 | K11: 217281 | L11: 0 | M11: 0 | N11: 0 | O11: 55152 | P11: 0 | Q11: 0 | R11: 0 | S11: 19165 | T11: 0 | U11: 0 | V11: 0 | W11: 0 | X11: 0 | Y11: 0 | Z11: 0 | AA11: 0 | AB11: 0 | AC11: 0 | AD11: 0 | AE11: 34477.98 | AF11: 0 | AG11: 0 | AH11: 0 | AI11: 33653.06 | AJ11: 0 | AK11: 0 | AL11: 0 | AM11: 292999.33 | AN11: 0 | AO11: 0 | AP11: 0 | AQ11: 132499.14 | AR11: 0 | AS11: 0 | AT11: 0 | AU11: 143653.87 | AV11: 0 | AW11: 0 | AX11: 0 | AY11: 158473.01 | AZ11: 0 | BA11: 0 | BB11: 0 | BC11: 21964.41 | BD11: 0 | BE11: 0 | BF11: 0 | BG11: 254615.15 | BH11: 0 | BI11: 0 | BJ11: 0 | BK11: 91973.18 | BL11: 0 | BM11: 0 | BN11: 0 | BO11: 224816.85 | BP11: 0 | BQ11: 0 | BR11: 0 | BS11: 108324.82 | BT11: 0 | BU11: 0 | BV11: 0 | BW11: 40426.51 | BX11: 0 | BY11: 0 | BZ11: 0 | CA11: 78367.78 | CB11: 0 | CC11: 0 | CD11: 0 | CE11: 284756.9 | CF11: 0 | CG11: 0 | CH11: 0 | CI11: 147179.49 | CJ11: 0 | CK11: 0 | CL11: 0 | CM11: 1998.70804 | CN11: 0 | CO11: 0 | CP11: 0 | CQ11: 0 | CR11: 0 | CS11: 0 | CT11: 0 | CU11: 0 | CV11: 0 | CW11: 0 | CX11: 0 | CY11: 0 | CZ11: 0 | DA11: 0.0625 | DB11: 0.1875 | DC11: 0.3125 | DD11: 0.4375 | DE11: 0.5625 | DF11: 0.6875 | DG11: 0.8125 | DH11: 0.9375 | DI11: 1 | DJ11: 135591.4035 | DK11: 4426293.482 | DL11: 3341562.254 | DM11: 626580.4655 | DN11: 135591.4035 | DO11: 0 | DP11: 0 | DQ11: 0 | DR11: 0 | DS11: 0 | DT11: 0 | DU11: 0 | DV11: 0 | DW11: 0 | DX11: 0 | DY11: 0 | DZ11: 0 | EA11: 0 | EB11: 0 | EC11: 0.0625 | ED11: 0.1875 | EE11: 0.3125 | EF11: 0.4375 | EG11: 0.5625 | EH11: 0.6875 | EI11: 0.8125 | EJ11: 0.875 | EK11: 133108.2512 | EL11: 0 | EM11: 0 | EN11: 0 | EO11: 0 | EP11: 0 | EQ11: 0 | ER11: 0 | ES11: 0 | ET11: 0 | EU11: 0 | EV11: 0 | EW11: 0 | EX11: 0 | EY11: 0 | EZ11: 0 | FA11: 0.0625 | FB11: 0.1875 | FC11: 0.3125 | FD11: 0.4375 | FE11: 0.5625 | FF11: 0.6875 | FG11: 0.75 | FH11: 104464.0469 | FI11: 0 | FJ11: 0 | FK11: 0 | FL11: 0 | FM11: 0 | FN11: 0 | FO11: 0 | FP11: 0 | FQ11: 0 | FR11: 0 | FS11: 0 | FT11: 0 | FU11: 0 | FV11: 0 | FW11: 0 | FX11: 0 | FY11: 0.0625 | FZ11: 0.1875 | GA11: 0.3125 | GB11: 0.4375 | GC11: 0.5625 | GD11: 0.625 | GE11: 94117.06412 | GF11: 0 | GG11: 0 | GH11: 0 | GI11: 0 | GJ11: 0 | GK11: 0 | GL11: 0 | GM11: 0 | GN11: 0 | GO11: 0 | GP11: 0 | GQ11: 0 | GR11: 0 | GS11: 0 | GT11: 0 | GU11: 0 | GV11: 0 | GW11: 0.0625 | GX11: 0.1875 | GY11: 0.3125 | GZ11: 0.4375 | HA11: 0.5 | HB11: 68825.1685
B12: Otros equipos de uso general | C12: 17 | D12: 2346911.757 | E12: 0 | F12: 1840063.673 | G12: 71208 | H12: 0 | I12: 0 | J12: 0 | K12: 19909 | L12: 0 | M12: 0 | N12: 0 | O12: 14365.32 | P12: 0 | Q12: 0 | R12: 0 | S12: 22325.92 | T12: 0 | U12: 0 | V12: 0 | W12: 0 | X12: 0 | Y12: 0 | Z12: 0 | AA12: 0 | AB12: 0 | AC12: 0 | AD12: 0 | AE12: 97557.38 | AF12: 0 | AG12: 0 | AH12: 0 | AI12: 832985.52 | AJ12: 0 | AK12: 0 | AL12: 0 | AM12: 102780.58 | AN12: 0 | AO12: 0 | AP12: 0 | AQ12: 246580.92 | AR12: 0 | AS12: 0 | AT12: 0 | AU12: 397920.5 | AV12: 0 | AW12: 0 | AX12: 0 | AY12: 665955.6 | AZ12: 0 | BA12: 0 | BB12: 0 | BC12: 33332.06 | BD12: 0 | BE12: 0 | BF12: 0 | BG12: 201849.28 | BH12: 0 | BI12: 0 | BJ12: 0 | BK12: 34629.9 | BL12: 0 | BM12: 0 | BN12: 0 | BO12: 935430.96 | BP12: 0 | BQ12: 0 | BR12: 0 | BS12: 248586.98 | BT12: 0 | BU12: 0 | BV12: 0 | BW12: 304540.84 | BX12: 0 | BY12: 0 | BZ12: 0 | CA12: 79149.89 | CB12: 0 | CC12: 0 | CD12: 0 | CE12: 201124.62 | CF12: 0 | CG12: 0 | CH12: 0 | CI12: 99397.02 | CJ12: 0 | CK12: 0 | CL12: 0 | CM12: 1997.328615 | CN12: 0 | CO12: 0 | CP12: 0 | CQ12: 0 | CR12: 0.02941176471 | CS12: 0.08823529412 | CT12: 0.1470588235 | CU12: 0.2058823529 | CV12: 0.2647058824 | CW12: 0.3235294118 | CX12: 0.3823529412 | CY12: 0.4411764706 | CZ12: 0.5 | DA12: 0.5588235294 | DB12: 0.6176470588 | DC12: 0.6764705882 | DD12: 0.7352941176 | DE12: 0.7941176471 | DF12: 0.8529411765 | DG12: 0.9117647059 | DH12: 0.9705882353 | DI12: 1 | DJ12: 223519.9895 | DK12: 6237568.856 | DL12: 2437729.034 | DM12: 2171920.178 | DN12: 223519.9895 | DO12: 0 | DP12: 0 | DQ12: 0 | DR12: 0 | DS12: 0 | DT12: 0.02941176471 | DU12: 0.08823529412 | DV12: 0.1470588235 | DW12: 0.2058823529 | DX12: 0.2647058824 | DY12: 0.3235294118 | DZ12: 0.3823529412 | EA12: 0.4411764706 | EB12: 0.5 | EC12: 0.5588235294 | ED12: 0.6176470588 | EE12: 0.6764705882 | EF12: 0.7352941176 | EG12: 0.7941176471 | EH12: 0.8529411765 | EI12: 0.9117647059 | EJ12: 0.9411764706 | EK12: 222320.237 | EL12: 0 | EM12: 0 | EN12: 0 | EO12: 0 | EP12: 0 | EQ12: 0 | ER12: 0.02941176471 | ES12: 0.08823529412 | ET12: 0.1470588235 | EU12: 0.2058823529 | EV12: 0.2647058824 | EW12: 0.3235294118 | EX12: 0.3823529412 | EY12: 0.4411764706 | EZ12: 0.5 | FA12: 0.5588235294 | FB12: 0.6176470588 | FC12: 0.6764705882 | FD12: 0.7352941176 | FE12: 0.7941176471 | FF12: 0.8529411765 | FG12: 0.8823529412 | FH12: 222320.237 | FI12: 0 | FJ12: 0 | FK12: 0 | FL12: 0 | FM12: 0 | FN12: 0 | FO12: 0 | FP12: 0.02941176471 | FQ12: 0.08823529412 | FR12: 0.1470588235 | FS12: 0.2058823529 | FT12: 0.2647058824 | FU12: 0.3235294118 | FV12: 0.3823529412 | FW12: 0.4411764706 | FX12: 0.5 | FY12: 0.5588235294 | FZ12: 0.6176470588 | GA12: 0.6764705882 | GB12: 0.7352941176 | GC12: 0.7941176471 | GD12: 0.8235294118 | GE12: 222320.237 | GF12: 0 | GG12: 0 | GH12: 0 | GI12: 0 | GJ12: 0 | GK12: 0 | GL12: 0 | GM12: 0 | GN12: 0.02941176471 | GO12: 0.08823529412 | GP12: 0.1470588235 | GQ12: 0.2058823529 | GR12: 0.2647058824 | GS12: 0.3235294118 | GT12: 0.3823529412 | GU12: 0.4411764706 | GV12: 0.5 | GW12: 0.5588235294 | GX12: 0.6176470588 | GY12: 0.6764705882 | GZ12: 0.7352941176 | HA12: 0.7647058824 | HB12: 216984.3001
B13: TOTAL PROPIEDADES Y PLANTA | D13: =SUM(D5:D12) -> 14059080.17 | E13: =SUM(E5:E12) -> 0 | F13: 8830838.116 | G13: =SUM(G5:G12) -> 992553 | H13: =SUM(H5:H12) -> 0 | I13: 0 | J13: 0 | K13: =SUM(K5:K12) -> 434666 | L13: =SUM(L5:L12) -> 0 | M13: =SUM(M5:M12) -> 0 | N13: =SUM(N5:N12) -> 0 | O13: =SUM(O5:O12) -> 1215530.53 | P13: =SUM(P5:P12) -> 0 | Q13: =SUM(Q5:Q12) -> 0 | R13: =SUM(R5:R12) -> 0 | S13: =SUM(S5:S12) -> 1052253.33 | T13: =SUM(T5:T12) -> 0 | U13: =SUM(U5:U12) -> 0 | V13: =SUM(V5:V12) -> 0 | W13: =SUM(W5:W12) -> 420648.23 | X13: =SUM(X5:X12) -> 0 | Y13: =SUM(Y5:Y12) -> 0 | Z13: =SUM(Z5:Z12) -> 0 | AA13: =SUM(AA5:AA12) -> 1558147.32 | AB13: =SUM(AB5:AB12) -> 0 | AC13: =SUM(AC5:AC12) -> 0 | AD13: =SUM(AD5:AD12) -> 0 | AE13: =SUM(AE5:AE12) -> 1052676.1 | AF13: =SUM(AF5:AF12) -> 0 | AG13: =SUM(AG5:AG12) -> 0 | AH13: =SUM(AH5:AH12) -> 0 | AI13: =SUM(AI5:AI12) -> 1899411.3 | AJ13: =SUM(AJ5:AJ12) -> 0 | AK13: =SUM(AK5:AK12) -> 0 | AL13: =SUM(AL5:AL12) -> 0 | AM13: =SUM(AM5:AM12) -> 3414726.14 | AN13: =SUM(AN5:AN12) -> 0 | AO13: =SUM(AO5:AO12) -> 0 | AP13: =SUM(AP5:AP12) -> 0 | AQ13: =SUM(AQ5:AQ12) -> 4247393.61 | AR13: =SUM(AR5:AR12) -> 0 | AS13: =SUM(AS5:AS12) -> 0 | AT13: =SUM(AT5:AT12) -> 0 | AU13: =SUM(AU5:AU12) -> 4991125.67 | AV13: =SUM(AV5:AV12) -> 0 | AW13: =SUM(AW5:AW12) -> 0 | AX13: =SUM(AX5:AX12) -> 0 | AY13: =SUM(AY5:AY12) -> 4590776.61 | AZ13: =SUM(AZ5:AZ12) -> 0 | BA13: =SUM(BA5:BA12) -> 0 | BB13: =SUM(BB5:BB12) -> 0 | BC13: =SUM(BC5:BC12) -> 14976425.35 | BD13: =SUM(BD5:BD12) -> 0 | BE13: =SUM(BE5:BE12) -> 0 | BF13: =SUM(BF5:BF12) -> 0 | BG13: =SUM(BG5:BG12) -> 17658206.85 | BH13: =SUM(BH5:BH12) -> 0 | BI13: =SUM(BI5:BI12) -> 0 | BJ13: =SUM(BJ5:BJ12) -> 0 | BK13: =SUM(BK5:BK12) -> 26713084.93 | BL13: =SUM(BL5:BL12) -> 0 | BM13: =SUM(BM5:BM12) -> 0 | BN13: =SUM(BN5:BN12) -> 0 | BO13: =SUM(BO5:BO12) -> 15652369.52 | BP13: =SUM(BP5:BP12) -> 0 | BQ13: =SUM(BQ5:BQ12) -> 0 | BR13: =SUM(BR5:BR12) -> 0 | BS13: =SUM(BS5:BS12) -> 6206420.86 | BT13: =SUM(BT5:BT12) -> 0 | BU13: =SUM(BU5:BU12) -> 0 | BV13: =SUM(BV5:BV12) -> 0 | BW13: =SUM(BW5:BW12) -> 7546658.45 | BX13: =SUM(BX5:BX12) -> 0 | BY13: =SUM(BY5:BY12) -> 0 | BZ13: =SUM(BZ5:BZ12) -> 0 | CA13: =SUM(CA5:CA12) -> 8965196.72 | CB13: =SUM(CB5:CB12) -> 0 | CC13: =SUM(CC5:CC12) -> 0 | CD13: =SUM(CD5:CD12) -> 0 | CE13: =SUM(CE5:CE12) -> 14519446.32 | CF13: =SUM(CF5:CF12) -> 0 | CG13: =SUM(CG5:CG12) -> 0 | CH13: =SUM(CH5:CH12) -> 0 | CI13: =SUM(CI5:CI12) -> 5083695.73 | CJ13: =SUM(CJ5:CJ12) -> 0 | CK13: =SUM(CK5:CK12) -> 0 | CL13: =SUM(CL5:CL12) -> 0 | DJ13: =SUM(DJ5:DJ12) -> 8539752.452 | DK13: =SUM(DK5:DK12) -> 137939212.6 | DL13: =SUM(DL5:DL12) -> 51485640.02 | DM13: =SUM(DM5:DM12) -> 67583998.73 | DN13: =SUM(DN5:DN12) -> 8539752.452 | EK13: =SUM(EK5:EK12) -> 7679129.892 | FH13: =SUM(FH5:FH12) -> 6321046.288 | GE13: =SUM(GE5:GE12) -> 4785563.654 | HB13: =SUM(HB5:HB12) -> 1433788.657
B14: Activos intangibles (software) | C14: 4 | D14: 0 | E14: 0 | F14: 0 | G14: 146069 | H14: 0 | I14: 0 | J14: 0 | K14: 712799 | L14: 0 | M14: 0 | N14: 0 | O14: 15512 | P14: 0 | Q14: 0 | R14: 0 | S14: 150992.98 | T14: 0 | U14: 0 | V14: 0 | W14: 2344.63 | X14: 0 | Y14: 0 | Z14: 0 | AA14: 0 | AB14: 0 | AC14: 0 | AD14: 0 | AE14: 3384.67 | AF14: 0 | AG14: 0 | AH14: 0 | AI14: 134496.21 | AJ14: 0 | AK14: 0 | AL14: 0 | AM14: 0 | AN14: 0 | AO14: 0 | AP14: 0 | AQ14: 0 | AR14: 0 | AS14: 0 | AT14: 0 | AU14: 0 | AV14: 0 | AW14: 0 | AX14: 0 | AY14: 0 | AZ14: 0 | BA14: 0 | BB14: 0 | BC14: 0 | BD14: 0 | BE14: 0 | BF14: 0 | BG14: 0 | BH14: 0 | BI14: 0 | BJ14: 0 | BK14: 0 | BL14: 0 | BM14: 0 | BN14: 0 | BO14: 0 | BP14: 0 | BQ14: 0 | BR14: 0 | BS14: 0 | BT14: 0 | BU14: 0 | BV14: 0 | BW14: 0 | BX14: 0 | BY14: 0 | BZ14: 0 | CA14: 0 | CB14: 0 | CC14: 0 | CD14: 0 | CE14: 0 | CF14: 0 | CG14: 0 | CH14: 0 | CI14: 0 | CJ14: 0 | CK14: 0 | CL14: 0 | CM14: =IF(D14=0,0,2001-(D14-F14)*C14/D14) -> 0 | CN14: =IF((1-($DJ$2-$CM14)/$C14)>0,(1-($DJ$2-$CM14)/$C14),0) -> 0 | CO14: =IF((1-($DJ$2-G$2)/$C14)>0,(1-($DJ$2-G$2)/$C14),0) -> 0 | CP14: =IF((1-($DJ$2-K$2)/$C14)>0,(1-($DJ$2-K$2)/$C14),0) -> 0 | CQ14: =IF((1-($DJ$2-O$2)/$C14)>0,(1-($DJ$2-O$2)/$C14),0) -> 0 | CR14: =IF((1-($DJ$2-S$2)/$C14)>0,(1-($DJ$2-S$2)/$C14),0) -> 0 | CS14: =IF((1-($DJ$2-W$2)/$C14)>0,(1-($DJ$2-W$2)/$C14),0) -> 0 | CT14: =IF((1-($DJ$2-AA$2)/$C14)>0,(1-($DJ$2-AA$2)/$C14),0) -> 0 | CU14: =IF((1-($DJ$2-AE$2)/$C14)>0,(1-($DJ$2-AE$2)/$C14),0) -> 0 | CV14: =IF((1-($DJ$2-AI$2)/$C14)>0,(1-($DJ$2-AI$2)/$C14),0) -> 0 | CW14: =IF((1-($DJ$2-AM$2)/$C14)>0,(1-($DJ$2-AM$2)/$C14),0) -> 0 | CX14: =IF((1-($DJ$2-AQ$2)/$C14)>0,(1-($DJ$2-AQ$2)/$C14),0) -> 0 | CY14: =IF((1-($DJ$2-AU$2)/$C14)>0,(1-($DJ$2-AU$2)/$C14),0) -> 0 | CZ14: =IF((1-($DJ$2-AY$2)/$C14)>0,(1-($DJ$2-AY$2)/$C14),0) -> 0 | DA14: =IF((1-($DJ$2-BC$2)/$C14)>0,(1-($DJ$2-BC$2)/$C14),0) -> 0 | DB14: =IF((1-($DJ$2-BG$2)/$C14)>0,(1-($DJ$2-BG$2)/$C14),0) -> 0 | DC14: =IF((1-($DJ$2-BK$2)/$C14)>0,(1-($DJ$2-BK$2)/$C14),0) -> 0 | DD14: =IF((1-($DJ$2-BO$2)/$C14)>0,(1-($DJ$2-BO$2)/$C14),0) -> 0 | DE14: =IF((1-($DJ$2-BS$2)/$C14)>0,(1-($DJ$2-BS$2)/$C14),0) -> 0.125 | DF14: =IF((1-($DJ$2-BW$2)/$C14)>0,(1-($DJ$2-BW$2)/$C14),0) -> 0.375 | DG14: =IF((1-($DJ$2-CA$2)/$C14)>0,(1-($DJ$2-CA$2)/$C14),0) -> 0.625 | DH14: =IF((1-($DJ$2-CE$2)/$C14)>0,(1-($DJ$2-CE$2)/$C14),0) -> 0.875 | DI14: =IF((1-($DJ$2-CI$2)/$C14)>0,(1-($DJ$2-CI$2)/$C14),0) -> 1 | DJ14: =IF(CN14=0,0,($D14-$E14)*1/$C14)+IF(CO14=0,0,($G14-$H14-$I14)*$G$61*1/$C14)+IF(CP14=0,0,($K14-$L14-$M14)*$K$61*1/$C14)+IF(CQ14=0,0,($O14-$P14-$Q14)*$O$61*1/$C14)+IF(CR14=0,0,($S14-$T14-$U14)*$S$61*1/$C14)+IF(CS14=0,0,($W14-$X14-$Y14)*$W$61*1/$C14)+IF(CT14=0,0,($AA14-$AB14-$AC14)*$AA$61*1/$C14)+IF(CU14=0,0,($AE14-$AF14-$AG14)*$AE$61*1/$C14)+IF(CV14=0,0,($AI14-$AJ14-$AK14)*$AI$61*1/$C14)+IF(CW14=0,0,($AM14-$AN14-$AO14)*$AM$61*1/$C14)+IF(CX14=0,0,($AQ14-$AR14-$AS14)*$AQ$61*1/$C14)+IF(CY14=0,0,($AU14-$AV14-$AW14)*$AU$61*1/$C14)+IF(CZ14=0,0,($AY14-$AZ14-$BA14)*$AY$61*1/$C14)+IF(DA14=0,0,($BC14-$BD14-$BE14)*$BC$61*1/$C14)+IF(DB14=0,0,($BG14-$BH14-$BI14)*$BG$61*1/$C14)+IF(DC14=0,0,($BK14-$BL14-$BM14)*$BK$61*1/$C14)+IF(DD14=0,0,($BO14-$BP14-$BQ14)*$BO$61*1/$C14)+IF(DE14=0,0,($BS14-$BT14-$BU14)*$BS$61*1/$C14)+IF(DF14=0,0,($BW14-$BX14-$BY14)*$BW$61*1/$C14)+IF(DG14=0,0,($CA14-$CB14-$CC14)*$CA$61*1/$C14)+IF(DH14=0,0,($CE14-$CF14-$CG14)*$CE$61*1/$C14)+IF(DI14=0,0,($CI14-$CJ14-$CK14)*$CI$61*1/$C14) -> 0 | DK14: =D14-E14+(G14-H14-I14)*G$61+(K14-L14-M14)*K$61+(O14-P14-Q14)*O$61+(S14-T14-U14)*S$61+(W14-X14-Y14)*W$61+(AA14-AB14-AC14)*AA$61+(AE14-AF14-AG14)*AE$61+(AI14-AJ14-AK14)*AI$61+(AM14-AN14-AO14)*AM$61+(AQ14-AR14-AS14)*$AQ$61+(AU14-AV14-AW14)*$AU$61+(AY14-AZ14-BA14)*$AY$61+(BC14-BD14-BE14)*$BC$61+(BG14-BH14-BI14)*$BG$61+(BK14-BL14-BM14)*$BK$61+(BO14-BP14-BQ14)*$BO$61+(BS14-BT14-BU14)*$BS$61+(BW14-BX14-BY14)*$BW$61+(CA14-CB14-CC14)*$CA$61+(CE14-CF14-CG14)*$CE$61+(CI14-CJ14-CK14)*$CI$61 -> 1051269.921 | DL14: =IF(CN14=0,D14-E14,0)+IF(CO14=0,(G14-H14-I14)*G$61,0)+IF(CP14=0,(K14-L14-M14)*K$61,0)+IF(CQ14=0,(O14-P14-Q14)*O$61,0)+IF(CR14=0,(S14-T14-U14)*S$61,0)+IF(CS14=0,(W14-X14-Y14)*W$61,0)+IF(CT14=0,(AA14-AB14-AC14)*AA$61,0)+IF(CU14=0,(AE14-AF14-AG14)*AE$61,0)+IF(CV14=0,(AI14-AJ14-AK14)*AI$61,0)+IF(CW14=0,(AM14-AN14-AO14)*AM$61,0)+IF(CX14=0,(AQ14-AR14-AS14)*$AQ$61,0)+IF(CY14=0,(AU14-AV14-AW14)*$AU$61,0)+IF(CZ14=0,(AY14-AZ14-BA14)*$AY$61,0)++IF(DA14=0,(BC14-BD14-BE14)*$BC$61,0)+IF(DB14=0,(BG14-BH14-BI14)*$BG$61,0)+IF(DC14=0,(BK14-BL14-BM14)*$BK$61,0)+IF(DD14=0,(BO14-BP14-BQ14)*$BO$61,0)+IF(DE14=0,(BS14-BT14-BU14)*$BS$61,0)+IF(DF14=0,(BW14-BX14-BY14)*$BW$61,0)+IF(DG14=0,(CA14-CB14-CC14)*$CA$61,0)+IF(DH14=0,(CE14-CF14-CG14)*$CE$61,0)+IF(DI14=0,(CI14-CJ14-CK14)*$CI$61,0) -> 1051269.921 | DM14: =(D14-E14)*CN14+((G14-H14-(I14-J14))*G$61)*CO14+((K14-L14-(M14-N14))*K$61)*CP14+((O14-P14-(Q14-R14))*O$61)*CQ14+((S14-T14-(U14-V14))*S$61)*CR14+((W14-X14-(Y14-Z14))*W$61)*CS14+((AA14-AB14-(AC14-AD14))*AA$61)*CT14+((AE14-AF14-(AG14-AH14))*AE$61)*CU14+((AI14-AJ14-(AK14-AL14))*AI$61)*CV14+((AM14-AN14-(AO14-AP14))*$AM$61)*CW14+((AQ14-AR14-(AS14-AT14))*$AQ$61)*CX14+((AU14-AV14-(AW14-AX14))*$AU$61)*CY14+((AY14-AZ14-(BA14-BB14))*$AY$61)*CZ14+((BC14-BD14-(BE14-BF14))*$BC$61)*DA14+((BG14-BH14-(BI14-BJ14))*$BG$61)*DB14+((BK14-BL14-(BM14-BN14))*$BK$61)*DC14+((BO14-BP14-(BQ14-BR14))*$BO$61)*DD14+((BS14-BT14-(BU14-BV14))*$BS$61)*DE14+((BW14-BX14-(BY14-BZ14))*$BW$61)*DF14+((CA14-CB14-(CC14-CD14))*$CA$61)*DG14+((CE14-CF14-(CG14-CH14))*$CE$61)*DH14+((CI14-CJ14-(CK14-CL14))*$CI$61)*DI14 -> 0 | DN14: =(DK14-DL14)*1/C14 -> 0 | DO14: =IF((1-($EK$2-$CM14)/$C14)>0,(1-($EK$2-$CM14)/$C14),0) -> 0 | DP14: =IF((1-($EK$2-DP$2)/$C14)>0,(1-($EK$2-DP$2)/$C14),0) -> 0 | DQ14: 0 | DR14: 0 | DS14: 0 | DT14: 0 | DU14: 0 | DV14: 0 | DW14: 0 | DX14: 0 | DY14: 0 | DZ14: =IF((1-($EK$2-DZ$2)/$C14)>0,(1-($EK$2-DZ$2)/$C14),0) -> 0 | EA14: 0 | EB14: 0 | EC14: 0 | ED14: 0 | EE14: 0 | EF14: 0 | EG14: 0.125 | EH14: 0.375 | EI14: 0.625 | EJ14: 0.75 | EK14: =IF(DO14=0,0,($D14-$E14)*1/$C14)+IF(DP14=0,0,($G14-$H14-$I14)*$G$61*1/$C14)+IF(DQ14=0,0,($K14-$L14-$M14)*$K$61*1/$C14)+IF(DR14=0,0,($O14-$P14-$Q14)*$O$61*1/$C14)+IF(DS14=0,0,($S14-$T14-$U14)*$S$61*1/$C14)+IF(DT14=0,0,($W14-$X14-$Y14)*$W$61*1/$C14)+IF(DU14=0,0,($AA14-$AB14-$AC14)*$AA$61*1/$C14)+IF(DV14=0,0,($AE14-$AF14-$AG14)*$AE$61*1/$C14)+IF(DW14=0,0,($AI14-$AJ14-$AK14)*$AI$61*1/$C14)+IF(DX14=0,0,($AM14-$AN14-$AO14)*$AM$61*1/$C14)+IF(DY14=0,0,($AQ14-$AR14-$AS14)*$AQ$61*1/$C14)+IF(DZ14=0,0,($AU14-$AV14-$AW14)*$AU$61*1/$C14)+IF(EA14=0,0,($AY14-$AZ14-$BA14)*$AY$61*1/$C14)+IF(EB14=0,0,($BC14-$BD14-$BE14)*$BC$61*1/$C14)+IF(EC14=0,0,($BG14-$BH14-$BI14)*$BG$61*1/$C14)+IF(ED14=0,0,($BK14-$BL14-$BM14)*$BK$61*1/$C14)+IF(EE14=0,0,($BO14-$BP14-$BQ14)*$BO$61*1/$C14)+IF(EF14=0,0,($BS14-$BT14-$BU14)*$BS$61*1/$C14)+IF(EG14=0,0,($BW14-$BX14-$BY14)*$BW$61*1/$C14)+IF(EH14=0,0,($CA14-$CB14-$CC14)*$CA$61*1/$C14)+IF(EI14=0,0,($CE14-$CF14-$CG14)*$CE$61*1/$C14)+IF(EJ14=0,0,($CI14-$CJ14-$CK14)*$CI$61*1/$C14) -> 0 | EL14: =IF((1-($FH$2-$CM14)/$C14)>0,(1-($FH$2-$CM14)/$C14),0) -> 0 | EM14: =IF((1-($FH$2-EM$2)/$C14)>0,(1-($FH$2-EM$2)/$C14),0) -> 0 | EN14: 0 | EO14: 0 | EP14: 0 | EQ14: 0 | ER14: 0 | ES14: 0 | ET14: 0 | EU14: 0 | EV14: 0 | EW14: =IF((1-($FH$2-EW$2)/$C14)>0,(1-($FH$2-EW$2)/$C14),0) -> 0 | EX14: 0 | EY14: 0 | EZ14: 0 | FA14: 0 | FB14: 0 | FC14: 0 | FD14: 0 | FE14: 0.125 | FF14: 0.375 | FG14: 0.5 | FH14: =IF(EL14=0,0,($D14-$E14)*1/$C14)+IF(EM14=0,0,($G14-$H14-$I14)*$G$61*1/$C14)+IF(EN14=0,0,($K14-$L14-$M14)*$K$61*1/$C14)+IF(EO14=0,0,($O14-$P14-$Q14)*$O$61*1/$C14)+IF(EP14=0,0,($S14-$T14-$U14)*$S$61*1/$C14)+IF(EQ14=0,0,($W14-$X14-$Y14)*$W$61*1/$C14)+IF(ER14=0,0,($AA14-$AB14-$AC14)*$AA$61*1/$C14)+IF(ES14=0,0,($AE14-$AF14-$AG14)*$AE$61*1/$C14)+IF(ET14=0,0,($AI14-$AJ14-$AK14)*$AI$61*1/$C14)+IF(EU14=0,0,($AM14-$AN14-$AO14)*$AM$61*1/$C14)+IF(EV14=0,0,($AQ14-$AR14-$AS14)*$AQ$61*1/$C14)+IF(EW14=0,0,($AU14-$AV14-$AW14)*$AU$61*1/$C14)+IF(EX14=0,0,($AY14-$AZ14-$BA14)*$AY$61*1/$C14)+IF(EY14=0,0,($BC14-$BD14-$BE14)*$BC$61*1/$C14)+IF(EZ14=0,0,($BG14-$BH14-$BI14)*$BG$61*1/$C14)+IF(FA14=0,0,($BK14-$BL14-$BM14)*$BK$61*1/$C14)+IF(FB14=0,0,($BO14-$BP14-$BQ14)*$BO$61*1/$C14)+IF(FC14=0,0,($BS14-$BT14-$BU14)*$BS$61*1/$C14)+IF(FD14=0,0,($BW14-$BX14-$BY14)*$BW$61*1/$C14)+IF(FE14=0,0,($CA14-$CB14-$CC14)*$CA$61*1/$C14)+IF(FF14=0,0,($CE14-$CF14-$CG14)*$CE$61*1/$C14)+IF(FG14=0,0,($CI14-$CJ14-$CK14)*$CI$61*1/$C14) -> 0 | FI14: =IF((1-($GE$2-$CM14)/$C14)>0,(1-($GE$2-$CM14)/$C14),0) -> 0 | FJ14: =IF((1-($GE$2-FJ$2)/$C14)>0,(1-($GE$2-FJ$2)/$C14),0) -> 0 | FK14: 0 | FL14: 0 | FM14: 0 | FN14: 0 | FO14: 0 | FP14: 0 | FQ14: 0 | FR14: 0 | FS14: 0 | FT14: =IF((1-($GE$2-FT$2)/$C14)>0,(1-($GE$2-FT$2)/$C14),0) -> 0 | FU14: 0 | FV14: 0 | FW14: 0 | FX14: 0 | FY14: 0 | FZ14: 0 | GA14: 0 | GB14: 0 | GC14: 0.125 | GD14: 0.25 | GE14: =IF(FI14=0,0,($D14-$E14)*1/$C14)+IF(FJ14=0,0,($G14-$H14-$I14)*$G$61*1/$C14)+IF(FK14=0,0,($K14-$L14-$M14)*$K$61*1/$C14)+IF(FL14=0,0,($O14-$P14-$Q14)*$O$61*1/$C14)+IF(FM14=0,0,($S14-$T14-$U14)*$S$61*1/$C14)+IF(FN14=0,0,($W14-$X14-$Y14)*$W$61*1/$C14)+IF(FO14=0,0,($AA14-$AB14-$AC14)*$AA$61*1/$C14)+IF(FP14=0,0,($AE14-$AF14-$AG14)*$AE$61*1/$C14)+IF(FQ14=0,0,($AI14-$AJ14-$AK14)*$AI$61*1/$C14)+IF(FR14=0,0,($AM14-$AN14-$AO14)*$AM$61*1/$C14)+IF(FS14=0,0,($AQ14-$AR14-$AS14)*$AQ$61*1/$C14)+IF(FT14=0,0,($AU14-$AV14-$AW14)*$AU$61*1/$C14)+IF(FU14=0,0,($AY14-$AZ14-$BA14)*$AY$61*1/$C14)+IF(FV14=0,0,($BC14-$BD14-$BE14)*$BC$61*1/$C14)+IF(FW14=0,0,($BG14-$BH14-$BI14)*$BG$61*1/$C14)+IF(FX14=0,0,($BK14-$BL14-$BM14)*$BK$61*1/$C14)+IF(FY14=0,0,($BO14-$BP14-$BQ14)*$BO$61*1/$C14)+IF(FZ14=0,0,($BS14-$BT14-$BU14)*$BS$61*1/$C14)+IF(GA14=0,0,($BW14-$BX14-$BY14)*$BW$61*1/$C14)+IF(GB14=0,0,($CA14-$CB14-$CC14)*$CA$61*1/$C14)+IF(GC14=0,0,($CE14-$CF14-$CG14)*$CE$61*1/$C14)+IF(GD14=0,0,($CI14-$CJ14-$CK14)*$CI$61*1/$C14) -> 0 | GF14: =IF((1-($HB$2-$CM14)/$C14)>0,(1-($HB$2-$CM14)/$C14),0) -> 0 | GG14: =IF((1-($HB$2-GG$2)/$C14)>0,(1-($HB$2-GG$2)/$C14),0) -> 0 | GH14: 0 | GI14: 0 | GJ14: 0 | GK14: 0 | GL14: 0 | GM14: 0 | GN14: 0 | GO14: 0 | GP14: 0 | GQ14: =IF((1-($HB$2-GQ$2)/$C14)>0,(1-($HB$2-GQ$2)/$C14),0) -> 0 | GR14: 0 | GS14: 0 | GT14: 0 | GU14: 0 | GV14: 0 | GW14: 0 | GX14: 0 | GY14: 0 | GZ14: 0 | HA14: 0 | HB14: =IF(GF14=0,0,($D14-$E14)*1/$C14)+IF(GG14=0,0,($G14-$I14)*$G$61*1/$C14)+IF(GH14=0,0,($K14-$M14)*$K$61*1/$C14)+IF(GI14=0,0,($O14-$Q14)*$O$61*1/$C14)+IF(GJ14=0,0,($S14-$U14)*$S$61*1/$C14)+IF(GK14=0,0,($W14-$Y14)*$W$61*1/$C14)+IF(GL14=0,0,($AA14-$AC14)*$AA$61*1/$C14)+IF(GM14=0,0,($AE14-$AG14)*$AE$61*1/$C14)+IF(GN14=0,0,($AI14-$AK14)*$AI$61*1/$C14)+IF(GO14=0,0,($AM14-$AO14)*$AM$61*1/$C14)+IF(GP14=0,0,($AQ14-$AS14)*$AQ$61*1/$C14)+IF(GQ14=0,0,($AU14-$AW14)*$AU$61*1/$C14)+IF(GR14=0,0,($AY14-$BA14)*$AY$61*1/$C14)+IF(GS14=0,0,($BC14-$BE14)*$BC$61*1/$C14)+IF(GT14=0,0,($BG14-$BI14)*$BG$61*1/$C14)+IF(GU14=0,0,($BK14-$BM14)*$BK$61*1/$C14)+IF(GV14=0,0,($BO14-$BQ14)*$BO$61*1/$C14)+IF(GW14=0,0,($BS14-$BU14)*$BS$61*1/$C14)+IF(GX14=0,0,($BW14-$BY14)*$BW$61*1/$C14)+IF(GY14=0,0,($CA14-$CC14)*$CA$61*1/$C14)+IF(GZ14=0,0,($CE14-$CG14)*$CE$61*1/$C14)+IF(HA14=0,0,($CI14-$CK14)*$CI$61*1/$C14) -> 0
B15: Líneas aéreas AT | C15: 30 | D15: 7006841.955 | E15: 0 | F15: 5589994.199 | G15: 119182 | H15: 0 | I15: 0 | J15: 0 | K15: 2882968 | L15: 0 | M15: 0 | N15: 0 | O15: 0 | P15: 0 | Q15: 0 | R15: 0 | S15: 79197 | T15: 0 | U15: 0 | V15: 0 | W15: 230522.79 | X15: 0 | Y15: 0 | Z15: 0 | AA15: 48300 | AB15: 0 | AC15: 0 | AD15: 0 | AE15: 199372.15 | AF15: 0 | AG15: 0 | AH15: 0 | AI15: 0 | AJ15: 0 | AK15: 0 | AL15: 0 | AM15: 0 | AN15: 0 | AO15: 0 | AP15: 0 | AQ15: 612725.83 | AR15: 0 | AS15: 0 | AT15: 0 | AU15: 85466.62 | AV15: 0 | AW15: 0 | AX15: 0 | AY15: 16420.61 | AZ15: 0 | BA15: 0 | BB15: 0 | BC15: 852.62 | BD15: 0 | BE15: 0 | BF15: 0 | BG15: 7511270.5 | BH15: 0 | BI15: 0 | BJ15: 0 | BK15: 0 | BL15: 0 | BM15: 0 | BN15: 0 | BO15: 4108427.82 | BP15: 0 | BQ15: 0 | BR15: 0 | BS15: 3776393.97 | BT15: 0 | BU15: 0 | BV15: 0 | BW15: 18045.36 | BX15: 0 | BY15: 0 | BZ15: 0 | CA15: 34140.38 | CB15: 0 | CC15: 0 | CD15: 0 | CE15: 0 | CF15: 0 | CG15: 0 | CH15: 0 | CI15: 0 | CJ15: 0 | CK15: 0 | CL15: 0 | CM15: =IF(D15=0,0,2001-(D15-F15)*C15/D15) -> 1994.933725 | CN15: =IF((1-($DJ$2-$CM15)/$C15)>0,(1-($DJ$2-$CM15)/$C15),0) -> 0.1144574882 | CO15: =IF((1-($DJ$2-G$2)/$C15)>0,(1-($DJ$2-G$2)/$C15),0) -> 0.35 | CP15: =IF((1-($DJ$2-K$2)/$C15)>0,(1-($DJ$2-K$2)/$C15),0) -> 0.3833333333 | CQ15: =IF((1-($DJ$2-O$2)/$C15)>0,(1-($DJ$2-O$2)/$C15),0) -> 0.4166666667 | CR15: =IF((1-($DJ$2-S$2)/$C15)>0,(1-($DJ$2-S$2)/$C15),0) -> 0.45 | CS15: =IF((1-($DJ$2-W$2)/$C15)>0,(1-($DJ$2-W$2)/$C15),0) -> 0.4833333333 | CT15: =IF((1-($DJ$2-AA$2)/$C15)>0,(1-($DJ$2-AA$2)/$C15),0) -> 0.5166666667 | CU15: =IF((1-($DJ$2-AE$2)/$C15)>0,(1-($DJ$2-AE$2)/$C15),0) -> 0.55 | CV15: =IF((1-($DJ$2-AI$2)/$C15)>0,(1-($DJ$2-AI$2)/$C15),0) -> 0.5833333333 | CW15: =IF((1-($DJ$2-AM$2)/$C15)>0,(1-($DJ$2-AM$2)/$C15),0) -> 0.6166666667 | CX15: =IF((1-($DJ$2-AQ$2)/$C15)>0,(1-($DJ$2-AQ$2)/$C15),0) -> 0.65 | CY15: =IF((1-($DJ$2-AU$2)/$C15)>0,(1-($DJ$2-AU$2)/$C15),0) -> 0.6833333333 | CZ15: =IF((1-($DJ$2-AY$2)/$C15)>0,(1-($DJ$2-AY$2)/$C15),0) -> 0.7166666667 | DA15: =IF((1-($DJ$2-BC$2)/$C15)>0,(1-($DJ$2-BC$2)/$C15),0) -> 0.75 | DB15: =IF((1-($DJ$2-BG$2)/$C15)>0,(1-($DJ$2-BG$2)/$C15),0) -> 0.7833333333 | DC15: =IF((1-($DJ$2-BK$2)/$C15)>0,(1-($DJ$2-BK$2)/$C15),0) -> 0.8166666667 | DD15: =IF((1-($DJ$2-BO$2)/$C15)>0,(1-($DJ$2-BO$2)/$C15),0) -> 0.85 | DE15: =IF((1-($DJ$2-BS$2)/$C15)>0,(1-($DJ$2-BS$2)/$C15),0) -> 0.8833333333 | DF15: =IF((1-($DJ$2-BW$2)/$C15)>0,(1-($DJ$2-BW$2)/$C15),0) -> 0.9166666667 | DG15: =IF((1-($DJ$2-CA$2)/$C15)>0,(1-($DJ$2-CA$2)/$C15),0) -> 0.95 | DH15: =IF((1-($DJ$2-CE$2)/$C15)>0,(1-($DJ$2-CE$2)/$C15),0) -> 0.9833333333 | DI15: =IF((1-($DJ$2-CI$2)/$C15)>0,(1-($DJ$2-CI$2)/$C15),0) -> 1 | DJ15: =IF(CN15=0,0,($D15-$E15)*1/$C15)+IF(CO15=0,0,($G15-$H15-$I15)*$G$61*1/$C15)+IF(CP15=0,0,($K15-$L15-$M15)*$K$61*1/$C15)+IF(CQ15=0,0,($O15-$P15-$Q15)*$O$61*1/$C15)+IF(CR15=0,0,($S15-$T15-$U15)*$S$61*1/$C15)+IF(CS15=0,0,($W15-$X15-$Y15)*$W$61*1/$C15)+IF(CT15=0,0,($AA15-$AB15-$AC15)*$AA$61*1/$C15)+IF(CU15=0,0,($AE15-$AF15-$AG15)*$AE$61*1/$C15)+IF(CV15=0,0,($AI15-$AJ15-$AK15)*$AI$61*1/$C15)+IF(CW15=0,0,($AM15-$AN15-$AO15)*$AM$61*1/$C15)+IF(CX15=0,0,($AQ15-$AR15-$AS15)*$AQ$61*1/$C15)+IF(CY15=0,0,($AU15-$AV15-$AW15)*$AU$61*1/$C15)+IF(CZ15=0,0,($AY15-$AZ15-$BA15)*$AY$61*1/$C15)+IF(DA15=0,0,($BC15-$BD15-$BE15)*$BC$61*1/$C15)+IF(DB15=0,0,($BG15-$BH15-$BI15)*$BG$61*1/$C15)+IF(DC15=0,0,($BK15-$BL15-$BM15)*$BK$61*1/$C15)+IF(DD15=0,0,($BO15-$BP15-$BQ15)*$BO$61*1/$C15)+IF(DE15=0,0,($BS15-$BT15-$BU15)*$BS$61*1/$C15)+IF(DF15=0,0,($BW15-$BX15-$BY15)*$BW$61*1/$C15)+IF(DG15=0,0,($CA15-$CB15-$CC15)*$CA$61*1/$C15)+IF(DH15=0,0,($CE15-$CF15-$CG15)*$CE$61*1/$C15)+IF(DI15=0,0,($CI15-$CJ15-$CK15)*$CI$61*1/$C15) -> 815049.385 | DK15: 24451481.55 | DL15: 0 | DM15: =(D15-E15)*CN15+((G15-H15-(I15-J15))*G$61)*CO15+((K15-L15-(M15-N15))*K$61)*CP15+((O15-P15-(Q15-R15))*O$61)*CQ15+((S15-T15-(U15-V15))*S$61)*CR15+((W15-X15-(Y15-Z15))*W$61)*CS15+((AA15-AB15-(AC15-AD15))*AA$61)*CT15+((AE15-AF15-(AG15-AH15))*AE$61)*CU15+((AI15-AJ15-(AK15-AL15))*AI$61)*CV15+((AM15-AN15-(AO15-AP15))*$AM$61)*CW15+((AQ15-AR15-(AS15-AT15))*$AQ$61)*CX15+((AU15-AV15-(AW15-AX15))*$AU$61)*CY15+((AY15-AZ15-(BA15-BB15))*$AY$61)*CZ15+((BC15-BD15-(BE15-BF15))*$BC$61)*DA15+((BG15-BH15-(BI15-BJ15))*$BG$61)*DB15+((BK15-BL15-(BM15-BN15))*$BK$61)*DC15+((BO15-BP15-(BQ15-BR15))*$BO$61)*DD15+((BS15-BT15-(BU15-BV15))*$BS$61)*DE15+((BW15-BX15-(BY15-BZ15))*$BW$61)*DF15+((CA15-CB15-(CC15-CD15))*$CA$61)*DG15+((CE15-CF15-(CG15-CH15))*$CE$61)*DH15+((CI15-CJ15-(CK15-CL15))*$CI$61)*DI15 -> 13746893.97 | DN15: =(DK15-DL15)*1/C15 -> 815049.385 | DO15: =IF((1-($EK$2-$CM15)/$C15)>0,(1-($EK$2-$CM15)/$C15),0) -> 0.08112415487 | DP15: 0.3166666667 | DQ15: 0.35 | DR15: 0.3833333333 | DS15: 0.4166666667 | DT15: 0.45 | DU15: 0.4833333333 | DV15: 0.5166666667 | DW15: 0.55 | DX15: 0.5833333333 | DY15: 0.6166666667 | DZ15: 0.65 | EA15: 0.6833333333 | EB15: 0.7166666667 | EC15: 0.75 | ED15: 0.7833333333 | EE15: 0.8166666667 | EF15: 0.85 | EG15: 0.8833333333 | EH15: 0.9166666667 | EI15: 0.95 | EJ15: 0.9666666667 | EK15: =IF(DO15=0,0,($D15-$E15)*1/$C15)+IF(DP15=0,0,($G15-$H15-$I15)*$G$61*1/$C15)+IF(DQ15=0,0,($K15-$L15-$M15)*$K$61*1/$C15)+IF(DR15=0,0,($O15-$P15-$Q15)*$O$61*1/$C15)+IF(DS15=0,0,($S15-$T15-$U15)*$S$61*1/$C15)+IF(DT15=0,0,($W15-$X15-$Y15)*$W$61*1/$C15)+IF(DU15=0,0,($AA15-$AB15-$AC15)*$AA$61*1/$C15)+IF(DV15=0,0,($AE15-$AF15-$AG15)*$AE$61*1/$C15)+IF(DW15=0,0,($AI15-$AJ15-$AK15)*$AI$61*1/$C15)+IF(DX15=0,0,($AM15-$AN15-$AO15)*$AM$61*1/$C15)+IF(DY15=0,0,($AQ15-$AR15-$AS15)*$AQ$61*1/$C15)+IF(DZ15=0,0,($AU15-$AV15-$AW15)*$AU$61*1/$C15)+IF(EA15=0,0,($AY15-$AZ15-$BA15)*$AY$61*1/$C15)+IF(EB15=0,0,($BC15-$BD15-$BE15)*$BC$61*1/$C15)+IF(EC15=0,0,($BG15-$BH15-$BI15)*$BG$61*1/$C15)+IF(ED15=0,0,($BK15-$BL15-$BM15)*$BK$61*1/$C15)+IF(EE15=0,0,($BO15-$BP15-$BQ15)*$BO$61*1/$C15)+IF(EF15=0,0,($BS15-$BT15-$BU15)*$BS$61*1/$C15)+IF(EG15=0,0,($BW15-$BX15-$BY15)*$BW$61*1/$C15)+IF(EH15=0,0,($CA15-$CB15-$CC15)*$CA$61*1/$C15)+IF(EI15=0,0,($CE15-$CF15-$CG15)*$CE$61*1/$C15)+IF(EJ15=0,0,($CI15-$CJ15-$CK15)*$CI$61*1/$C15) -> 815049.385 | EL15: =IF((1-($FH$2-$CM15)/$C15)>0,(1-($FH$2-$CM15)/$C15),0) -> 0.04779082154 | EM15: 0.2833333333 | EN15: 0.3166666667 | EO15: 0.35 | EP15: 0.3833333333 | EQ15: 0.4166666667 | ER15: 0.45 | ES15: 0.4833333333 | ET15: 0.5166666667 | EU15: 0.55 | EV15: 0.5833333333 | EW15: 0.6166666667 | EX15: 0.65 | EY15: 0.6833333333 | EZ15: 0.7166666667 | FA15: 0.75 | FB15: 0.7833333333 | FC15: 0.8166666667 | FD15: 0.85 | FE15: 0.8833333333 | FF15: 0.9166666667 | FG15: 0.9333333333 | FH15: =IF(EL15=0,0,($D15-$E15)*1/$C15)+IF(EM15=0,0,($G15-$H15-$I15)*$G$61*1/$C15)+IF(EN15=0,0,($K15-$L15-$M15)*$K$61*1/$C15)+IF(EO15=0,0,($O15-$P15-$Q15)*$O$61*1/$C15)+IF(EP15=0,0,($S15-$T15-$U15)*$S$61*1/$C15)+IF(EQ15=0,0,($W15-$X15-$Y15)*$W$61*1/$C15)+IF(ER15=0,0,($AA15-$AB15-$AC15)*$AA$61*1/$C15)+IF(ES15=0,0,($AE15-$AF15-$AG15)*$AE$61*1/$C15)+IF(ET15=0,0,($AI15-$AJ15-$AK15)*$AI$61*1/$C15)+IF(EU15=0,0,($AM15-$AN15-$AO15)*$AM$61*1/$C15)+IF(EV15=0,0,($AQ15-$AR15-$AS15)*$AQ$61*1/$C15)+IF(EW15=0,0,($AU15-$AV15-$AW15)*$AU$61*1/$C15)+IF(EX15=0,0,($AY15-$AZ15-$BA15)*$AY$61*1/$C15)+IF(EY15=0,0,($BC15-$BD15-$BE15)*$BC$61*1/$C15)+IF(EZ15=0,0,($BG15-$BH15-$BI15)*$BG$61*1/$C15)+IF(FA15=0,0,($BK15-$BL15-$BM15)*$BK$61*1/$C15)+IF(FB15=0,0,($BO15-$BP15-$BQ15)*$BO$61*1/$C15)+IF(FC15=0,0,($BS15-$BT15-$BU15)*$BS$61*1/$C15)+IF(FD15=0,0,($BW15-$BX15-$BY15)*$BW$61*1/$C15)+IF(FE15=0,0,($CA15-$CB15-$CC15)*$CA$61*1/$C15)+IF(FF15=0,0,($CE15-$CF15-$CG15)*$CE$61*1/$C15)+IF(FG15=0,0,($CI15-$CJ15-$CK15)*$CI$61*1/$C15) -> 815049.385 | FI15: =IF((1-($GE$2-$CM15)/$C15)>0,(1-($GE$2-$CM15)/$C15),0) -> 0.0144574882 | FJ15: 0.25 | FK15: 0.2833333333 | FL15: 0.3166666667 | FM15: 0.35 | FN15: 0.3833333333 | FO15: 0.4166666667 | FP15: 0.45 | FQ15: 0.4833333333 | FR15: 0.5166666667 | FS15: 0.55 | FT15: 0.5833333333 | FU15: 0.6166666667 | FV15: 0.65 | FW15: 0.6833333333 | FX15: 0.7166666667 | FY15: 0.75 | FZ15: 0.7833333333 | GA15: 0.8166666667 | GB15: 0.85 | GC15: 0.8833333333 | GD15: 0.9 | GE15: =IF(FI15=0,0,($D15-$E15)*1/$C15)+IF(FJ15=0,0,($G15-$H15-$I15)*$G$61*1/$C15)+IF(FK15=0,0,($K15-$L15-$M15)*$K$61*1/$C15)+IF(FL15=0,0,($O15-$P15-$Q15)*$O$61*1/$C15)+IF(FM15=0,0,($S15-$T15-$U15)*$S$61*1/$C15)+IF(FN15=0,0,($W15-$X15-$Y15)*$W$61*1/$C15)+IF(FO15=0,0,($AA15-$AB15-$AC15)*$AA$61*1/$C15)+IF(FP15=0,0,($AE15-$AF15-$AG15)*$AE$61*1/$C15)+IF(FQ15=0,0,($AI15-$AJ15-$AK15)*$AI$61*1/$C15)+IF(FR15=0,0,($AM15-$AN15-$AO15)*$AM$61*1/$C15)+IF(FS15=0,0,($AQ15-$AR15-$AS15)*$AQ$61*1/$C15)+IF(FT15=0,0,($AU15-$AV15-$AW15)*$AU$61*1/$C15)+IF(FU15=0,0,($AY15-$AZ15-$BA15)*$AY$61*1/$C15)+IF(FV15=0,0,($BC15-$BD15-$BE15)*$BC$61*1/$C15)+IF(FW15=0,0,($BG15-$BH15-$BI15)*$BG$61*1/$C15)+IF(FX15=0,0,($BK15-$BL15-$BM15)*$BK$61*1/$C15)+IF(FY15=0,0,($BO15-$BP15-$BQ15)*$BO$61*1/$C15)+IF(FZ15=0,0,($BS15-$BT15-$BU15)*$BS$61*1/$C15)+IF(GA15=0,0,($BW15-$BX15-$BY15)*$BW$61*1/$C15)+IF(GB15=0,0,($CA15-$CB15-$CC15)*$CA$61*1/$C15)+IF(GC15=0,0,($CE15-$CF15-$CG15)*$CE$61*1/$C15)+IF(GD15=0,0,($CI15-$CJ15-$CK15)*$CI$61*1/$C15) -> 815049.385 | GF15: =IF((1-($HB$2-$CM15)/$C15)>0,(1-($HB$2-$CM15)/$C15),0) -> 0 | GG15: 0.2166666667 | GH15: 0.25 | GI15: 0.2833333333 | GJ15: 0.3166666667 | GK15: 0.35 | GL15: 0.3833333333 | GM15: 0.4166666667 | GN15: 0.45 | GO15: 0.4833333333 | GP15: 0.5166666667 | GQ15: 0.55 | GR15: 0.5833333333 | GS15: 0.6166666667 | GT15: 0.65 | GU15: 0.6833333333 | GV15: 0.7166666667 | GW15: 0.75 | GX15: 0.7833333333 | GY15: 0.8166666667 | GZ15: 0.85 | HA15: 0.8666666667 | HB15: =IF(GF15=0,0,($D15-$E15)*1/$C15)+IF(GG15=0,0,($G15-$I15)*$G$61*1/$C15)+IF(GH15=0,0,($K15-$M15)*$K$61*1/$C15)+IF(GI15=0,0,($O15-$Q15)*$O$61*1/$C15)+IF(GJ15=0,0,($S15-$U15)*$S$61*1/$C15)+IF(GK15=0,0,($W15-$Y15)*$W$61*1/$C15)+IF(GL15=0,0,($AA15-$AC15)*$AA$61*1/$C15)+IF(GM15=0,0,($AE15-$AG15)*$AE$61*1/$C15)+IF(GN15=0,0,($AI15-$AK15)*$AI$61*1/$C15)+IF(GO15=0,0,($AM15-$AO15)*$AM$61*1/$C15)+IF(GP15=0,0,($AQ15-$AS15)*$AQ$61*1/$C15)+IF(GQ15=0,0,($AU15-$AW15)*$AU$61*1/$C15)+IF(GR15=0,0,($AY15-$BA15)*$AY$61*1/$C15)+IF(GS15=0,0,($BC15-$BE15)*$BC$61*1/$C15)+IF(GT15=0,0,($BG15-$BI15)*$BG$61*1/$C15)+IF(GU15=0,0,($BK15-$BM15)*$BK$61*1/$C15)+IF(GV15=0,0,($BO15-$BQ15)*$BO$61*1/$C15)+IF(GW15=0,0,($BS15-$BU15)*$BS$61*1/$C15)+IF(GX15=0,0,($BW15-$BY15)*$BW$61*1/$C15)+IF(GY15=0,0,($CA15-$CC15)*$CA$61*1/$C15)+IF(GZ15=0,0,($CE15-$CG15)*$CE$61*1/$C15)+IF(HA15=0,0,($CI15-$CK15)*$CI$61*1/$C15) -> 581487.9865
B16: Líneas subterráneas AT | C16: 30 | D16: 6489975.156 | E16: 0 | F16: 5855328.852 | G16: 0 | H16: 0 | I16: 0 | J16: 0 | K16: 0 | L16: 0 | M16: 0 | N16: 0 | O16: 0 | P16: 0 | Q16: 0 | R16: 0 | S16: 0 | T16: 0 | U16: 0 | V16: 0 | W16: 0 | X16: 0 | Y16: 0 | Z16: 0 | AA16: 0 | AB16: 0 | AC16: 0 | AD16: 0 | AE16: 0 | AF16: 0 | AG16: 0 | AH16: 0 | AI16: 0 | AJ16: 0 | AK16: 0 | AL16: 0 | AM16: 0 | AN16: 0 | AO16: 0 | AP16: 0 | AQ16: 0 | AR16: 0 | AS16: 0 | AT16: 0 | AU16: 0 | AV16: 0 | AW16: 0 | AX16: 0 | AY16: 4451477.04 | AZ16: 0 | BA16: 0 | BB16: 0 | BC16: 7685196.6 | BD16: 0 | BE16: 0 | BF16: 0 | BG16: 780.38 | BH16: 0 | BI16: 0 | BJ16: 0 | BK16: 0 | BL16: 0 | BM16: 0 | BN16: 0 | BO16: 0 | BP16: 0 | BQ16: 0 | BR16: 0 | BS16: 8783620.27 | BT16: 0 | BU16: 0 | BV16: 0 | BW16: 52088.19 | BX16: 0 | BY16: 0 | BZ16: 0 | CA16: 852652.38 | CB16: 0 | CC16: 0 | CD16: 0 | CE16: 10959.23 | CF16: 0 | CG16: 0 | CH16: 0 | CI16: 0 | CJ16: 0 | CK16: 0 | CL16: 0 | CM16: =IF(D16=0,0,2001-(D16-F16)*C16/D16) -> 1998.066339 | CN16: =IF((1-($DJ$2-$CM16)/$C16)>0,(1-($DJ$2-$CM16)/$C16),0) -> 0.2188779558 | CO16: =IF((1-($DJ$2-G$2)/$C16)>0,(1-($DJ$2-G$2)/$C16),0) -> 0.35 | CP16: =IF((1-($DJ$2-K$2)/$C16)>0,(1-($DJ$2-K$2)/$C16),0) -> 0.3833333333 | CQ16: =IF((1-($DJ$2-O$2)/$C16)>0,(1-($DJ$2-O$2)/$C16),0) -> 0.4166666667 | CR16: =IF((1-($DJ$2-S$2)/$C16)>0,(1-($DJ$2-S$2)/$C16),0) -> 0.45 | CS16: =IF((1-($DJ$2-W$2)/$C16)>0,(1-($DJ$2-W$2)/$C16),0) -> 0.4833333333 | CT16: =IF((1-($DJ$2-AA$2)/$C16)>0,(1-($DJ$2-AA$2)/$C16),0) -> 0.5166666667 | CU16: =IF((1-($DJ$2-AE$2)/$C16)>0,(1-($DJ$2-AE$2)/$C16),0) -> 0.55 | CV16: =IF((1-($DJ$2-AI$2)/$C16)>0,(1-($DJ$2-AI$2)/$C16),0) -> 0.5833333333 | CW16: =IF((1-($DJ$2-AM$2)/$C16)>0,(1-($DJ$2-AM$2)/$C16),0) -> 0.6166666667 | CX16: =IF((1-($DJ$2-AQ$2)/$C16)>0,(1-($DJ$2-AQ$2)/$C16),0) -> 0.65 | CY16: =IF((1-($DJ$2-AU$2)/$C16)>0,(1-($DJ$2-AU$2)/$C16),0) -> 0.6833333333 | CZ16: =IF((1-($DJ$2-AY$2)/$C16)>0,(1-($DJ$2-AY$2)/$C16),0) -> 0.7166666667 | DA16: =IF((1-($DJ$2-BC$2)/$C16)>0,(1-($DJ$2-BC$2)/$C16),0) -> 0.75 | DB16: =IF((1-($DJ$2-BG$2)/$C16)>0,(1-($DJ$2-BG$2)/$C16),0) -> 0.7833333333 | DC16: =IF((1-($DJ$2-BK$2)/$C16)>0,(1-($DJ$2-BK$2)/$C16),0) -> 0.8166666667 | DD16: =IF((1-($DJ$2-BO$2)/$C16)>0,(1-($DJ$2-BO$2)/$C16),0) -> 0.85 | DE16: =IF((1-($DJ$2-BS$2)/$C16)>0,(1-($DJ$2-BS$2)/$C16),0) -> 0.8833333333 | DF16: =IF((1-($DJ$2-BW$2)/$C16)>0,(1-($DJ$2-BW$2)/$C16),0) -> 0.9166666667 | DG16: =IF((1-($DJ$2-CA$2)/$C16)>0,(1-($DJ$2-CA$2)/$C16),0) -> 0.95 | DH16: =IF((1-($DJ$2-CE$2)/$C16)>0,(1-($DJ$2-CE$2)/$C16),0) -> 0.9833333333 | DI16: =IF((1-($DJ$2-CI$2)/$C16)>0,(1-($DJ$2-CI$2)/$C16),0) -> 1 | DJ16: =IF(CN16=0,0,($D16-$E16)*1/$C16)+IF(CO16=0,0,($G16-$H16-$I16)*$G$61*1/$C16)+IF(CP16=0,0,($K16-$L16-$M16)*$K$61*1/$C16)+IF(CQ16=0,0,($O16-$P16-$Q16)*$O$61*1/$C16)+IF(CR16=0,0,($S16-$T16-$U16)*$S$61*1/$C16)+IF(CS16=0,0,($W16-$X16-$Y16)*$W$61*1/$C16)+IF(CT16=0,0,($AA16-$AB16-$AC16)*$AA$61*1/$C16)+IF(CU16=0,0,($AE16-$AF16-$AG16)*$AE$61*1/$C16)+IF(CV16=0,0,($AI16-$AJ16-$AK16)*$AI$61*1/$C16)+IF(CW16=0,0,($AM16-$AN16-$AO16)*$AM$61*1/$C16)+IF(CX16=0,0,($AQ16-$AR16-$AS16)*$AQ$61*1/$C16)+IF(CY16=0,0,($AU16-$AV16-$AW16)*$AU$61*1/$C16)+IF(CZ16=0,0,($AY16-$AZ16-$BA16)*$AY$61*1/$C16)+IF(DA16=0,0,($BC16-$BD16-$BE16)*$BC$61*1/$C16)+IF(DB16=0,0,($BG16-$BH16-$BI16)*$BG$61*1/$C16)+IF(DC16=0,0,($BK16-$BL16-$BM16)*$BK$61*1/$C16)+IF(DD16=0,0,($BO16-$BP16-$BQ16)*$BO$61*1/$C16)+IF(DE16=0,0,($BS16-$BT16-$BU16)*$BS$61*1/$C16)+IF(DF16=0,0,($BW16-$BX16-$BY16)*$BW$61*1/$C16)+IF(DG16=0,0,($CA16-$CB16-$CC16)*$CA$61*1/$C16)+IF(DH16=0,0,($CE16-$CF16-$CG16)*$CE$61*1/$C16)+IF(DI16=0,0,($CI16-$CJ16-$CK16)*$CI$61*1/$C16) -> 864776.0235 | DK16: 25943280.71 | DL16: 0 | DM16: =(D16-E16)*CN16+((G16-H16-(I16-J16))*G$61)*CO16+((K16-L16-(M16-N16))*K$61)*CP16+((O16-P16-(Q16-R16))*O$61)*CQ16+((S16-T16-(U16-V16))*S$61)*CR16+((W16-X16-(Y16-Z16))*W$61)*CS16+((AA16-AB16-(AC16-AD16))*AA$61)*CT16+((AE16-AF16-(AG16-AH16))*AE$61)*CU16+((AI16-AJ16-(AK16-AL16))*AI$61)*CV16+((AM16-AN16-(AO16-AP16))*$AM$61)*CW16+((AQ16-AR16-(AS16-AT16))*$AQ$61)*CX16+((AU16-AV16-(AW16-AX16))*$AU$61)*CY16+((AY16-AZ16-(BA16-BB16))*$AY$61)*CZ16+((BC16-BD16-(BE16-BF16))*$BC$61)*DA16+((BG16-BH16-(BI16-BJ16))*$BG$61)*DB16+((BK16-BL16-(BM16-BN16))*$BK$61)*DC16+((BO16-BP16-(BQ16-BR16))*$BO$61)*DD16+((BS16-BT16-(BU16-BV16))*$BS$61)*DE16+((BW16-BX16-(BY16-BZ16))*$BW$61)*DF16+((CA16-CB16-(CC16-CD16))*$CA$61)*DG16+((CE16-CF16-(CG16-CH16))*$CE$61)*DH16+((CI16-CJ16-(CK16-CL16))*$CI$61)*DI16 -> 17079896.6 | DN16: =(DK16-DL16)*1/C16 -> 864776.0235 | DO16: =IF((1-($EK$2-$CM16)/$C16)>0,(1-($EK$2-$CM16)/$C16),0) -> 0.1855446225 | DP16: 0.3166666667 | DQ16: 0.35 | DR16: 0.3833333333 | DS16: 0.4166666667 | DT16: 0.45 | DU16: 0.4833333333 | DV16: 0.5166666667 | DW16: 0.55 | DX16: 0.5833333333 | DY16: 0.6166666667 | DZ16: 0.65 | EA16: 0.6833333333 | EB16: 0.7166666667 | EC16: 0.75 | ED16: 0.7833333333 | EE16: 0.8166666667 | EF16: 0.85 | EG16: 0.8833333333 | EH16: 0.9166666667 | EI16: 0.95 | EJ16: 0.9666666667 | EK16: =IF(DO16=0,0,($D16-$E16)*1/$C16)+IF(DP16=0,0,($G16-$H16-$I16)*$G$61*1/$C16)+IF(DQ16=0,0,($K16-$L16-$M16)*$K$61*1/$C16)+IF(DR16=0,0,($O16-$P16-$Q16)*$O$61*1/$C16)+IF(DS16=0,0,($S16-$T16-$U16)*$S$61*1/$C16)+IF(DT16=0,0,($W16-$X16-$Y16)*$W$61*1/$C16)+IF(DU16=0,0,($AA16-$AB16-$AC16)*$AA$61*1/$C16)+IF(DV16=0,0,($AE16-$AF16-$AG16)*$AE$61*1/$C16)+IF(DW16=0,0,($AI16-$AJ16-$AK16)*$AI$61*1/$C16)+IF(DX16=0,0,($AM16-$AN16-$AO16)*$AM$61*1/$C16)+IF(DY16=0,0,($AQ16-$AR16-$AS16)*$AQ$61*1/$C16)+IF(DZ16=0,0,($AU16-$AV16-$AW16)*$AU$61*1/$C16)+IF(EA16=0,0,($AY16-$AZ16-$BA16)*$AY$61*1/$C16)+IF(EB16=0,0,($BC16-$BD16-$BE16)*$BC$61*1/$C16)+IF(EC16=0,0,($BG16-$BH16-$BI16)*$BG$61*1/$C16)+IF(ED16=0,0,($BK16-$BL16-$BM16)*$BK$61*1/$C16)+IF(EE16=0,0,($BO16-$BP16-$BQ16)*$BO$61*1/$C16)+IF(EF16=0,0,($BS16-$BT16-$BU16)*$BS$61*1/$C16)+IF(EG16=0,0,($BW16-$BX16-$BY16)*$BW$61*1/$C16)+IF(EH16=0,0,($CA16-$CB16-$CC16)*$CA$61*1/$C16)+IF(EI16=0,0,($CE16-$CF16-$CG16)*$CE$61*1/$C16)+IF(EJ16=0,0,($CI16-$CJ16-$CK16)*$CI$61*1/$C16) -> 864776.0235 | EL16: =IF((1-($FH$2-$CM16)/$C16)>0,(1-($FH$2-$CM16)/$C16),0) -> 0.1522112891 | EM16: 0.2833333333 | EN16: 0.3166666667 | EO16: 0.35 | EP16: 0.3833333333 | EQ16: 0.4166666667 | ER16: 0.45 | ES16: 0.4833333333 | ET16: 0.5166666667 | EU16: 0.55 | EV16: 0.5833333333 | EW16: 0.6166666667 | EX16: 0.65 | EY16: 0.6833333333 | EZ16: 0.7166666667 | FA16: 0.75 | FB16: 0.7833333333 | FC16: 0.8166666667 | FD16: 0.85 | FE16: 0.8833333333 | FF16: 0.9166666667 | FG16: 0.9333333333 | FH16: =IF(EL16=0,0,($D16-$E16)*1/$C16)+IF(EM16=0,0,($G16-$H16-$I16)*$G$61*1/$C16)+IF(EN16=0,0,($K16-$L16-$M16)*$K$61*1/$C16)+IF(EO16=0,0,($O16-$P16-$Q16)*$O$61*1/$C16)+IF(EP16=0,0,($S16-$T16-$U16)*$S$61*1/$C16)+IF(EQ16=0,0,($W16-$X16-$Y16)*$W$61*1/$C16)+IF(ER16=0,0,($AA16-$AB16-$AC16)*$AA$61*1/$C16)+IF(ES16=0,0,($AE16-$AF16-$AG16)*$AE$61*1/$C16)+IF(ET16=0,0,($AI16-$AJ16-$AK16)*$AI$61*1/$C16)+IF(EU16=0,0,($AM16-$AN16-$AO16)*$AM$61*1/$C16)+IF(EV16=0,0,($AQ16-$AR16-$AS16)*$AQ$61*1/$C16)+IF(EW16=0,0,($AU16-$AV16-$AW16)*$AU$61*1/$C16)+IF(EX16=0,0,($AY16-$AZ16-$BA16)*$AY$61*1/$C16)+IF(EY16=0,0,($BC16-$BD16-$BE16)*$BC$61*1/$C16)+IF(EZ16=0,0,($BG16-$BH16-$BI16)*$BG$61*1/$C16)+IF(FA16=0,0,($BK16-$BL16-$BM16)*$BK$61*1/$C16)+IF(FB16=0,0,($BO16-$BP16-$BQ16)*$BO$61*1/$C16)+IF(FC16=0,0,($BS16-$BT16-$BU16)*$BS$61*1/$C16)+IF(FD16=0,0,($BW16-$BX16-$BY16)*$BW$61*1/$C16)+IF(FE16=0,0,($CA16-$CB16-$CC16)*$CA$61*1/$C16)+IF(FF16=0,0,($CE16-$CF16-$CG16)*$CE$61*1/$C16)+IF(FG16=0,0,($CI16-$CJ16-$CK16)*$CI$61*1/$C16) -> 864776.0235 | FI16: =IF((1-($GE$2-$CM16)/$C16)>0,(1-($GE$2-$CM16)/$C16),0) -> 0.1188779558 | FJ16: 0.25 | FK16: 0.2833333333 | FL16: 0.3166666667 | FM16: 0.35 | FN16: 0.3833333333 | FO16: 0.4166666667 | FP16: 0.45 | FQ16: 0.4833333333 | FR16: 0.5166666667 | FS16: 0.55 | FT16: 0.5833333333 | FU16: 0.6166666667 | FV16: 0.65 | FW16: 0.6833333333 | FX16: 0.7166666667 | FY16: 0.75 | FZ16: 0.7833333333 | GA16: 0.8166666667 | GB16: 0.85 | GC16: 0.8833333333 | GD16: 0.9 | GE16: =IF(FI16=0,0,($D16-$E16)*1/$C16)+IF(FJ16=0,0,($G16-$H16-$I16)*$G$61*1/$C16)+IF(FK16=0,0,($K16-$L16-$M16)*$K$61*1/$C16)+IF(FL16=0,0,($O16-$P16-$Q16)*$O$61*1/$C16)+IF(FM16=0,0,($S16-$T16-$U16)*$S$61*1/$C16)+IF(FN16=0,0,($W16-$X16-$Y16)*$W$61*1/$C16)+IF(FO16=0,0,($AA16-$AB16-$AC16)*$AA$61*1/$C16)+IF(FP16=0,0,($AE16-$AF16-$AG16)*$AE$61*1/$C16)+IF(FQ16=0,0,($AI16-$AJ16-$AK16)*$AI$61*1/$C16)+IF(FR16=0,0,($AM16-$AN16-$AO16)*$AM$61*1/$C16)+IF(FS16=0,0,($AQ16-$AR16-$AS16)*$AQ$61*1/$C16)+IF(FT16=0,0,($AU16-$AV16-$AW16)*$AU$61*1/$C16)+IF(FU16=0,0,($AY16-$AZ16-$BA16)*$AY$61*1/$C16)+IF(FV16=0,0,($BC16-$BD16-$BE16)*$BC$61*1/$C16)+IF(FW16=0,0,($BG16-$BH16-$BI16)*$BG$61*1/$C16)+IF(FX16=0,0,($BK16-$BL16-$BM16)*$BK$61*1/$C16)+IF(FY16=0,0,($BO16-$BP16-$BQ16)*$BO$61*1/$C16)+IF(FZ16=0,0,($BS16-$BT16-$BU16)*$BS$61*1/$C16)+IF(GA16=0,0,($BW16-$BX16-$BY16)*$BW$61*1/$C16)+IF(GB16=0,0,($CA16-$CB16-$CC16)*$CA$61*1/$C16)+IF(GC16=0,0,($CE16-$CF16-$CG16)*$CE$61*1/$C16)+IF(GD16=0,0,($CI16-$CJ16-$CK16)*$CI$61*1/$C16) -> 864776.0235 | GF16: =IF((1-($HB$2-$CM16)/$C16)>0,(1-($HB$2-$CM16)/$C16),0) -> 0.08554462246 | GG16: 0.2166666667 | GH16: 0.25 | GI16: 0.2833333333 | GJ16: 0.3166666667 | GK16: 0.35 | GL16: 0.3833333333 | GM16: 0.4166666667 | GN16: 0.45 | GO16: 0.4833333333 | GP16: 0.5166666667 | GQ16: 0.55 | GR16: 0.5833333333 | GS16: 0.6166666667 | GT16: 0.65 | GU16: 0.6833333333 | GV16: 0.7166666667 | GW16: 0.75 | GX16: 0.7833333333 | GY16: 0.8166666667 | GZ16: 0.85 | HA16: 0.8666666667 | HB16: 864776.0235
B17: Subestaciones AT / MT | C17: 30 | D17: 33255150.39 | E17: 0 | F17: 26361854.02 | G17: 422069.56 | H17: 0 | I17: 0 | J17: 0 | K17: 214419 | L17: 0 | M17: 0 | N17: 0 | O17: 1670123 | P17: 0 | Q17: 0 | R17: 0 | S17: 1407324.76 | T17: 0 | U17: 0 | V17: 0 | W17: 3963079.69 | X17: 0 | Y17: 0 | Z17: 0 | AA17: 3151421.08 | AB17: 0 | AC17: 0 | AD17: 0 | AE17: 773583.14 | AF17: 0 | AG17: 0 | AH17: 0 | AI17: 1179975.59 | AJ17: 0 | AK17: 0 | AL17: 0 | AM17: 2735507.88 | AN17: 0 | AO17: 0 | AP17: 0 | AQ17: 72182.4 | AR17: 0 | AS17: 0 | AT17: 0 | AU17: 2536733.79 | AV17: 0 | AW17: 0 | AX17: 0 | AY17: 6260779.77 | AZ17: 0 | BA17: 0 | BB17: 0 | BC17: 6099150.95 | BD17: 0 | BE17: 0 | BF17: 0 | BG17: 4693863.29 | BH17: 0 | BI17: 0 | BJ17: 0 | BK17: 3280704.67 | BL17: 0 | BM17: 0 | BN17: 0 | BO17: 1604910.63 | BP17: 0 | BQ17: 0 | BR17: 0 | BS17: 6437676.03 | BT17: 0 | BU17: 0 | BV17: 0 | BW17: 4403266.78 | BX17: 0 | BY17: 0 | BZ17: 0 | CA17: 1347124.02 | CB17: 0 | CC17: 0 | CD17: 0 | CE17: 1431554.3 | CF17: 0 | CG17: 0 | CH17: 0 | CI17: 3832952.14 | CJ17: 0 | CK17: 0 | CL17: 0 | CM17: =IF(D17=0,0,2001-(D17-F17)*C17/D17) -> 1994.781448 | CN17: =IF((1-($DJ$2-$CM17)/$C17)>0,(1-($DJ$2-$CM17)/$C17),0) -> 0.1093815907 | CO17: =IF((1-($DJ$2-G$2)/$C17)>0,(1-($DJ$2-G$2)/$C17),0) -> 0.35 | CP17: =IF((1-($DJ$2-K$2)/$C17)>0,(1-($DJ$2-K$2)/$C17),0) -> 0.3833333333 | CQ17: =IF((1-($DJ$2-O$2)/$C17)>0,(1-($DJ$2-O$2)/$C17),0) -> 0.4166666667 | CR17: =IF((1-($DJ$2-S$2)/$C17)>0,(1-($DJ$2-S$2)/$C17),0) -> 0.45 | CS17: =IF((1-($DJ$2-W$2)/$C17)>0,(1-($DJ$2-W$2)/$C17),0) -> 0.4833333333 | CT17: =IF((1-($DJ$2-AA$2)/$C17)>0,(1-($DJ$2-AA$2)/$C17),0) -> 0.5166666667 | CU17: =IF((1-($DJ$2-AE$2)/$C17)>0,(1-($DJ$2-AE$2)/$C17),0) -> 0.55 | CV17: =IF((1-($DJ$2-AI$2)/$C17)>0,(1-($DJ$2-AI$2)/$C17),0) -> 0.5833333333 | CW17: =IF((1-($DJ$2-AM$2)/$C17)>0,(1-($DJ$2-AM$2)/$C17),0) -> 0.6166666667 | CX17: =IF((1-($DJ$2-AQ$2)/$C17)>0,(1-($DJ$2-AQ$2)/$C17),0) -> 0.65 | CY17: =IF((1-($DJ$2-AU$2)/$C17)>0,(1-($DJ$2-AU$2)/$C17),0) -> 0.6833333333 | CZ17: =IF((1-($DJ$2-AY$2)/$C17)>0,(1-($DJ$2-AY$2)/$C17),0) -> 0.7166666667 | DA17: =IF((1-($DJ$2-BC$2)/$C17)>0,(1-($DJ$2-BC$2)/$C17),0) -> 0.75 | DB17: =IF((1-($DJ$2-BG$2)/$C17)>0,(1-($DJ$2-BG$2)/$C17),0) -> 0.7833333333 | DC17: =IF((1-($DJ$2-BK$2)/$C17)>0,(1-($DJ$2-BK$2)/$C17),0) -> 0.8166666667 | DD17: =IF((1-($DJ$2-BO$2)/$C17)>0,(1-($DJ$2-BO$2)/$C17),0) -> 0.85 | DE17: =IF((1-($DJ$2-BS$2)/$C17)>0,(1-($DJ$2-BS$2)/$C17),0) -> 0.8833333333 | DF17: =IF((1-($DJ$2-BW$2)/$C17)>0,(1-($DJ$2-BW$2)/$C17),0) -> 0.9166666667 | DG17: =IF((1-($DJ$2-CA$2)/$C17)>0,(1-($DJ$2-CA$2)/$C17),0) -> 0.95 | DH17: =IF((1-($DJ$2-CE$2)/$C17)>0,(1-($DJ$2-CE$2)/$C17),0) -> 0.9833333333 | DI17: =IF((1-($DJ$2-CI$2)/$C17)>0,(1-($DJ$2-CI$2)/$C17),0) -> 1 | DJ17: 2781037.562 | DK17: 83431126.85 | DL17: 0 | DM17: 41010514.21 | DN17: =(DK17-DL17)*1/C17 -> 2781037.562 | DO17: =IF((1-($EK$2-$CM17)/$C17)>0,(1-($EK$2-$CM17)/$C17),0) -> 0.07604825737 | DP17: 0.3166666667 | DQ17: 0.35 | DR17: 0.3833333333 | DS17: 0.4166666667 | DT17: 0.45 | DU17: 0.4833333333 | DV17: 0.5166666667 | DW17: 0.55 | DX17: 0.5833333333 | DY17: 0.6166666667 | DZ17: 0.65 | EA17: 0.6833333333 | EB17: 0.7166666667 | EC17: 0.75 | ED17: 0.7833333333 | EE17: 0.8166666667 | EF17: 0.85 | EG17: 0.8833333333 | EH17: 0.9166666667 | EI17: 0.95 | EJ17: 0.9666666667 | EK17: 2781037.562 | EL17: =IF((1-($FH$2-$CM17)/$C17)>0,(1-($FH$2-$CM17)/$C17),0) -> 0.04271492403 | EM17: 0.2833333333 | EN17: 0.3166666667 | EO17: 0.35 | EP17: 0.3833333333 | EQ17: 0.4166666667 | ER17: 0.45 | ES17: 0.4833333333 | ET17: 0.5166666667 | EU17: 0.55 | EV17: 0.5833333333 | EW17: 0.6166666667 | EX17: 0.65 | EY17: 0.6833333333 | EZ17: 0.7166666667 | FA17: 0.75 | FB17: 0.7833333333 | FC17: 0.8166666667 | FD17: 0.85 | FE17: 0.8833333333 | FF17: 0.9166666667 | FG17: 0.9333333333 | FH17: 2781037.562 | FI17: =IF((1-($GE$2-$CM17)/$C17)>0,(1-($GE$2-$CM17)/$C17),0) -> 0.0093815907 | FJ17: 0.25 | FK17: 0.2833333333 | FL17: 0.3166666667 | FM17: 0.35 | FN17: 0.3833333333 | FO17: 0.4166666667 | FP17: 0.45 | FQ17: 0.4833333333 | FR17: 0.5166666667 | FS17: 0.55 | FT17: 0.5833333333 | FU17: 0.6166666667 | FV17: 0.65 | FW17: 0.6833333333 | FX17: 0.7166666667 | FY17: 0.75 | FZ17: 0.7833333333 | GA17: 0.8166666667 | GB17: 0.85 | GC17: 0.8833333333 | GD17: 0.9 | GE17: 2781037.562 | GF17: =IF((1-($HB$2-$CM17)/$C17)>0,(1-($HB$2-$CM17)/$C17),0) -> 0 | GG17: 0.2166666667 | GH17: 0.25 | GI17: 0.2833333333 | GJ17: 0.3166666667 | GK17: 0.35 | GL17: 0.3833333333 | GM17: 0.4166666667 | GN17: 0.45 | GO17: 0.4833333333 | GP17: 0.5166666667 | GQ17: 0.55 | GR17: 0.5833333333 | GS17: 0.6166666667 | GT17: 0.65 | GU17: 0.6833333333 | GV17: 0.7166666667 | GW17: 0.75 | GX17: 0.7833333333 | GY17: 0.8166666667 | GZ17: 0.85 | HA17: 0.8666666667 | HB17: 1672532.548
B18: Media tensión MT | DJ18: 0 | DK18: 0 | DL18: 0 | EK18: 0 | FH18: 0 | GE18: 0
B19: Líneas aéreas de 34,5 kV | C19: 30 | D19: 692084.2112 | E19: 0 | F19: 397807.7584 | G19: 30478 | H19: 0 | I19: 0 | J19: 0 | K19: 139414 | L19: 0 | M19: 0 | N19: 0 | O19: 253789 | P19: 0 | Q19: 0 | R19: 0 | S19: 55582 | T19: 0 | U19: 0 | V19: 0 | W19: 32513.77 | X19: 0 | Y19: 0 | Z19: 0 | AA19: 14906.85 | AB19: 0 | AC19: 0 | AD19: 0 | AE19: 15193.42 | AF19: 0 | AG19: 0 | AH19: 0 | AI19: 0 | AJ19: 0 | AK19: 0 | AL19: 0 | AM19: 3417319.03 | AN19: 79201.52 | AO19: 0 | AP19: 0 | AQ19: 0 | AR19: 0 | AS19: 0 | AT19: 0 | AU19: 320133.99 | AV19: 0 | AW19: 0 | AX19: 0 | AY19: 924778.26 | AZ19: 0 | BA19: 0 | BB19: 0 | BC19: 159333.99 | BD19: 0 | BE19: 0 | BF19: 0 | BG19: 98166.04 | BH19: 0 | BI19: 0 | BJ19: 0 | BK19: 2186819.74 | BL19: 0 | BM19: 0 | BN19: 0 | BO19: 456030.11 | BP19: 0 | BQ19: 0 | BR19: 0 | BS19: 316595.87 | BT19: 0 | BU19: 0 | BV19: 0 | BW19: 132510.76 | BX19: 0 | BY19: 0 | BZ19: 0 | CA19: 108550.01 | CB19: 0 | CC19: 0 | CD19: 0 | CE19: 482280.01 | CF19: 0 | CG19: 0 | CH19: 0 | CI19: 1255156.51 | CJ19: 0 | CK19: 0 | CL19: 0 | CM19: =IF(D19=0,0,2001-(D19-F19)*C19/D19) -> 1988.243903 | CN19: =IF((1-($DJ$2-$CM19)/$C19)>0,(1-($DJ$2-$CM19)/$C19),0) -> 0 | CO19: =IF((1-($DJ$2-G$2)/$C19)>0,(1-($DJ$2-G$2)/$C19),0) -> 0.35 | CP19: =IF((1-($DJ$2-K$2)/$C19)>0,(1-($DJ$2-K$2)/$C19),0) -> 0.3833333333 | CQ19: =IF((1-($DJ$2-O$2)/$C19)>0,(1-($DJ$2-O$2)/$C19),0) -> 0.4166666667 | CR19: =IF((1-($DJ$2-S$2)/$C19)>0,(1-($DJ$2-S$2)/$C19),0) -> 0.45 | CS19: =IF((1-($DJ$2-W$2)/$C19)>0,(1-($DJ$2-W$2)/$C19),0) -> 0.4833333333 | CT19: =IF((1-($DJ$2-AA$2)/$C19)>0,(1-($DJ$2-AA$2)/$C19),0) -> 0.5166666667 | CU19: =IF((1-($DJ$2-AE$2)/$C19)>0,(1-($DJ$2-AE$2)/$C19),0) -> 0.55 | CV19: =IF((1-($DJ$2-AI$2)/$C19)>0,(1-($DJ$2-AI$2)/$C19),0) -> 0.5833333333 | CW19: =IF((1-($DJ$2-AM$2)/$C19)>0,(1-($DJ$2-AM$2)/$C19),0) -> 0.6166666667 | CX19: =IF((1-($DJ$2-AQ$2)/$C19)>0,(1-($DJ$2-AQ$2)/$C19),0) -> 0.65 | CY19: =IF((1-($DJ$2-AU$2)/$C19)>0,(1-($DJ$2-AU$2)/$C19),0) -> 0.6833333333 | CZ19: =IF((1-($DJ$2-AY$2)/$C19)>0,(1-($DJ$2-AY$2)/$C19),0) -> 0.7166666667 | DA19: =IF((1-($DJ$2-BC$2)/$C19)>0,(1-($DJ$2-BC$2)/$C19),0) -> 0.75 | DB19: =IF((1-($DJ$2-BG$2)/$C19)>0,(1-($DJ$2-BG$2)/$C19),0) -> 0.7833333333 | DC19: =IF((1-($DJ$2-BK$2)/$C19)>0,(1-($DJ$2-BK$2)/$C19),0) -> 0.8166666667 | DD19: =IF((1-($DJ$2-BO$2)/$C19)>0,(1-($DJ$2-BO$2)/$C19),0) -> 0.85 | DE19: =IF((1-($DJ$2-BS$2)/$C19)>0,(1-($DJ$2-BS$2)/$C19),0) -> 0.8833333333 | DF19: =IF((1-($DJ$2-BW$2)/$C19)>0,(1-($DJ$2-BW$2)/$C19),0) -> 0.9166666667 | DG19: =IF((1-($DJ$2-CA$2)/$C19)>0,(1-($DJ$2-CA$2)/$C19),0) -> 0.95 | DH19: =IF((1-($DJ$2-CE$2)/$C19)>0,(1-($DJ$2-CE$2)/$C19),0) -> 0.9833333333 | DI19: =IF((1-($DJ$2-CI$2)/$C19)>0,(1-($DJ$2-CI$2)/$C19),0) -> 1 | DJ19: 293867.7045 | DK19: 9508115.346 | DL19: 692084.2112 | DM19: =(D19-E19)*CN19+((G19-H19-(I19-J19))*G$61)*CO19+((K19-L19-(M19-N19))*K$61)*CP19+((O19-P19-(Q19-R19))*O$61)*CQ19+((S19-T19-(U19-V19))*S$61)*CR19+((W19-X19-(Y19-Z19))*W$61)*CS19+((AA19-AB19-(AC19-AD19))*AA$61)*CT19+((AE19-AF19-(AG19-AH19))*AE$61)*CU19+((AI19-AJ19-(AK19-AL19))*AI$61)*CV19+((AM19-AN19-(AO19-AP19))*$AM$61)*CW19+((AQ19-AR19-(AS19-AT19))*$AQ$61)*CX19+((AU19-AV19-(AW19-AX19))*$AU$61)*CY19+((AY19-AZ19-(BA19-BB19))*$AY$61)*CZ19+((BC19-BD19-(BE19-BF19))*$BC$61)*DA19+((BG19-BH19-(BI19-BJ19))*$BG$61)*DB19+((BK19-BL19-(BM19-BN19))*$BK$61)*DC19+((BO19-BP19-(BQ19-BR19))*$BO$61)*DD19+((BS19-BT19-(BU19-BV19))*$BS$61)*DE19+((BW19-BX19-(BY19-BZ19))*$BW$61)*DF19+((CA19-CB19-(CC19-CD19))*$CA$61)*DG19+((CE19-CF19-(CG19-CH19))*$CE$61)*DH19+((CI19-CJ19-(CK19-CL19))*$CI$61)*DI19 -> 6669154.44 | DN19: =(DK19-DL19)*1/C19 -> 293867.7045 | DO19: =IF((1-($EK$2-$CM19)/$C19)>0,(1-($EK$2-$CM19)/$C19),0) -> 0 | DP19: =IF((1-($EK$2-DP$2)/$C19)>0,(1-($EK$2-DP$2)/$C19),0) -> 0.3166666667 | DQ19: 0.35 | DR19: 0.3833333333 | DS19: 0.4166666667 | DT19: 0.45 | DU19: 0.4833333333 | DV19: 0.5166666667 | DW19: 0.55 | DX19: 0.5833333333 | DY19: 0.6166666667 | DZ19: =IF((1-($EK$2-DZ$2)/$C19)>0,(1-($EK$2-DZ$2)/$C19),0) -> 0.65 | EA19: 0.6833333333 | EB19: 0.7166666667 | EC19: 0.75 | ED19: 0.7833333333 | EE19: 0.8166666667 | EF19: 0.85 | EG19: 0.8833333333 | EH19: 0.9166666667 | EI19: 0.95 | EJ19: 0.9666666667 | EK19: 293867.7045 | EL19: =IF((1-($FH$2-$CM19)/$C19)>0,(1-($FH$2-$CM19)/$C19),0) -> 0 | EM19: =IF((1-($FH$2-EM$2)/$C19)>0,(1-($FH$2-EM$2)/$C19),0) -> 0.2833333333 | EN19: 0.3166666667 | EO19: 0.35 | EP19: 0.3833333333 | EQ19: 0.4166666667 | ER19: 0.45 | ES19: 0.4833333333 | ET19: 0.5166666667 | EU19: 0.55 | EV19: 0.5833333333 | EW19: =IF((1-($FH$2-EW$2)/$C19)>0,(1-($FH$2-EW$2)/$C19),0) -> 0.6166666667 | EX19: 0.65 | EY19: 0.6833333333 | EZ19: 0.7166666667 | FA19: 0.75 | FB19: 0.7833333333 | FC19: 0.8166666667 | FD19: 0.85 | FE19: 0.8833333333 | FF19: 0.9166666667 | FG19: 0.9333333333 | FH19: 293867.7045 | FI19: =IF((1-($GE$2-$CM19)/$C19)>0,(1-($GE$2-$CM19)/$C19),0) -> 0 | FJ19: =IF((1-($GE$2-FJ$2)/$C19)>0,(1-($GE$2-FJ$2)/$C19),0) -> 0.25 | FK19: 0.2833333333 | FL19: 0.3166666667 | FM19: 0.35 | FN19: 0.3833333333 | FO19: 0.4166666667 | FP19: 0.45 | FQ19: 0.4833333333 | FR19: 0.5166666667 | FS19: 0.55 | FT19: =IF((1-($GE$2-FT$2)/$C19)>0,(1-($GE$2-FT$2)/$C19),0) -> 0.5833333333 | FU19: 0.6166666667 | FV19: 0.65 | FW19: 0.6833333333 | FX19: 0.7166666667 | FY19: 0.75 | FZ19: 0.7833333333 | GA19: 0.8166666667 | GB19: 0.85 | GC19: 0.8833333333 | GD19: 0.9 | GE19: 293867.7045 | GF19: =IF((1-($HB$2-$CM19)/$C19)>0,(1-($HB$2-$CM19)/$C19),0) -> 0 | GG19: =IF((1-($HB$2-GG$2)/$C19)>0,(1-($HB$2-GG$2)/$C19),0) -> 0.2166666667 | GH19: 0.25 | GI19: 0.2833333333 | GJ19: 0.3166666667 | GK19: 0.35 | GL19: 0.3833333333 | GM19: 0.4166666667 | GN19: 0.45 | GO19: 0.4833333333 | GP19: 0.5166666667 | GQ19: =IF((1-($HB$2-GQ$2)/$C19)>0,(1-($HB$2-GQ$2)/$C19),0) -> 0.55 | GR19: 0.5833333333 | GS19: 0.6166666667 | GT19: 0.65 | GU19: 0.6833333333 | GV19: 0.7166666667 | GW19: 0.75 | GX19: 0.7833333333 | GY19: 0.8166666667 | GZ19: 0.85 | HA19: 0.8666666667 | HB19: =IF(GF19=0,0,($D19-$E19)*1/$C19)+IF(GG19=0,0,($G19-$I19)*$G$61*1/$C19)+IF(GH19=0,0,($K19-$M19)*$K$61*1/$C19)+IF(GI19=0,0,($O19-$Q19)*$O$61*1/$C19)+IF(GJ19=0,0,($S19-$U19)*$S$61*1/$C19)+IF(GK19=0,0,($W19-$Y19)*$W$61*1/$C19)+IF(GL19=0,0,($AA19-$AC19)*$AA$61*1/$C19)+IF(GM19=0,0,($AE19-$AG19)*$AE$61*1/$C19)+IF(GN19=0,0,($AI19-$AK19)*$AI$61*1/$C19)+IF(GO19=0,0,($AM19-$AO19)*$AM$61*1/$C19)+IF(GP19=0,0,($AQ19-$AS19)*$AQ$61*1/$C19)+IF(GQ19=0,0,($AU19-$AW19)*$AU$61*1/$C19)+IF(GR19=0,0,($AY19-$BA19)*$AY$61*1/$C19)+IF(GS19=0,0,($BC19-$BE19)*$BC$61*1/$C19)+IF(GT19=0,0,($BG19-$BI19)*$BG$61*1/$C19)+IF(GU19=0,0,($BK19-$BM19)*$BK$61*1/$C19)+IF(GV19=0,0,($BO19-$BQ19)*$BO$61*1/$C19)+IF(GW19=0,0,($BS19-$BU19)*$BS$61*1/$C19)+IF(GX19=0,0,($BW19-$BY19)*$BW$61*1/$C19)+IF(GY19=0,0,($CA19-$CC19)*$CA$61*1/$C19)+IF(GZ19=0,0,($CE19-$CG19)*$CE$61*1/$C19)+IF(HA19=0,0,($CI19-$CK19)*$CI$61*1/$C19) -> 295949.2968
A20: SISTEMA DE | B20: Líneas aéreas de 13,8 kV | C20: 30 | D20: 62372162.85 | E20: 0 | F20: 38881891.9 | G20: 3632836 | H20: 192075 | I20: 0 | J20: 0 | K20: 3516374 | L20: 223513 | M20: 0 | N20: 0 | O20: 2764750 | P20: 133522 | Q20: 0 | R20: 0 | S20: 3176076 | T20: 139240 | U20: 0 | V20: 0 | W20: 2394558.58 | X20: 0 | Y20: 0 | Z20: 0 | AA20: 3346697.35 | AB20: 0 | AC20: 0 | AD20: 0 | AE20: 2871061.16 | AF20: 3051.85 | AG20: 0 | AH20: 0 | AI20: 4743529.253 | AJ20: 184963.5475 | AK20: 0 | AL20: 0 | AM20: 5985.53 | AN20: 0 | AO20: 0 | AP20: 0 | AQ20: 5668890.88 | AR20: 97028.9 | AS20: 0 | AT20: 0 | AU20: 3804453.78 | AV20: 154557.59 | AW20: 0 | AX20: 0 | AY20: 11570438.61 | AZ20: 126.1 | BA20: 0 | BB20: 0 | BC20: 7224936.88 | BD20: 20551.96 | BE20: 0 | BF20: 0 | BG20: 12155470.86 | BH20: 84090.92 | BI20: 0 | BJ20: 0 | BK20: 20973588.56 | BL20: 111631.51 | BM20: 0 | BN20: 0 | BO20: 13372819.82 | BP20: 0 | BQ20: 0 | BR20: 0 | BS20: 5915961.73 | BT20: 50186.54 | BU20: 0 | BV20: 0 | BW20: 2668554.16 | BX20: 82251.14 | BY20: 0 | BZ20: 0 | CA20: 6610252.63 | CB20: 138571.23 | CC20: 0 | CD20: 0 | CE20: 6747473.49 | CF20: 57625.41 | CG20: 0 | CH20: 0 | CI20: 4580991.07 | CJ20: 20882.18 | CK20: 0 | CL20: 0 | CM20: 1989.70156 | CN20: 0 | CO20: 0.35 | CP20: 0.3833333333 | CQ20: 0.4166666667 | CR20: 0.45 | CS20: 0.4833333333 | CT20: 0.5166666667 | CU20: 0.55 | CV20: 0.5833333333 | CW20: 0.6166666667 | CX20: 0.65 | CY20: 0.6833333333 | CZ20: 0.7166666667 | DA20: 0.75 | DB20: 0.7833333333 | DC20: 0.8166666667 | DD20: 0.85 | DE20: 0.8833333333 | DF20: 0.9166666667 | DG20: 0.95 | DH20: 0.9833333333 | DI20: 1 | DJ20: 3696811.272 | DK20: 173276501 | DL20: 62372162.85 | DM20: 83186012.31 | DN20: 3696811.272 | DO20: 0 | DP20: 0.3166666667 | DQ20: 0.35 | DR20: 0.3833333333 | DS20: 0.4166666667 | DT20: 0.45 | DU20: 0.4833333333 | DV20: 0.5166666667 | DW20: 0.55 | DX20: 0.5833333333 | DY20: 0.6166666667 | DZ20: 0.65 | EA20: 0.6833333333 | EB20: 0.7166666667 | EC20: 0.75 | ED20: 0.7833333333 | EE20: 0.8166666667 | EF20: 0.85 | EG20: 0.8833333333 | EH20: 0.9166666667 | EI20: 0.95 | EJ20: 0.9666666667 | EK20: 3696811.272 | EL20: 0 | EM20: 0.2833333333 | EN20: 0.3166666667 | EO20: 0.35 | EP20: 0.3833333333 | EQ20: 0.4166666667 | ER20: 0.45 | ES20: 0.4833333333 | ET20: 0.5166666667 | EU20: 0.55 | EV20: 0.5833333333 | EW20: 0.6166666667 | EX20: 0.65 | EY20: 0.6833333333 | EZ20: 0.7166666667 | FA20: 0.75 | FB20: 0.7833333333 | FC20: 0.8166666667 | FD20: 0.85 | FE20: 0.8833333333 | FF20: 0.9166666667 | FG20: 0.9333333333 | FH20: 3696811.272 | FI20: 0 | FJ20: 0.25 | FK20: 0.2833333333 | FL20: 0.3166666667 | FM20: 0.35 | FN20: 0.3833333333 | FO20: 0.4166666667 | FP20: 0.45 | FQ20: 0.4833333333 | FR20: 0.5166666667 | FS20: 0.55 | FT20: 0.5833333333 | FU20: 0.6166666667 | FV20: 0.65 | FW20: 0.6833333333 | FX20: 0.7166666667 | FY20: 0.75 | FZ20: 0.7833333333 | GA20: 0.8166666667 | GB20: 0.85 | GC20: 0.8833333333 | GD20: 0.9 | GE20: 3696811.272 | GF20: 0 | GG20: 0.2166666667 | GH20: 0.25 | GI20: 0.2833333333 | GJ20: 0.3166666667 | GK20: 0.35 | GL20: 0.3833333333 | GM20: 0.4166666667 | GN20: 0.45 | GO20: 0.4833333333 | GP20: 0.5166666667 | GQ20: 0.55 | GR20: 0.5833333333 | GS20: 0.6166666667 | GT20: 0.65 | GU20: 0.6833333333 | GV20: 0.7166666667 | GW20: 0.75 | GX20: 0.7833333333 | GY20: 0.8166666667 | GZ20: 0.85 | HA20: 0.8666666667 | HB20: =IF(GF20=0,0,($D20-$E20)*1/$C20)+IF(GG20=0,0,($G20-$I20)*$G$61*1/$C20)+IF(GH20=0,0,($K20-$M20)*$K$61*1/$C20)+IF(GI20=0,0,($O20-$Q20)*$O$61*1/$C20)+IF(GJ20=0,0,($S20-$U20)*$S$61*1/$C20)+IF(GK20=0,0,($W20-$Y20)*$W$61*1/$C20)+IF(GL20=0,0,($AA20-$AC20)*$AA$61*1/$C20)+IF(GM20=0,0,($AE20-$AG20)*$AE$61*1/$C20)+IF(GN20=0,0,($AI20-$AK20)*$AI$61*1/$C20)+IF(GO20=0,0,($AM20-$AO20)*$AM$61*1/$C20)+IF(GP20=0,0,($AQ20-$AS20)*$AQ$61*1/$C20)+IF(GQ20=0,0,($AU20-$AW20)*$AU$61*1/$C20)+IF(GR20=0,0,($AY20-$BA20)*$AY$61*1/$C20)+IF(GS20=0,0,($BC20-$BE20)*$BC$61*1/$C20)+IF(GT20=0,0,($BG20-$BI20)*$BG$61*1/$C20)+IF(GU20=0,0,($BK20-$BM20)*$BK$61*1/$C20)+IF(GV20=0,0,($BO20-$BQ20)*$BO$61*1/$C20)+IF(GW20=0,0,($BS20-$BU20)*$BS$61*1/$C20)+IF(GX20=0,0,($BW20-$BY20)*$BW$61*1/$C20)+IF(GY20=0,0,($CA20-$CC20)*$CA$61*1/$C20)+IF(GZ20=0,0,($CE20-$CG20)*$CE$61*1/$C20)+IF(HA20=0,0,($CI20-$CK20)*$CI$61*1/$C20) -> 3746934.586
A21: DISTRIBUCION | B21: Líneas aéreas de otras tensiones | C21: 30 | D21: 4365824.598 | E21: 0 | F21: 1954035.296 | G21: 104263 | H21: 0 | I21: 0 | J21: 0 | K21: 0 | L21: 0 | M21: 0 | N21: 0 | O21: 153673 | P21: 0 | Q21: 0 | R21: 0 | S21: 199903.11 | T21: 0 | U21: 0 | V21: 0 | W21: 70769.02 | X21: 0 | Y21: 0 | Z21: 0 | AA21: 14679.63 | AB21: 0 | AC21: 0 | AD21: 0 | AE21: 13271.86 | AF21: 0 | AG21: 0 | AH21: 0 | AI21: 13356.68 | AJ21: 0 | AK21: 0 | AL21: 0 | AM21: 0 | AN21: 0 | AO21: 0 | AP21: 0 | AQ21: 27336.51 | AR21: 0 | AS21: 0 | AT21: 0 | AU21: 23750.55 | AV21: 2274.78 | AW21: 0 | AX21: 0 | AY21: 73295.86 | AZ21: 134866.63 | BA21: 0 | BB21: 0 | BC21: 48482.1 | BD21: 0 | BE21: 0 | BF21: 0 | BG21: 64261.08 | BH21: 3308.91 | BI21: 0 | BJ21: 0 | BK21: 304089.84 | BL21: 297.88 | BM21: 0 | BN21: 0 | BO21: 76961.07 | BP21: 0 | BQ21: 0 | BR21: 0 | BS21: 8731.63 | BT21: 0 | BU21: 0 | BV21: 0 | BW21: 0 | BX21: 0 | BY21: 0 | BZ21: 0 | CA21: 8738.6 | CB21: 0 | CC21: 0 | CD21: 0 | CE21: 7640.83 | CF21: 0 | CG21: 0 | CH21: 0 | CI21: 10258.56 | CJ21: 0 | CK21: 0 | CL21: 0 | CM21: 1984.427259 | CN21: 0 | CO21: 0.35 | CP21: 0.3833333333 | CQ21: 0.4166666667 | CR21: 0.45 | CS21: 0.4833333333 | CT21: 0.5166666667 | CU21: 0.55 | CV21: 0.5833333333 | CW21: 0.6166666667 | CX21: 0.65 | CY21: 0.6833333333 | CZ21: 0.7166666667 | DA21: 0.75 | DB21: 0.7833333333 | DC21: 0.8166666667 | DD21: 0.85 | DE21: 0.8833333333 | DF21: 0.9166666667 | DG21: 0.95 | DH21: 0.9833333333 | DI21: 1 | DJ21: 32414.79649 | DK21: 5338268.493 | DL21: 4365824.598 | DM21: 595846.4589 | DN21: 32414.79649 | DO21: 0 | DP21: 0.3166666667 | DQ21: 0.35 | DR21: 0.3833333333 | DS21: 0.4166666667 | DT21: 0.45 | DU21: 0.4833333333 | DV21: 0.5166666667 | DW21: 0.55 | DX21: 0.5833333333 | DY21: 0.6166666667 | DZ21: 0.65 | EA21: 0.6833333333 | EB21: 0.7166666667 | EC21: 0.75 | ED21: 0.7833333333 | EE21: 0.8166666667 | EF21: 0.85 | EG21: 0.8833333333 | EH21: 0.9166666667 | EI21: 0.95 | EJ21: 0.9666666667 | EK21: 32414.79649 | EL21: 0 | EM21: 0.2833333333 | EN21: 0.3166666667 | EO21: 0.35 | EP21: 0.3833333333 | EQ21: 0.4166666667 | ER21: 0.45 | ES21: 0.4833333333 | ET21: 0.5166666667 | EU21: 0.55 | EV21: 0.5833333333 | EW21: 0.6166666667 | EX21: 0.65 | EY21: 0.6833333333 | EZ21: 0.7166666667 | FA21: 0.75 | FB21: 0.7833333333 | FC21: 0.8166666667 | FD21: 0.85 | FE21: 0.8833333333 | FF21: 0.9166666667 | FG21: 0.9333333333 | FH21: 32414.79649 | FI21: 0 | FJ21: 0.25 | FK21: 0.2833333333 | FL21: 0.3166666667 | FM21: 0.35 | FN21: 0.3833333333 | FO21: 0.4166666667 | FP21: 0.45 | FQ21: 0.4833333333 | FR21: 0.5166666667 | FS21: 0.55 | FT21: 0.5833333333 | FU21: 0.6166666667 | FV21: 0.65 | FW21: 0.6833333333 | FX21: 0.7166666667 | FY21: 0.75 | FZ21: 0.7833333333 | GA21: 0.8166666667 | GB21: 0.85 | GC21: 0.8833333333 | GD21: 0.9 | GE21: 32414.79649 | GF21: 0 | GG21: 0.2166666667 | GH21: 0.25 | GI21: 0.2833333333 | GJ21: 0.3166666667 | GK21: 0.35 | GL21: 0.3833333333 | GM21: 0.4166666667 | GN21: 0.45 | GO21: 0.4833333333 | GP21: 0.5166666667 | GQ21: 0.55 | GR21: 0.5833333333 | GS21: 0.6166666667 | GT21: 0.65 | GU21: 0.6833333333 | GV21: 0.7166666667 | GW21: 0.75 | GX21: 0.7833333333 | GY21: 0.8166666667 | GZ21: 0.85 | HA21: 0.8666666667 | HB21: 36556.18529
B22: Líneas subterráneas de 34,5 kV | C22: 30 | D22: 865.0777711 | E22: 0 | F22: 838.4607933 | G22: 0 | H22: 0 | I22: 0 | J22: 0 | K22: 0 | L22: 0 | M22: 0 | N22: 0 | O22: 0 | P22: 0 | Q22: 0 | R22: 0 | S22: 0 | T22: 0 | U22: 0 | V22: 0 | W22: 0 | X22: 0 | Y22: 0 | Z22: 0 | AA22: 0 | AB22: 0 | AC22: 0 | AD22: 0 | AE22: 0 | AF22: 0 | AG22: 0 | AH22: 0 | AI22: 0 | AJ22: 0 | AK22: 0 | AL22: 0 | AM22: 2108970.73 | AN22: 467763.12 | AO22: 0 | AP22: 0 | AQ22: 0 | AR22: 0 | AS22: 0 | AT22: 0 | AU22: 0 | AV22: 0 | AW22: 0 | AX22: 0 | AY22: 0 | AZ22: 0 | BA22: 0 | BB22: 0 | BC22: 0 | BD22: 0 | BE22: 0 | BF22: 0 | BG22: 0 | BH22: 0 | BI22: 0 | BJ22: 0 | BK22: 0 | BL22: 0 | BM22: 0 | BN22: 0 | BO22: 0 | BP22: 0 | BQ22: 0 | BR22: 0 | BS22: 15936.14 | BT22: 0 | BU22: 0 | BV22: 0 | BW22: 1576550.35 | BX22: 0 | BY22: 0 | BZ22: 0 | CA22: 0 | CB22: 0 | CC22: 0 | CD22: 0 | CE22: 776972.95 | CF22: 0 | CG22: 0 | CH22: 0 | CI22: 3339.91 | CJ22: 0 | CK22: 0 | CL22: 0 | CM22: 2000.076951 | CN22: 0.2858983604 | CO22: 0.35 | CP22: 0.3833333333 | CQ22: 0.4166666667 | CR22: 0.45 | CS22: 0.4833333333 | CT22: 0.5166666667 | CU22: 0.55 | CV22: 0.5833333333 | CW22: 0.6166666667 | CX22: 0.65 | CY22: 0.6833333333 | CZ22: 0.7166666667 | DA22: 0.75 | DB22: 0.7833333333 | DC22: 0.8166666667 | DD22: 0.85 | DE22: 0.8833333333 | DF22: 0.9166666667 | DG22: 0.95 | DH22: 0.9833333333 | DI22: 1 | DJ22: =IF(CN22=0,0,($D22-$E22)*1/$C22)+IF(CO22=0,0,($G22-$H22-$I22)*$G$61*1/$C22)+IF(CP22=0,0,($K22-$L22-$M22)*$K$61*1/$C22)+IF(CQ22=0,0,($O22-$P22-$Q22)*$O$61*1/$C22)+IF(CR22=0,0,($S22-$T22-$U22)*$S$61*1/$C22)+IF(CS22=0,0,($W22-$X22-$Y22)*$W$61*1/$C22)+IF(CT22=0,0,($AA22-$AB22-$AC22)*$AA$61*1/$C22)+IF(CU22=0,0,($AE22-$AF22-$AG22)*$AE$61*1/$C22)+IF(CV22=0,0,($AI22-$AJ22-$AK22)*$AI$61*1/$C22)+IF(CW22=0,0,($AM22-$AN22-$AO22)*$AM$61*1/$C22)+IF(CX22=0,0,($AQ22-$AR22-$AS22)*$AQ$61*1/$C22)+IF(CY22=0,0,($AU22-$AV22-$AW22)*$AU$61*1/$C22)+IF(CZ22=0,0,($AY22-$AZ22-$BA22)*$AY$61*1/$C22)+IF(DA22=0,0,($BC22-$BD22-$BE22)*$BC$61*1/$C22)+IF(DB22=0,0,($BG22-$BH22-$BI22)*$BG$61*1/$C22)+IF(DC22=0,0,($BK22-$BL22-$BM22)*$BK$61*1/$C22)+IF(DD22=0,0,($BO22-$BP22-$BQ22)*$BO$61*1/$C22)+IF(DE22=0,0,($BS22-$BT22-$BU22)*$BS$61*1/$C22)+IF(DF22=0,0,($BW22-$BX22-$BY22)*$BW$61*1/$C22)+IF(DG22=0,0,($CA22-$CB22-$CC22)*$CA$61*1/$C22)+IF(DH22=0,0,($CE22-$CF22-$CG22)*$CE$61*1/$C22)+IF(DI22=0,0,($CI22-$CJ22-$CK22)*$CI$61*1/$C22) -> 113716.8136 | DK22: 3411504.408 | DL22: 0 | DM22: 2784218.548 | DN22: 113716.8136 | DO22: 0.2525650271 | DP22: 0.3166666667 | DQ22: 0.35 | DR22: 0.3833333333 | DS22: 0.4166666667 | DT22: 0.45 | DU22: 0.4833333333 | DV22: 0.5166666667 | DW22: 0.55 | DX22: 0.5833333333 | DY22: 0.6166666667 | DZ22: 0.65 | EA22: 0.6833333333 | EB22: 0.7166666667 | EC22: 0.75 | ED22: 0.7833333333 | EE22: 0.8166666667 | EF22: 0.85 | EG22: 0.8833333333 | EH22: 0.9166666667 | EI22: 0.95 | EJ22: 0.9666666667 | EK22: 113716.8136 | EL22: 0.2192316938 | EM22: 0.2833333333 | EN22: 0.3166666667 | EO22: 0.35 | EP22: 0.3833333333 | EQ22: 0.4166666667 | ER22: 0.45 | ES22: 0.4833333333 | ET22: 0.5166666667 | EU22: 0.55 | EV22: 0.5833333333 | EW22: 0.6166666667 | EX22: 0.65 | EY22: 0.6833333333 | EZ22: 0.7166666667 | FA22: 0.75 | FB22: 0.7833333333 | FC22: 0.8166666667 | FD22: 0.85 | FE22: 0.8833333333 | FF22: 0.9166666667 | FG22: 0.9333333333 | FH22: 113716.8136 | FI22: 0.1858983604 | FJ22: 0.25 | FK22: 0.2833333333 | FL22: 0.3166666667 | FM22: 0.35 | FN22: 0.3833333333 | FO22: 0.4166666667 | FP22: 0.45 | FQ22: 0.4833333333 | FR22: 0.5166666667 | FS22: 0.55 | FT22: 0.5833333333 | FU22: 0.6166666667 | FV22: 0.65 | FW22: 0.6833333333 | FX22: 0.7166666667 | FY22: 0.75 | FZ22: 0.7833333333 | GA22: 0.8166666667 | GB22: 0.85 | GC22: 0.8833333333 | GD22: 0.9 | GE22: 113716.8136 | GF22: 0.1525650271 | GG22: 0.2166666667 | GH22: 0.25 | GI22: 0.2833333333 | GJ22: 0.3166666667 | GK22: 0.35 | GL22: 0.3833333333 | GM22: 0.4166666667 | GN22: 0.45 | GO22: 0.4833333333 | GP22: 0.5166666667 | GQ22: 0.55 | GR22: 0.5833333333 | GS22: 0.6166666667 | GT22: 0.65 | GU22: 0.6833333333 | GV22: 0.7166666667 | GW22: 0.75 | GX22: 0.7833333333 | GY22: 0.8166666667 | GZ22: 0.85 | HA22: 0.8666666667 | HB22: 126010.6703
B23: Líneas subterráneas de 13,8 kV | C23: 30 | D23: 38211312.28 | E23: 0 | F23: 29987870.26 | G23: 1113964 | H23: 480114 | I23: 0 | J23: 0 | K23: 1034914 | L23: 558639 | M23: 0 | N23: 0 | O23: 981083 | P23: 360985 | Q23: 0 | R23: 0 | S23: 671068.452 | T23: 186168 | U23: 0 | V23: 0 | W23: 1039064.49 | X23: 87338.29 | Y23: 0 | Z23: 0 | AA23: 2291952.05 | AB23: 0 | AC23: 0 | AD23: 0 | AE23: 1075939.56 | AF23: 0 | AG23: 0 | AH23: 0 | AI23: 1177311.508 | AJ23: 676034.5097 | AK23: 0 | AL23: 0 | AM23: 18552.68 | AN23: 2789.47 | AO23: 0 | AP23: 0 | AQ23: 1858594.62 | AR23: 187186.69 | AS23: 0 | AT23: 0 | AU23: 2191070.55 | AV23: 80912.78 | AW23: 0 | AX23: 0 | AY23: 7317353.78 | AZ23: 0 | BA23: 0 | BB23: 0 | BC23: 6534351.68 | BD23: 480771.43 | BE23: 0 | BF23: 0 | BG23: 12069265.27 | BH23: 1062510.89 | BI23: 0 | BJ23: 0 | BK23: 9407031.86 | BL23: 766001.96 | BM23: 0 | BN23: 0 | BO23: 7282466.08 | BP23: 0 | BQ23: 0 | BR23: 0 | BS23: 4784089.33 | BT23: 442182.34 | BU23: 0 | BV23: 0 | BW23: 6995018.47 | BX23: 428134.18 | BY23: 0 | BZ23: 0 | CA23: 8842448.47 | CB23: 515307.22 | CC23: 0 | CD23: 0 | CE23: 9989400.1 | CF23: 368208.78 | CG23: 0 | CH23: 0 | CI23: 4127932.08 | CJ23: 137248.32 | CK23: 0 | CL23: 0 | CM23: 1994.543711 | CN23: 0.1014570459 | CO23: 0.35 | CP23: 0.3833333333 | CQ23: 0.4166666667 | CR23: 0.45 | CS23: 0.4833333333 | CT23: 0.5166666667 | CU23: 0.55 | CV23: 0.5833333333 | CW23: 0.6166666667 | CX23: 0.65 | CY23: 0.6833333333 | CZ23: 0.7166666667 | DA23: 0.75 | DB23: 0.7833333333 | DC23: 0.8166666667 | DD23: 0.85 | DE23: 0.8833333333 | DF23: 0.9166666667 | DG23: 0.95 | DH23: 0.9833333333 | DI23: 1 | DJ23: 3741011.016 | DK23: 112230330.5 | DL23: 0 | DM23: 64559430.59 | DN23: 3741011.016 | DO23: 0.06812371259 | DP23: 0.3166666667 | DQ23: 0.35 | DR23: 0.3833333333 | DS23: 0.4166666667 | DT23: 0.45 | DU23: 0.4833333333 | DV23: 0.5166666667 | DW23: 0.55 | DX23: 0.5833333333 | DY23: 0.6166666667 | DZ23: 0.65 | EA23: 0.6833333333 | EB23: 0.7166666667 | EC23: 0.75 | ED23: 0.7833333333 | EE23: 0.8166666667 | EF23: 0.85 | EG23: 0.8833333333 | EH23: 0.9166666667 | EI23: 0.95 | EJ23: 0.9666666667 | EK23: 3741011.016 | EL23: 0.03479037926 | EM23: 0.2833333333 | EN23: 0.3166666667 | EO23: 0.35 | EP23: 0.3833333333 | EQ23: 0.4166666667 | ER23: 0.45 | ES23: 0.4833333333 | ET23: 0.5166666667 | EU23: 0.55 | EV23: 0.5833333333 | EW23: 0.6166666667 | EX23: 0.65 | EY23: 0.6833333333 | EZ23: 0.7166666667 | FA23: 0.75 | FB23: 0.7833333333 | FC23: 0.8166666667 | FD23: 0.85 | FE23: 0.8833333333 | FF23: 0.9166666667 | FG23: 0.9333333333 | FH23: 3741011.016 | FI23: 0.001457045928 | FJ23: 0.25 | FK23: 0.2833333333 | FL23: 0.3166666667 | FM23: 0.35 | FN23: 0.3833333333 | FO23: 0.4166666667 | FP23: 0.45 | FQ23: 0.4833333333 | FR23: 0.5166666667 | FS23: 0.55 | FT23: 0.5833333333 | FU23: 0.6166666667 | FV23: 0.65 | FW23: 0.6833333333 | FX23: 0.7166666667 | FY23: 0.75 | FZ23: 0.7833333333 | GA23: 0.8166666667 | GB23: 0.85 | GC23: 0.8833333333 | GD23: 0.9 | GE23: 3741011.016 | GF23: 0 | GG23: 0.2166666667 | GH23: 0.25 | GI23: 0.2833333333 | GJ23: 0.3166666667 | GK23: 0.35 | GL23: 0.3833333333 | GM23: 0.4166666667 | GN23: 0.45 | GO23: 0.4833333333 | GP23: 0.5166666667 | GQ23: 0.55 | GR23: 0.5833333333 | GS23: 0.6166666667 | GT23: 0.65 | GU23: 0.6833333333 | GV23: 0.7166666667 | GW23: 0.75 | GX23: 0.7833333333 | GY23: 0.8166666667 | GZ23: 0.85 | HA23: 0.8666666667 | HB23: 2668938.122
B24: Líneas subterráneas de otras tensiones | C24: 30 | D24: 310463.4172 | E24: 0 | F24: 279712.3969 | G24: 53528.19 | H24: 0 | I24: 0 | J24: 0 | K24: 4288 | L24: 0 | M24: 0 | N24: 0 | O24: 132223 | P24: 0 | Q24: 0 | R24: 0 | S24: 68116.04 | T24: 51941 | U24: 0 | V24: 0 | W24: 53088.14 | X24: 0 | Y24: 0 | Z24: 0 | AA24: 15383.01 | AB24: 0 | AC24: 0 | AD24: 0 | AE24: 46372.66 | AF24: 0 | AG24: 0 | AH24: 0 | AI24: 13923.83 | AJ24: 0 | AK24: 0 | AL24: 0 | AM24: 0 | AN24: 0 | AO24: 0 | AP24: 0 | AQ24: 3498.03 | AR24: 0 | AS24: 0 | AT24: 0 | AU24: 62219.63 | AV24: 0 | AW24: 0 | AX24: 0 | AY24: 3665.86 | AZ24: 711890.18 | BA24: 0 | BB24: 0 | BC24: 9931.45 | BD24: 0 | BE24: 0 | BF24: 0 | BG24: 73.56 | BH24: 0 | BI24: 0 | BJ24: 0 | BK24: 0 | BL24: 0 | BM24: 0 | BN24: 0 | BO24: 6091.94 | BP24: 0 | BQ24: 0 | BR24: 0 | BS24: 3131.11 | BT24: 0 | BU24: 0 | BV24: 0 | BW24: 0 | BX24: 0 | BY24: 0 | BZ24: 0 | CA24: 1337.16 | CB24: 0 | CC24: 0 | CD24: 0 | CE24: 32141.14 | CF24: 0 | CG24: 0 | CH24: 0 | CI24: 5049.89 | CJ24: 0 | CK24: 0 | CL24: 0 | CM24: 1998.028537 | CN24: 0.2176178943 | CO24: 0.35 | CP24: 0.3833333333 | CQ24: 0.4166666667 | CR24: 0.45 | CS24: 0.4833333333 | CT24: 0.5166666667 | CU24: 0.55 | CV24: 0.5833333333 | CW24: 0.6166666667 | CX24: 0.65 | CY24: 0.6833333333 | CZ24: 0.7166666667 | DA24: 0.75 | DB24: 0.7833333333 | DC24: 0.8166666667 | DD24: 0.85 | DE24: 0.8833333333 | DF24: 0.9166666667 | DG24: 0.95 | DH24: 0.9833333333 | DI24: 1 | DJ24: 3116.734284 | DK24: 93502.02852 | DL24: 0 | DM24: -161507.0747 | DN24: 3116.734284 | DO24: 0.184284561 | DP24: 0.3166666667 | DQ24: 0.35 | DR24: 0.3833333333 | DS24: 0.4166666667 | DT24: 0.45 | DU24: 0.4833333333 | DV24: 0.5166666667 | DW24: 0.55 | DX24: 0.5833333333 | DY24: 0.6166666667 | DZ24: 0.65 | EA24: 0.6833333333 | EB24: 0.7166666667 | EC24: 0.75 | ED24: 0.7833333333 | EE24: 0.8166666667 | EF24: 0.85 | EG24: 0.8833333333 | EH24: 0.9166666667 | EI24: 0.95 | EJ24: 0.9666666667 | EK24: 3116.734284 | EL24: 0.1509512276 | EM24: 0.2833333333 | EN24: 0.3166666667 | EO24: 0.35 | EP24: 0.3833333333 | EQ24: 0.4166666667 | ER24: 0.45 | ES24: 0.4833333333 | ET24: 0.5166666667 | EU24: 0.55 | EV24: 0.5833333333 | EW24: 0.6166666667 | EX24: 0.65 | EY24: 0.6833333333 | EZ24: 0.7166666667 | FA24: 0.75 | FB24: 0.7833333333 | FC24: 0.8166666667 | FD24: 0.85 | FE24: 0.8833333333 | FF24: 0.9166666667 | FG24: 0.9333333333 | FH24: 3116.734284 | FI24: 0.1176178943 | FJ24: 0.25 | FK24: 0.2833333333 | FL24: 0.3166666667 | FM24: 0.35 | FN24: 0.3833333333 | FO24: 0.4166666667 | FP24: 0.45 | FQ24: 0.4833333333 | FR24: 0.5166666667 | FS24: 0.55 | FT24: 0.5833333333 | FU24: 0.6166666667 | FV24: 0.65 | FW24: 0.6833333333 | FX24: 0.7166666667 | FY24: 0.75 | FZ24: 0.7833333333 | GA24: 0.8166666667 | GB24: 0.85 | GC24: 0.8833333333 | GD24: 0.9 | GE24: 3116.734284 | GF24: 0.08428456098 | GG24: 0.2166666667 | GH24: 0.25 | GI24: 0.2833333333 | GJ24: 0.3166666667 | GK24: 0.35 | GL24: 0.3833333333 | GM24: 0.4166666667 | GN24: 0.45 | GO24: 0.4833333333 | GP24: 0.5166666667 | GQ24: 0.55 | GR24: 0.5833333333 | GS24: 0.6166666667 | GT24: 0.65 | GU24: 0.6833333333 | GV24: 0.7166666667 | GW24: 0.75 | GX24: 0.7833333333 | GY24: 0.8166666667 | GZ24: 0.85 | HA24: 0.8666666667 | HB24: 25661.40627
B25: Subestaciones 34,5 kV / MT | C25: 30 | D25: 233786.2683 | E25: 0 | F25: 203700.8747 | G25: 0 | H25: 0 | I25: 0 | J25: 0 | K25: 0 | L25: 0 | M25: 0 | N25: 0 | O25: 0 | P25: 0 | Q25: 0 | R25: 0 | S25: 0 | T25: 0 | U25: 0 | V25: 0 | W25: 0 | X25: 0 | Y25: 0 | Z25: 0 | AA25: 0 | AB25: 0 | AC25: 0 | AD25: 0 | AE25: 0 | AF25: 0 | AG25: 0 | AH25: 0 | AI25: 136345.25 | AJ25: 0 | AK25: 0 | AL25: 0 | AM25: 0 | AN25: 0 | AO25: 0 | AP25: 0 | AQ25: 0 | AR25: 0 | AS25: 0 | AT25: 0 | AU25: 0 | AV25: 0 | AW25: 0 | AX25: 0 | AY25: 0 | AZ25: 0 | BA25: 0 | BB25: 0 | BC25: 367068.01 | BD25: 0 | BE25: 0 | BF25: 0 | BG25: 78739.79 | BH25: 0 | BI25: 0 | BJ25: 0 | BK25: 0 | BL25: 0 | BM25: 0 | BN25: 0 | BO25: 0 | BP25: 0 | BQ25: 0 | BR25: 0 | BS25: 0 | BT25: 0 | BU25: 0 | BV25: 0 | BW25: 24791.58 | BX25: 0 | BY25: 0 | BZ25: 0 | CA25: 0 | CB25: 0 | CC25: 0 | CD25: 0 | CE25: 260116.95 | CF25: 0 | CG25: 0 | CH25: 0 | CI25: 6985.26 | CJ25: 0 | CK25: 0 | CL25: 0 | CM25: 1997.139372 | CN25: 0.1879790673 | CO25: 0.35 | CP25: 0.3833333333 | CQ25: 0.4166666667 | CR25: 0.45 | CS25: 0.4833333333 | CT25: 0.5166666667 | CU25: 0.55 | CV25: 0.5833333333 | CW25: 0.6166666667 | CX25: 0.65 | CY25: 0.6833333333 | CZ25: 0.7166666667 | DA25: 0.75 | DB25: 0.7833333333 | DC25: 0.8166666667 | DD25: 0.85 | DE25: 0.8833333333 | DF25: 0.9166666667 | DG25: 0.95 | DH25: 0.9833333333 | DI25: 1 | DJ25: 33458.67566 | DK25: 1003760.27 | DL25: 0 | DM25: 664379.7024 | DN25: 33458.67566 | DO25: 0.154645734 | DP25: 0.3166666667 | DQ25: 0.35 | DR25: 0.3833333333 | DS25: 0.4166666667 | DT25: 0.45 | DU25: 0.4833333333 | DV25: 0.5166666667 | DW25: 0.55 | DX25: 0.5833333333 | DY25: 0.6166666667 | DZ25: 0.65 | EA25: 0.6833333333 | EB25: 0.7166666667 | EC25: 0.75 | ED25: 0.7833333333 | EE25: 0.8166666667 | EF25: 0.85 | EG25: 0.8833333333 | EH25: 0.9166666667 | EI25: 0.95 | EJ25: 0.9666666667 | EK25: 33458.67566 | EL25: 0.1213124006 | EM25: 0.2833333333 | EN25: 0.3166666667 | EO25: 0.35 | EP25: 0.3833333333 | EQ25: 0.4166666667 | ER25: 0.45 | ES25: 0.4833333333 | ET25: 0.5166666667 | EU25: 0.55 | EV25: 0.5833333333 | EW25: 0.6166666667 | EX25: 0.65 | EY25: 0.6833333333 | EZ25: 0.7166666667 | FA25: 0.75 | FB25: 0.7833333333 | FC25: 0.8166666667 | FD25: 0.85 | FE25: 0.8833333333 | FF25: 0.9166666667 | FG25: 0.9333333333 | FH25: 33458.67566 | FI25: 0.08797906731 | FJ25: 0.25 | FK25: 0.2833333333 | FL25: 0.3166666667 | FM25: 0.35 | FN25: 0.3833333333 | FO25: 0.4166666667 | FP25: 0.45 | FQ25: 0.4833333333 | FR25: 0.5166666667 | FS25: 0.55 | FT25: 0.5833333333 | FU25: 0.6166666667 | FV25: 0.65 | FW25: 0.6833333333 | FX25: 0.7166666667 | FY25: 0.75 | FZ25: 0.7833333333 | GA25: 0.8166666667 | GB25: 0.85 | GC25: 0.8833333333 | GD25: 0.9 | GE25: 33458.67566 | GF25: 0.05464573398 | GG25: 0.2166666667 | GH25: 0.25 | GI25: 0.2833333333 | GJ25: 0.3166666667 | GK25: 0.35 | GL25: 0.3833333333 | GM25: 0.4166666667 | GN25: 0.45 | GO25: 0.4833333333 | GP25: 0.5166666667 | GQ25: 0.55 | GR25: 0.5833333333 | GS25: 0.6166666667 | GT25: 0.65 | GU25: 0.6833333333 | GV25: 0.7166666667 | GW25: 0.75 | GX25: 0.7833333333 | GY25: 0.8166666667 | GZ25: 0.85 | HA25: 0.8666666667 | HB25: 33458.67566
B26: Subestaciones 13,8 kV / MT | C26: 30 | D26: 72865.72831 | E26: 0 | F26: 58276.91783 | G26: 0 | H26: 0 | I26: 0 | J26: 0 | K26: 0 | L26: 0 | M26: 0 | N26: 0 | O26: 0 | P26: 0 | Q26: 0 | R26: 0 | S26: 0 | T26: 0 | U26: 0 | V26: 0 | W26: 146353.22 | X26: 0 | Y26: 0 | Z26: 0 | AA26: 0 | AB26: 0 | AC26: 0 | AD26: 0 | AE26: 0 | AF26: 0 | AG26: 0 | AH26: 0 | AI26: 0 | AJ26: 0 | AK26: 0 | AL26: 0 | AM26: 61793.64 | AN26: 0 | AO26: 0 | AP26: 0 | AQ26: 0 | AR26: 0 | AS26: 0 | AT26: 0 | AU26: 0 | AV26: 0 | AW26: 0 | AX26: 0 | AY26: 0 | AZ26: 0 | BA26: 0 | BB26: 0 | BC26: 0 | BD26: 0 | BE26: 0 | BF26: 0 | BG26: 920834.4 | BH26: 0 | BI26: 0 | BJ26: 0 | BK26: 592244.66 | BL26: 0 | BM26: 0 | BN26: 0 | BO26: 140956.27 | BP26: 0 | BQ26: 0 | BR26: 0 | BS26: 72250.72 | BT26: 6922.58 | BU26: 0 | BV26: 0 | BW26: 0 | BX26: 0 | BY26: 0 | BZ26: 0 | CA26: 19041.28 | CB26: 0 | CC26: 0 | CD26: 0 | CE26: 1976460.63 | CF26: 0 | CG26: 0 | CH26: 0 | CI26: 3636.37 | CJ26: 0 | CK26: 0 | CL26: 0 | CM26: 1994.993551 | CN26: 0.1164516847 | CO26: 0.35 | CP26: 0.3833333333 | CQ26: 0.4166666667 | CR26: 0.45 | CS26: 0.4833333333 | CT26: 0.5166666667 | CU26: 0.55 | CV26: 0.5833333333 | CW26: 0.6166666667 | CX26: 0.65 | CY26: 0.6833333333 | CZ26: 0.7166666667 | DA26: 0.75 | DB26: 0.7833333333 | DC26: 0.8166666667 | DD26: 0.85 | DE26: 0.8833333333 | DF26: 0.9166666667 | DG26: 0.95 | DH26: 0.9833333333 | DI26: 1 | DJ26: 117963.3454 | DK26: 3538900.363 | DL26: 0 | DM26: 3067603.202 | DN26: 117963.3454 | DO26: 0.08311835135 | DP26: 0.3166666667 | DQ26: 0.35 | DR26: 0.3833333333 | DS26: 0.4166666667 | DT26: 0.45 | DU26: 0.4833333333 | DV26: 0.5166666667 | DW26: 0.55 | DX26: 0.5833333333 | DY26: 0.6166666667 | DZ26: 0.65 | EA26: 0.6833333333 | EB26: 0.7166666667 | EC26: 0.75 | ED26: 0.7833333333 | EE26: 0.8166666667 | EF26: 0.85 | EG26: 0.8833333333 | EH26: 0.9166666667 | EI26: 0.95 | EJ26: 0.9666666667 | EK26: 117963.3454 | EL26: 0.04978501802 | EM26: 0.2833333333 | EN26: 0.3166666667 | EO26: 0.35 | EP26: 0.3833333333 | EQ26: 0.4166666667 | ER26: 0.45 | ES26: 0.4833333333 | ET26: 0.5166666667 | EU26: 0.55 | EV26: 0.5833333333 | EW26: 0.6166666667 | EX26: 0.65 | EY26: 0.6833333333 | EZ26: 0.7166666667 | FA26: 0.75 | FB26: 0.7833333333 | FC26: 0.8166666667 | FD26: 0.85 | FE26: 0.8833333333 | FF26: 0.9166666667 | FG26: 0.9333333333 | FH26: 117963.3454 | FI26: 0.01645168468 | FJ26: 0.25 | FK26: 0.2833333333 | FL26: 0.3166666667 | FM26: 0.35 | FN26: 0.3833333333 | FO26: 0.4166666667 | FP26: 0.45 | FQ26: 0.4833333333 | FR26: 0.5166666667 | FS26: 0.55 | FT26: 0.5833333333 | FU26: 0.6166666667 | FV26: 0.65 | FW26: 0.6833333333 | FX26: 0.7166666667 | FY26: 0.75 | FZ26: 0.7833333333 | GA26: 0.8166666667 | GB26: 0.85 | GC26: 0.8833333333 | GD26: 0.9 | GE26: 117963.3454 | GF26: 0 | GG26: 0.2166666667 | GH26: 0.25 | GI26: 0.2833333333 | GJ26: 0.3166666667 | GK26: 0.35 | GL26: 0.3833333333 | GM26: 0.4166666667 | GN26: 0.45 | GO26: 0.4833333333 | GP26: 0.5166666667 | GQ26: 0.55 | GR26: 0.5833333333 | GS26: 0.6166666667 | GT26: 0.65 | GU26: 0.6833333333 | GV26: 0.7166666667 | GW26: 0.75 | GX26: 0.7833333333 | GY26: 0.8166666667 | GZ26: 0.85 | HA26: 0.8666666667 | HB26: 115739.7482
B27: Otras subestaciones MT/MT | C27: 30 | D27: 5507953.129 | E27: 0 | F27: 2777253.262 | G27: 132054.28 | H27: 0 | I27: 0 | J27: 0 | K27: 0 | L27: 0 | M27: 0 | N27: 0 | O27: 950371 | P27: 0 | Q27: 0 | R27: 0 | S27: 32572.24 | T27: 0 | U27: 0 | V27: 0 | W27: 157247.1 | X27: 0 | Y27: 0 | Z27: 0 | AA27: 93225.55 | AB27: 0 | AC27: 0 | AD27: 0 | AE27: 0 | AF27: 0 | AG27: 0 | AH27: 0 | AI27: 0 | AJ27: 0 | AK27: 0 | AL27: 0 | AM27: 0 | AN27: 0 | AO27: 0 | AP27: 0 | AQ27: 64349.18 | AR27: 0 | AS27: 0 | AT27: 0 | AU27: 3089.09 | AV27: 0 | AW27: 0 | AX27: 0 | AY27: 4108.43 | AZ27: 0 | BA27: 0 | BB27: 0 | BC27: 0 | BD27: 0 | BE27: 0 | BF27: 0 | BG27: 40100.08 | BH27: 0 | BI27: 0 | BJ27: 0 | BK27: 0 | BL27: 0 | BM27: 0 | BN27: 0 | BO27: 0 | BP27: 0 | BQ27: 0 | BR27: 0 | BS27: 0 | BT27: 0 | BU27: 0 | BV27: 0 | BW27: 0 | BX27: 0 | BY27: 0 | BZ27: 0 | CA27: 0 | CB27: 0 | CC27: 0 | CD27: 0 | CE27: 18208.63 | CF27: 0 | CG27: 0 | CH27: 0 | CI27: 0 | CJ27: 0 | CK27: 0 | CL27: 0 | CM27: 1986.12678 | CN27: 0 | CO27: 0.35 | CP27: 0.3833333333 | CQ27: 0.4166666667 | CR27: 0.45 | CS27: 0.4833333333 | CT27: 0.5166666667 | CU27: 0.55 | CV27: 0.5833333333 | CW27: 0.6166666667 | CX27: 0.65 | CY27: 0.6833333333 | CZ27: 0.7166666667 | DA27: 0.75 | DB27: 0.7833333333 | DC27: 0.8166666667 | DD27: 0.85 | DE27: 0.8833333333 | DF27: 0.9166666667 | DG27: 0.95 | DH27: 0.9833333333 | DI27: 1 | DJ27: 46142.60317 | DK27: 6892231.224 | DL27: 5507953.129 | DM27: 622109.5183 | DN27: 46142.60317 | DO27: 0 | DP27: 0.3166666667 | DQ27: 0.35 | DR27: 0.3833333333 | DS27: 0.4166666667 | DT27: 0.45 | DU27: 0.4833333333 | DV27: 0.5166666667 | DW27: 0.55 | DX27: 0.5833333333 | DY27: 0.6166666667 | DZ27: 0.65 | EA27: 0.6833333333 | EB27: 0.7166666667 | EC27: 0.75 | ED27: 0.7833333333 | EE27: 0.8166666667 | EF27: 0.85 | EG27: 0.8833333333 | EH27: 0.9166666667 | EI27: 0.95 | EJ27: 0.9666666667 | EK27: 46142.60317 | EL27: 0 | EM27: 0.2833333333 | EN27: 0.3166666667 | EO27: 0.35 | EP27: 0.3833333333 | EQ27: 0.4166666667 | ER27: 0.45 | ES27: 0.4833333333 | ET27: 0.5166666667 | EU27: 0.55 | EV27: 0.5833333333 | EW27: 0.6166666667 | EX27: 0.65 | EY27: 0.6833333333 | EZ27: 0.7166666667 | FA27: 0.75 | FB27: 0.7833333333 | FC27: 0.8166666667 | FD27: 0.85 | FE27: 0.8833333333 | FF27: 0.9166666667 | FG27: 0.9333333333 | FH27: 46142.60317 | FI27: 0 | FJ27: 0.25 | FK27: 0.2833333333 | FL27: 0.3166666667 | FM27: 0.35 | FN27: 0.3833333333 | FO27: 0.4166666667 | FP27: 0.45 | FQ27: 0.4833333333 | FR27: 0.5166666667 | FS27: 0.55 | FT27: 0.5833333333 | FU27: 0.6166666667 | FV27: 0.65 | FW27: 0.6833333333 | FX27: 0.7166666667 | FY27: 0.75 | FZ27: 0.7833333333 | GA27: 0.8166666667 | GB27: 0.85 | GC27: 0.8833333333 | GD27: 0.9 | GE27: 46142.60317 | GF27: 0 | GG27: 0.2166666667 | GH27: 0.25 | GI27: 0.2833333333 | GJ27: 0.3166666667 | GK27: 0.35 | GL27: 0.3833333333 | GM27: 0.4166666667 | GN27: 0.45 | GO27: 0.4833333333 | GP27: 0.5166666667 | GQ27: 0.55 | GR27: 0.5833333333 | GS27: 0.6166666667 | GT27: 0.65 | GU27: 0.6833333333 | GV27: 0.7166666667 | GW27: 0.75 | GX27: 0.7833333333 | GY27: 0.8166666667 | GZ27: 0.85 | HA27: 0.8666666667 | HB27: 46142.60317
B28: Centros de reflexión MT | C28: 30 | D28: 0 | E28: 0 | F28: 0 | G28: 1146455 | H28: 0 | I28: 0 | J28: 0 | K28: 18409 | L28: 0 | M28: 0 | N28: 0 | O28: 409780 | P28: 0 | Q28: 0 | R28: 0 | S28: 0 | T28: 0 | U28: 0 | V28: 0 | W28: 192434.81 | X28: 0 | Y28: 0 | Z28: 0 | AA28: 0 | AB28: 0 | AC28: 0 | AD28: 0 | AE28: 0 | AF28: 0 | AG28: 0 | AH28: 0 | AI28: 0 | AJ28: 0 | AK28: 0 | AL28: 0 | AM28: 68323.21 | AN28: 0.78 | AO28: 0 | AP28: 0 | AQ28: 0 | AR28: 0 | AS28: 0 | AT28: 0 | AU28: 0 | AV28: 0 | AW28: 0 | AX28: 0 | AY28: 0 | AZ28: 0 | BA28: 0 | BB28: 0 | BC28: 0 | BD28: 0 | BE28: 0 | BF28: 0 | BG28: 0 | BH28: 0 | BI28: 0 | BJ28: 0 | BK28: 0 | BL28: 0 | BM28: 0 | BN28: 0 | BO28: 0 | BP28: 0 | BQ28: 0 | BR28: 0 | BS28: 0 | BT28: 0 | BU28: 0 | BV28: 0 | BW28: 0 | BX28: 0 | BY28: 0 | BZ28: 0 | CA28: 0 | CB28: 0 | CC28: 0 | CD28: 0 | CE28: 0 | CF28: 0 | CG28: 0 | CH28: 0 | CI28: 0 | CJ28: 0 | CK28: 0 | CL28: 0 | CM28: 0 | CN28: 0 | CO28: 0.35 | CP28: 0.3833333333 | CQ28: 0.4166666667 | CR28: 0.45 | CS28: 0.4833333333 | CT28: 0.5166666667 | CU28: 0.55 | CV28: 0.5833333333 | CW28: 0.6166666667 | CX28: 0.65 | CY28: 0.6833333333 | CZ28: 0.7166666667 | DA28: 0.75 | DB28: 0.7833333333 | DC28: 0.8166666667 | DD28: 0.85 | DE28: 0.8833333333 | DF28: 0.9166666667 | DG28: 0.95 | DH28: 0.9833333333 | DI28: 1 | DJ28: 55965.73645 | DK28: 1678972.093 | DL28: 0 | DM28: 648833.6657 | DN28: 55965.73645 | DO28: 0 | DP28: 0.3166666667 | DQ28: 0.35 | DR28: 0.3833333333 | DS28: 0.4166666667 | DT28: 0.45 | DU28: 0.4833333333 | DV28: 0.5166666667 | DW28: 0.55 | DX28: 0.5833333333 | DY28: 0.6166666667 | DZ28: 0.65 | EA28: 0.6833333333 | EB28: 0.7166666667 | EC28: 0.75 | ED28: 0.7833333333 | EE28: 0.8166666667 | EF28: 0.85 | EG28: 0.8833333333 | EH28: 0.9166666667 | EI28: 0.95 | EJ28: 0.9666666667 | EK28: 55965.73645 | EL28: 0 | EM28: 0.2833333333 | EN28: 0.3166666667 | EO28: 0.35 | EP28: 0.3833333333 | EQ28: 0.4166666667 | ER28: 0.45 | ES28: 0.4833333333 | ET28: 0.5166666667 | EU28: 0.55 | EV28: 0.5833333333 | EW28: 0.6166666667 | EX28: 0.65 | EY28: 0.6833333333 | EZ28: 0.7166666667 | FA28: 0.75 | FB28: 0.7833333333 | FC28: 0.8166666667 | FD28: 0.85 | FE28: 0.8833333333 | FF28: 0.9166666667 | FG28: 0.9333333333 | FH28: 55965.73645 | FI28: 0 | FJ28: 0.25 | FK28: 0.2833333333 | FL28: 0.3166666667 | FM28: 0.35 | FN28: 0.3833333333 | FO28: 0.4166666667 | FP28: 0.45 | FQ28: 0.4833333333 | FR28: 0.5166666667 | FS28: 0.55 | FT28: 0.5833333333 | FU28: 0.6166666667 | FV28: 0.65 | FW28: 0.6833333333 | FX28: 0.7166666667 | FY28: 0.75 | FZ28: 0.7833333333 | GA28: 0.8166666667 | GB28: 0.85 | GC28: 0.8833333333 | GD28: 0.9 | GE28: 55965.73645 | GF28: 0 | GG28: 0.2166666667 | GH28: 0.25 | GI28: 0.2833333333 | GJ28: 0.3166666667 | GK28: 0.35 | GL28: 0.3833333333 | GM28: 0.4166666667 | GN28: 0.45 | GO28: 0.4833333333 | GP28: 0.5166666667 | GQ28: 0.55 | GR28: 0.5833333333 | GS28: 0.6166666667 | GT28: 0.65 | GU28: 0.6833333333 | GV28: 0.7166666667 | GW28: 0.75 | GX28: 0.7833333333 | GY28: 0.8166666667 | GZ28: 0.85 | HA28: 0.8666666667 | HB28: 55965.75695
B29: Centro de transformación 34,5 kV / BT | C29: 30 | D29: 85540.35109 | E29: 0 | F29: 78216.89104 | G29: 3724 | H29: 0 | I29: 0 | J29: 0 | K29: 52281 | L29: 0 | M29: 0 | N29: 0 | O29: 8167 | P29: 0 | Q29: 0 | R29: 0 | S29: 84130.8 | T29: 0 | U29: 0 | V29: 0 | W29: 28309.42 | X29: 0 | Y29: 0 | Z29: 0 | AA29: 23600.67 | AB29: 0 | AC29: 0 | AD29: 0 | AE29: 16795.5 | AF29: 0 | AG29: 0 | AH29: 0 | AI29: 55350.16 | AJ29: 0 | AK29: 0 | AL29: 0 | AM29: 3100736.04 | AN29: 215313.69 | AO29: 0 | AP29: 0 | AQ29: 65911.15 | AR29: 0 | AS29: 0 | AT29: 0 | AU29: 39579.37 | AV29: 0 | AW29: 0 | AX29: 0 | AY29: 30008.37 | AZ29: 0 | BA29: 0 | BB29: 0 | BC29: 79840.58 | BD29: 0 | BE29: 0 | BF29: 0 | BG29: 100686.22 | BH29: 0 | BI29: 0 | BJ29: 0 | BK29: 116518.32 | BL29: 0 | BM29: 0 | BN29: 0 | BO29: 73779.48 | BP29: 0 | BQ29: 0 | BR29: 0 | BS29: 126858.13 | BT29: 0 | BU29: 0 | BV29: 0 | BW29: 45957.77 | BX29: 1191.95 | BY29: 0 | BZ29: 0 | CA29: 148079.59 | CB29: 2415.36 | CC29: 0 | CD29: 0 | CE29: 541072.53 | CF29: 0 | CG29: 0 | CH29: 0 | CI29: 183633.96 | CJ29: 0 | CK29: 0 | CL29: 0 | CM29: 1998.431577 | CN29: 0.2310525681 | CO29: 0.35 | CP29: 0.3833333333 | CQ29: 0.4166666667 | CR29: 0.45 | CS29: 0.4833333333 | CT29: 0.5166666667 | CU29: 0.55 | CV29: 0.5833333333 | CW29: 0.6166666667 | CX29: 0.65 | CY29: 0.6833333333 | CZ29: 0.7166666667 | DA29: 0.75 | DB29: 0.7833333333 | DC29: 0.8166666667 | DD29: 0.85 | DE29: 0.8833333333 | DF29: 0.9166666667 | DG29: 0.95 | DH29: 0.9833333333 | DI29: 1 | DJ29: 132049.7994 | DK29: 3961493.982 | DL29: 0 | DM29: 2764551.461 | DN29: 132049.7994 | DO29: 0.1977192347 | DP29: 0.3166666667 | DQ29: 0.35 | DR29: 0.3833333333 | DS29: 0.4166666667 | DT29: 0.45 | DU29: 0.4833333333 | DV29: 0.5166666667 | DW29: 0.55 | DX29: 0.5833333333 | DY29: 0.6166666667 | DZ29: 0.65 | EA29: 0.6833333333 | EB29: 0.7166666667 | EC29: 0.75 | ED29: 0.7833333333 | EE29: 0.8166666667 | EF29: 0.85 | EG29: 0.8833333333 | EH29: 0.9166666667 | EI29: 0.95 | EJ29: 0.9666666667 | EK29: 132049.7994 | EL29: 0.1643859014 | EM29: 0.2833333333 | EN29: 0.3166666667 | EO29: 0.35 | EP29: 0.3833333333 | EQ29: 0.4166666667 | ER29: 0.45 | ES29: 0.4833333333 | ET29: 0.5166666667 | EU29: 0.55 | EV29: 0.5833333333 | EW29: 0.6166666667 | EX29: 0.65 | EY29: 0.6833333333 | EZ29: 0.7166666667 | FA29: 0.75 | FB29: 0.7833333333 | FC29: 0.8166666667 | FD29: 0.85 | FE29: 0.8833333333 | FF29: 0.9166666667 | FG29: 0.9333333333 | FH29: 132049.7994 | FI29: 0.1310525681 | FJ29: 0.25 | FK29: 0.2833333333 | FL29: 0.3166666667 | FM29: 0.35 | FN29: 0.3833333333 | FO29: 0.4166666667 | FP29: 0.45 | FQ29: 0.4833333333 | FR29: 0.5166666667 | FS29: 0.55 | FT29: 0.5833333333 | FU29: 0.6166666667 | FV29: 0.65 | FW29: 0.6833333333 | FX29: 0.7166666667 | FY29: 0.75 | FZ29: 0.7833333333 | GA29: 0.8166666667 | GB29: 0.85 | GC29: 0.8833333333 | GD29: 0.9 | GE29: 132049.7994 | GF29: 0.09771923473 | GG29: 0.2166666667 | GH29: 0.25 | GI29: 0.2833333333 | GJ29: 0.3166666667 | GK29: 0.35 | GL29: 0.3833333333 | GM29: 0.4166666667 | GN29: 0.45 | GO29: 0.4833333333 | GP29: 0.5166666667 | GQ29: 0.55 | GR29: 0.5833333333 | GS29: 0.6166666667 | GT29: 0.65 | GU29: 0.6833333333 | GV29: 0.7166666667 | GW29: 0.75 | GX29: 0.7833333333 | GY29: 0.8166666667 | GZ29: 0.85 | HA29: 0.8666666667 | HB29: 137814.4197
B30: Centro de transformación 13,8 kV / BT | C30: 30 | D30: 25131729.86 | E30: 0 | F30: 16210366.41 | G30: 2712538 | H30: 13843 | I30: 0 | J30: 0 | K30: 2268887 | L30: 0 | M30: 0 | N30: 0 | O30: 2792532 | P30: 32268 | Q30: 0 | R30: 0 | S30: 2869136.4 | T30: 0 | U30: 0 | V30: 0 | W30: 1427269.97 | X30: 17639.05 | Y30: 0 | Z30: 0 | AA30: 2156543.35 | AB30: 1668.33 | AC30: 0 | AD30: 0 | AE30: 2638767.063 | AF30: 0 | AG30: 0 | AH30: 0 | AI30: 5042917.2 | AJ30: 30202.22 | AK30: 0 | AL30: 0 | AM30: 71280.66 | AN30: 154.61 | AO30: 0 | AP30: 0 | AQ30: 2634132.51 | AR30: 107651.95 | AS30: 0 | AT30: 0 | AU30: 1340674.81 | AV30: 79753.91 | AW30: 0 | AX30: 0 | AY30: 4999175.07 | AZ30: 0 | BA30: 0 | BB30: 0 | BC30: 3901492.13 | BD30: 66541.17 | BE30: 0 | BF30: 0 | BG30: 6230766.72 | BH30: 0 | BI30: 0 | BJ30: 0 | BK30: 5770012.19 | BL30: 0 | BM30: 0 | BN30: 0 | BO30: 4591385.25 | BP30: 0 | BQ30: 0 | BR30: 0 | BS30: 3843974.51 | BT30: 53996.9 | BU30: 0 | BV30: 0 | BW30: 1855853.15 | BX30: 78427.58 | BY30: 0 | BZ30: 0 | CA30: 4779594.16 | CB30: 107975.65 | CC30: 0 | CD30: 0 | CE30: 4125590.72 | CF30: 99082.81 | CG30: 0 | CH30: 0 | CI30: 1549995.56 | CJ30: 15852.98 | CK30: 0 | CL30: 0 | CM30: 1990.350478 | CN30: 0 | CO30: 0.35 | CP30: 0.3833333333 | CQ30: 0.4166666667 | CR30: 0.45 | CS30: 0.4833333333 | CT30: 0.5166666667 | CU30: 0.55 | CV30: 0.5833333333 | CW30: 0.6166666667 | CX30: 0.65 | CY30: 0.6833333333 | CZ30: 0.7166666667 | DA30: 0.75 | DB30: 0.7833333333 | DC30: 0.8166666667 | DD30: 0.85 | DE30: 0.8833333333 | DF30: 0.9166666667 | DG30: 0.95 | DH30: 0.9833333333 | DI30: 1 | DJ30: 1962012.97 | DK30: 83992118.96 | DL30: 25131729.86 | DM30: 42041485.22 | DN30: 1962012.97 | DO30: 0 | DP30: 0.3166666667 | DQ30: 0.35 | DR30: 0.3833333333 | DS30: 0.4166666667 | DT30: 0.45 | DU30: 0.4833333333 | DV30: 0.5166666667 | DW30: 0.55 | DX30: 0.5833333333 | DY30: 0.6166666667 | DZ30: 0.65 | EA30: 0.6833333333 | EB30: 0.7166666667 | EC30: 0.75 | ED30: 0.7833333333 | EE30: 0.8166666667 | EF30: 0.85 | EG30: 0.8833333333 | EH30: 0.9166666667 | EI30: 0.95 | EJ30: 0.9666666667 | EK30: 1962012.97 | EL30: 0 | EM30: 0.2833333333 | EN30: 0.3166666667 | EO30: 0.35 | EP30: 0.3833333333 | EQ30: 0.4166666667 | ER30: 0.45 | ES30: 0.4833333333 | ET30: 0.5166666667 | EU30: 0.55 | EV30: 0.5833333333 | EW30: 0.6166666667 | EX30: 0.65 | EY30: 0.6833333333 | EZ30: 0.7166666667 | FA30: 0.75 | FB30: 0.7833333333 | FC30: 0.8166666667 | FD30: 0.85 | FE30: 0.8833333333 | FF30: 0.9166666667 | FG30: 0.9333333333 | FH30: 1962012.97 | FI30: 0 | FJ30: 0.25 | FK30: 0.2833333333 | FL30: 0.3166666667 | FM30: 0.35 | FN30: 0.3833333333 | FO30: 0.4166666667 | FP30: 0.45 | FQ30: 0.4833333333 | FR30: 0.5166666667 | FS30: 0.55 | FT30: 0.5833333333 | FU30: 0.6166666667 | FV30: 0.65 | FW30: 0.6833333333 | FX30: 0.7166666667 | FY30: 0.75 | FZ30: 0.7833333333 | GA30: 0.8166666667 | GB30: 0.85 | GC30: 0.8833333333 | GD30: 0.9 | GE30: 1962012.97 | GF30: 0 | GG30: 0.2166666667 | GH30: 0.25 | GI30: 0.2833333333 | GJ30: 0.3166666667 | GK30: 0.35 | GL30: 0.3833333333 | GM30: 0.4166666667 | GN30: 0.45 | GO30: 0.4833333333 | GP30: 0.5166666667 | GQ30: 0.55 | GR30: 0.5833333333 | GS30: 0.6166666667 | GT30: 0.65 | GU30: 0.6833333333 | GV30: 0.7166666667 | GW30: 0.75 | GX30: 0.7833333333 | GY30: 0.8166666667 | GZ30: 0.85 | HA30: 0.8666666667 | HB30: 1982481.718
B31: Otros centros de transformación MT/BT | C31: 30 | D31: 582102.32 | E31: 0 | F31: 435439.7285 | G31: 49599 | H31: 0 | I31: 0 | J31: 0 | K31: 20580 | L31: 0 | M31: 0 | N31: 0 | O31: 44317 | P31: 0 | Q31: 0 | R31: 0 | S31: 26564.04 | T31: 0 | U31: 0 | V31: 0 | W31: 43097.97 | X31: 0 | Y31: 0 | Z31: 0 | AA31: 42340.3 | AB31: 0 | AC31: 0 | AD31: 0 | AE31: 34266.95 | AF31: 0 | AG31: 0 | AH31: 0 | AI31: 70301.35 | AJ31: 0 | AK31: 0 | AL31: 0 | AM31: 0 | AN31: 0 | AO31: 0 | AP31: 0 | AQ31: 86601.96 | AR31: 4950.47 | AS31: 0 | AT31: 0 | AU31: 82795.47 | AV31: 380.35 | AW31: 0 | AX31: 0 | AY31: 134268.62 | AZ31: 212936.49 | BA31: 0 | BB31: 0 | BC31: 14436.84 | BD31: 0 | BE31: 0 | BF31: 0 | BG31: 173148.49 | BH31: 0 | BI31: 0 | BJ31: 0 | BK31: 364115.51 | BL31: 0 | BM31: 0 | BN31: 0 | BO31: 319221.11 | BP31: 0 | BQ31: 0 | BR31: 0 | BS31: 90390.7 | BT31: 747.45 | BU31: 0 | BV31: 0 | BW31: 16296.41 | BX31: 0 | BY31: 0 | BZ31: 0 | CA31: 917025.4899 | CB31: 0 | CC31: 0 | CD31: 0 | CE31: 573063.07 | CF31: 3055.98 | CG31: 0 | CH31: 0 | CI31: 608370.49 | CJ31: 388.99 | CK31: 0 | CL31: 0 | CM31: 1993.441401 | CN31: 0.06471338214 | CO31: 0.35 | CP31: 0.3833333333 | CQ31: 0.4166666667 | CR31: 0.45 | CS31: 0.4833333333 | CT31: 0.5166666667 | CU31: 0.55 | CV31: 0.5833333333 | CW31: 0.6166666667 | CX31: 0.65 | CY31: 0.6833333333 | CZ31: 0.7166666667 | DA31: 0.75 | DB31: 0.7833333333 | DC31: 0.8166666667 | DD31: 0.85 | DE31: 0.8833333333 | DF31: 0.9166666667 | DG31: 0.95 | DH31: 0.9833333333 | DI31: 1 | DJ31: 121134.6645 | DK31: 3634039.934 | DL31: 0 | DM31: 2714961.084 | DN31: 121134.6645 | DO31: 0.03138004881 | DP31: 0.3166666667 | DQ31: 0.35 | DR31: 0.3833333333 | DS31: 0.4166666667 | DT31: 0.45 | DU31: 0.4833333333 | DV31: 0.5166666667 | DW31: 0.55 | DX31: 0.5833333333 | DY31: 0.6166666667 | DZ31: 0.65 | EA31: 0.6833333333 | EB31: 0.7166666667 | EC31: 0.75 | ED31: 0.7833333333 | EE31: 0.8166666667 | EF31: 0.85 | EG31: 0.8833333333 | EH31: 0.9166666667 | EI31: 0.95 | EJ31: 0.9666666667 | EK31: 121134.6645 | EL31: 0 | EM31: 0.2833333333 | EN31: 0.3166666667 | EO31: 0.35 | EP31: 0.3833333333 | EQ31: 0.4166666667 | ER31: 0.45 | ES31: 0.4833333333 | ET31: 0.5166666667 | EU31: 0.55 | EV31: 0.5833333333 | EW31: 0.6166666667 | EX31: 0.65 | EY31: 0.6833333333 | EZ31: 0.7166666667 | FA31: 0.75 | FB31: 0.7833333333 | FC31: 0.8166666667 | FD31: 0.85 | FE31: 0.8833333333 | FF31: 0.9166666667 | FG31: 0.9333333333 | FH31: 101731.2538 | FI31: 0 | FJ31: 0.25 | FK31: 0.2833333333 | FL31: 0.3166666667 | FM31: 0.35 | FN31: 0.3833333333 | FO31: 0.4166666667 | FP31: 0.45 | FQ31: 0.4833333333 | FR31: 0.5166666667 | FS31: 0.55 | FT31: 0.5833333333 | FU31: 0.6166666667 | FV31: 0.65 | FW31: 0.6833333333 | FX31: 0.7166666667 | FY31: 0.75 | FZ31: 0.7833333333 | GA31: 0.8166666667 | GB31: 0.85 | GC31: 0.8833333333 | GD31: 0.9 | GE31: 101731.2538 | GF31: 0 | GG31: 0.2166666667 | GH31: 0.25 | GI31: 0.2833333333 | GJ31: 0.3166666667 | GK31: 0.35 | GL31: 0.3833333333 | GM31: 0.4166666667 | GN31: 0.45 | GO31: 0.4833333333 | GP31: 0.5166666667 | GQ31: 0.55 | GR31: 0.5833333333 | GS31: 0.6166666667 | GT31: 0.65 | GU31: 0.6833333333 | GV31: 0.7166666667 | GW31: 0.75 | GX31: 0.7833333333 | GY31: 0.8166666667 | GZ31: 0.85 | HA31: 0.8666666667 | HB31: 108271.012
B32: Baja tensión BT (<600V) | DJ32: 0 | DK32: 0 | DL32: 0 | EK32: 0 | FH32: 0 | GE32: 0
B33: Líneas aéreas BT | C33: 30 | D33: 236110.8508 | E33: 0 | F33: 223963.6465 | G33: 1782167 | H33: 0 | I33: 0 | J33: 0 | K33: 1438633 | L33: 0 | M33: 0 | N33: 0 | O33: 450884 | P33: 0 | Q33: 0 | R33: 0 | S33: 831027.6 | T33: 0 | U33: 0 | V33: 0 | W33: 1146625.14 | X33: 0 | Y33: 0 | Z33: 0 | AA33: 1790088.09 | AB33: 0 | AC33: 0 | AD33: 0 | AE33: 1323210.36 | AF33: 1068.74 | AG33: 0 | AH33: 0 | AI33: 2326449.385 | AJ33: 16827.01 | AK33: 0 | AL33: 0 | AM33: 1348039.26 | AN33: 5856.35 | AO33: 0 | AP33: 0 | AQ33: 1955066.42 | AR33: 4805.07 | AS33: 0 | AT33: 0 | AU33: 1518340.15 | AV33: 9761.77 | AW33: 0 | AX33: 0 | AY33: 1978615.09 | AZ33: 3229.97 | BA33: 0 | BB33: 0 | BC33: 1526151.13 | BD33: 278.72 | BE33: 0 | BF33: 0 | BG33: 1855661.54 | BH33: 9264.19 | BI33: 0 | BJ33: 0 | BK33: 1831350.14 | BL33: 11837.88 | BM33: 0 | BN33: 0 | BO33: 950419.31 | BP33: 0 | BQ33: 0 | BR33: 0 | BS33: 950872.66 | BT33: 0 | BU33: 0 | BV33: 0 | BW33: 394337.73 | BX33: 8947.73 | BY33: 0 | BZ33: 0 | CA33: 981436.0501 | CB33: 7526.37 | CC33: 0 | CD33: 0 | CE33: 1837888.27 | CF33: 1584.82 | CG33: 0 | CH33: 0 | CI33: 774740.49 | CJ33: 1443.63 | CK33: 0 | CL33: 0 | CM33: =IF(D33=0,0,2001-(D33-F33)*C33/D33) -> 1999.456589 | CN33: =IF((1-($DJ$2-$CM33)/$C33)>0,(1-($DJ$2-$CM33)/$C33),0) -> 0.2652196269 | CO33: =IF((1-($DJ$2-G$2)/$C33)>0,(1-($DJ$2-G$2)/$C33),0) -> 0.35 | CP33: =IF((1-($DJ$2-K$2)/$C33)>0,(1-($DJ$2-K$2)/$C33),0) -> 0.3833333333 | CQ33: =IF((1-($DJ$2-O$2)/$C33)>0,(1-($DJ$2-O$2)/$C33),0) -> 0.4166666667 | CR33: =IF((1-($DJ$2-S$2)/$C33)>0,(1-($DJ$2-S$2)/$C33),0) -> 0.45 | CS33: =IF((1-($DJ$2-W$2)/$C33)>0,(1-($DJ$2-W$2)/$C33),0) -> 0.4833333333 | CT33: =IF((1-($DJ$2-AA$2)/$C33)>0,(1-($DJ$2-AA$2)/$C33),0) -> 0.5166666667 | CU33: =IF((1-($DJ$2-AE$2)/$C33)>0,(1-($DJ$2-AE$2)/$C33),0) -> 0.55 | CV33: =IF((1-($DJ$2-AI$2)/$C33)>0,(1-($DJ$2-AI$2)/$C33),0) -> 0.5833333333 | CW33: =IF((1-($DJ$2-AM$2)/$C33)>0,(1-($DJ$2-AM$2)/$C33),0) -> 0.6166666667 | CX33: =IF((1-($DJ$2-AQ$2)/$C33)>0,(1-($DJ$2-AQ$2)/$C33),0) -> 0.65 | CY33: =IF((1-($DJ$2-AU$2)/$C33)>0,(1-($DJ$2-AU$2)/$C33),0) -> 0.6833333333 | CZ33: =IF((1-($DJ$2-AY$2)/$C33)>0,(1-($DJ$2-AY$2)/$C33),0) -> 0.7166666667 | DA33: =IF((1-($DJ$2-BC$2)/$C33)>0,(1-($DJ$2-BC$2)/$C33),0) -> 0.75 | DB33: =IF((1-($DJ$2-BG$2)/$C33)>0,(1-($DJ$2-BG$2)/$C33),0) -> 0.7833333333 | DC33: =IF((1-($DJ$2-BK$2)/$C33)>0,(1-($DJ$2-BK$2)/$C33),0) -> 0.8166666667 | DD33: =IF((1-($DJ$2-BO$2)/$C33)>0,(1-($DJ$2-BO$2)/$C33),0) -> 0.85 | DE33: =IF((1-($DJ$2-BS$2)/$C33)>0,(1-($DJ$2-BS$2)/$C33),0) -> 0.8833333333 | DF33: =IF((1-($DJ$2-BW$2)/$C33)>0,(1-($DJ$2-BW$2)/$C33),0) -> 0.9166666667 | DG33: =IF((1-($DJ$2-CA$2)/$C33)>0,(1-($DJ$2-CA$2)/$C33),0) -> 0.95 | DH33: =IF((1-($DJ$2-CE$2)/$C33)>0,(1-($DJ$2-CE$2)/$C33),0) -> 0.9833333333 | DI33: =IF((1-($DJ$2-CI$2)/$C33)>0,(1-($DJ$2-CI$2)/$C33),0) -> 1 | DJ33: 844316.41 | DK33: 25329492.3 | DL33: 0 | DM33: =(D33-E33)*CN33+((G33-H33-(I33-J33))*G$61)*CO33+((K33-L33-(M33-N33))*K$61)*CP33+((O33-P33-(Q33-R33))*O$61)*CQ33+((S33-T33-(U33-V33))*S$61)*CR33+((W33-X33-(Y33-Z33))*W$61)*CS33+((AA33-AB33-(AC33-AD33))*AA$61)*CT33+((AE33-AF33-(AG33-AH33))*AE$61)*CU33+((AI33-AJ33-(AK33-AL33))*AI$61)*CV33+((AM33-AN33-(AO33-AP33))*$AM$61)*CW33+((AQ33-AR33-(AS33-AT33))*$AQ$61)*CX33+((AU33-AV33-(AW33-AX33))*$AU$61)*CY33+((AY33-AZ33-(BA33-BB33))*$AY$61)*CZ33+((BC33-BD33-(BE33-BF33))*$BC$61)*DA33+((BG33-BH33-(BI33-BJ33))*$BG$61)*DB33+((BK33-BL33-(BM33-BN33))*$BK$61)*DC33+((BO33-BP33-(BQ33-BR33))*$BO$61)*DD33+((BS33-BT33-(BU33-BV33))*$BS$61)*DE33+((BW33-BX33-(BY33-BZ33))*$BW$61)*DF33+((CA33-CB33-(CC33-CD33))*$CA$61)*DG33+((CE33-CF33-(CG33-CH33))*$CE$61)*DH33+((CI33-CJ33-(CK33-CL33))*$CI$61)*DI33 -> 16921376.93 | DN33: =(DK33-DL33)*1/C33 -> 844316.41 | DO33: =IF((1-($EK$2-$CM33)/$C33)>0,(1-($EK$2-$CM33)/$C33),0) -> 0.2318862936 | DP33: =IF((1-($EK$2-DP$2)/$C33)>0,(1-($EK$2-DP$2)/$C33),0) -> 0.3166666667 | DQ33: 0.35 | DR33: 0.3833333333 | DS33: 0.4166666667 | DT33: 0.45 | DU33: 0.4833333333 | DV33: 0.5166666667 | DW33: 0.55 | DX33: 0.5833333333 | DY33: 0.6166666667 | DZ33: =IF((1-($EK$2-DZ$2)/$C33)>0,(1-($EK$2-DZ$2)/$C33),0) -> 0.65 | EA33: 0.6833333333 | EB33: 0.7166666667 | EC33: 0.75 | ED33: 0.7833333333 | EE33: 0.8166666667 | EF33: 0.85 | EG33: 0.8833333333 | EH33: 0.9166666667 | EI33: 0.95 | EJ33: 0.9666666667 | EK33: 844316.41 | EL33: =IF((1-($FH$2-$CM33)/$C33)>0,(1-($FH$2-$CM33)/$C33),0) -> 0.1985529603 | EM33: =IF((1-($FH$2-EM$2)/$C33)>0,(1-($FH$2-EM$2)/$C33),0) -> 0.2833333333 | EN33: 0.3166666667 | EO33: 0.35 | EP33: 0.3833333333 | EQ33: 0.4166666667 | ER33: 0.45 | ES33: 0.4833333333 | ET33: 0.5166666667 | EU33: 0.55 | EV33: 0.5833333333 | EW33: =IF((1-($FH$2-EW$2)/$C33)>0,(1-($FH$2-EW$2)/$C33),0) -> 0.6166666667 | EX33: 0.65 | EY33: 0.6833333333 | EZ33: 0.7166666667 | FA33: 0.75 | FB33: 0.7833333333 | FC33: 0.8166666667 | FD33: 0.85 | FE33: 0.8833333333 | FF33: 0.9166666667 | FG33: 0.9333333333 | FH33: 844316.41 | FI33: =IF((1-($GE$2-$CM33)/$C33)>0,(1-($GE$2-$CM33)/$C33),0) -> 0.1652196269 | FJ33: =IF((1-($GE$2-FJ$2)/$C33)>0,(1-($GE$2-FJ$2)/$C33),0) -> 0.25 | FK33: 0.2833333333 | FL33: 0.3166666667 | FM33: 0.35 | FN33: 0.3833333333 | FO33: 0.4166666667 | FP33: 0.45 | FQ33: 0.4833333333 | FR33: 0.5166666667 | FS33: 0.55 | FT33: =IF((1-($GE$2-FT$2)/$C33)>0,(1-($GE$2-FT$2)/$C33),0) -> 0.5833333333 | FU33: 0.6166666667 | FV33: 0.65 | FW33: 0.6833333333 | FX33: 0.7166666667 | FY33: 0.75 | FZ33: 0.7833333333 | GA33: 0.8166666667 | GB33: 0.85 | GC33: 0.8833333333 | GD33: 0.9 | GE33: 844316.41 | GF33: =IF((1-($HB$2-$CM33)/$C33)>0,(1-($HB$2-$CM33)/$C33),0) -> 0.1318862936 | GG33: =IF((1-($HB$2-GG$2)/$C33)>0,(1-($HB$2-GG$2)/$C33),0) -> 0.2166666667 | GH33: 0.25 | GI33: 0.2833333333 | GJ33: 0.3166666667 | GK33: 0.35 | GL33: 0.3833333333 | GM33: 0.4166666667 | GN33: 0.45 | GO33: 0.4833333333 | GP33: 0.5166666667 | GQ33: =IF((1-($HB$2-GQ$2)/$C33)>0,(1-($HB$2-GQ$2)/$C33),0) -> 0.55 | GR33: 0.5833333333 | GS33: 0.6166666667 | GT33: 0.65 | GU33: 0.6833333333 | GV33: 0.7166666667 | GW33: 0.75 | GX33: 0.7833333333 | GY33: 0.8166666667 | GZ33: 0.85 | HA33: 0.8666666667 | HB33: =IF(GF33=0,0,($D33-$E33)*1/$C33)+IF(GG33=0,0,($G33-$I33)*$G$61*1/$C33)+IF(GH33=0,0,($K33-$M33)*$K$61*1/$C33)+IF(GI33=0,0,($O33-$Q33)*$O$61*1/$C33)+IF(GJ33=0,0,($S33-$U33)*$S$61*1/$C33)+IF(GK33=0,0,($W33-$Y33)*$W$61*1/$C33)+IF(GL33=0,0,($AA33-$AC33)*$AA$61*1/$C33)+IF(GM33=0,0,($AE33-$AG33)*$AE$61*1/$C33)+IF(GN33=0,0,($AI33-$AK33)*$AI$61*1/$C33)+IF(GO33=0,0,($AM33-$AO33)*$AM$61*1/$C33)+IF(GP33=0,0,($AQ33-$AS33)*$AQ$61*1/$C33)+IF(GQ33=0,0,($AU33-$AW33)*$AU$61*1/$C33)+IF(GR33=0,0,($AY33-$BA33)*$AY$61*1/$C33)+IF(GS33=0,0,($BC33-$BE33)*$BC$61*1/$C33)+IF(GT33=0,0,($BG33-$BI33)*$BG$61*1/$C33)+IF(GU33=0,0,($BK33-$BM33)*$BK$61*1/$C33)+IF(GV33=0,0,($BO33-$BQ33)*$BO$61*1/$C33)+IF(GW33=0,0,($BS33-$BU33)*$BS$61*1/$C33)+IF(GX33=0,0,($BW33-$BY33)*$BW$61*1/$C33)+IF(GY33=0,0,($CA33-$CC33)*$CA$61*1/$C33)+IF(GZ33=0,0,($CE33-$CG33)*$CE$61*1/$C33)+IF(HA33=0,0,($CI33-$CK33)*$CI$61*1/$C33) -> 846669.9645
B34: Líneas subterráneas BT | C34: 30 | D34: 537225.1924 | E34: 0 | F34: 518558.3904 | G34: 534308 | H34: 0 | I34: 0 | J34: 0 | K34: 820576 | L34: 0 | M34: 0 | N34: 0 | O34: 829880 | P34: 0 | Q34: 0 | R34: 0 | S34: 1027608 | T34: 295810 | U34: 0 | V34: 0 | W34: 203264.6 | X34: 0 | Y34: 0 | Z34: 0 | AA34: 1015855.5 | AB34: 0 | AC34: 0 | AD34: 0 | AE34: 414355.48 | AF34: 0 | AG34: 0 | AH34: 0 | AI34: 38670.46 | AJ34: 0 | AK34: 0 | AL34: 0 | AM34: 27751.72 | AN34: 19209.87 | AO34: 0 | AP34: 0 | AQ34: 4949.82 | AR34: 0 | AS34: 0 | AT34: 0 | AU34: 0 | AV34: 0 | AW34: 0 | AX34: 0 | AY34: 99615.81 | AZ34: 0 | BA34: 0 | BB34: 0 | BC34: 784458.42 | BD34: 16663.68 | BE34: 0 | BF34: 0 | BG34: 1529852.93 | BH34: 125535.92 | BI34: 0 | BJ34: 0 | BK34: 1110913.07 | BL34: 113308.21 | BM34: 0 | BN34: 0 | BO34: 665995.81 | BP34: 0 | BQ34: 0 | BR34: 0 | BS34: 426013.62 | BT34: 11398.82 | BU34: 0 | BV34: 0 | BW34: 1005394.02 | BX34: 80887.02 | BY34: 0 | BZ34: 0 | CA34: 2313328.38 | CB34: 161385.16 | CC34: 0 | CD34: 0 | CE34: 771530.49 | CF34: 41744.59 | CG34: 0 | CH34: 0 | CI34: 205404.03 | CJ34: 1398.51 | CK34: 0 | CL34: 0 | CM34: =IF(D34=0,0,2001-(D34-F34)*C34/D34) -> 1999.957599 | CN34: =IF((1-($DJ$2-$CM34)/$C34)>0,(1-($DJ$2-$CM34)/$C34),0) -> 0.2819199677 | CO34: =IF((1-($DJ$2-G$2)/$C34)>0,(1-($DJ$2-G$2)/$C34),0) -> 0.35 | CP34: =IF((1-($DJ$2-K$2)/$C34)>0,(1-($DJ$2-K$2)/$C34),0) -> 0.3833333333 | CQ34: =IF((1-($DJ$2-O$2)/$C34)>0,(1-($DJ$2-O$2)/$C34),0) -> 0.4166666667 | CR34: =IF((1-($DJ$2-S$2)/$C34)>0,(1-($DJ$2-S$2)/$C34),0) -> 0.45 | CS34: =IF((1-($DJ$2-W$2)/$C34)>0,(1-($DJ$2-W$2)/$C34),0) -> 0.4833333333 | CT34: =IF((1-($DJ$2-AA$2)/$C34)>0,(1-($DJ$2-AA$2)/$C34),0) -> 0.5166666667 | CU34: =IF((1-($DJ$2-AE$2)/$C34)>0,(1-($DJ$2-AE$2)/$C34),0) -> 0.55 | CV34: =IF((1-($DJ$2-AI$2)/$C34)>0,(1-($DJ$2-AI$2)/$C34),0) -> 0.5833333333 | CW34: =IF((1-($DJ$2-AM$2)/$C34)>0,(1-($DJ$2-AM$2)/$C34),0) -> 0.6166666667 | CX34: =IF((1-($DJ$2-AQ$2)/$C34)>0,(1-($DJ$2-AQ$2)/$C34),0) -> 0.65 | CY34: =IF((1-($DJ$2-AU$2)/$C34)>0,(1-($DJ$2-AU$2)/$C34),0) -> 0.6833333333 | CZ34: =IF((1-($DJ$2-AY$2)/$C34)>0,(1-($DJ$2-AY$2)/$C34),0) -> 0.7166666667 | DA34: =IF((1-($DJ$2-BC$2)/$C34)>0,(1-($DJ$2-BC$2)/$C34),0) -> 0.75 | DB34: =IF((1-($DJ$2-BG$2)/$C34)>0,(1-($DJ$2-BG$2)/$C34),0) -> 0.7833333333 | DC34: =IF((1-($DJ$2-BK$2)/$C34)>0,(1-($DJ$2-BK$2)/$C34),0) -> 0.8166666667 | DD34: =IF((1-($DJ$2-BO$2)/$C34)>0,(1-($DJ$2-BO$2)/$C34),0) -> 0.85 | DE34: =IF((1-($DJ$2-BS$2)/$C34)>0,(1-($DJ$2-BS$2)/$C34),0) -> 0.8833333333 | DF34: =IF((1-($DJ$2-BW$2)/$C34)>0,(1-($DJ$2-BW$2)/$C34),0) -> 0.9166666667 | DG34: =IF((1-($DJ$2-CA$2)/$C34)>0,(1-($DJ$2-CA$2)/$C34),0) -> 0.95 | DH34: =IF((1-($DJ$2-CE$2)/$C34)>0,(1-($DJ$2-CE$2)/$C34),0) -> 0.9833333333 | DI34: =IF((1-($DJ$2-CI$2)/$C34)>0,(1-($DJ$2-CI$2)/$C34),0) -> 1 | DJ34: 402392.6611 | DK34: 12071779.83 | DL34: 0 | DM34: 8452753.621 | DN34: =(DK34-DL34)*1/C34 -> 402392.6611 | DO34: =IF((1-($EK$2-$CM34)/$C34)>0,(1-($EK$2-$CM34)/$C34),0) -> 0.2485866344 | DP34: 0.3166666667 | DQ34: 0.35 | DR34: 0.3833333333 | DS34: 0.4166666667 | DT34: 0.45 | DU34: 0.4833333333 | DV34: 0.5166666667 | DW34: 0.55 | DX34: 0.5833333333 | DY34: 0.6166666667 | DZ34: 0.65 | EA34: 0.6833333333 | EB34: 0.7166666667 | EC34: 0.75 | ED34: 0.7833333333 | EE34: 0.8166666667 | EF34: 0.85 | EG34: 0.8833333333 | EH34: 0.9166666667 | EI34: 0.95 | EJ34: 0.9666666667 | EK34: 402392.6611 | EL34: =IF((1-($FH$2-$CM34)/$C34)>0,(1-($FH$2-$CM34)/$C34),0) -> 0.215253301 | EM34: 0.2833333333 | EN34: 0.3166666667 | EO34: 0.35 | EP34: 0.3833333333 | EQ34: 0.4166666667 | ER34: 0.45 | ES34: 0.4833333333 | ET34: 0.5166666667 | EU34: 0.55 | EV34: 0.5833333333 | EW34: 0.6166666667 | EX34: 0.65 | EY34: 0.6833333333 | EZ34: 0.7166666667 | FA34: 0.75 | FB34: 0.7833333333 | FC34: 0.8166666667 | FD34: 0.85 | FE34: 0.8833333333 | FF34: 0.9166666667 | FG34: 0.9333333333 | FH34: 402392.6611 | FI34: =IF((1-($GE$2-$CM34)/$C34)>0,(1-($GE$2-$CM34)/$C34),0) -> 0.1819199677 | FJ34: 0.25 | FK34: 0.2833333333 | FL34: 0.3166666667 | FM34: 0.35 | FN34: 0.3833333333 | FO34: 0.4166666667 | FP34: 0.45 | FQ34: 0.4833333333 | FR34: 0.5166666667 | FS34: 0.55 | FT34: 0.5833333333 | FU34: 0.6166666667 | FV34: 0.65 | FW34: 0.6833333333 | FX34: 0.7166666667 | FY34: 0.75 | FZ34: 0.7833333333 | GA34: 0.8166666667 | GB34: 0.85 | GC34: 0.8833333333 | GD34: 0.9 | GE34: 402392.6611 | GF34: =IF((1-($HB$2-$CM34)/$C34)>0,(1-($HB$2-$CM34)/$C34),0) -> 0.1485866344 | GG34: 0.2166666667 | GH34: 0.25 | GI34: 0.2833333333 | GJ34: 0.3166666667 | GK34: 0.35 | GL34: 0.3833333333 | GM34: 0.4166666667 | GN34: 0.45 | GO34: 0.4833333333 | GP34: 0.5166666667 | GQ34: 0.55 | GR34: 0.5833333333 | GS34: 0.6166666667 | GT34: 0.65 | GU34: 0.6833333333 | GV34: 0.7166666667 | GW34: 0.75 | GX34: 0.7833333333 | GY34: 0.8166666667 | GZ34: 0.85 | HA34: 0.8666666667 | HB34: 428249.9684
B35: Acometidas BT | C35: 30 | D35: 18043448.88 | E35: 0 | F35: 9331186.039 | G35: 2614412 | H35: 230284 | I35: 0 | J35: 0 | K35: 2242964 | L35: 442941 | M35: 0 | N35: 0 | O35: 1431877 | P35: 305350 | Q35: 0 | R35: 0 | S35: 1386283.2 | T35: 0 | U35: 0 | V35: 0 | W35: 1824018.95 | X35: 6234.91 | Y35: 0 | Z35: 0 | AA35: 1670519.71 | AB35: 0 | AC35: 0 | AD35: 0 | AE35: 2013268.162 | AF35: 0 | AG35: 0 | AH35: 0 | AI35: 3397582.584 | AJ35: 60938.20096 | AK35: 0 | AL35: 0 | AM35: 2667627.848 | AN35: 311054.49 | AO35: 0 | AP35: 0 | AQ35: 2671007.87 | AR35: 115637.59 | AS35: 0 | AT35: 0 | AU35: 2508547.34 | AV35: 169101.73 | AW35: 0 | AX35: 0 | AY35: 3518081.96 | AZ35: 69778.26 | BA35: 0 | BB35: 0 | BC35: 1415756.67 | BD35: 0 | BE35: 0 | BF35: 0 | BG35: 1960305.67 | BH35: 0 | BI35: 0 | BJ35: 0 | BK35: 1832333.97 | BL35: 0 | BM35: 0 | BN35: 0 | BO35: 1869131.97 | BP35: 0 | BQ35: 0 | BR35: 0 | BS35: 1291035.32 | BT35: 0 | BU35: 0 | BV35: 0 | BW35: 1618693.02 | BX35: 0 | BY35: 0 | BZ35: 0 | CA35: 1714750.82 | CB35: 0 | CC35: 0 | CD35: 0 | CE35: 2150902.68 | CF35: 29.21 | CG35: 0 | CH35: 0 | CI35: 962055.99 | CJ35: 0 | CK35: 0 | CL35: 0 | CM35: =IF(D35=0,0,2001-(D35-F35)*C35/D35) -> 1986.514527 | CN35: =IF((1-($DJ$2-$CM35)/$C35)>0,(1-($DJ$2-$CM35)/$C35),0) -> 0 | CO35: =IF((1-($DJ$2-G$2)/$C35)>0,(1-($DJ$2-G$2)/$C35),0) -> 0.35 | CP35: =IF((1-($DJ$2-K$2)/$C35)>0,(1-($DJ$2-K$2)/$C35),0) -> 0.3833333333 | CQ35: =IF((1-($DJ$2-O$2)/$C35)>0,(1-($DJ$2-O$2)/$C35),0) -> 0.4166666667 | CR35: =IF((1-($DJ$2-S$2)/$C35)>0,(1-($DJ$2-S$2)/$C35),0) -> 0.45 | CS35: =IF((1-($DJ$2-W$2)/$C35)>0,(1-($DJ$2-W$2)/$C35),0) -> 0.4833333333 | CT35: =IF((1-($DJ$2-AA$2)/$C35)>0,(1-($DJ$2-AA$2)/$C35),0) -> 0.5166666667 | CU35: =IF((1-($DJ$2-AE$2)/$C35)>0,(1-($DJ$2-AE$2)/$C35),0) -> 0.55 | CV35: =IF((1-($DJ$2-AI$2)/$C35)>0,(1-($DJ$2-AI$2)/$C35),0) -> 0.5833333333 | CW35: =IF((1-($DJ$2-AM$2)/$C35)>0,(1-($DJ$2-AM$2)/$C35),0) -> 0.6166666667 | CX35: =IF((1-($DJ$2-AQ$2)/$C35)>0,(1-($DJ$2-AQ$2)/$C35),0) -> 0.65 | CY35: =IF((1-($DJ$2-AU$2)/$C35)>0,(1-($DJ$2-AU$2)/$C35),0) -> 0.6833333333 | CZ35: =IF((1-($DJ$2-AY$2)/$C35)>0,(1-($DJ$2-AY$2)/$C35),0) -> 0.7166666667 | DA35: =IF((1-($DJ$2-BC$2)/$C35)>0,(1-($DJ$2-BC$2)/$C35),0) -> 0.75 | DB35: =IF((1-($DJ$2-BG$2)/$C35)>0,(1-($DJ$2-BG$2)/$C35),0) -> 0.7833333333 | DC35: =IF((1-($DJ$2-BK$2)/$C35)>0,(1-($DJ$2-BK$2)/$C35),0) -> 0.8166666667 | DD35: =IF((1-($DJ$2-BO$2)/$C35)>0,(1-($DJ$2-BO$2)/$C35),0) -> 0.85 | DE35: =IF((1-($DJ$2-BS$2)/$C35)>0,(1-($DJ$2-BS$2)/$C35),0) -> 0.8833333333 | DF35: =IF((1-($DJ$2-BW$2)/$C35)>0,(1-($DJ$2-BW$2)/$C35),0) -> 0.9166666667 | DG35: =IF((1-($DJ$2-CA$2)/$C35)>0,(1-($DJ$2-CA$2)/$C35),0) -> 0.95 | DH35: =IF((1-($DJ$2-CE$2)/$C35)>0,(1-($DJ$2-CE$2)/$C35),0) -> 0.9833333333 | DI35: =IF((1-($DJ$2-CI$2)/$C35)>0,(1-($DJ$2-CI$2)/$C35),0) -> 1 | DJ35: 1186752.287 | DK35: 53646017.5 | DL35: 18043448.88 | DM35: 23949457.25 | DN35: =(DK35-DL35)*1/C35 -> 1186752.287 | DO35: =IF((1-($EK$2-$CM35)/$C35)>0,(1-($EK$2-$CM35)/$C35),0) -> 0 | DP35: 0.3166666667 | DQ35: 0.35 | DR35: 0.3833333333 | DS35: 0.4166666667 | DT35: 0.45 | DU35: 0.4833333333 | DV35: 0.5166666667 | DW35: 0.55 | DX35: 0.5833333333 | DY35: 0.6166666667 | DZ35: 0.65 | EA35: 0.6833333333 | EB35: 0.7166666667 | EC35: 0.75 | ED35: 0.7833333333 | EE35: 0.8166666667 | EF35: 0.85 | EG35: 0.8833333333 | EH35: 0.9166666667 | EI35: 0.95 | EJ35: 0.9666666667 | EK35: 1186752.287 | EL35: =IF((1-($FH$2-$CM35)/$C35)>0,(1-($FH$2-$CM35)/$C35),0) -> 0 | EM35: 0.2833333333 | EN35: 0.3166666667 | EO35: 0.35 | EP35: 0.3833333333 | EQ35: 0.4166666667 | ER35: 0.45 | ES35: 0.4833333333 | ET35: 0.5166666667 | EU35: 0.55 | EV35: 0.5833333333 | EW35: 0.6166666667 | EX35: 0.65 | EY35: 0.6833333333 | EZ35: 0.7166666667 | FA35: 0.75 | FB35: 0.7833333333 | FC35: 0.8166666667 | FD35: 0.85 | FE35: 0.8833333333 | FF35: 0.9166666667 | FG35: 0.9333333333 | FH35: 1186752.287 | FI35: =IF((1-($GE$2-$CM35)/$C35)>0,(1-($GE$2-$CM35)/$C35),0) -> 0 | FJ35: 0.25 | FK35: 0.2833333333 | FL35: 0.3166666667 | FM35: 0.35 | FN35: 0.3833333333 | FO35: 0.4166666667 | FP35: 0.45 | FQ35: 0.4833333333 | FR35: 0.5166666667 | FS35: 0.55 | FT35: 0.5833333333 | FU35: 0.6166666667 | FV35: 0.65 | FW35: 0.6833333333 | FX35: 0.7166666667 | FY35: 0.75 | FZ35: 0.7833333333 | GA35: 0.8166666667 | GB35: 0.85 | GC35: 0.8833333333 | GD35: 0.9 | GE35: 1186752.287 | GF35: =IF((1-($HB$2-$CM35)/$C35)>0,(1-($HB$2-$CM35)/$C35),0) -> 0 | GG35: 0.2166666667 | GH35: 0.25 | GI35: 0.2833333333 | GJ35: 0.3166666667 | GK35: 0.35 | GL35: 0.3833333333 | GM35: 0.4166666667 | GN35: 0.45 | GO35: 0.4833333333 | GP35: 0.5166666667 | GQ35: 0.55 | GR35: 0.5833333333 | GS35: 0.6166666667 | GT35: 0.65 | GU35: 0.6833333333 | GV35: 0.7166666667 | GW35: 0.75 | GX35: 0.7833333333 | GY35: 0.8166666667 | GZ35: 0.85 | HA35: 0.8666666667 | HB35: 1237144.945
B36: Otros equipos del sistema de distribución | DJ36: 0 | DK36: 0 | DL36: 0 | EK36: 0 | FH36: 0 | GE36: 0
B37: Otros equipos del sistema de Distribución | C37: 10 | D37: 419003.6486 | E37: 0 | F37: 47721.65246 | G37: 50996.05 | H37: 0 | I37: 0 | J37: 0 | K37: 0 | L37: 0 | M37: 0 | N37: 0 | O37: 0 | P37: 0 | Q37: 0 | R37: 0 | S37: 0 | T37: 0 | U37: 0 | V37: 0 | W37: 32333.32 | X37: 0 | Y37: 0 | Z37: 0 | AA37: 92602.96 | AB37: 0 | AC37: 0 | AD37: 0 | AE37: 57320.06 | AF37: 0 | AG37: 0 | AH37: 0 | AI37: 608397.24 | AJ37: 0 | AK37: 0 | AL37: 0 | AM37: 155566.77 | AN37: 5960.97 | AO37: 0 | AP37: 0 | AQ37: 91593.78 | AR37: 0 | AS37: 0 | AT37: 0 | AU37: 761499.12 | AV37: 0 | AW37: 0 | AX37: 0 | AY37: 279864.82 | AZ37: 0 | BA37: 0 | BB37: 0 | BC37: 47003.75 | BD37: 0 | BE37: 0 | BF37: 0 | BG37: 48039.09 | BH37: 0 | BI37: 0 | BJ37: 0 | BK37: 62116.02 | BL37: 0 | BM37: 0 | BN37: 0 | BO37: 46262.67 | BP37: 0 | BQ37: 0 | BR37: 0 | BS37: 505432.72 | BT37: 976.29 | BU37: 0 | BV37: 0 | BW37: 353159.95 | BX37: 2462.85 | BY37: 0 | BZ37: 0 | CA37: 2496707.47 | CB37: 2321.25 | CC37: 0 | CD37: 0 | CE37: 4549892.72 | CF37: 6994.68 | CG37: 0 | CH37: 0 | CI37: 2071733.64 | CJ37: 0 | CK37: 0 | CL37: 0 | CM37: =IF(D37=0,0,2001-(D37-F37)*C37/D37) -> 1992.138932 | CN37: =IF((1-($DJ$2-$CM37)/$C37)>0,(1-($DJ$2-$CM37)/$C37),0) -> 0 | CO37: =IF((1-($DJ$2-G$2)/$C37)>0,(1-($DJ$2-G$2)/$C37),0) -> 0 | CP37: =IF((1-($DJ$2-K$2)/$C37)>0,(1-($DJ$2-K$2)/$C37),0) -> 0 | CQ37: =IF((1-($DJ$2-O$2)/$C37)>0,(1-($DJ$2-O$2)/$C37),0) -> 0 | CR37: =IF((1-($DJ$2-S$2)/$C37)>0,(1-($DJ$2-S$2)/$C37),0) -> 0 | CS37: =IF((1-($DJ$2-W$2)/$C37)>0,(1-($DJ$2-W$2)/$C37),0) -> 0 | CT37: =IF((1-($DJ$2-AA$2)/$C37)>0,(1-($DJ$2-AA$2)/$C37),0) -> 0 | CU37: =IF((1-($DJ$2-AE$2)/$C37)>0,(1-($DJ$2-AE$2)/$C37),0) -> 0 | CV37: =IF((1-($DJ$2-AI$2)/$C37)>0,(1-($DJ$2-AI$2)/$C37),0) -> 0 | CW37: =IF((1-($DJ$2-AM$2)/$C37)>0,(1-($DJ$2-AM$2)/$C37),0) -> 0 | CX37: =IF((1-($DJ$2-AQ$2)/$C37)>0,(1-($DJ$2-AQ$2)/$C37),0) -> 0 | CY37: =IF((1-($DJ$2-AU$2)/$C37)>0,(1-($DJ$2-AU$2)/$C37),0) -> 0.05 | CZ37: =IF((1-($DJ$2-AY$2)/$C37)>0,(1-($DJ$2-AY$2)/$C37),0) -> 0.15 | DA37: =IF((1-($DJ$2-BC$2)/$C37)>0,(1-($DJ$2-BC$2)/$C37),0) -> 0.25 | DB37: =IF((1-($DJ$2-BG$2)/$C37)>0,(1-($DJ$2-BG$2)/$C37),0) -> 0.35 | DC37: =IF((1-($DJ$2-BK$2)/$C37)>0,(1-($DJ$2-BK$2)/$C37),0) -> 0.45 | DD37: =IF((1-($DJ$2-BO$2)/$C37)>0,(1-($DJ$2-BO$2)/$C37),0) -> 0.55 | DE37: =IF((1-($DJ$2-BS$2)/$C37)>0,(1-($DJ$2-BS$2)/$C37),0) -> 0.65 | DF37: =IF((1-($DJ$2-BW$2)/$C37)>0,(1-($DJ$2-BW$2)/$C37),0) -> 0.75 | DG37: =IF((1-($DJ$2-CA$2)/$C37)>0,(1-($DJ$2-CA$2)/$C37),0) -> 0.85 | DH37: =IF((1-($DJ$2-CE$2)/$C37)>0,(1-($DJ$2-CE$2)/$C37),0) -> 0.95 | DI37: =IF((1-($DJ$2-CI$2)/$C37)>0,(1-($DJ$2-CI$2)/$C37),0) -> 1 | DJ37: 983310.861 | DK37: 11141424.25 | DL37: 1308315.637 | DM37: =(D37-E37)*CN37+((G37-H37-(I37-J37))*G$61)*CO37+((K37-L37-(M37-N37))*K$61)*CP37+((O37-P37-(Q37-R37))*O$61)*CQ37+((S37-T37-(U37-V37))*S$61)*CR37+((W37-X37-(Y37-Z37))*W$61)*CS37+((AA37-AB37-(AC37-AD37))*AA$61)*CT37+((AE37-AF37-(AG37-AH37))*AE$61)*CU37+((AI37-AJ37-(AK37-AL37))*AI$61)*CV37+((AM37-AN37-(AO37-AP37))*$AM$61)*CW37+((AQ37-AR37-(AS37-AT37))*$AQ$61)*CX37+((AU37-AV37-(AW37-AX37))*$AU$61)*CY37+((AY37-AZ37-(BA37-BB37))*$AY$61)*CZ37+((BC37-BD37-(BE37-BF37))*$BC$61)*DA37+((BG37-BH37-(BI37-BJ37))*$BG$61)*DB37+((BK37-BL37-(BM37-BN37))*$BK$61)*DC37+((BO37-BP37-(BQ37-BR37))*$BO$61)*DD37+((BS37-BT37-(BU37-BV37))*$BS$61)*DE37+((BW37-BX37-(BY37-BZ37))*$BW$61)*DF37+((CA37-CB37-(CC37-CD37))*$CA$61)*DG37+((CE37-CF37-(CG37-CH37))*$CE$61)*DH37+((CI37-CJ37-(CK37-CL37))*$CI$61)*DI37 -> 8139881.729 | DN37: =(DK37-DL37)*1/C37 -> 983310.861 | DO37: =IF((1-($EK$2-$CM37)/$C37)>0,(1-($EK$2-$CM37)/$C37),0) -> 0 | DP37: =IF((1-($EK$2-DP$2)/$C37)>0,(1-($EK$2-DP$2)/$C37),0) -> 0 | DQ37: 0 | DR37: 0 | DS37: 0 | DT37: 0 | DU37: 0 | DV37: 0 | DW37: 0 | DX37: 0 | DY37: 0 | DZ37: =IF((1-($EK$2-DZ$2)/$C37)>0,(1-($EK$2-DZ$2)/$C37),0) -> 0 | EA37: 0.05 | EB37: 0.15 | EC37: 0.25 | ED37: 0.35 | EE37: 0.45 | EF37: 0.55 | EG37: 0.65 | EH37: 0.75 | EI37: 0.85 | EJ37: 0.9 | EK37: 918917.7534 | EL37: =IF((1-($FH$2-$CM37)/$C37)>0,(1-($FH$2-$CM37)/$C37),0) -> 0 | EM37: =IF((1-($FH$2-EM$2)/$C37)>0,(1-($FH$2-EM$2)/$C37),0) -> 0 | EN37: 0 | EO37: 0 | EP37: 0 | EQ37: 0 | ER37: 0 | ES37: 0 | ET37: 0 | EU37: 0 | EV37: 0 | EW37: =IF((1-($FH$2-EW$2)/$C37)>0,(1-($FH$2-EW$2)/$C37),0) -> 0 | EX37: 0 | EY37: 0.05 | EZ37: 0.15 | FA37: 0.25 | FB37: 0.35 | FC37: 0.45 | FD37: 0.55 | FE37: 0.65 | FF37: 0.75 | FG37: 0.8 | FH37: 894200.6784 | FI37: =IF((1-($GE$2-$CM37)/$C37)>0,(1-($GE$2-$CM37)/$C37),0) -> 0 | FJ37: =IF((1-($GE$2-FJ$2)/$C37)>0,(1-($GE$2-FJ$2)/$C37),0) -> 0 | FK37: 0 | FL37: 0 | FM37: 0 | FN37: 0 | FO37: 0 | FP37: 0 | FQ37: 0 | FR37: 0 | FS37: 0 | FT37: =IF((1-($GE$2-FT$2)/$C37)>0,(1-($GE$2-FT$2)/$C37),0) -> 0 | FU37: 0 | FV37: 0 | FW37: 0.05 | FX37: 0.15 | FY37: 0.25 | FZ37: 0.35 | GA37: 0.45 | GB37: 0.55 | GC37: 0.65 | GD37: 0.7 | GE37: 889975.3716 | GF37: =IF((1-($HB$2-$CM37)/$C37)>0,(1-($HB$2-$CM37)/$C37),0) -> 0 | GG37: =IF((1-($HB$2-GG$2)/$C37)>0,(1-($HB$2-GG$2)/$C37),0) -> 0 | GH37: 0 | GI37: 0 | GJ37: 0 | GK37: 0 | GL37: 0 | GM37: 0 | GN37: 0 | GO37: 0 | GP37: 0 | GQ37: =IF((1-($HB$2-GQ$2)/$C37)>0,(1-($HB$2-GQ$2)/$C37),0) -> 0 | GR37: 0 | GS37: 0 | GT37: 0 | GU37: 0.05 | GV37: 0.15 | GW37: 0.25 | GX37: 0.35 | GY37: 0.45 | GZ37: 0.55 | HA37: 0.6 | HB37: =IF(GF37=0,0,($D37-$E37)*1/$C37)+IF(GG37=0,0,($G37-$I37)*$G$61*1/$C37)+IF(GH37=0,0,($K37-$M37)*$K$61*1/$C37)+IF(GI37=0,0,($O37-$Q37)*$O$61*1/$C37)+IF(GJ37=0,0,($S37-$U37)*$S$61*1/$C37)+IF(GK37=0,0,($W37-$Y37)*$W$61*1/$C37)+IF(GL37=0,0,($AA37-$AC37)*$AA$61*1/$C37)+IF(GM37=0,0,($AE37-$AG37)*$AE$61*1/$C37)+IF(GN37=0,0,($AI37-$AK37)*$AI$61*1/$C37)+IF(GO37=0,0,($AM37-$AO37)*$AM$61*1/$C37)+IF(GP37=0,0,($AQ37-$AS37)*$AQ$61*1/$C37)+IF(GQ37=0,0,($AU37-$AW37)*$AU$61*1/$C37)+IF(GR37=0,0,($AY37-$BA37)*$AY$61*1/$C37)+IF(GS37=0,0,($BC37-$BE37)*$BC$61*1/$C37)+IF(GT37=0,0,($BG37-$BI37)*$BG$61*1/$C37)+IF(GU37=0,0,($BK37-$BM37)*$BK$61*1/$C37)+IF(GV37=0,0,($BO37-$BQ37)*$BO$61*1/$C37)+IF(GW37=0,0,($BS37-$BU37)*$BS$61*1/$C37)+IF(GX37=0,0,($BW37-$BY37)*$BW$61*1/$C37)+IF(GY37=0,0,($CA37-$CC37)*$CA$61*1/$C37)+IF(GZ37=0,0,($CE37-$CG37)*$CE$61*1/$C37)+IF(HA37=0,0,($CI37-$CK37)*$CI$61*1/$C37) -> 886837.6929
B38: Equipos de transporte y carga | C38: 5 | D38: 91181.24899 | E38: 0 | F38: 88375.7564 | G38: 69500 | H38: 0 | I38: 0 | J38: 0 | K38: 54333 | L38: 0 | M38: 0 | N38: 0 | O38: 154614 | P38: 0 | Q38: 0 | R38: 0 | S38: 60572 | T38: 0 | U38: 0 | V38: 0 | W38: 0 | X38: 0 | Y38: 0 | Z38: 0 | AA38: 0 | AB38: 0 | AC38: 0 | AD38: 0 | AE38: 0 | AF38: 0 | AG38: 0 | AH38: 0 | AI38: 0 | AJ38: 0 | AK38: 0 | AL38: 0 | AM38: 0 | AN38: 0 | AO38: 0 | AP38: 0 | AQ38: 0 | AR38: 0 | AS38: 0 | AT38: 0 | AU38: 0 | AV38: 0 | AW38: 0 | AX38: 0 | AY38: 0 | AZ38: 0 | BA38: 0 | BB38: 0 | BC38: 0 | BD38: 0 | BE38: 0 | BF38: 0 | BG38: 0 | BH38: 0 | BI38: 0 | BJ38: 0 | BK38: 0 | BL38: 0 | BM38: 0 | BN38: 0 | BO38: 0 | BP38: 0 | BQ38: 0 | BR38: 0 | BS38: 0 | BT38: 0 | BU38: 0 | BV38: 0 | BW38: 0 | BX38: 0 | BY38: 0 | BZ38: 0 | CA38: 0 | CB38: 0 | CC38: 0 | CD38: 0 | CE38: 0 | CF38: 0 | CG38: 0 | CH38: 0 | CI38: 0 | CJ38: 0 | CK38: 0 | CL38: 0 | CM38: 2000.846158 | CN38: 0 | CO38: 0 | CP38: 0 | CQ38: 0 | CR38: 0 | CS38: 0 | CT38: 0 | CU38: 0 | CV38: 0 | CW38: 0 | CX38: 0 | CY38: 0 | CZ38: 0 | DA38: 0 | DB38: 0 | DC38: 0 | DD38: 0.1 | DE38: 0.3 | DF38: 0.5 | DG38: 0.7 | DH38: 0.9 | DI38: 1 | DJ38: 0 | DK38: 410167.86 | DL38: 410167.86 | DM38: 0 | DN38: 0 | DO38: 0 | DP38: 0 | DQ38: 0 | DR38: 0 | DS38: 0 | DT38: 0 | DU38: 0 | DV38: 0 | DW38: 0 | DX38: 0 | DY38: 0 | DZ38: 0 | EA38: 0 | EB38: 0 | EC38: 0 | ED38: 0 | EE38: 0 | EF38: 0.1 | EG38: 0.3 | EH38: 0.5 | EI38: 0.7 | EJ38: 0.8 | EK38: 0 | EL38: 0 | EM38: 0 | EN38: 0 | EO38: 0 | EP38: 0 | EQ38: 0 | ER38: 0 | ES38: 0 | ET38: 0 | EU38: 0 | EV38: 0 | EW38: 0 | EX38: 0 | EY38: 0 | EZ38: 0 | FA38: 0 | FB38: 0 | FC38: 0 | FD38: 0.1 | FE38: 0.3 | FF38: 0.5 | FG38: 0.6 | FH38: 0 | FI38: 0 | FJ38: 0 | FK38: 0 | FL38: 0 | FM38: 0 | FN38: 0 | FO38: 0 | FP38: 0 | FQ38: 0 | FR38: 0 | FS38: 0 | FT38: 0 | FU38: 0 | FV38: 0 | FW38: 0 | FX38: 0 | FY38: 0 | FZ38: 0 | GA38: 0 | GB38: 0.1 | GC38: 0.3 | GD38: 0.4 | GE38: 0 | GF38: 0 | GG38: 0 | GH38: 0 | GI38: 0 | GJ38: 0 | GK38: 0 | GL38: 0 | GM38: 0 | GN38: 0 | GO38: 0 | GP38: 0 | GQ38: 0 | GR38: 0 | GS38: 0 | GT38: 0 | GU38: 0 | GV38: 0 | GW38: 0 | GX38: 0 | GY38: 0 | GZ38: 0.1 | HA38: 0.2 | HB38: 0
B39: Terrenos | C39: 1000 | D39: 62150.35974 | E39: 0 | F39: 62150.35974 | G39: 0 | H39: 0 | I39: 0 | J39: 0 | K39: 0 | L39: 0 | M39: 0 | N39: 0 | O39: 0 | P39: 0 | Q39: 0 | R39: 0 | S39: 0 | T39: 0 | U39: 0 | V39: 0 | W39: 0 | X39: 0 | Y39: 0 | Z39: 0 | AA39: 0 | AB39: 0 | AC39: 0 | AD39: 0 | AE39: 0 | AF39: 0 | AG39: 0 | AH39: 0 | AI39: 0 | AJ39: 0 | AK39: 0 | AL39: 0 | AM39: 0 | AN39: 0 | AO39: 0 | AP39: 0 | AQ39: 0 | AR39: 0 | AS39: 0 | AT39: 0 | AU39: 0 | AV39: 0 | AW39: 0 | AX39: 0 | AY39: 0 | AZ39: 0 | BA39: 0 | BB39: 0 | BC39: 0 | BD39: 0 | BE39: 0 | BF39: 0 | BG39: 0 | BH39: 0 | BI39: 0 | BJ39: 0 | BK39: 0 | BL39: 0 | BM39: 0 | BN39: 0 | BO39: 0 | BP39: 0 | BQ39: 0 | BR39: 0 | BS39: 0 | BT39: 0 | BU39: 0 | BV39: 0 | BW39: 0 | BX39: 0 | BY39: 0 | BZ39: 0 | CA39: 0 | CB39: 0 | CC39: 0 | CD39: 0 | CE39: 0 | CF39: 0 | CG39: 0 | CH39: 0 | CI39: 0 | CJ39: 0 | CK39: 0 | CL39: 0 | CM39: 2001 | CN39: 0.9795 | CO39: 0.9805 | CP39: 0.9815 | CQ39: 0.9825 | CR39: 0.9835 | CS39: 0.9845 | CT39: 0.9855 | CU39: 0.9865 | CV39: 0.9875 | CW39: 0.9885 | CX39: 0.9895 | CY39: 0.9905 | CZ39: 0.9915 | DA39: 0.9925 | DB39: 0.9935 | DC39: 0.9945 | DD39: 0.9955 | DE39: 0.9965 | DF39: 0.9975 | DG39: 0.9985 | DH39: 0.9995 | DI39: 1 | DJ39: 62.15035974 | DK39: 62150.35974 | DL39: 0 | DM39: 60876.27736 | DN39: 62.15035974 | DO39: 0.9785 | DP39: 0.9795 | DQ39: 0.9805 | DR39: 0.9815 | DS39: 0.9825 | DT39: 0.9835 | DU39: 0.9845 | DV39: 0.9855 | DW39: 0.9865 | DX39: 0.9875 | DY39: 0.9885 | DZ39: 0.9895 | EA39: 0.9905 | EB39: 0.9915 | EC39: 0.9925 | ED39: 0.9935 | EE39: 0.9945 | EF39: 0.9955 | EG39: 0.9965 | EH39: 0.9975 | EI39: 0.9985 | EJ39: 0.999 | EK39: 62.15035974 | EL39: 0.9775 | EM39: 0.9785 | EN39: 0.9795 | EO39: 0.9805 | EP39: 0.9815 | EQ39: 0.9825 | ER39: 0.9835 | ES39: 0.9845 | ET39: 0.9855 | EU39: 0.9865 | EV39: 0.9875 | EW39: 0.9885 | EX39: 0.9895 | EY39: 0.9905 | EZ39: 0.9915 | FA39: 0.9925 | FB39: 0.9935 | FC39: 0.9945 | FD39: 0.9955 | FE39: 0.9965 | FF39: 0.9975 | FG39: 0.998 | FH39: 62.15035974 | FI39: 0.9765 | FJ39: 0.9775 | FK39: 0.9785 | FL39: 0.9795 | FM39: 0.9805 | FN39: 0.9815 | FO39: 0.9825 | FP39: 0.9835 | FQ39: 0.9845 | FR39: 0.9855 | FS39: 0.9865 | FT39: 0.9875 | FU39: 0.9885 | FV39: 0.9895 | FW39: 0.9905 | FX39: 0.9915 | FY39: 0.9925 | FZ39: 0.9935 | GA39: 0.9945 | GB39: 0.9955 | GC39: 0.9965 | GD39: 0.997 | GE39: 62.15035974 | GF39: 0.9755 | GG39: 0.9765 | GH39: 0.9775 | GI39: 0.9785 | GJ39: 0.9795 | GK39: 0.9805 | GL39: 0.9815 | GM39: 0.9825 | GN39: 0.9835 | GO39: 0.9845 | GP39: 0.9855 | GQ39: 0.9865 | GR39: 0.9875 | GS39: 0.9885 | GT39: 0.9895 | GU39: 0.9905 | GV39: 0.9915 | GW39: 0.9925 | GX39: 0.9935 | GY39: 0.9945 | GZ39: 0.9955 | HA39: 0.996 | HB39: 62.15035974
B40: Edificios y mejoras | C40: 40 | D40: 1977598.44 | E40: 0 | F40: 1916751.085 | G40: 18271 | H40: 0 | I40: 0 | J40: 0 | K40: 160233 | L40: 0 | M40: 0 | N40: 0 | O40: 35925 | P40: 0 | Q40: 0 | R40: 0 | S40: 83536.23 | T40: 0 | U40: 0 | V40: 0 | W40: 0 | X40: 0 | Y40: 0 | Z40: 0 | AA40: 0 | AB40: 0 | AC40: 0 | AD40: 0 | AE40: 0 | AF40: 0 | AG40: 0 | AH40: 0 | AI40: 0 | AJ40: 0 | AK40: 0 | AL40: 0 | AM40: 0 | AN40: 0 | AO40: 0 | AP40: 0 | AQ40: 0 | AR40: 0 | AS40: 0 | AT40: 0 | AU40: 0 | AV40: 0 | AW40: 0 | AX40: 0 | AY40: 0 | AZ40: 0 | BA40: 0 | BB40: 0 | BC40: 0 | BD40: 0 | BE40: 0 | BF40: 0 | BG40: 0 | BH40: 0 | BI40: 0 | BJ40: 0 | BK40: 0 | BL40: 0 | BM40: 0 | BN40: 0 | BO40: 0 | BP40: 0 | BQ40: 0 | BR40: 0 | BS40: 0 | BT40: 0 | BU40: 0 | BV40: 0 | BW40: 0 | BX40: 0 | BY40: 0 | BZ40: 0 | CA40: 0 | CB40: 0 | CC40: 0 | CD40: 0 | CE40: 0 | CF40: 0 | CG40: 0 | CH40: 0 | CI40: 0 | CJ40: 0 | CK40: 0 | CL40: 0 | CM40: 1999.769268 | CN40: 0.4567316938 | CO40: 0.5125 | CP40: 0.5375 | CQ40: 0.5625 | CR40: 0.5875 | CS40: 0.6125 | CT40: 0.6375 | CU40: 0.6625 | CV40: 0.6875 | CW40: 0.7125 | CX40: 0.7375 | CY40: 0.7625 | CZ40: 0.7875 | DA40: 0.8125 | DB40: 0.8375 | DC40: 0.8625 | DD40: 0.8875 | DE40: 0.9125 | DF40: 0.9375 | DG40: 0.9625 | DH40: 0.9875 | DI40: 1 | DJ40: 56290.26838 | DK40: 2251610.735 | DL40: 0 | DM40: 1054787.753 | DN40: 56290.26838 | DO40: 0.4317316938 | DP40: 0.4875 | DQ40: 0.5125 | DR40: 0.5375 | DS40: 0.5625 | DT40: 0.5875 | DU40: 0.6125 | DV40: 0.6375 | DW40: 0.6625 | DX40: 0.6875 | DY40: 0.7125 | DZ40: 0.7375 | EA40: 0.7625 | EB40: 0.7875 | EC40: 0.8125 | ED40: 0.8375 | EE40: 0.8625 | EF40: 0.8875 | EG40: 0.9125 | EH40: 0.9375 | EI40: 0.9625 | EJ40: 0.975 | EK40: 56290.26838 | EL40: 0.4067316938 | EM40: 0.4625 | EN40: 0.4875 | EO40: 0.5125 | EP40: 0.5375 | EQ40: 0.5625 | ER40: 0.5875 | ES40: 0.6125 | ET40: 0.6375 | EU40: 0.6625 | EV40: 0.6875 | EW40: 0.7125 | EX40: 0.7375 | EY40: 0.7625 | EZ40: 0.7875 | FA40: 0.8125 | FB40: 0.8375 | FC40: 0.8625 | FD40: 0.8875 | FE40: 0.9125 | FF40: 0.9375 | FG40: 0.95 | FH40: 56290.26838 | FI40: 0.3817316938 | FJ40: 0.4375 | FK40: 0.4625 | FL40: 0.4875 | FM40: 0.5125 | FN40: 0.5375 | FO40: 0.5625 | FP40: 0.5875 | FQ40: 0.6125 | FR40: 0.6375 | FS40: 0.6625 | FT40: 0.6875 | FU40: 0.7125 | FV40: 0.7375 | FW40: 0.7625 | FX40: 0.7875 | FY40: 0.8125 | FZ40: 0.8375 | GA40: 0.8625 | GB40: 0.8875 | GC40: 0.9125 | GD40: 0.925 | GE40: 56290.26838 | GF40: 0.3567316938 | GG40: 0.4125 | GH40: 0.4375 | GI40: 0.4625 | GJ40: 0.4875 | GK40: 0.5125 | GL40: 0.5375 | GM40: 0.5625 | GN40: 0.5875 | GO40: 0.6125 | GP40: 0.6375 | GQ40: 0.6625 | GR40: 0.6875 | GS40: 0.7125 | GT40: 0.7375 | GU40: 0.7625 | GV40: 0.7875 | GW40: 0.8125 | GX40: 0.8375 | GY40: 0.8625 | GZ40: 0.8875 | HA40: 0.9 | HB40: 56290.26838
B41: Despachos de maniobra y SCADA | C41: 10 | D41: 0 | E41: 0 | F41: 0 | G41: 367074 | H41: 0 | I41: 0 | J41: 0 | K41: 197373 | L41: 0 | M41: 0 | N41: 0 | O41: 289814 | P41: 0 | Q41: 0 | R41: 0 | S41: 0 | T41: 0 | U41: 0 | V41: 0 | W41: 670306.23 | X41: 0 | Y41: 0 | Z41: 0 | AA41: 0 | AB41: 0 | AC41: 0 | AD41: 0 | AE41: 117338.7 | AF41: 0 | AG41: 0 | AH41: 0 | AI41: 3453882.81 | AJ41: 0 | AK41: 0 | AL41: 0 | AM41: 281793.6 | AN41: 0 | AO41: 0 | AP41: 0 | AQ41: 206232.2 | AR41: 0 | AS41: 0 | AT41: 0 | AU41: 0 | AV41: 0 | AW41: 0 | AX41: 0 | AY41: 226145.46 | AZ41: 0 | BA41: 0 | BB41: 0 | BC41: 1334510.33 | BD41: 0 | BE41: 0 | BF41: 0 | BG41: 1099767.12 | BH41: 31.77 | BI41: 0 | BJ41: 0 | BK41: 1086012.02 | BL41: 0 | BM41: 0 | BN41: 0 | BO41: 41282.66 | BP41: 0 | BQ41: 0 | BR41: 0 | BS41: 2066156.55 | BT41: 0 | BU41: 0 | BV41: 0 | BW41: 825218.19 | BX41: 7071.64 | BY41: 0 | BZ41: 0 | CA41: 863509.4998 | CB41: 8811.01 | CC41: 0 | CD41: 0 | CE41: 1531892.37 | CF41: 6913.56 | CG41: 0 | CH41: 0 | CI41: 2035037.84 | CJ41: 682.54 | CK41: 0 | CL41: 0 | CM41: 0 | CN41: 0 | CO41: 0 | CP41: 0 | CQ41: 0 | CR41: 0 | CS41: 0 | CT41: 0 | CU41: 0 | CV41: 0 | CW41: 0 | CX41: 0 | CY41: 0.05 | CZ41: 0.15 | DA41: 0.25 | DB41: 0.35 | DC41: 0.45 | DD41: 0.55 | DE41: 0.65 | DF41: 0.75 | DG41: 0.85 | DH41: 0.95 | DI41: 1 | DJ41: =IF(CN41=0,0,($D41-$E41)*1/$C41)+IF(CO41=0,0,($G41-$H41-$I41)*$G$61*1/$C41)+IF(CP41=0,0,($K41-$L41-$M41)*$K$61*1/$C41)+IF(CQ41=0,0,($O41-$P41-$Q41)*$O$61*1/$C41)+IF(CR41=0,0,($S41-$T41-$U41)*$S$61*1/$C41)+IF(CS41=0,0,($W41-$X41-$Y41)*$W$61*1/$C41)+IF(CT41=0,0,($AA41-$AB41-$AC41)*$AA$61*1/$C41)+IF(CU41=0,0,($AE41-$AF41-$AG41)*$AE$61*1/$C41)+IF(CV41=0,0,($AI41-$AJ41-$AK41)*$AI$61*1/$C41)+IF(CW41=0,0,($AM41-$AN41-$AO41)*$AM$61*1/$C41)+IF(CX41=0,0,($AQ41-$AR41-$AS41)*$AQ$61*1/$C41)+IF(CY41=0,0,($AU41-$AV41-$AW41)*$AU$61*1/$C41)+IF(CZ41=0,0,($AY41-$AZ41-$BA41)*$AY$61*1/$C41)+IF(DA41=0,0,($BC41-$BD41-$BE41)*$BC$61*1/$C41)+IF(DB41=0,0,($BG41-$BH41-$BI41)*$BG$61*1/$C41)+IF(DC41=0,0,($BK41-$BL41-$BM41)*$BK$61*1/$C41)+IF(DD41=0,0,($BO41-$BP41-$BQ41)*$BO$61*1/$C41)+IF(DE41=0,0,($BS41-$BT41-$BU41)*$BS$61*1/$C41)+IF(DF41=0,0,($BW41-$BX41-$BY41)*$BW$61*1/$C41)+IF(DG41=0,0,($CA41-$CB41-$CC41)*$CA$61*1/$C41)+IF(DH41=0,0,($CE41-$CF41-$CG41)*$CE$61*1/$C41)+IF(DI41=0,0,($CI41-$CJ41-$CK41)*$CI$61*1/$C41) -> 981221.7388 | DK41: 14433449.55 | DL41: 4621232.16 | DM41: 6550834.272 | DN41: 981221.7388 | DO41: 0 | DP41: 0 | DQ41: 0 | DR41: 0 | DS41: 0 | DT41: 0 | DU41: 0 | DV41: 0 | DW41: 0 | DX41: 0 | DY41: 0 | DZ41: 0 | EA41: 0.05 | EB41: 0.15 | EC41: 0.25 | ED41: 0.35 | EE41: 0.45 | EF41: 0.55 | EG41: 0.65 | EH41: 0.75 | EI41: 0.85 | EJ41: 0.9 | EK41: 981221.7388 | EL41: 0 | EM41: 0 | EN41: 0 | EO41: 0 | EP41: 0 | EQ41: 0 | ER41: 0 | ES41: 0 | ET41: 0 | EU41: 0 | EV41: 0 | EW41: 0 | EX41: 0 | EY41: 0.05 | EZ41: 0.15 | FA41: 0.25 | FB41: 0.35 | FC41: 0.45 | FD41: 0.55 | FE41: 0.65 | FF41: 0.75 | FG41: 0.8 | FH41: 961249.0452 | FI41: 0 | FJ41: 0 | FK41: 0 | FL41: 0 | FM41: 0 | FN41: 0 | FO41: 0 | FP41: 0 | FQ41: 0 | FR41: 0 | FS41: 0 | FT41: 0 | FU41: 0 | FV41: 0 | FW41: 0.05 | FX41: 0.15 | FY41: 0.25 | FZ41: 0.35 | GA41: 0.45 | GB41: 0.55 | GC41: 0.65 | GD41: 0.7 | GE41: 841285.9424 | GF41: 0 | GG41: 0 | GH41: 0 | GI41: 0 | GJ41: 0 | GK41: 0 | GL41: 0 | GM41: 0 | GN41: 0 | GO41: 0 | GP41: 0 | GQ41: 0 | GR41: 0 | GS41: 0 | GT41: 0 | GU41: 0.05 | GV41: 0.15 | GW41: 0.25 | GX41: 0.35 | GY41: 0.45 | GZ41: 0.55 | HA41: 0.6 | HB41: 745650.4662
B42: Equipos de medición y control de la calidad del suministro | C42: 22 | D42: 0 | E42: 0 | F42: 0 | G42: 1217774 | H42: 0 | I42: 0 | J42: 0 | K42: 109648 | L42: 0 | M42: 0 | N42: 0 | O42: 20124 | P42: 0 | Q42: 0 | R42: 0 | S42: 101244 | T42: 0 | U42: 0 | V42: 0 | W42: 46928.19 | X42: 0 | Y42: 0 | Z42: 0 | AA42: 0 | AB42: 0 | AC42: 0 | AD42: 0 | AE42: 71043.37 | AF42: 0 | AG42: 0 | AH42: 0 | AI42: 38519.63 | AJ42: 0 | AK42: 0 | AL42: 0 | AM42: 60364.81 | AN42: 0 | AO42: 0 | AP42: 0 | AQ42: 88977.22 | AR42: 0 | AS42: 0 | AT42: 0 | AU42: 134285.39 | AV42: 0 | AW42: 0 | AX42: 0 | AY42: 52844.4 | AZ42: 5219.62 | BA42: 0 | BB42: 0 | BC42: 1007730.57 | BD42: 9346.52 | BE42: 0 | BF42: 0 | BG42: 2277399.6 | BH42: 778.16 | BI42: 0 | BJ42: 0 | BK42: 2299245.7 | BL42: 3960.19 | BM42: 0 | BN42: 0 | BO42: 1268334.07 | BP42: 0 | BQ42: 0 | BR42: 0 | BS42: 981212.57 | BT42: 2784.76 | BU42: 0 | BV42: 0 | BW42: 38068.93 | BX42: 0 | BY42: 0 | BZ42: 0 | CA42: 279697.04 | CB42: 0 | CC42: 0 | CD42: 0 | CE42: 217227.71 | CF42: 0 | CG42: 0 | CH42: 0 | CI42: 220673.3 | CJ42: 0 | CK42: 0 | CL42: 0 | CM42: 0 | CN42: 0 | CO42: 0.1136363636 | CP42: 0.1590909091 | CQ42: 0.2045454545 | CR42: 0.25 | CS42: 0.2954545455 | CT42: 0.3409090909 | CU42: 0.3863636364 | CV42: 0.4318181818 | CW42: 0.4772727273 | CX42: 0.5227272727 | CY42: 0.5681818182 | CZ42: 0.6136363636 | DA42: 0.6590909091 | DB42: 0.7045454545 | DC42: 0.75 | DD42: 0.7954545455 | DE42: 0.8409090909 | DF42: 0.8863636364 | DG42: 0.9318181818 | DH42: 0.9772727273 | DI42: 1 | DJ42: 425389.1598 | DK42: 9358561.515 | DL42: 0 | DM42: 6175740.234 | DN42: 425389.1598 | DO42: 0 | DP42: 0.06818181818 | DQ42: 0.1136363636 | DR42: 0.1590909091 | DS42: 0.2045454545 | DT42: 0.25 | DU42: 0.2954545455 | DV42: 0.3409090909 | DW42: 0.3863636364 | DX42: 0.4318181818 | DY42: 0.4772727273 | DZ42: 0.5227272727 | EA42: 0.5681818182 | EB42: 0.6136363636 | EC42: 0.6590909091 | ED42: 0.7045454545 | EE42: 0.75 | EF42: 0.7954545455 | EG42: 0.8409090909 | EH42: 0.8863636364 | EI42: 0.9318181818 | EJ42: 0.9545454545 | EK42: 425389.1598 | EL42: 0 | EM42: 0.02272727273 | EN42: 0.06818181818 | EO42: 0.1136363636 | EP42: 0.1590909091 | EQ42: 0.2045454545 | ER42: 0.25 | ES42: 0.2954545455 | ET42: 0.3409090909 | EU42: 0.3863636364 | EV42: 0.4318181818 | EW42: 0.4772727273 | EX42: 0.5227272727 | EY42: 0.5681818182 | EZ42: 0.6136363636 | FA42: 0.6590909091 | FB42: 0.7045454545 | FC42: 0.75 | FD42: 0.7954545455 | FE42: 0.8409090909 | FF42: 0.8863636364 | FG42: 0.9090909091 | FH42: 425389.1598 | FI42: 0 | FJ42: 0 | FK42: 0.02272727273 | FL42: 0.06818181818 | FM42: 0.1136363636 | FN42: 0.1590909091 | FO42: 0.2045454545 | FP42: 0.25 | FQ42: 0.2954545455 | FR42: 0.3409090909 | FS42: 0.3863636364 | FT42: 0.4318181818 | FU42: 0.4772727273 | FV42: 0.5227272727 | FW42: 0.5681818182 | FX42: 0.6136363636 | FY42: 0.6590909091 | FZ42: 0.7045454545 | GA42: 0.75 | GB42: 0.7954545455 | GC42: 0.8409090909 | GD42: 0.8636363636 | GE42: 374060.8096 | GF42: 0 | GG42: 0 | GH42: 0 | GI42: 0.02272727273 | GJ42: 0.06818181818 | GK42: 0.1136363636 | GL42: 0.1590909091 | GM42: 0.2045454545 | GN42: 0.25 | GO42: 0.2954545455 | GP42: 0.3409090909 | GQ42: 0.3863636364 | GR42: 0.4318181818 | GS42: 0.4772727273 | GT42: 0.5227272727 | GU42: 0.5681818182 | GV42: 0.6136363636 | GW42: 0.6590909091 | GX42: 0.7045454545 | GY42: 0.75 | GZ42: 0.7954545455 | HA42: 0.8181818182 | HB42: 370424.5119
B43: Equipos de computación | C43: 4 | D43: 527305.3021 | E43: 0 | F43: 511081.0111 | G43: 0 | H43: 0 | I43: 0 | J43: 0 | K43: 18875 | L43: 0 | M43: 0 | N43: 0 | O43: 187562 | P43: 0 | Q43: 0 | R43: 0 | S43: 85312 | T43: 0 | U43: 0 | V43: 0 | W43: 11490.15 | X43: 0 | Y43: 0 | Z43: 0 | AA43: 0 | AB43: 0 | AC43: 0 | AD43: 0 | AE43: 917.79 | AF43: 0 | AG43: 0 | AH43: 0 | AI43: 42982.07 | AJ43: 0 | AK43: 0 | AL43: 0 | AM43: 0 | AN43: 0 | AO43: 0 | AP43: 0 | AQ43: 0 | AR43: 0 | AS43: 0 | AT43: 0 | AU43: 0 | AV43: 0 | AW43: 0 | AX43: 0 | AY43: 0 | AZ43: 0 | BA43: 0 | BB43: 0 | BC43: 0 | BD43: 0 | BE43: 0 | BF43: 0 | BG43: 0 | BH43: 0 | BI43: 0 | BJ43: 0 | BK43: 0 | BL43: 0 | BM43: 0 | BN43: 0 | BO43: 0 | BP43: 0 | BQ43: 0 | BR43: 0 | BS43: 0 | BT43: 0 | BU43: 0 | BV43: 0 | BW43: 0 | BX43: 0 | BY43: 0 | BZ43: 0 | CA43: 0 | CB43: 0 | CC43: 0 | CD43: 0 | CE43: 0 | CF43: 0 | CG43: 0 | CH43: 0 | CI43: 0 | CJ43: 0 | CK43: 0 | CL43: 0 | CM43: 2000.876927 | CN43: 0 | CO43: 0 | CP43: 0 | CQ43: 0 | CR43: 0 | CS43: 0 | CT43: 0 | CU43: 0 | CV43: 0 | CW43: 0 | CX43: 0 | CY43: 0 | CZ43: 0 | DA43: 0 | DB43: 0 | DC43: 0 | DD43: 0 | DE43: 0.125 | DF43: 0.375 | DG43: 0.625 | DH43: 0.875 | DI43: 1 | DJ43: 0 | DK43: 848781.2532 | DL43: 848781.2532 | DM43: 0 | DN43: 0 | DO43: 0 | DP43: 0 | DQ43: 0 | DR43: 0 | DS43: 0 | DT43: 0 | DU43: 0 | DV43: 0 | DW43: 0 | DX43: 0 | DY43: 0 | DZ43: 0 | EA43: 0 | EB43: 0 | EC43: 0 | ED43: 0 | EE43: 0 | EF43: 0 | EG43: 0.125 | EH43: 0.375 | EI43: 0.625 | EJ43: 0.75 | EK43: 0 | EL43: 0 | EM43: 0 | EN43: 0 | EO43: 0 | EP43: 0 | EQ43: 0 | ER43: 0 | ES43: 0 | ET43: 0 | EU43: 0 | EV43: 0 | EW43: 0 | EX43: 0 | EY43: 0 | EZ43: 0 | FA43: 0 | FB43: 0 | FC43: 0 | FD43: 0 | FE43: 0.125 | FF43: 0.375 | FG43: 0.5 | FH43: 0 | FI43: 0 | FJ43: 0 | FK43: 0 | FL43: 0 | FM43: 0 | FN43: 0 | FO43: 0 | FP43: 0 | FQ43: 0 | FR43: 0 | FS43: 0 | FT43: 0 | FU43: 0 | FV43: 0 | FW43: 0 | FX43: 0 | FY43: 0 | FZ43: 0 | GA43: 0 | GB43: 0 | GC43: 0.125 | GD43: 0.25 | GE43: 0 | GF43: 0 | GG43: 0 | GH43: 0 | GI43: 0 | GJ43: 0 | GK43: 0 | GL43: 0 | GM43: 0 | GN43: 0 | GO43: 0 | GP43: 0 | GQ43: 0 | GR43: 0 | GS43: 0 | GT43: 0 | GU43: 0 | GV43: 0 | GW43: 0 | GX43: 0 | GY43: 0 | GZ43: 0 | HA43: 0 | HB43: 0
B44: Equipos de comunicaciones | C44: 8 | D44: 4896.612758 | E44: 0 | F44: 4660.165384 | G44: 102945 | H44: 0 | I44: 0 | J44: 0 | K44: 43378 | L44: 0 | M44: 0 | N44: 0 | O44: 41725.35 | P44: 0 | Q44: 0 | R44: 0 | S44: 177400.99 | T44: 0 | U44: 0 | V44: 0 | W44: 19333.39 | X44: 0 | Y44: 0 | Z44: 0 | AA44: 58875.6 | AB44: 0 | AC44: 0 | AD44: 0 | AE44: 106274.03 | AF44: 0 | AG44: 0 | AH44: 0 | AI44: 152534.25 | AJ44: 0 | AK44: 0 | AL44: 0 | AM44: 0 | AN44: 0 | AO44: 0 | AP44: 0 | AQ44: 0 | AR44: 0 | AS44: 0 | AT44: 0 | AU44: 0 | AV44: 0 | AW44: 0 | AX44: 0 | AY44: 0 | AZ44: 0 | BA44: 0 | BB44: 0 | BC44: 0 | BD44: 0 | BE44: 0 | BF44: 0 | BG44: 0 | BH44: 0 | BI44: 0 | BJ44: 0 | BK44: 0 | BL44: 0 | BM44: 0 | BN44: 0 | BO44: 0 | BP44: 0 | BQ44: 0 | BR44: 0 | BS44: 0 | BT44: 0 | BU44: 0 | BV44: 0 | BW44: 0 | BX44: 0 | BY44: 0 | BZ44: 0 | CA44: 0 | CB44: 0 | CC44: 0 | CD44: 0 | CE44: 0 | CF44: 0 | CG44: 0 | CH44: 0 | CI44: 0 | CJ44: 0 | CK44: 0 | CL44: 0 | CM44: 2000.613696 | CN44: 0 | CO44: 0 | CP44: 0 | CQ44: 0 | CR44: 0 | CS44: 0 | CT44: 0 | CU44: 0 | CV44: 0 | CW44: 0 | CX44: 0 | CY44: 0 | CZ44: 0 | DA44: 0.0625 | DB44: 0.1875 | DC44: 0.3125 | DD44: 0.4375 | DE44: 0.5625 | DF44: 0.6875 | DG44: 0.8125 | DH44: 0.9375 | DI44: 1 | DJ44: 0 | DK44: 623879.8314 | DL44: 623879.8314 | DM44: 0 | DN44: 0 | DO44: 0 | DP44: 0 | DQ44: 0 | DR44: 0 | DS44: 0 | DT44: 0 | DU44: 0 | DV44: 0 | DW44: 0 | DX44: 0 | DY44: 0 | DZ44: 0 | EA44: 0 | EB44: 0 | EC44: 0.0625 | ED44: 0.1875 | EE44: 0.3125 | EF44: 0.4375 | EG44: 0.5625 | EH44: 0.6875 | EI44: 0.8125 | EJ44: 0.875 | EK44: 0 | EL44: 0 | EM44: 0 | EN44: 0 | EO44: 0 | EP44: 0 | EQ44: 0 | ER44: 0 | ES44: 0 | ET44: 0 | EU44: 0 | EV44: 0 | EW44: 0 | EX44: 0 | EY44: 0 | EZ44: 0 | FA44: 0.0625 | FB44: 0.1875 | FC44: 0.3125 | FD44: 0.4375 | FE44: 0.5625 | FF44: 0.6875 | FG44: 0.75 | FH44: 0 | FI44: 0 | FJ44: 0 | FK44: 0 | FL44: 0 | FM44: 0 | FN44: 0 | FO44: 0 | FP44: 0 | FQ44: 0 | FR44: 0 | FS44: 0 | FT44: 0 | FU44: 0 | FV44: 0 | FW44: 0 | FX44: 0 | FY44: 0.0625 | FZ44: 0.1875 | GA44: 0.3125 | GB44: 0.4375 | GC44: 0.5625 | GD44: 0.625 | GE44: 0 | GF44: 0 | GG44: 0 | GH44: 0 | GI44: 0 | GJ44: 0 | GK44: 0 | GL44: 0 | GM44: 0 | GN44: 0 | GO44: 0 | GP44: 0 | GQ44: 0 | GR44: 0 | GS44: 0 | GT44: 0 | GU44: 0 | GV44: 0 | GW44: 0.0625 | GX44: 0.1875 | GY44: 0.3125 | GZ44: 0.4375 | HA44: 0.5 | HB44: 0
B45: TOTAL SISTEMA DE DISTRIBUCIÓN | D45: =SUM(D14:D44) -> 206217578.1 | E45: =SUM(E14:E44) -> 0 | F45: 141777035.3 | G45: =SUM(G14:G44) -> 16424207.08 | H45: =SUM(H14:H44) -> 916316 | I45: 0 | J45: 0 | K45: =SUM(K14:K44) -> 15951346 | L45: =SUM(L14:L44) -> 1225093 | M45: =SUM(M14:M44) -> 0 | N45: =SUM(N14:N44) -> 0 | O45: =SUM(O14:O44) -> 13618725.35 | P45: =SUM(P14:P44) -> 832125 | Q45: =SUM(Q14:Q44) -> 0 | R45: =SUM(R14:R44) -> 0 | S45: =SUM(S14:S44) -> 12573647.84 | T45: =SUM(T14:T44) -> 673159 | U45: =SUM(U14:U44) -> 0 | V45: =SUM(V14:V44) -> 0 | W45: =SUM(W14:W44) -> 13734953.57 | X45: =SUM(X14:X44) -> 111212.25 | Y45: =SUM(Y14:Y44) -> 0 | Z45: =SUM(Z14:Z44) -> 0 | AA45: =SUM(AA14:AA44) -> 15826991.7 | AB45: =SUM(AB14:AB44) -> 1668.33 | AC45: =SUM(AC14:AC44) -> 0 | AD45: =SUM(AD14:AD44) -> 0 | AE45: =SUM(AE14:AE44) -> 11791736.08 | AF45: =SUM(AF14:AF44) -> 4120.59 | AG45: =SUM(AG14:AG44) -> 0 | AH45: =SUM(AH14:AH44) -> 0 | AI45: =SUM(AI14:AI44) -> 22626525.46 | AJ45: =SUM(AJ14:AJ44) -> 968965.4882 | AK45: =SUM(AK14:AK44) -> 0 | AL45: =SUM(AL14:AL44) -> 0 | AM45: =SUM(AM14:AM44) -> 16129613.41 | AN45: =SUM(AN14:AN44) -> 1107304.87 | AO45: =SUM(AO14:AO44) -> 0 | AP45: =SUM(AP14:AP44) -> 0 | AQ45: =SUM(AQ14:AQ44) -> 16112050.38 | AR45: =SUM(AR14:AR44) -> 517260.67 | AS45: =SUM(AS14:AS44) -> 0 | AT45: =SUM(AT14:AT44) -> 0 | AU45: =SUM(AU14:AU44) -> 15412639.65 | AV45: =SUM(AV14:AV44) -> 496742.91 | AW45: =SUM(AW14:AW44) -> 0 | AX45: =SUM(AX14:AX44) -> 0 | AY45: =SUM(AY14:AY44) -> 41940937.82 | AZ45: =SUM(AZ14:AZ44) -> 1138047.25 | BA45: =SUM(BA14:BA44) -> 0 | BB45: =SUM(BB14:BB44) -> 0 | BC45: =SUM(BC14:BC44) -> 38240684.7 | BD45: =SUM(BD14:BD44) -> 594153.48 | BE45: =SUM(BE14:BE44) -> 0 | BF45: =SUM(BF14:BF44) -> 0 | BG45: =SUM(BG14:BG44) -> 52908452.63 | BH45: =SUM(BH14:BH44) -> 1285520.76 | BI45: =SUM(BI14:BI44) -> 0 | BJ45: =SUM(BJ14:BJ44) -> 0 | BK45: =SUM(BK14:BK44) -> 51217096.27 | BL45: =SUM(BL14:BL44) -> 1007037.63 | BM45: =SUM(BM14:BM44) -> 0 | BN45: =SUM(BN14:BN44) -> 0 | BO45: =SUM(BO14:BO44) -> 36874476.07 | BP45: =SUM(BP14:BP44) -> 0 | BQ45: =SUM(BQ14:BQ44) -> 0 | BR45: =SUM(BR14:BR44) -> 0 | BS45: =SUM(BS14:BS44) -> 40396333.58 | BT45: =SUM(BT14:BT44) -> 569195.68 | BU45: =SUM(BU14:BU44) -> 0 | BV45: =SUM(BV14:BV44) -> 0 | BW45: =SUM(BW14:BW44) -> 22023804.82 | BX45: =SUM(BX14:BX44) -> 689374.09 | BY45: =SUM(BY14:BY44) -> 0 | BZ45: =SUM(BZ14:BZ44) -> 0 | CA45: =SUM(CA14:CA44) -> 32318413.43 | CB45: =SUM(CB14:CB44) -> 944313.25 | CC45: =SUM(CC14:CC44) -> 0 | CD45: =SUM(CD14:CD44) -> 0 | CE45: =SUM(CE14:CE44) -> 38032268.82 | CF45: =SUM(CF14:CF44) -> 585239.84 | CG45: =SUM(CG14:CG44) -> 0 | CH45: =SUM(CH14:CH44) -> 0 | CI45: =SUM(CI14:CI44) -> 22437947.09 | CJ45: =SUM(CJ14:CJ44) -> 177897.15 | CK45: =SUM(CK14:CK44) -> 0 | CL45: =SUM(CL14:CL44) -> 0 | DJ45: =SUM(DJ14:DJ44) -> 19690264.64 | DK45: =SUM(DK14:DK44) -> 673614212.6 | DL45: =SUM(DL14:DL44) -> 124976850.2 | DM45: =SUM(DM14:DM44) -> 353300092 | DN45: =SUM(DN14:DN44) -> 19690264.64 | EK45: =SUM(EK14:EK44) -> 19625871.53 | FH45: =SUM(FH14:FH44) -> 19561778.35 | GE45: =SUM(GE14:GE44) -> 19386261.59 | HB45: =SUM(HB14:HB44) -> 17070050.73
A46: ALUMBRADO PÚBLICO | B46: Lámparas, accesorios y postes de alumbrado público | C46: 22 | D46: 9501020.871 | E46: 0 | F46: 6379536.702 | G46: 2296317 | H46: 28852 | I46: 0 | J46: 0 | K46: 2017106 | L46: 0 | M46: 0 | N46: 0 | O46: 1350182 | P46: 0 | Q46: 0 | R46: 0 | S46: 1164959.5 | T46: 357 | U46: 0 | V46: 0 | W46: 670144.91 | X46: 0 | Y46: 0 | Z46: 0 | AA46: 644019.64 | AB46: 0 | AC46: 0 | AD46: 0 | AE46: 641127.7 | AF46: 0 | AG46: 0 | AH46: 0 | AI46: 1046226.04 | AJ46: 0 | AK46: 0 | AL46: 0 | AM46: 742198.97 | AN46: 4219.71 | AO46: 0 | AP46: 0 | AQ46: 1095392.21 | AR46: 3105.14 | AS46: 0 | AT46: 0 | AU46: 1649504.87 | AV46: 2674.31 | AW46: 0 | AX46: 0 | AY46: 1816961.52 | AZ46: 4131.95 | BA46: 0 | BB46: 0 | BC46: 1318804.74 | BD46: 139.93 | BE46: 0 | BF46: 0 | BG46: 1630216.29 | BH46: 0 | BI46: 0 | BJ46: 0 | BK46: 4112953.57 | BL46: 0 | BM46: 0 | BN46: 0 | BO46: 2316725.18 | BP46: 0 | BQ46: 0 | BR46: 0 | BS46: 2007811.26 | BT46: 7650.72 | BU46: 0 | BV46: 0 | BW46: 1598913.03 | BX46: 11174.38 | BY46: 0 | BZ46: 0 | CA46: 9491098.01 | CB46: 12831.52 | CC46: 0 | CD46: 0 | CE46: 3726737.13 | CF46: 6521.84 | CG46: 0 | CH46: 0 | CI46: 2582057.32 | CJ46: 1405.61 | CK46: 0 | CL46: 0 | CM46: =IF(D46=0,0,2001-(D46-F46)*C46/D46) -> 1993.772077 | CN46: =IF((1-($DJ$2-$CM46)/$C46)>0,(1-($DJ$2-$CM46)/$C46),0) -> 0 | CO46: =IF((1-($DJ$2-G$2)/$C46)>0,(1-($DJ$2-G$2)/$C46),0) -> 0.1136363636 | CP46: =IF((1-($DJ$2-K$2)/$C46)>0,(1-($DJ$2-K$2)/$C46),0) -> 0.1590909091 | CQ46: =IF((1-($DJ$2-O$2)/$C46)>0,(1-($DJ$2-O$2)/$C46),0) -> 0.2045454545 | CR46: =IF((1-($DJ$2-S$2)/$C46)>0,(1-($DJ$2-S$2)/$C46),0) -> 0.25 | CS46: =IF((1-($DJ$2-W$2)/$C46)>0,(1-($DJ$2-W$2)/$C46),0) -> 0.2954545455 | CT46: =IF((1-($DJ$2-AA$2)/$C46)>0,(1-($DJ$2-AA$2)/$C46),0) -> 0.3409090909 | CU46: =IF((1-($DJ$2-AE$2)/$C46)>0,(1-($DJ$2-AE$2)/$C46),0) -> 0.3863636364 | CV46: =IF((1-($DJ$2-AI$2)/$C46)>0,(1-($DJ$2-AI$2)/$C46),0) -> 0.4318181818 | CW46: =IF((1-($DJ$2-AM$2)/$C46)>0,(1-($DJ$2-AM$2)/$C46),0) -> 0.4772727273 | CX46: =IF((1-($DJ$2-AQ$2)/$C46)>0,(1-($DJ$2-AQ$2)/$C46),0) -> 0.5227272727 | CY46: =IF((1-($DJ$2-AU$2)/$C46)>0,(1-($DJ$2-AU$2)/$C46),0) -> 0.5681818182 | CZ46: =IF((1-($DJ$2-AY$2)/$C46)>0,(1-($DJ$2-AY$2)/$C46),0) -> 0.6136363636 | DA46: =IF((1-($DJ$2-BC$2)/$C46)>0,(1-($DJ$2-BC$2)/$C46),0) -> 0.6590909091 | DB46: =IF((1-($DJ$2-BG$2)/$C46)>0,(1-($DJ$2-BG$2)/$C46),0) -> 0.7045454545 | DC46: =IF((1-($DJ$2-BK$2)/$C46)>0,(1-($DJ$2-BK$2)/$C46),0) -> 0.75 | DD46: =IF((1-($DJ$2-BO$2)/$C46)>0,(1-($DJ$2-BO$2)/$C46),0) -> 0.7954545455 | DE46: =IF((1-($DJ$2-BS$2)/$C46)>0,(1-($DJ$2-BS$2)/$C46),0) -> 0.8409090909 | DF46: =IF((1-($DJ$2-BW$2)/$C46)>0,(1-($DJ$2-BW$2)/$C46),0) -> 0.8863636364 | DG46: =IF((1-($DJ$2-CA$2)/$C46)>0,(1-($DJ$2-CA$2)/$C46),0) -> 0.9318181818 | DH46: =IF((1-($DJ$2-CE$2)/$C46)>0,(1-($DJ$2-CE$2)/$C46),0) -> 0.9772727273 | DI46: =IF((1-($DJ$2-CI$2)/$C46)>0,(1-($DJ$2-CI$2)/$C46),0) -> 1 | DJ46: =IF(CN46=0,0,($D46-$E46)*1/$C46)+IF(CO46=0,0,($G46-$H46-$I46)*$G$62*1/$C46)+IF(CP46=0,0,($K46-$L46-$M46)*$K$62*1/$C46)+IF(CQ46=0,0,($O46-$P46-$Q46)*$O$62*1/$C46)+IF(CR46=0,0,($S46-$T46-$U46)*$S$62*1/$C46)+IF(CS46=0,0,($W46-$X46-$Y46)*$W$62*1/$C46)+IF(CT46=0,0,($AA46-$AB46-$AC46)*$AA$62*1/$C46)+IF(CU46=0,0,($AE46-$AF46-$AG46)*$AE$62*1/$C46)+IF(CV46=0,0,($AI46-$AJ46-$AK46)*$AI$62*1/$C46)+IF(CW46=0,0,($AM46-$AN46-$AO46)*$AM$62*1/$C46)+IF(CX46=0,0,($AQ46-$AR46-$AS46)*$AQ$62*1/$C46)+IF(CY46=0,0,($AU46-$AV46-$AW46)*$AU$62*1/$C46)+IF(CZ46=0,0,($AY46-$AZ46-$BA46)*$AY$62*1/$C46)+IF(DA46=0,0,($BC46-$BD46-$BE46)*$BC$62*1/$C46)+IF(DB46=0,0,($BG46-$BH46-$BI46)*$BG$62*1/$C46)+IF(DC46=0,0,($BK46-$BL46-$BM46)*$BK$62*1/$C46)+IF(DD46=0,0,($BO46-$BP46-$BQ46)*$BO$62*1/$C46)+IF(DE46=0,0,($BS46-$BT46-$BU46)*$BS$62*1/$C46)+IF(DF46=0,0,($BW46-$BX46-$BY46)*$BW$62*1/$C46)+IF(DG46=0,0,($CA46-$CB46-$CC46)*$CA$62*1/$C46)+IF(DH46=0,0,($CE46-$CF46-$CG46)*$CE$62*1/$C46)+IF(DI46=0,0,($CI46-$CJ46-$CK46)*$CI$62*1/$C46) -> 1824474.418 | DK46: =D46-E46+(G46-H46-I46)*G$62+(K46-L46-M46)*K$62+(O46-P46-Q46)*O$62+(S46-T46-U46)*S$62+(W46-X46-Y46)*W$62+(AA46-AB46-AC46)*AA$62+(AE46-AF46-AG46)*AE$62+(AI46-AJ46-AK46)*AI$62+(AM46-AN46-AO46)*AM$62+(AQ46-AR46-AS46)*$AQ$62+(AU46-AV46-AW46)*$AU$62+(AY46-AZ46-BA46)*$AY$62+(BC46-BD46-BE46)*$BC$62+(BG46-BH46-BI46)*$BG$62+(BK46-BL46-BM46)*$BK$62+(BO46-BP46-BQ46)*$BO$62+(BS46-BT46-BU46)*$BS$62+(BW46-BX46-BY46)*$BW$62+(CA46-CB46-CC46)*$CA$62+(CE46-CF46-CG46)*$CE$62+(CI46-CJ46-CK46)*$CI$62 -> 49639458.06 | DL46: =IF(CN46=0,D46-E46,0)+IF(CO46=0,(G46-H46-I46)*G$62,0)+IF(CP46=0,(K46-L46-M46)*K$62,0)+IF(CQ46=0,(O46-P46-Q46)*O$62,0)+IF(CR46=0,(S46-T46-U46)*S$62,0)+IF(CS46=0,(W46-X46-Y46)*W$62,0)+IF(CT46=0,(AA46-AB46-AC46)*AA$62,0)+IF(CU46=0,(AE46-AF46-AG46)*AE$62,0)+IF(CV46=0,(AI46-AJ46-AK46)*AI$62,0)+IF(CW46=0,(AM46-AN46-AO46)*AM$62,0)+IF(CX46=0,(AQ46-AR46-AS46)*$AQ$62,0)+IF(CY46=0,(AU46-AV46-AW46)*$AU$62,0)+IF(CZ46=0,(AY46-AZ46-BA46)*$AY$62,0)++IF(DA46=0,(BC46-BD46-BE46)*$BC$62,0)+IF(DB46=0,(BG46-BH46-BI46)*$BG$62,0)+IF(DC46=0,(BK46-BL46-BM46)*$BK$62,0)+IF(DD46=0,(BO46-BP46-BQ46)*$BO$62,0)+IF(DE46=0,(BS46-BT46-BU46)*$BS$62,0)+IF(DF46=0,(BW46-BX46-BY46)*$BW$62,0)+IF(DG46=0,(CA46-CB46-CC46)*$CA$62,0)+IF(DH46=0,(CE46-CF46-CG46)*$CE$62,0)+IF(DI46=0,(CI46-CJ46-CK46)*$CI$62,0) -> 9501020.871 | DM46: =(D46-E46)*CN46+((G46-H46-(I46-J46))*G$62)*CO46+((K46-L46-(M46-N46))*K$62)*CP46+((O46-P46-(Q46-R46))*O$62)*CQ46+((S46-T46-(U46-V46))*S$62)*CR46+((W46-X46-(Y46-Z46))*W$62)*CS46+((AA46-AB46-(AC46-AD46))*AA$62)*CT46+((AE46-AF46-(AG46-AH46))*AE$62)*CU46+((AI46-AJ46-(AK46-AL46))*AI$62)*CV46+((AM46-AN46-(AO46-AP46))*$AM$62)*CW46+((AQ46-AR46-(AS46-AT46))*$AQ$62)*CX46+((AU46-AV46-(AW46-AX46))*$AU$62)*CY46+((AY46-AZ46-(BA46-BB46))*$AY$62)*CZ46+((BC46-BD46-(BE46-BF46))*$BC$62)*DA46+((BG46-BH46-(BI46-BJ46))*$BG$62)*DB46+((BK46-BL46-(BM46-BN46))*$BK$62)*DC46+((BO46-BP46-(BQ46-BR46))*$BO$62)*DD46+((BS46-BT46-(BU46-BV46))*$BS$62)*DE46+((BW46-BX46-(BY46-BZ46))*$BW$62)*DF46+((CA46-CB46-(CC46-CD46))*$CA$62)*DG46+((CE46-CF46-(CG46-CH46))*$CE$62)*DH46+((CI46-CJ46-(CK46-CL46))*$CI$62)*DI46 -> 27431394.87 | DN46: =(DK46-DL46)*1/C46 -> 1824474.418 | DO46: =IF((1-($EK$2-$CM46)/$C46)>0,(1-($EK$2-$CM46)/$C46),0) -> 0 | DP46: =IF((1-($EK$2-DP$2)/$C46)>0,(1-($EK$2-DP$2)/$C46),0) -> 0.06818181818 | DQ46: 0.1136363636 | DR46: 0.1590909091 | DS46: 0.2045454545 | DT46: 0.25 | DU46: 0.2954545455 | DV46: 0.3409090909 | DW46: 0.3863636364 | DX46: 0.4318181818 | DY46: 0.4772727273 | DZ46: 0.5227272727 | EA46: 0.5681818182 | EB46: 0.6136363636 | EC46: 0.6590909091 | ED46: 0.7045454545 | EE46: 0.75 | EF46: 0.7954545455 | EG46: 0.8409090909 | EH46: 0.8863636364 | EI46: 0.9318181818 | EJ46: 0.9545454545 | EK46: =IF(DO46=0,0,($D46-$E46)*1/$C46)+IF(DP46=0,0,($G46-$H46-$I46)*$G$62*1/$C46)+IF(DQ46=0,0,($K46-$L46-$M46)*$K$62*1/$C46)+IF(DR46=0,0,($O46-$P46-$Q46)*$O$62*1/$C46)+IF(DS46=0,0,($S46-$T46-$U46)*$S$62*1/$C46)+IF(DT46=0,0,($W46-$X46-$Y46)*$W$62*1/$C46)+IF(DU46=0,0,($AA46-$AB46-$AC46)*$AA$62*1/$C46)+IF(DV46=0,0,($AE46-$AF46-$AG46)*$AE$62*1/$C46)+IF(DW46=0,0,($AI46-$AJ46-$AK46)*$AI$62*1/$C46)+IF(DX46=0,0,($AM46-$AN46-$AO46)*$AM$62*1/$C46)+IF(DY46=0,0,($AQ46-$AR46-$AS46)*$AQ$62*1/$C46)+IF(DZ46=0,0,($AU46-$AV46-$AW46)*$AU$62*1/$C46)+IF(EA46=0,0,($AY46-$AZ46-$BA46)*$AY$62*1/$C46)+IF(EB46=0,0,($BC46-$BD46-$BE46)*$BC$62*1/$C46)+IF(EC46=0,0,($BG46-$BH46-$BI46)*$BG$62*1/$C46)+IF(ED46=0,0,($BK46-$BL46-$BM46)*$BK$62*1/$C46)+IF(EE46=0,0,($BO46-$BP46-$BQ46)*$BO$62*1/$C46)+IF(EF46=0,0,($BS46-$BT46-$BU46)*$BS$62*1/$C46)+IF(EG46=0,0,($BW46-$BX46-$BY46)*$BW$62*1/$C46)+IF(EH46=0,0,($CA46-$CB46-$CC46)*$CA$62*1/$C46)+IF(EI46=0,0,($CE46-$CF46-$CG46)*$CE$62*1/$C46)+IF(EJ46=0,0,($CI46-$CJ46-$CK46)*$CI$62*1/$C46) -> 1824474.418 | EL46: =IF((1-($FH$2-$CM46)/$C46)>0,(1-($FH$2-$CM46)/$C46),0) -> 0 | EM46: =IF((1-($FH$2-EM$2)/$C46)>0,(1-($FH$2-EM$2)/$C46),0) -> 0.02272727273 | EN46: 0.06818181818 | EO46: 0.1136363636 | EP46: 0.1590909091 | EQ46: 0.2045454545 | ER46: 0.25 | ES46: 0.2954545455 | ET46: 0.3409090909 | EU46: 0.3863636364 | EV46: 0.4318181818 | EW46: 0.4772727273 | EX46: 0.5227272727 | EY46: 0.5681818182 | EZ46: 0.6136363636 | FA46: 0.6590909091 | FB46: 0.7045454545 | FC46: 0.75 | FD46: 0.7954545455 | FE46: 0.8409090909 | FF46: 0.8863636364 | FG46: 0.9090909091 | FH46: =IF(EL46=0,0,($D46-$E46)*1/$C46)+IF(EM46=0,0,($G46-$H46-$I46)*$G$62*1/$C46)+IF(EN46=0,0,($K46-$L46-$M46)*$K$62*1/$C46)+IF(EO46=0,0,($O46-$P46-$Q46)*$O$62*1/$C46)+IF(EP46=0,0,($S46-$T46-$U46)*$S$62*1/$C46)+IF(EQ46=0,0,($W46-$X46-$Y46)*$W$62*1/$C46)+IF(ER46=0,0,($AA46-$AB46-$AC46)*$AA$62*1/$C46)+IF(ES46=0,0,($AE46-$AF46-$AG46)*$AE$62*1/$C46)+IF(ET46=0,0,($AI46-$AJ46-$AK46)*$AI$62*1/$C46)+IF(EU46=0,0,($AM46-$AN46-$AO46)*$AM$62*1/$C46)+IF(EV46=0,0,($AQ46-$AR46-$AS46)*$AQ$62*1/$C46)+IF(EW46=0,0,($AU46-$AV46-$AW46)*$AU$62*1/$C46)+IF(EX46=0,0,($AY46-$AZ46-$BA46)*$AY$62*1/$C46)+IF(EY46=0,0,($BC46-$BD46-$BE46)*$BC$62*1/$C46)+IF(EZ46=0,0,($BG46-$BH46-$BI46)*$BG$62*1/$C46)+IF(FA46=0,0,($BK46-$BL46-$BM46)*$BK$62*1/$C46)+IF(FB46=0,0,($BO46-$BP46-$BQ46)*$BO$62*1/$C46)+IF(FC46=0,0,($BS46-$BT46-$BU46)*$BS$62*1/$C46)+IF(FD46=0,0,($BW46-$BX46-$BY46)*$BW$62*1/$C46)+IF(FE46=0,0,($CA46-$CB46-$CC46)*$CA$62*1/$C46)+IF(FF46=0,0,($CE46-$CF46-$CG46)*$CE$62*1/$C46)+IF(FG46=0,0,($CI46-$CJ46-$CK46)*$CI$62*1/$C46) -> 1824474.418 | FI46: =IF((1-($GE$2-$CM46)/$C46)>0,(1-($GE$2-$CM46)/$C46),0) -> 0 | FJ46: =IF((1-($GE$2-FJ$2)/$C46)>0,(1-($GE$2-FJ$2)/$C46),0) -> 0 | FK46: 0.02272727273 | FL46: 0.06818181818 | FM46: 0.1136363636 | FN46: 0.1590909091 | FO46: 0.2045454545 | FP46: 0.25 | FQ46: 0.2954545455 | FR46: 0.3409090909 | FS46: 0.3863636364 | FT46: 0.4318181818 | FU46: 0.4772727273 | FV46: 0.5227272727 | FW46: 0.5681818182 | FX46: 0.6136363636 | FY46: 0.6590909091 | FZ46: 0.7045454545 | GA46: 0.75 | GB46: 0.7954545455 | GC46: 0.8409090909 | GD46: 0.8636363636 | GE46: =IF(FI46=0,0,($D46-$E46)*1/$C46)+IF(FJ46=0,0,($G46-$H46-$I46)*$G$62*1/$C46)+IF(FK46=0,0,($K46-$L46-$M46)*$K$62*1/$C46)+IF(FL46=0,0,($O46-$P46-$Q46)*$O$62*1/$C46)+IF(FM46=0,0,($S46-$T46-$U46)*$S$62*1/$C46)+IF(FN46=0,0,($W46-$X46-$Y46)*$W$62*1/$C46)+IF(FO46=0,0,($AA46-$AB46-$AC46)*$AA$62*1/$C46)+IF(FP46=0,0,($AE46-$AF46-$AG46)*$AE$62*1/$C46)+IF(FQ46=0,0,($AI46-$AJ46-$AK46)*$AI$62*1/$C46)+IF(FR46=0,0,($AM46-$AN46-$AO46)*$AM$62*1/$C46)+IF(FS46=0,0,($AQ46-$AR46-$AS46)*$AQ$62*1/$C46)+IF(FT46=0,0,($AU46-$AV46-$AW46)*$AU$62*1/$C46)+IF(FU46=0,0,($AY46-$AZ46-$BA46)*$AY$62*1/$C46)+IF(FV46=0,0,($BC46-$BD46-$BE46)*$BC$62*1/$C46)+IF(FW46=0,0,($BG46-$BH46-$BI46)*$BG$62*1/$C46)+IF(FX46=0,0,($BK46-$BL46-$BM46)*$BK$62*1/$C46)+IF(FY46=0,0,($BO46-$BP46-$BQ46)*$BO$62*1/$C46)+IF(FZ46=0,0,($BS46-$BT46-$BU46)*$BS$62*1/$C46)+IF(GA46=0,0,($BW46-$BX46-$BY46)*$BW$62*1/$C46)+IF(GB46=0,0,($CA46-$CB46-$CC46)*$CA$62*1/$C46)+IF(GC46=0,0,($CE46-$CF46-$CG46)*$CE$62*1/$C46)+IF(GD46=0,0,($CI46-$CJ46-$CK46)*$CI$62*1/$C46) -> 1721407.827 | GF46: =IF((1-($HB$2-$CM46)/$C46)>0,(1-($HB$2-$CM46)/$C46),0) -> 0 | GG46: =IF((1-($HB$2-GG$2)/$C46)>0,(1-($HB$2-GG$2)/$C46),0) -> 0 | GH46: 0 | GI46: 0.02272727273 | GJ46: 0.06818181818 | GK46: 0.1136363636 | GL46: 0.1590909091 | GM46: 0.2045454545 | GN46: 0.25 | GO46: 0.2954545455 | GP46: 0.3409090909 | GQ46: 0.3863636364 | GR46: 0.4318181818 | GS46: 0.4772727273 | GT46: 0.5227272727 | GU46: 0.5681818182 | GV46: 0.6136363636 | GW46: 0.6590909091 | GX46: 0.7045454545 | GY46: 0.75 | GZ46: 0.7954545455 | HA46: 0.8181818182 | HB46: =IF(GF46=0,0,($D46-$E46)*1/$C46)+IF(GG46=0,0,($G46-$I46)*$G$62*1/$C46)+IF(GH46=0,0,($K46-$M46)*$K$62*1/$C46)+IF(GI46=0,0,($O46-$Q46)*$O$62*1/$C46)+IF(GJ46=0,0,($S46-$U46)*$S$62*1/$C46)+IF(GK46=0,0,($W46-$Y46)*$W$62*1/$C46)+IF(GL46=0,0,($AA46-$AC46)*$AA$62*1/$C46)+IF(GM46=0,0,($AE46-$AG46)*$AE$62*1/$C46)+IF(GN46=0,0,($AI46-$AK46)*$AI$62*1/$C46)+IF(GO46=0,0,($AM46-$AO46)*$AM$62*1/$C46)+IF(GP46=0,0,($AQ46-$AS46)*$AQ$62*1/$C46)+IF(GQ46=0,0,($AU46-$AW46)*$AU$62*1/$C46)+IF(GR46=0,0,($AY46-$BA46)*$AY$62*1/$C46)+IF(GS46=0,0,($BC46-$BE46)*$BC$62*1/$C46)+IF(GT46=0,0,($BG46-$BI46)*$BG$62*1/$C46)+IF(GU46=0,0,($BK46-$BM46)*$BK$62*1/$C46)+IF(GV46=0,0,($BO46-$BQ46)*$BO$62*1/$C46)+IF(GW46=0,0,($BS46-$BU46)*$BS$62*1/$C46)+IF(GX46=0,0,($BW46-$BY46)*$BW$62*1/$C46)+IF(GY46=0,0,($CA46-$CC46)*$CA$62*1/$C46)+IF(GZ46=0,0,($CE46-$CG46)*$CE$62*1/$C46)+IF(HA46=0,0,($CI46-$CK46)*$CI$62*1/$C46) -> 1631934.039
B47: TOTAL ALUMBRADO PÚBLICO | D47: =D46 -> 9501020.871 | E47: =E46 -> 0 | F47: 6379536.702 | G47: 2296317 | H47: =H46 -> 28852 | I47: 0 | J47: 0 | K47: 2017106 | L47: =L46 -> 0 | M47: 0 | N47: 0 | O47: 1350182 | P47: 0 | Q47: 0 | R47: 0 | S47: 1164959.5 | T47: 357 | U47: 0 | V47: 0 | W47: 670144.91 | X47: 0 | Y47: 0 | Z47: 0 | AA47: 644019.64 | AB47: 0 | AC47: 0 | AD47: 0 | AE47: 641127.7 | AF47: 0 | AG47: 0 | AH47: 0 | AI47: 1046226.04 | AJ47: 0 | AK47: 0 | AL47: 0 | AM47: 742198.97 | AN47: 4219.71 | AO47: 0 | AP47: 0 | AQ47: 1095392.21 | AR47: 3105.14 | AS47: 0 | AT47: 0 | AU47: 1649504.87 | AV47: 2674.31 | AW47: 0 | AX47: 0 | AY47: 1816961.52 | AZ47: 4131.95 | BA47: 0 | BB47: 0 | BC47: 1318804.74 | BD47: 139.93 | BE47: 0 | BF47: 0 | BG47: 1630216.29 | BH47: 0 | BI47: 0 | BJ47: 0 | BK47: 4112953.57 | BL47: 0 | BM47: 0 | BN47: 0 | BO47: 2316725.18 | BP47: 0 | BQ47: 0 | BR47: 0 | BS47: 2007811.26 | BT47: 7650.72 | BU47: 0 | BV47: 0 | BW47: 1598913.03 | BX47: =BX46 -> 11174.38 | BY47: 0 | BZ47: 0 | CA47: 9491098.01 | CB47: 12831.52 | CC47: 0 | CD47: 0 | CE47: 3726737.13 | CF47: 6521.84 | CG47: 0 | CH47: 0 | CI47: 2582057.32 | CJ47: 1405.61 | CK47: 0 | CL47: 0 | DJ47: =DJ46 -> 1824474.418 | DK47: =DK46 -> 49639458.06 | DL47: =DL46 -> 9501020.871 | DM47: =DM46 -> 27431394.87 | DN47: =DN46 -> 1824474.418 | EK47: =EK46 -> 1824474.418 | FH47: =FH46 -> 1824474.418 | GE47: =GE46 -> 1721407.827 | HB47: =HB46 -> 1631934.039
A48: COMERCIALIZACIÓN | B48: Activos intangibles (software) | C48: 4 | D48: 0 | E48: 0 | F48: 0 | G48: 935618.94 | H48: 0 | I48: 0 | J48: 0 | K48: 0 | L48: 0 | M48: 0 | N48: 0 | O48: 12335 | P48: 0 | Q48: 0 | R48: 0 | S48: 97835.16 | T48: 0 | U48: 0 | V48: 0 | W48: 123841.89 | X48: 0 | Y48: 0 | Z48: 0 | AA48: 0 | AB48: 0 | AC48: 0 | AD48: 0 | AE48: 0 | AF48: 0 | AG48: 0 | AH48: 0 | AI48: 9015.85 | AJ48: 0 | AK48: 0 | AL48: 0 | AM48: 0 | AN48: 0 | AO48: 0 | AP48: 0 | AQ48: 0 | AR48: 0 | AS48: 0 | AT48: 0 | AU48: 0 | AV48: 0 | AW48: 0 | AX48: 0 | AY48: 0 | AZ48: 0 | BA48: 0 | BB48: 0 | BC48: 0 | BD48: 0 | BE48: 0 | BF48: 0 | BG48: 0 | BH48: 0 | BI48: 0 | BJ48: 0 | BK48: 0 | BL48: 0 | BM48: 0 | BN48: 0 | BO48: 0 | BP48: 0 | BQ48: 0 | BR48: 0 | BS48: 0 | BT48: 0 | BU48: 0 | BV48: 0 | BW48: 0 | BX48: 0 | BY48: 0 | BZ48: 0 | CA48: 0 | CB48: 0 | CC48: 0 | CD48: 0 | CE48: 0 | CF48: 0 | CG48: 0 | CH48: 0 | CI48: 0 | CJ48: 0 | CK48: 0 | CL48: 0 | CM48: =IF(D48=0,0,2001-(D48-F48)*C48/D48) -> 0 | CN48: =IF((1-($DJ$2-$CM48)/$C48)>0,(1-($DJ$2-$CM48)/$C48),0) -> 0 | CO48: =IF((1-($DJ$2-G$2)/$C48)>0,(1-($DJ$2-G$2)/$C48),0) -> 0 | CP48: =IF((1-($DJ$2-K$2)/$C48)>0,(1-($DJ$2-K$2)/$C48),0) -> 0 | CQ48: =IF((1-($DJ$2-O$2)/$C48)>0,(1-($DJ$2-O$2)/$C48),0) -> 0 | CR48: =IF((1-($DJ$2-S$2)/$C48)>0,(1-($DJ$2-S$2)/$C48),0) -> 0 | CS48: =IF((1-($DJ$2-W$2)/$C48)>0,(1-($DJ$2-W$2)/$C48),0) -> 0 | CT48: =IF((1-($DJ$2-AA$2)/$C48)>0,(1-($DJ$2-AA$2)/$C48),0) -> 0 | CU48: =IF((1-($DJ$2-AE$2)/$C48)>0,(1-($DJ$2-AE$2)/$C48),0) -> 0 | CV48: =IF((1-($DJ$2-AI$2)/$C48)>0,(1-($DJ$2-AI$2)/$C48),0) -> 0 | CW48: =IF((1-($DJ$2-AM$2)/$C48)>0,(1-($DJ$2-AM$2)/$C48),0) -> 0 | CX48: =IF((1-($DJ$2-AQ$2)/$C48)>0,(1-($DJ$2-AQ$2)/$C48),0) -> 0 | CY48: =IF((1-($DJ$2-AU$2)/$C48)>0,(1-($DJ$2-AU$2)/$C48),0) -> 0 | CZ48: =IF((1-($DJ$2-AY$2)/$C48)>0,(1-($DJ$2-AY$2)/$C48),0) -> 0 | DA48: =IF((1-($DJ$2-BC$2)/$C48)>0,(1-($DJ$2-BC$2)/$C48),0) -> 0 | DB48: =IF((1-($DJ$2-BG$2)/$C48)>0,(1-($DJ$2-BG$2)/$C48),0) -> 0 | DC48: =IF((1-($DJ$2-BK$2)/$C48)>0,(1-($DJ$2-BK$2)/$C48),0) -> 0 | DD48: =IF((1-($DJ$2-BO$2)/$C48)>0,(1-($DJ$2-BO$2)/$C48),0) -> 0 | DE48: =IF((1-($DJ$2-BS$2)/$C48)>0,(1-($DJ$2-BS$2)/$C48),0) -> 0.125 | DF48: =IF((1-($DJ$2-BW$2)/$C48)>0,(1-($DJ$2-BW$2)/$C48),0) -> 0.375 | DG48: =IF((1-($DJ$2-CA$2)/$C48)>0,(1-($DJ$2-CA$2)/$C48),0) -> 0.625 | DH48: =IF((1-($DJ$2-CE$2)/$C48)>0,(1-($DJ$2-CE$2)/$C48),0) -> 0.875 | DI48: =IF((1-($DJ$2-CI$2)/$C48)>0,(1-($DJ$2-CI$2)/$C48),0) -> 1 | DJ48: =IF(CN48=0,0,($D48-$E48)*1/$C48)+IF(CO48=0,0,($G48-$H48-$I48)*$G$63*1/$C48)+IF(CP48=0,0,($K48-$L48-$M48)*$K$63*1/$C48)+IF(CQ48=0,0,($O48-$P48-$Q48)*$O$63*1/$C48)+IF(CR48=0,0,($S48-$T48-$U48)*$S$63*1/$C48)+IF(CS48=0,0,($W48-$X48-$Y48)*$W$63*1/$C48)+IF(CT48=0,0,($AA48-$AB48-$AC48)*$AA$63*1/$C48)+IF(CU48=0,0,($AE48-$AF48-$AG48)*$AE$63*1/$C48)+IF(CV48=0,0,($AI48-$AJ48-$AK48)*$AI$63*1/$C48)+IF(CW48=0,0,($AM48-$AN48-$AO48)*$AM$63*1/$C48)+IF(CX48=0,0,($AQ48-$AR48-$AS48)*$AQ$63*1/$C48)+IF(CY48=0,0,($AU48-$AV48-$AW48)*$AU$63*1/$C48)+IF(CZ48=0,0,($AY48-$AZ48-$BA48)*$AY$63*1/$C48)+IF(DA48=0,0,($BC48-$BD48-$BE48)*$BC$63*1/$C48)+IF(DB48=0,0,($BG48-$BH48-$BI48)*$BG$63*1/$C48)+IF(DC48=0,0,($BK48-$BL48-$BM48)*$BK$63*1/$C48)+IF(DD48=0,0,($BO48-$BP48-$BQ48)*$BO$63*1/$C48)+IF(DE48=0,0,($BS48-$BT48-$BU48)*$BS$63*1/$C48)+IF(DF48=0,0,($BW48-$BX48-$BY48)*$BW$63*1/$C48)+IF(DG48=0,0,($CA48-$CB48-$CC48)*$CA$63*1/$C48)+IF(DH48=0,0,($CE48-$CF48-$CG48)*$CE$63*1/$C48)+IF(DI48=0,0,($CI48-$CJ48-$CK48)*$CI$63*1/$C48) -> 0 | DK48: =D48-E48+(G48-H48-I48)*G$63+(K48-L48-M48)*K$63+(O48-P48-Q48)*O$63+(S48-T48-U48)*S$63+(W48-X48-Y48)*W$63+(AA48-AB48-AC48)*AA$63+(AE48-AF48-AG48)*AE$63+(AI48-AJ48-AK48)*AI$63+(AM48-AN48-AO48)*AM$63+(AQ48-AR48-AS48)*$AQ$63+(AU48-AV48-AW48)*$AU$63+(AY48-AZ48-BA48)*$AY$63+(BC48-BD48-BE48)*$BC$63+(BG48-BH48-BI48)*$BG$63+(BK48-BL48-BM48)*$BK$63+(BO48-BP48-BQ48)*$BO$63+(BS48-BT48-BU48)*$BS$63+(BW48-BX48-BY48)*$BW$63+(CA48-CB48-CC48)*$CA$63+(CE48-CF48-CG48)*$CE$63+(CI48-CJ48-CK48)*$CI$63 -> 939302.4881 | DL48: =IF(CN48=0,D48-E48,0)+IF(CO48=0,(G48-H48-I48)*G$63,0)+IF(CP48=0,(K48-L48-M48)*K$63,0)+IF(CQ48=0,(O48-P48-Q48)*O$63,0)+IF(CR48=0,(S48-T48-U48)*S$63,0)+IF(CS48=0,(W48-X48-Y48)*W$63,0)+IF(CT48=0,(AA48-AB48-AC48)*AA$63,0)+IF(CU48=0,(AE48-AF48-AG48)*AE$63,0)+IF(CV48=0,(AI48-AJ48-AK48)*AI$63,0)+IF(CW48=0,(AM48-AN48-AO48)*AM$63,0)+IF(CX48=0,(AQ48-AR48-AS48)*$AQ$63,0)+IF(CY48=0,(AU48-AV48-AW48)*$AU$63,0)+IF(CZ48=0,(AY48-AZ48-BA48)*$AY$63,0)++IF(DA48=0,(BC48-BD48-BE48)*$BC$63,0)+IF(DB48=0,(BG48-BH48-BI48)*$BG$63,0)+IF(DC48=0,(BK48-BL48-BM48)*$BK$63,0)+IF(DD48=0,(BO48-BP48-BQ48)*$BO$63,0)+IF(DE48=0,(BS48-BT48-BU48)*$BS$63,0)+IF(DF48=0,(BW48-BX48-BY48)*$BW$63,0)+IF(DG48=0,(CA48-CB48-CC48)*$CA$63,0)+IF(DH48=0,(CE48-CF48-CG48)*$CE$63,0)+IF(DI48=0,(CI48-CJ48-CK48)*$CI$63,0) -> 939302.4881 | DM48: =(D48-E48)*CN48+((G48-H48-(I48-J48))*G$63)*CO48+((K48-L48-(M48-N48))*K$63)*CP48+((O48-P48-(Q48-R48))*O$63)*CQ48+((S48-T48-(U48-V48))*S$63)*CR48+((W48-X48-(Y48-Z48))*W$63)*CS48+((AA48-AB48-(AC48-AD48))*AA$63)*CT48+((AE48-AF48-(AG48-AH48))*AE$63)*CU48+((AI48-AJ48-(AK48-AL48))*AI$63)*CV48+((AM48-AN48-(AO48-AP48))*$AM$63)*CW48+((AQ48-AR48-(AS48-AT48))*$AQ$63)*CX48+((AU48-AV48-(AW48-AX48))*$AU$63)*CY48+((AY48-AZ48-(BA48-BB48))*$AY$63)*CZ48+((BC48-BD48-(BE48-BF48))*$BC$63)*DA48+((BG48-BH48-(BI48-BJ48))*$BG$63)*DB48+((BK48-BL48-(BM48-BN48))*$BK$63)*DC48+((BO48-BP48-(BQ48-BR48))*$BO$63)*DD48+((BS48-BT48-(BU48-BV48))*$BS$63)*DE48+((BW48-BX48-(BY48-BZ48))*$BW$63)*DF48+((CA48-CB48-(CC48-CD48))*$CA$63)*DG48+((CE48-CF48-(CG48-CH48))*$CE$63)*DH48+((CI48-CJ48-(CK48-CL48))*$CI$63)*DI48 -> 0 | DN48: =(DK48-DL48)*1/C48 -> 0 | DO48: =IF((1-($EK$2-$CM48)/$C48)>0,(1-($EK$2-$CM48)/$C48),0) -> 0 | DP48: =IF((1-($EK$2-DP$2)/$C48)>0,(1-($EK$2-DP$2)/$C48),0) -> 0 | DQ48: 0 | DR48: 0 | DS48: 0 | DT48: 0 | DU48: 0 | DV48: 0 | DW48: 0 | DX48: 0 | DY48: 0 | DZ48: =IF((1-($EK$2-DZ$2)/$C48)>0,(1-($EK$2-DZ$2)/$C48),0) -> 0 | EA48: 0 | EB48: 0 | EC48: 0 | ED48: 0 | EE48: 0 | EF48: 0 | EG48: 0.125 | EH48: 0.375 | EI48: 0.625 | EJ48: 0.75 | EK48: =IF(DO48=0,0,($D48-$E48)*1/$C48)+IF(DP48=0,0,($G48-$H48-$I48)*$G$63*1/$C48)+IF(DQ48=0,0,($K48-$L48-$M48)*$K$63*1/$C48)+IF(DR48=0,0,($O48-$P48-$Q48)*$O$63*1/$C48)+IF(DS48=0,0,($S48-$T48-$U48)*$S$63*1/$C48)+IF(DT48=0,0,($W48-$X48-$Y48)*$W$63*1/$C48)+IF(DU48=0,0,($AA48-$AB48-$AC48)*$AA$63*1/$C48)+IF(DV48=0,0,($AE48-$AF48-$AG48)*$AE$63*1/$C48)+IF(DW48=0,0,($AI48-$AJ48-$AK48)*$AI$63*1/$C48)+IF(DX48=0,0,($AM48-$AN48-$AO48)*$AM$63*1/$C48)+IF(DY48=0,0,($AQ48-$AR48-$AS48)*$AQ$63*1/$C48)+IF(DZ48=0,0,($AU48-$AV48-$AW48)*$AU$63*1/$C48)+IF(EA48=0,0,($AY48-$AZ48-$BA48)*$AY$63*1/$C48)+IF(EB48=0,0,($BC48-$BD48-$BE48)*$BC$63*1/$C48)+IF(EC48=0,0,($BG48-$BH48-$BI48)*$BG$63*1/$C48)+IF(ED48=0,0,($BK48-$BL48-$BM48)*$BK$63*1/$C48)+IF(EE48=0,0,($BO48-$BP48-$BQ48)*$BO$63*1/$C48)+IF(EF48=0,0,($BS48-$BT48-$BU48)*$BS$63*1/$C48)+IF(EG48=0,0,($BW48-$BX48-$BY48)*$BW$63*1/$C48)+IF(EH48=0,0,($CA48-$CB48-$CC48)*$CA$63*1/$C48)+IF(EI48=0,0,($CE48-$CF48-$CG48)*$CE$63*1/$C48)+IF(EJ48=0,0,($CI48-$CJ48-$CK48)*$CI$63*1/$C48) -> 0 | EL48: =IF((1-($FH$2-$CM48)/$C48)>0,(1-($FH$2-$CM48)/$C48),0) -> 0 | EM48: =IF((1-($FH$2-EM$2)/$C48)>0,(1-($FH$2-EM$2)/$C48),0) -> 0 | EN48: 0 | EO48: 0 | EP48: 0 | EQ48: 0 | ER48: 0 | ES48: 0 | ET48: 0 | EU48: 0 | EV48: 0 | EW48: =IF((1-($FH$2-EW$2)/$C48)>0,(1-($FH$2-EW$2)/$C48),0) -> 0 | EX48: 0 | EY48: 0 | EZ48: 0 | FA48: 0 | FB48: 0 | FC48: 0 | FD48: 0 | FE48: 0.125 | FF48: 0.375 | FG48: 0.5 | FH48: =IF(EL48=0,0,($D48-$E48)*1/$C48)+IF(EM48=0,0,($G48-$H48-$I48)*$G$63*1/$C48)+IF(EN48=0,0,($K48-$L48-$M48)*$K$63*1/$C48)+IF(EO48=0,0,($O48-$P48-$Q48)*$O$63*1/$C48)+IF(EP48=0,0,($S48-$T48-$U48)*$S$63*1/$C48)+IF(EQ48=0,0,($W48-$X48-$Y48)*$W$63*1/$C48)+IF(ER48=0,0,($AA48-$AB48-$AC48)*$AA$63*1/$C48)+IF(ES48=0,0,($AE48-$AF48-$AG48)*$AE$63*1/$C48)+IF(ET48=0,0,($AI48-$AJ48-$AK48)*$AI$63*1/$C48)+IF(EU48=0,0,($AM48-$AN48-$AO48)*$AM$63*1/$C48)+IF(EV48=0,0,($AQ48-$AR48-$AS48)*$AQ$63*1/$C48)+IF(EW48=0,0,($AU48-$AV48-$AW48)*$AU$63*1/$C48)+IF(EX48=0,0,($AY48-$AZ48-$BA48)*$AY$63*1/$C48)+IF(EY48=0,0,($BC48-$BD48-$BE48)*$BC$63*1/$C48)+IF(EZ48=0,0,($BG48-$BH48-$BI48)*$BG$63*1/$C48)+IF(FA48=0,0,($BK48-$BL48-$BM48)*$BK$63*1/$C48)+IF(FB48=0,0,($BO48-$BP48-$BQ48)*$BO$63*1/$C48)+IF(FC48=0,0,($BS48-$BT48-$BU48)*$BS$63*1/$C48)+IF(FD48=0,0,($BW48-$BX48-$BY48)*$BW$63*1/$C48)+IF(FE48=0,0,($CA48-$CB48-$CC48)*$CA$63*1/$C48)+IF(FF48=0,0,($CE48-$CF48-$CG48)*$CE$63*1/$C48)+IF(FG48=0,0,($CI48-$CJ48-$CK48)*$CI$63*1/$C48) -> 0 | FI48: =IF((1-($GE$2-$CM48)/$C48)>0,(1-($GE$2-$CM48)/$C48),0) -> 0 | FJ48: =IF((1-($GE$2-FJ$2)/$C48)>0,(1-($GE$2-FJ$2)/$C48),0) -> 0 | FK48: 0 | FL48: 0 | FM48: 0 | FN48: 0 | FO48: 0 | FP48: 0 | FQ48: 0 | FR48: 0 | FS48: 0 | FT48: =IF((1-($GE$2-FT$2)/$C48)>0,(1-($GE$2-FT$2)/$C48),0) -> 0 | FU48: 0 | FV48: 0 | FW48: 0 | FX48: 0 | FY48: 0 | FZ48: 0 | GA48: 0 | GB48: 0 | GC48: 0.125 | GD48: 0.25 | GE48: =IF(FI48=0,0,($D48-$E48)*1/$C48)+IF(FJ48=0,0,($G48-$H48-$I48)*$G$63*1/$C48)+IF(FK48=0,0,($K48-$L48-$M48)*$K$63*1/$C48)+IF(FL48=0,0,($O48-$P48-$Q48)*$O$63*1/$C48)+IF(FM48=0,0,($S48-$T48-$U48)*$S$63*1/$C48)+IF(FN48=0,0,($W48-$X48-$Y48)*$W$63*1/$C48)+IF(FO48=0,0,($AA48-$AB48-$AC48)*$AA$63*1/$C48)+IF(FP48=0,0,($AE48-$AF48-$AG48)*$AE$63*1/$C48)+IF(FQ48=0,0,($AI48-$AJ48-$AK48)*$AI$63*1/$C48)+IF(FR48=0,0,($AM48-$AN48-$AO48)*$AM$63*1/$C48)+IF(FS48=0,0,($AQ48-$AR48-$AS48)*$AQ$63*1/$C48)+IF(FT48=0,0,($AU48-$AV48-$AW48)*$AU$63*1/$C48)+IF(FU48=0,0,($AY48-$AZ48-$BA48)*$AY$63*1/$C48)+IF(FV48=0,0,($BC48-$BD48-$BE48)*$BC$63*1/$C48)+IF(FW48=0,0,($BG48-$BH48-$BI48)*$BG$63*1/$C48)+IF(FX48=0,0,($BK48-$BL48-$BM48)*$BK$63*1/$C48)+IF(FY48=0,0,($BO48-$BP48-$BQ48)*$BO$63*1/$C48)+IF(FZ48=0,0,($BS48-$BT48-$BU48)*$BS$63*1/$C48)+IF(GA48=0,0,($BW48-$BX48-$BY48)*$BW$63*1/$C48)+IF(GB48=0,0,($CA48-$CB48-$CC48)*$CA$63*1/$C48)+IF(GC48=0,0,($CE48-$CF48-$CG48)*$CE$63*1/$C48)+IF(GD48=0,0,($CI48-$CJ48-$CK48)*$CI$63*1/$C48) -> 0 | GF48: =IF((1-($HB$2-$CM48)/$C48)>0,(1-($HB$2-$CM48)/$C48),0) -> 0 | GG48: =IF((1-($HB$2-GG$2)/$C48)>0,(1-($HB$2-GG$2)/$C48),0) -> 0 | GH48: 0 | GI48: 0 | GJ48: 0 | GK48: 0 | GL48: 0 | GM48: 0 | GN48: 0 | GO48: 0 | GP48: 0 | GQ48: =IF((1-($HB$2-GQ$2)/$C48)>0,(1-($HB$2-GQ$2)/$C48),0) -> 0 | GR48: 0 | GS48: 0 | GT48: 0 | GU48: 0 | GV48: 0 | GW48: 0 | GX48: 0 | GY48: 0 | GZ48: 0 | HA48: 0 | HB48: =IF(GF48=0,0,($D48-$E48)*1/$C48)+IF(GG48=0,0,($G48-$I48)*$G$63*1/$C48)+IF(GH48=0,0,($K48-$M48)*$K$63*1/$C48)+IF(GI48=0,0,($O48-$Q48)*$O$63*1/$C48)+IF(GJ48=0,0,($S48-$U48)*$S$63*1/$C48)+IF(GK48=0,0,($W48-$Y48)*$W$63*1/$C48)+IF(GL48=0,0,($AA48-$AC48)*$AA$63*1/$C48)+IF(GM48=0,0,($AE48-$AG48)*$AE$63*1/$C48)+IF(GN48=0,0,($AI48-$AK48)*$AI$63*1/$C48)+IF(GO48=0,0,($AM48-$AO48)*$AM$63*1/$C48)+IF(GP48=0,0,($AQ48-$AS48)*$AQ$63*1/$C48)+IF(GQ48=0,0,($AU48-$AW48)*$AU$63*1/$C48)+IF(GR48=0,0,($AY48-$BA48)*$AY$63*1/$C48)+IF(GS48=0,0,($BC48-$BE48)*$BC$63*1/$C48)+IF(GT48=0,0,($BG48-$BI48)*$BG$63*1/$C48)+IF(GU48=0,0,($BK48-$BM48)*$BK$63*1/$C48)+IF(GV48=0,0,($BO48-$BQ48)*$BO$63*1/$C48)+IF(GW48=0,0,($BS48-$BU48)*$BS$63*1/$C48)+IF(GX48=0,0,($BW48-$BY48)*$BW$63*1/$C48)+IF(GY48=0,0,($CA48-$CC48)*$CA$63*1/$C48)+IF(GZ48=0,0,($CE48-$CG48)*$CE$63*1/$C48)+IF(HA48=0,0,($CI48-$CK48)*$CI$63*1/$C48) -> 0
B49: Terrenos | C49: 1000 | D49: 205064.8127 | E49: 0 | F49: 205064.8127 | G49: 0 | H49: 0 | I49: 0 | J49: 0 | K49: 0 | L49: 0 | M49: 0 | N49: 0 | O49: 78110 | P49: 0 | Q49: 0 | R49: 0 | S49: 0 | T49: 0 | U49: 0 | V49: 0 | W49: 0 | X49: 0 | Y49: 0 | Z49: 0 | AA49: 0 | AB49: 0 | AC49: 0 | AD49: 0 | AE49: 0 | AF49: 0 | AG49: 0 | AH49: 0 | AI49: 0 | AJ49: 0 | AK49: 0 | AL49: 0 | AM49: 0 | AN49: 0 | AO49: 0 | AP49: 0 | AQ49: 0 | AR49: 0 | AS49: 0 | AT49: 0 | AU49: 0 | AV49: 0 | AW49: 0 | AX49: 0 | AY49: 0 | AZ49: 0 | BA49: 0 | BB49: 0 | BC49: 0 | BD49: 0 | BE49: 0 | BF49: 0 | BG49: 0 | BH49: 0 | BI49: 0 | BJ49: 0 | BK49: 0 | BL49: 0 | BM49: 0 | BN49: 0 | BO49: 0 | BP49: 0 | BQ49: 0 | BR49: 0 | BS49: 0 | BT49: 0 | BU49: 0 | BV49: 0 | BW49: 0 | BX49: 0 | BY49: 0 | BZ49: 0 | CA49: 0 | CB49: 0 | CC49: 0 | CD49: 0 | CE49: 0 | CF49: 0 | CG49: 0 | CH49: 0 | CI49: 0 | CJ49: 0 | CK49: 0 | CL49: 0 | CM49: 2001 | CN49: 0.9795 | CO49: 0.9805 | CP49: 0.9815 | CQ49: 0.9825 | CR49: 0.9835 | CS49: 0.9845 | CT49: 0.9855 | CU49: 0.9865 | CV49: 0.9875 | CW49: 0.9885 | CX49: 0.9895 | CY49: 0.9905 | CZ49: 0.9915 | DA49: 0.9925 | DB49: 0.9935 | DC49: 0.9945 | DD49: 0.9955 | DE49: 0.9965 | DF49: 0.9975 | DG49: 0.9985 | DH49: 0.9995 | DI49: 1 | DJ49: =IF(CN49=0,0,($D49-$E49)*1/$C49)+IF(CO49=0,0,($G49-$H49-$I49)*$G$63*1/$C49)+IF(CP49=0,0,($K49-$L49-$M49)*$K$63*1/$C49)+IF(CQ49=0,0,($O49-$P49-$Q49)*$O$63*1/$C49)+IF(CR49=0,0,($S49-$T49-$U49)*$S$63*1/$C49)+IF(CS49=0,0,($W49-$X49-$Y49)*$W$63*1/$C49)+IF(CT49=0,0,($AA49-$AB49-$AC49)*$AA$63*1/$C49)+IF(CU49=0,0,($AE49-$AF49-$AG49)*$AE$63*1/$C49)+IF(CV49=0,0,($AI49-$AJ49-$AK49)*$AI$63*1/$C49)+IF(CW49=0,0,($AM49-$AN49-$AO49)*$AM$63*1/$C49)+IF(CX49=0,0,($AQ49-$AR49-$AS49)*$AQ$63*1/$C49)+IF(CY49=0,0,($AU49-$AV49-$AW49)*$AU$63*1/$C49)+IF(CZ49=0,0,($AY49-$AZ49-$BA49)*$AY$63*1/$C49)+IF(DA49=0,0,($BC49-$BD49-$BE49)*$BC$63*1/$C49)+IF(DB49=0,0,($BG49-$BH49-$BI49)*$BG$63*1/$C49)+IF(DC49=0,0,($BK49-$BL49-$BM49)*$BK$63*1/$C49)+IF(DD49=0,0,($BO49-$BP49-$BQ49)*$BO$63*1/$C49)+IF(DE49=0,0,($BS49-$BT49-$BU49)*$BS$63*1/$C49)+IF(DF49=0,0,($BW49-$BX49-$BY49)*$BW$63*1/$C49)+IF(DG49=0,0,($CA49-$CB49-$CC49)*$CA$63*1/$C49)+IF(DH49=0,0,($CE49-$CF49-$CG49)*$CE$63*1/$C49)+IF(DI49=0,0,($CI49-$CJ49-$CK49)*$CI$63*1/$C49) -> 279.8260126 | DK49: 279826.0126 | DL49: 0 | DM49: =(D49-E49)*CN49+((G49-H49-(I49-J49))*G$63)*CO49+((K49-L49-(M49-N49))*K$63)*CP49+((O49-P49-(Q49-R49))*O$63)*CQ49+((S49-T49-(U49-V49))*S$63)*CR49+((W49-X49-(Y49-Z49))*W$63)*CS49+((AA49-AB49-(AC49-AD49))*AA$63)*CT49+((AE49-AF49-(AG49-AH49))*AE$63)*CU49+((AI49-AJ49-(AK49-AL49))*AI$63)*CV49+((AM49-AN49-(AO49-AP49))*$AM$63)*CW49+((AQ49-AR49-(AS49-AT49))*$AQ$63)*CX49+((AU49-AV49-(AW49-AX49))*$AU$63)*CY49+((AY49-AZ49-(BA49-BB49))*$AY$63)*CZ49+((BC49-BD49-(BE49-BF49))*$BC$63)*DA49+((BG49-BH49-(BI49-BJ49))*$BG$63)*DB49+((BK49-BL49-(BM49-BN49))*$BK$63)*DC49+((BO49-BP49-(BQ49-BR49))*$BO$63)*DD49+((BS49-BT49-(BU49-BV49))*$BS$63)*DE49+((BW49-BX49-(BY49-BZ49))*$BW$63)*DF49+((CA49-CB49-(CC49-CD49))*$CA$63)*DG49+((CE49-CF49-(CG49-CH49))*$CE$63)*DH49+((CI49-CJ49-(CK49-CL49))*$CI$63)*DI49 -> 274313.863 | DN49: 279.8260126 | DO49: 0.9785 | DP49: 0.9795 | DQ49: 0.9805 | DR49: 0.9815 | DS49: 0.9825 | DT49: 0.9835 | DU49: 0.9845 | DV49: 0.9855 | DW49: 0.9865 | DX49: 0.9875 | DY49: 0.9885 | DZ49: 0.9895 | EA49: 0.9905 | EB49: 0.9915 | EC49: 0.9925 | ED49: 0.9935 | EE49: 0.9945 | EF49: 0.9955 | EG49: 0.9965 | EH49: 0.9975 | EI49: 0.9985 | EJ49: 0.999 | EK49: =IF(DO49=0,0,($D49-$E49)*1/$C49)+IF(DP49=0,0,($G49-$H49-$I49)*$G$63*1/$C49)+IF(DQ49=0,0,($K49-$L49-$M49)*$K$63*1/$C49)+IF(DR49=0,0,($O49-$P49-$Q49)*$O$63*1/$C49)+IF(DS49=0,0,($S49-$T49-$U49)*$S$63*1/$C49)+IF(DT49=0,0,($W49-$X49-$Y49)*$W$63*1/$C49)+IF(DU49=0,0,($AA49-$AB49-$AC49)*$AA$63*1/$C49)+IF(DV49=0,0,($AE49-$AF49-$AG49)*$AE$63*1/$C49)+IF(DW49=0,0,($AI49-$AJ49-$AK49)*$AI$63*1/$C49)+IF(DX49=0,0,($AM49-$AN49-$AO49)*$AM$63*1/$C49)+IF(DY49=0,0,($AQ49-$AR49-$AS49)*$AQ$63*1/$C49)+IF(DZ49=0,0,($AU49-$AV49-$AW49)*$AU$63*1/$C49)+IF(EA49=0,0,($AY49-$AZ49-$BA49)*$AY$63*1/$C49)+IF(EB49=0,0,($BC49-$BD49-$BE49)*$BC$63*1/$C49)+IF(EC49=0,0,($BG49-$BH49-$BI49)*$BG$63*1/$C49)+IF(ED49=0,0,($BK49-$BL49-$BM49)*$BK$63*1/$C49)+IF(EE49=0,0,($BO49-$BP49-$BQ49)*$BO$63*1/$C49)+IF(EF49=0,0,($BS49-$BT49-$BU49)*$BS$63*1/$C49)+IF(EG49=0,0,($BW49-$BX49-$BY49)*$BW$63*1/$C49)+IF(EH49=0,0,($CA49-$CB49-$CC49)*$CA$63*1/$C49)+IF(EI49=0,0,($CE49-$CF49-$CG49)*$CE$63*1/$C49)+IF(EJ49=0,0,($CI49-$CJ49-$CK49)*$CI$63*1/$C49) -> 279.8260126 | EL49: 0.9775 | EM49: 0.9785 | EN49: 0.9795 | EO49: 0.9805 | EP49: 0.9815 | EQ49: 0.9825 | ER49: 0.9835 | ES49: 0.9845 | ET49: 0.9855 | EU49: 0.9865 | EV49: 0.9875 | EW49: 0.9885 | EX49: 0.9895 | EY49: 0.9905 | EZ49: 0.9915 | FA49: 0.9925 | FB49: 0.9935 | FC49: 0.9945 | FD49: 0.9955 | FE49: 0.9965 | FF49: 0.9975 | FG49: 0.998 | FH49: =IF(EL49=0,0,($D49-$E49)*1/$C49)+IF(EM49=0,0,($G49-$H49-$I49)*$G$63*1/$C49)+IF(EN49=0,0,($K49-$L49-$M49)*$K$63*1/$C49)+IF(EO49=0,0,($O49-$P49-$Q49)*$O$63*1/$C49)+IF(EP49=0,0,($S49-$T49-$U49)*$S$63*1/$C49)+IF(EQ49=0,0,($W49-$X49-$Y49)*$W$63*1/$C49)+IF(ER49=0,0,($AA49-$AB49-$AC49)*$AA$63*1/$C49)+IF(ES49=0,0,($AE49-$AF49-$AG49)*$AE$63*1/$C49)+IF(ET49=0,0,($AI49-$AJ49-$AK49)*$AI$63*1/$C49)+IF(EU49=0,0,($AM49-$AN49-$AO49)*$AM$63*1/$C49)+IF(EV49=0,0,($AQ49-$AR49-$AS49)*$AQ$63*1/$C49)+IF(EW49=0,0,($AU49-$AV49-$AW49)*$AU$63*1/$C49)+IF(EX49=0,0,($AY49-$AZ49-$BA49)*$AY$63*1/$C49)+IF(EY49=0,0,($BC49-$BD49-$BE49)*$BC$63*1/$C49)+IF(EZ49=0,0,($BG49-$BH49-$BI49)*$BG$63*1/$C49)+IF(FA49=0,0,($BK49-$BL49-$BM49)*$BK$63*1/$C49)+IF(FB49=0,0,($BO49-$BP49-$BQ49)*$BO$63*1/$C49)+IF(FC49=0,0,($BS49-$BT49-$BU49)*$BS$63*1/$C49)+IF(FD49=0,0,($BW49-$BX49-$BY49)*$BW$63*1/$C49)+IF(FE49=0,0,($CA49-$CB49-$CC49)*$CA$63*1/$C49)+IF(FF49=0,0,($CE49-$CF49-$CG49)*$CE$63*1/$C49)+IF(FG49=0,0,($CI49-$CJ49-$CK49)*$CI$63*1/$C49) -> 279.8260126 | FI49: 0.9765 | FJ49: 0.9775 | FK49: 0.9785 | FL49: 0.9795 | FM49: 0.9805 | FN49: 0.9815 | FO49: 0.9825 | FP49: 0.9835 | FQ49: 0.9845 | FR49: 0.9855 | FS49: 0.9865 | FT49: 0.9875 | FU49: 0.9885 | FV49: 0.9895 | FW49: 0.9905 | FX49: 0.9915 | FY49: 0.9925 | FZ49: 0.9935 | GA49: 0.9945 | GB49: 0.9955 | GC49: 0.9965 | GD49: 0.997 | GE49: =IF(FI49=0,0,($D49-$E49)*1/$C49)+IF(FJ49=0,0,($G49-$H49-$I49)*$G$63*1/$C49)+IF(FK49=0,0,($K49-$L49-$M49)*$K$63*1/$C49)+IF(FL49=0,0,($O49-$P49-$Q49)*$O$63*1/$C49)+IF(FM49=0,0,($S49-$T49-$U49)*$S$63*1/$C49)+IF(FN49=0,0,($W49-$X49-$Y49)*$W$63*1/$C49)+IF(FO49=0,0,($AA49-$AB49-$AC49)*$AA$63*1/$C49)+IF(FP49=0,0,($AE49-$AF49-$AG49)*$AE$63*1/$C49)+IF(FQ49=0,0,($AI49-$AJ49-$AK49)*$AI$63*1/$C49)+IF(FR49=0,0,($AM49-$AN49-$AO49)*$AM$63*1/$C49)+IF(FS49=0,0,($AQ49-$AR49-$AS49)*$AQ$63*1/$C49)+IF(FT49=0,0,($AU49-$AV49-$AW49)*$AU$63*1/$C49)+IF(FU49=0,0,($AY49-$AZ49-$BA49)*$AY$63*1/$C49)+IF(FV49=0,0,($BC49-$BD49-$BE49)*$BC$63*1/$C49)+IF(FW49=0,0,($BG49-$BH49-$BI49)*$BG$63*1/$C49)+IF(FX49=0,0,($BK49-$BL49-$BM49)*$BK$63*1/$C49)+IF(FY49=0,0,($BO49-$BP49-$BQ49)*$BO$63*1/$C49)+IF(FZ49=0,0,($BS49-$BT49-$BU49)*$BS$63*1/$C49)+IF(GA49=0,0,($BW49-$BX49-$BY49)*$BW$63*1/$C49)+IF(GB49=0,0,($CA49-$CB49-$CC49)*$CA$63*1/$C49)+IF(GC49=0,0,($CE49-$CF49-$CG49)*$CE$63*1/$C49)+IF(GD49=0,0,($CI49-$CJ49-$CK49)*$CI$63*1/$C49) -> 279.8260126 | GF49: 0.9755 | GG49: 0.9765 | GH49: 0.9775 | GI49: 0.9785 | GJ49: 0.9795 | GK49: 0.9805 | GL49: 0.9815 | GM49: 0.9825 | GN49: 0.9835 | GO49: 0.9845 | GP49: 0.9855 | GQ49: 0.9865 | GR49: 0.9875 | GS49: 0.9885 | GT49: 0.9895 | GU49: 0.9905 | GV49: 0.9915 | GW49: 0.9925 | GX49: 0.9935 | GY49: 0.9945 | GZ49: 0.9955 | HA49: 0.996 | HB49: =IF(GF49=0,0,($D49-$E49)*1/$C49)+IF(GG49=0,0,($G49-$I49)*$G$63*1/$C49)+IF(GH49=0,0,($K49-$M49)*$K$63*1/$C49)+IF(GI49=0,0,($O49-$Q49)*$O$63*1/$C49)+IF(GJ49=0,0,($S49-$U49)*$S$63*1/$C49)+IF(GK49=0,0,($W49-$Y49)*$W$63*1/$C49)+IF(GL49=0,0,($AA49-$AC49)*$AA$63*1/$C49)+IF(GM49=0,0,($AE49-$AG49)*$AE$63*1/$C49)+IF(GN49=0,0,($AI49-$AK49)*$AI$63*1/$C49)+IF(GO49=0,0,($AM49-$AO49)*$AM$63*1/$C49)+IF(GP49=0,0,($AQ49-$AS49)*$AQ$63*1/$C49)+IF(GQ49=0,0,($AU49-$AW49)*$AU$63*1/$C49)+IF(GR49=0,0,($AY49-$BA49)*$AY$63*1/$C49)+IF(GS49=0,0,($BC49-$BE49)*$BC$63*1/$C49)+IF(GT49=0,0,($BG49-$BI49)*$BG$63*1/$C49)+IF(GU49=0,0,($BK49-$BM49)*$BK$63*1/$C49)+IF(GV49=0,0,($BO49-$BQ49)*$BO$63*1/$C49)+IF(GW49=0,0,($BS49-$BU49)*$BS$63*1/$C49)+IF(GX49=0,0,($BW49-$BY49)*$BW$63*1/$C49)+IF(GY49=0,0,($CA49-$CC49)*$CA$63*1/$C49)+IF(GZ49=0,0,($CE49-$CG49)*$CE$63*1/$C49)+IF(HA49=0,0,($CI49-$CK49)*$CI$63*1/$C49) -> 279.8260126
B50: Edificios y mejoras | C50: 40 | D50: 4162143.686 | E50: 0 | F50: 2991266.226 | G50: 0 | H50: 0 | I50: 0 | J50: 0 | K50: 9922 | L50: 0 | M50: 0 | N50: 0 | O50: 0 | P50: 0 | Q50: 0 | R50: 0 | S50: 1078 | T50: 0 | U50: 0 | V50: 0 | W50: 130766.41 | X50: 0 | Y50: 0 | Z50: 0 | AA50: 0 | AB50: 0 | AC50: 0 | AD50: 0 | AE50: 180532.06 | AF50: 0 | AG50: 0 | AH50: 0 | AI50: 0 | AJ50: 0 | AK50: 0 | AL50: 0 | AM50: 0 | AN50: 0 | AO50: 0 | AP50: 0 | AQ50: 0 | AR50: 0 | AS50: 0 | AT50: 0 | AU50: 0 | AV50: 0 | AW50: 0 | AX50: 0 | AY50: 0 | AZ50: 0 | BA50: 0 | BB50: 0 | BC50: 0 | BD50: 0 | BE50: 0 | BF50: 0 | BG50: 0 | BH50: 0 | BI50: 0 | BJ50: 0 | BK50: 0 | BL50: 0 | BM50: 0 | BN50: 0 | BO50: 0 | BP50: 0 | BQ50: 0 | BR50: 0 | BS50: 0 | BT50: 0 | BU50: 0 | BV50: 0 | BW50: 0 | BX50: 0 | BY50: 0 | BZ50: 0 | CA50: 0 | CB50: 0 | CC50: 0 | CD50: 0 | CE50: 0 | CF50: 0 | CG50: 0 | CH50: 0 | CI50: 0 | CJ50: 0 | CK50: 0 | CL50: 0 | CM50: 1989.747361 | CN50: 0.2061840369 | CO50: 0.5125 | CP50: 0.5375 | CQ50: 0.5625 | CR50: 0.5875 | CS50: 0.6125 | CT50: 0.6375 | CU50: 0.6625 | CV50: 0.6875 | CW50: 0.7125 | CX50: 0.7375 | CY50: 0.7625 | CZ50: 0.7875 | DA50: 0.8125 | DB50: 0.8375 | DC50: 0.8625 | DD50: 0.8875 | DE50: 0.9125 | DF50: 0.9375 | DG50: 0.9625 | DH50: 0.9875 | DI50: 1 | DJ50: 111067.2644 | DK50: 4442690.576 | DL50: 0 | DM50: 1037343.746 | DN50: 111067.2644 | DO50: 0.1811840369 | DP50: 0.4875 | DQ50: 0.5125 | DR50: 0.5375 | DS50: 0.5625 | DT50: 0.5875 | DU50: 0.6125 | DV50: 0.6375 | DW50: 0.6625 | DX50: 0.6875 | DY50: 0.7125 | DZ50: 0.7375 | EA50: 0.7625 | EB50: 0.7875 | EC50: 0.8125 | ED50: 0.8375 | EE50: 0.8625 | EF50: 0.8875 | EG50: 0.9125 | EH50: 0.9375 | EI50: 0.9625 | EJ50: 0.975 | EK50: 111067.2644 | EL50: 0.1561840369 | EM50: 0.4625 | EN50: 0.4875 | EO50: 0.5125 | EP50: 0.5375 | EQ50: 0.5625 | ER50: 0.5875 | ES50: 0.6125 | ET50: 0.6375 | EU50: 0.6625 | EV50: 0.6875 | EW50: 0.7125 | EX50: 0.7375 | EY50: 0.7625 | EZ50: 0.7875 | FA50: 0.8125 | FB50: 0.8375 | FC50: 0.8625 | FD50: 0.8875 | FE50: 0.9125 | FF50: 0.9375 | FG50: 0.95 | FH50: 111067.2644 | FI50: 0.1311840369 | FJ50: 0.4375 | FK50: 0.4625 | FL50: 0.4875 | FM50: 0.5125 | FN50: 0.5375 | FO50: 0.5625 | FP50: 0.5875 | FQ50: 0.6125 | FR50: 0.6375 | FS50: 0.6625 | FT50: 0.6875 | FU50: 0.7125 | FV50: 0.7375 | FW50: 0.7625 | FX50: 0.7875 | FY50: 0.8125 | FZ50: 0.8375 | GA50: 0.8625 | GB50: 0.8875 | GC50: 0.9125 | GD50: 0.925 | GE50: 111067.2644 | GF50: 0.1061840369 | GG50: 0.4125 | GH50: 0.4375 | GI50: 0.4625 | GJ50: 0.4875 | GK50: 0.5125 | GL50: 0.5375 | GM50: 0.5625 | GN50: 0.5875 | GO50: 0.6125 | GP50: 0.6375 | GQ50: 0.6625 | GR50: 0.6875 | GS50: 0.7125 | GT50: 0.7375 | GU50: 0.7625 | GV50: 0.7875 | GW50: 0.8125 | GX50: 0.8375 | GY50: 0.8625 | GZ50: 0.8875 | HA50: 0.9 | HB50: 111067.2644
B51: Sistema de medidores y accesorios | C51: 22 | D51: 12139060.87 | E51: 0 | F51: 8987034.422 | G51: 2950405.6 | H51: 0 | I51: 0 | J51: 0 | K51: 1937082 | L51: 0 | M51: 0 | N51: 0 | O51: 2293977 | P51: 0 | Q51: 0 | R51: 0 | S51: 2868859.596 | T51: 0 | U51: 0 | V51: 0 | W51: 1710137.77 | X51: 0 | Y51: 0 | Z51: 0 | AA51: 3750829.31 | AB51: 0 | AC51: 0 | AD51: 0 | AE51: 3116814.83 | AF51: 0 | AG51: 0 | AH51: 0 | AI51: 2205712.24 | AJ51: 0 | AK51: 0 | AL51: 0 | AM51: 2123608.97 | AN51: 3928.78 | AO51: 0 | AP51: 0 | AQ51: 2261363.1 | AR51: 1707.17 | AS51: 0 | AT51: 0 | AU51: 4275164.45 | AV51: 88.28 | AW51: 0 | AX51: 0 | AY51: 4339920.67 | AZ51: 773.84 | BA51: 0 | BB51: 0 | BC51: 4168800.41 | BD51: 0 | BE51: 0 | BF51: 0 | BG51: 6218153.71 | BH51: 1578.2 | BI51: 0 | BJ51: 0 | BK51: 8865824.36 | BL51: 1687.45 | BM51: 0 | BN51: 0 | BO51: 7116981.14 | BP51: 0 | BQ51: 0 | BR51: 0 | BS51: 5321306.84 | BT51: 1065.28 | BU51: 0 | BV51: 0 | BW51: 5558262.66 | BX51: 1855.47 | BY51: 0 | BZ51: 0 | CA51: 8494536.55 | CB51: 2953.37 | CC51: 0 | CD51: 0 | CE51: 10338807.46 | CF51: 74.05 | CG51: 0 | CH51: 0 | CI51: 5642255.54 | CJ51: 0 | CK51: 0 | CL51: 0 | CM51: 1995.287484 | CN51: 0 | CO51: 0.1136363636 | CP51: 0.1590909091 | CQ51: 0.2045454545 | CR51: 0.25 | CS51: 0.2954545455 | CT51: 0.3409090909 | CU51: 0.3863636364 | CV51: 0.4318181818 | CW51: 0.4772727273 | CX51: 0.5227272727 | CY51: 0.5681818182 | CZ51: 0.6136363636 | DA51: 0.6590909091 | DB51: 0.7045454545 | DC51: 0.75 | DD51: 0.7954545455 | DE51: 0.8409090909 | DF51: 0.8863636364 | DG51: 0.9318181818 | DH51: 0.9772727273 | DI51: 1 | DJ51: 3910403.12 | DK51: 98167929.51 | DL51: 12139060.87 | DM51: 59039211.06 | DN51: 3910403.12 | DO51: 0 | DP51: 0.06818181818 | DQ51: 0.1136363636 | DR51: 0.1590909091 | DS51: 0.2045454545 | DT51: 0.25 | DU51: 0.2954545455 | DV51: 0.3409090909 | DW51: 0.3863636364 | DX51: 0.4318181818 | DY51: 0.4772727273 | DZ51: 0.5227272727 | EA51: 0.5681818182 | EB51: 0.6136363636 | EC51: 0.6590909091 | ED51: 0.7045454545 | EE51: 0.75 | EF51: 0.7954545455 | EG51: 0.8409090909 | EH51: 0.8863636364 | EI51: 0.9318181818 | EJ51: 0.9545454545 | EK51: 3910403.12 | EL51: 0 | EM51: 0.02272727273 | EN51: 0.06818181818 | EO51: 0.1136363636 | EP51: 0.1590909091 | EQ51: 0.2045454545 | ER51: 0.25 | ES51: 0.2954545455 | ET51: 0.3409090909 | EU51: 0.3863636364 | EV51: 0.4318181818 | EW51: 0.4772727273 | EX51: 0.5227272727 | EY51: 0.5681818182 | EZ51: 0.6136363636 | FA51: 0.6590909091 | FB51: 0.7045454545 | FC51: 0.75 | FD51: 0.7954545455 | FE51: 0.8409090909 | FF51: 0.8863636364 | FG51: 0.9090909091 | FH51: 3910403.12 | FI51: 0 | FJ51: 0 | FK51: 0.02272727273 | FL51: 0.06818181818 | FM51: 0.1136363636 | FN51: 0.1590909091 | FO51: 0.2045454545 | FP51: 0.25 | FQ51: 0.2954545455 | FR51: 0.3409090909 | FS51: 0.3863636364 | FT51: 0.4318181818 | FU51: 0.4772727273 | FV51: 0.5227272727 | FW51: 0.5681818182 | FX51: 0.6136363636 | FY51: 0.6590909091 | FZ51: 0.7045454545 | GA51: 0.75 | GB51: 0.7954545455 | GC51: 0.8409090909 | GD51: 0.8636363636 | GE51: 3807094.982 | GF51: 0 | GG51: 0 | GH51: 0 | GI51: 0.02272727273 | GJ51: 0.06818181818 | GK51: 0.1136363636 | GL51: 0.1590909091 | GM51: 0.2045454545 | GN51: 0.25 | GO51: 0.2954545455 | GP51: 0.3409090909 | GQ51: 0.3863636364 | GR51: 0.4318181818 | GS51: 0.4772727273 | GT51: 0.5227272727 | GU51: 0.5681818182 | GV51: 0.6136363636 | GW51: 0.6590909091 | GX51: 0.7045454545 | GY51: 0.75 | GZ51: 0.7954545455 | HA51: 0.8181818182 | HB51: 3720331.208
B52: Equipos de medida SMEC | C52: 22 | D52: 0 | E52: 0 | F52: 0 | G52: 240583 | H52: 0 | I52: 0 | J52: 0 | K52: 84453 | L52: 0 | M52: 0 | N52: 0 | O52: 0 | P52: 0 | Q52: 0 | R52: 0 | S52: 0 | T52: 0 | U52: 0 | V52: 0 | W52: 72048.74 | X52: 0 | Y52: 0 | Z52: 0 | AA52: 0 | AB52: 0 | AC52: 0 | AD52: 0 | AE52: 4263.36 | AF52: 0 | AG52: 0 | AH52: 0 | AI52: 32103.99 | AJ52: 0 | AK52: 0 | AL52: 0 | AM52: 124587.76 | AN52: 0 | AO52: 0 | AP52: 0 | AQ52: 1993.11 | AR52: 0 | AS52: 0 | AT52: 0 | AU52: 6904.6 | AV52: 0 | AW52: 0 | AX52: 0 | AY52: 0 | AZ52: 0 | BA52: 0 | BB52: 0 | BC52: 47263.98 | BD52: 0 | BE52: 0 | BF52: 0 | BG52: 292607.97 | BH52: 0 | BI52: 0 | BJ52: 0 | BK52: 129002.8 | BL52: 0 | BM52: 0 | BN52: 0 | BO52: 230082.58 | BP52: 0 | BQ52: 0 | BR52: 0 | BS52: 147170.87 | BT52: 0 | BU52: 0 | BV52: 0 | BW52: 50656.87 | BX52: 0 | BY52: 0 | BZ52: 0 | CA52: 131310.99 | CB52: 0 | CC52: 0 | CD52: 0 | CE52: 330830.35 | CF52: 0 | CG52: 0 | CH52: 0 | CI52: 7117.68 | CJ52: 0 | CK52: 0 | CL52: 0 | CM52: 0 | CN52: 0 | CO52: 0.1136363636 | CP52: 0.1590909091 | CQ52: 0.2045454545 | CR52: 0.25 | CS52: 0.2954545455 | CT52: 0.3409090909 | CU52: 0.3863636364 | CV52: 0.4318181818 | CW52: 0.4772727273 | CX52: 0.5227272727 | CY52: 0.5681818182 | CZ52: 0.6136363636 | DA52: 0.6590909091 | DB52: 0.7045454545 | DC52: 0.75 | DD52: 0.7954545455 | DE52: 0.8409090909 | DF52: 0.8863636364 | DG52: 0.9318181818 | DH52: 0.9772727273 | DI52: 1 | DJ52: =IF(CN52=0,0,($D52-$E52)*1/$C52)+IF(CO52=0,0,($G52-$H52-$I52)*$G$63*1/$C52)+IF(CP52=0,0,($K52-$L52-$M52)*$K$63*1/$C52)+IF(CQ52=0,0,($O52-$P52-$Q52)*$O$63*1/$C52)+IF(CR52=0,0,($S52-$T52-$U52)*$S$63*1/$C52)+IF(CS52=0,0,($W52-$X52-$Y52)*$W$63*1/$C52)+IF(CT52=0,0,($AA52-$AB52-$AC52)*$AA$63*1/$C52)+IF(CU52=0,0,($AE52-$AF52-$AG52)*$AE$63*1/$C52)+IF(CV52=0,0,($AI52-$AJ52-$AK52)*$AI$63*1/$C52)+IF(CW52=0,0,($AM52-$AN52-$AO52)*$AM$63*1/$C52)+IF(CX52=0,0,($AQ52-$AR52-$AS52)*$AQ$63*1/$C52)+IF(CY52=0,0,($AU52-$AV52-$AW52)*$AU$63*1/$C52)+IF(CZ52=0,0,($AY52-$AZ52-$BA52)*$AY$63*1/$C52)+IF(DA52=0,0,($BC52-$BD52-$BE52)*$BC$63*1/$C52)+IF(DB52=0,0,($BG52-$BH52-$BI52)*$BG$63*1/$C52)+IF(DC52=0,0,($BK52-$BL52-$BM52)*$BK$63*1/$C52)+IF(DD52=0,0,($BO52-$BP52-$BQ52)*$BO$63*1/$C52)+IF(DE52=0,0,($BS52-$BT52-$BU52)*$BS$63*1/$C52)+IF(DF52=0,0,($BW52-$BX52-$BY52)*$BW$63*1/$C52)+IF(DG52=0,0,($CA52-$CB52-$CC52)*$CA$63*1/$C52)+IF(DH52=0,0,($CE52-$CF52-$CG52)*$CE$63*1/$C52)+IF(DI52=0,0,($CI52-$CJ52-$CK52)*$CI$63*1/$C52) -> 76636.90872 | DK52: 1686011.992 | DL52: 0 | DM52: 1136104.325 | DN52: 76636.90872 | DO52: 0 | DP52: 0.06818181818 | DQ52: 0.1136363636 | DR52: 0.1590909091 | DS52: 0.2045454545 | DT52: 0.25 | DU52: 0.2954545455 | DV52: 0.3409090909 | DW52: 0.3863636364 | DX52: 0.4318181818 | DY52: 0.4772727273 | DZ52: 0.5227272727 | EA52: 0.5681818182 | EB52: 0.6136363636 | EC52: 0.6590909091 | ED52: 0.7045454545 | EE52: 0.75 | EF52: 0.7954545455 | EG52: 0.8409090909 | EH52: 0.8863636364 | EI52: 0.9318181818 | EJ52: 0.9545454545 | EK52: 76636.90872 | EL52: 0 | EM52: 0.02272727273 | EN52: 0.06818181818 | EO52: 0.1136363636 | EP52: 0.1590909091 | EQ52: 0.2045454545 | ER52: 0.25 | ES52: 0.2954545455 | ET52: 0.3409090909 | EU52: 0.3863636364 | EV52: 0.4318181818 | EW52: 0.4772727273 | EX52: 0.5227272727 | EY52: 0.5681818182 | EZ52: 0.6136363636 | FA52: 0.6590909091 | FB52: 0.7045454545 | FC52: 0.75 | FD52: 0.7954545455 | FE52: 0.8409090909 | FF52: 0.8863636364 | FG52: 0.9090909091 | FH52: 76636.90872 | FI52: 0 | FJ52: 0 | FK52: 0.02272727273 | FL52: 0.06818181818 | FM52: 0.1136363636 | FN52: 0.1590909091 | FO52: 0.2045454545 | FP52: 0.25 | FQ52: 0.2954545455 | FR52: 0.3409090909 | FS52: 0.3863636364 | FT52: 0.4318181818 | FU52: 0.4772727273 | FV52: 0.5227272727 | FW52: 0.5681818182 | FX52: 0.6136363636 | FY52: 0.6590909091 | FZ52: 0.7045454545 | GA52: 0.75 | GB52: 0.7954545455 | GC52: 0.8409090909 | GD52: 0.8636363636 | GE52: 68212.92059 | GF52: 0 | GG52: 0 | GH52: 0 | GI52: 0.02272727273 | GJ52: 0.06818181818 | GK52: 0.1136363636 | GL52: 0.1590909091 | GM52: 0.2045454545 | GN52: 0.25 | GO52: 0.2954545455 | GP52: 0.3409090909 | GQ52: 0.3863636364 | GR52: 0.4318181818 | GS52: 0.4772727273 | GT52: 0.5227272727 | GU52: 0.5681818182 | GV52: 0.6136363636 | GW52: 0.6590909091 | GX52: 0.7045454545 | GY52: 0.75 | GZ52: 0.7954545455 | HA52: 0.8181818182 | HB52: 64403.47504
B53: Mobiliario y equipo de oficina | C53: 7 | D53: 61213.84567 | E53: 0 | F53: 58995.1838 | G53: 28797 | H53: 0 | I53: 0 | J53: 0 | K53: 1572 | L53: 0 | M53: 0 | N53: 0 | O53: 72126 | P53: 0 | Q53: 0 | R53: 0 | S53: 28975.92 | T53: 0 | U53: 0 | V53: 0 | W53: 89616.68 | X53: 0 | Y53: 0 | Z53: 0 | AA53: 0 | AB53: 0 | AC53: 0 | AD53: 0 | AE53: 0 | AF53: 0 | AG53: 0 | AH53: 0 | AI53: 0 | AJ53: 0 | AK53: 0 | AL53: 0 | AM53: 0 | AN53: 0 | AO53: 0 | AP53: 0 | AQ53: 0 | AR53: 0 | AS53: 0 | AT53: 0 | AU53: 0 | AV53: 0 | AW53: 0 | AX53: 0 | AY53: 0 | AZ53: 0 | BA53: 0 | BB53: 0 | BC53: 0 | BD53: 0 | BE53: 0 | BF53: 0 | BG53: 0 | BH53: 0 | BI53: 0 | BJ53: 0 | BK53: 0 | BL53: 0 | BM53: 0 | BN53: 0 | BO53: 0 | BP53: 0 | BQ53: 0 | BR53: 0 | BS53: 0 | BT53: 0 | BU53: 0 | BV53: 0 | BW53: 0 | BX53: 0 | BY53: 0 | BZ53: 0 | CA53: 0 | CB53: 0 | CC53: 0 | CD53: 0 | CE53: 0 | CF53: 0 | CG53: 0 | CH53: 0 | CI53: 0 | CJ53: 0 | CK53: 0 | CL53: 0 | CM53: 2000.746289 | CN53: 0 | CO53: 0 | CP53: 0 | CQ53: 0 | CR53: 0 | CS53: 0 | CT53: 0 | CU53: 0 | CV53: 0 | CW53: 0 | CX53: 0 | CY53: 0 | CZ53: 0 | DA53: 0 | DB53: 0.07142857143 | DC53: 0.2142857143 | DD53: 0.3571428571 | DE53: 0.5 | DF53: 0.6428571429 | DG53: 0.7857142857 | DH53: 0.9285714286 | DI53: 1 | DJ53: 0 | DK53: 256343.0185 | DL53: 256343.0185 | DM53: 0 | DN53: 0 | DO53: 0 | DP53: 0 | DQ53: 0 | DR53: 0 | DS53: 0 | DT53: 0 | DU53: 0 | DV53: 0 | DW53: 0 | DX53: 0 | DY53: 0 | DZ53: 0 | EA53: 0 | EB53: 0 | EC53: 0 | ED53: 0.07142857143 | EE53: 0.2142857143 | EF53: 0.3571428571 | EG53: 0.5 | EH53: 0.6428571429 | EI53: 0.7857142857 | EJ53: 0.8571428571 | EK53: 0 | EL53: 0 | EM53: 0 | EN53: 0 | EO53: 0 | EP53: 0 | EQ53: 0 | ER53: 0 | ES53: 0 | ET53: 0 | EU53: 0 | EV53: 0 | EW53: 0 | EX53: 0 | EY53: 0 | EZ53: 0 | FA53: 0 | FB53: 0.07142857143 | FC53: 0.2142857143 | FD53: 0.3571428571 | FE53: 0.5 | FF53: 0.6428571429 | FG53: 0.7142857143 | FH53: 0 | FI53: 0 | FJ53: 0 | FK53: 0 | FL53: 0 | FM53: 0 | FN53: 0 | FO53: 0 | FP53: 0 | FQ53: 0 | FR53: 0 | FS53: 0 | FT53: 0 | FU53: 0 | FV53: 0 | FW53: 0 | FX53: 0 | FY53: 0 | FZ53: 0.07142857143 | GA53: 0.2142857143 | GB53: 0.3571428571 | GC53: 0.5 | GD53: 0.5714285714 | GE53: 0 | GF53: 0 | GG53: 0 | GH53: 0 | GI53: 0 | GJ53: 0 | GK53: 0 | GL53: 0 | GM53: 0 | GN53: 0 | GO53: 0 | GP53: 0 | GQ53: 0 | GR53: 0 | GS53: 0 | GT53: 0 | GU53: 0 | GV53: 0 | GW53: 0 | GX53: 0.07142857143 | GY53: 0.2142857143 | GZ53: 0.3571428571 | HA53: 0.4285714286 | HB53: 0
B54: Equipo de computación | C54: 4 | D54: 1720533.627 | E54: 0 | F54: 1666855.514 | G54: 0 | H54: 0 | I54: 0 | J54: 0 | K54: 17371 | L54: 0 | M54: 0 | N54: 0 | O54: 544545 | P54: 0 | Q54: 0 | R54: 0 | S54: 200590 | T54: 0 | U54: 0 | V54: 0 | W54: 97991.43 | X54: 0 | Y54: 0 | Z54: 0 | AA54: 0 | AB54: 0 | AC54: 0 | AD54: 0 | AE54: 1149.75 | AF54: 0 | AG54: 0 | AH54: 0 | AI54: 172977.66 | AJ54: 0 | AK54: 0 | AL54: 0 | AM54: 0 | AN54: 0 | AO54: 0 | AP54: 0 | AQ54: 0 | AR54: 0 | AS54: 0 | AT54: 0 | AU54: 0 | AV54: 0 | AW54: 0 | AX54: 0 | AY54: 0 | AZ54: 0 | BA54: 0 | BB54: 0 | BC54: 0 | BD54: 0 | BE54: 0 | BF54: 0 | BG54: 0 | BH54: 0 | BI54: 0 | BJ54: 0 | BK54: 0 | BL54: 0 | BM54: 0 | BN54: 0 | BO54: 0 | BP54: 0 | BQ54: 0 | BR54: 0 | BS54: 0 | BT54: 0 | BU54: 0 | BV54: 0 | BW54: 0 | BX54: 0 | BY54: 0 | BZ54: 0 | CA54: 0 | CB54: 0 | CC54: 0 | CD54: 0 | CE54: 0 | CF54: 0 | CG54: 0 | CH54: 0 | CI54: 0 | CJ54: 0 | CK54: 0 | CL54: 0 | CM54: 2000.875206 | CN54: 0 | CO54: 0 | CP54: 0 | CQ54: 0 | CR54: 0 | CS54: 0 | CT54: 0 | CU54: 0 | CV54: 0 | CW54: 0 | CX54: 0 | CY54: 0 | CZ54: 0 | DA54: 0 | DB54: 0 | DC54: 0 | DD54: 0 | DE54: 0.125 | DF54: 0.375 | DG54: 0.625 | DH54: 0.875 | DI54: 1 | DJ54: 0 | DK54: 2695017.858 | DL54: 2695017.858 | DM54: 0 | DN54: 0 | DO54: 0 | DP54: 0 | DQ54: 0 | DR54: 0 | DS54: 0 | DT54: 0 | DU54: 0 | DV54: 0 | DW54: 0 | DX54: 0 | DY54: 0 | DZ54: 0 | EA54: 0 | EB54: 0 | EC54: 0 | ED54: 0 | EE54: 0 | EF54: 0 | EG54: 0.125 | EH54: 0.375 | EI54: 0.625 | EJ54: 0.75 | EK54: 0 | EL54: 0 | EM54: 0 | EN54: 0 | EO54: 0 | EP54: 0 | EQ54: 0 | ER54: 0 | ES54: 0 | ET54: 0 | EU54: 0 | EV54: 0 | EW54: 0 | EX54: 0 | EY54: 0 | EZ54: 0 | FA54: 0 | FB54: 0 | FC54: 0 | FD54: 0 | FE54: 0.125 | FF54: 0.375 | FG54: 0.5 | FH54: 0 | FI54: 0 | FJ54: 0 | FK54: 0 | FL54: 0 | FM54: 0 | FN54: 0 | FO54: 0 | FP54: 0 | FQ54: 0 | FR54: 0 | FS54: 0 | FT54: 0 | FU54: 0 | FV54: 0 | FW54: 0 | FX54: 0 | FY54: 0 | FZ54: 0 | GA54: 0 | GB54: 0 | GC54: 0.125 | GD54: 0.25 | GE54: 0 | GF54: 0 | GG54: 0 | GH54: 0 | GI54: 0 | GJ54: 0 | GK54: 0 | GL54: 0 | GM54: 0 | GN54: 0 | GO54: 0 | GP54: 0 | GQ54: 0 | GR54: 0 | GS54: 0 | GT54: 0 | GU54: 0 | GV54: 0 | GW54: 0 | GX54: 0 | GY54: 0 | GZ54: 0 | HA54: 0 | HB54: 0
B55: Equipos de transporte y carga | C55: 5 | D55: 56056.47996 | E55: 0 | F55: 54307.60043 | G55: 32000 | H55: 0 | I55: 0 | J55: 0 | K55: 145727 | L55: 0 | M55: 0 | N55: 0 | O55: 91049 | P55: 0 | Q55: 0 | R55: 0 | S55: 0 | T55: 0 | U55: 0 | V55: 0 | W55: 76650 | X55: 0 | Y55: 0 | Z55: 0 | AA55: 206626.3 | AB55: 0 | AC55: 0 | AD55: 0 | AE55: 43300.86 | AF55: 0 | AG55: 0 | AH55: 0 | AI55: 21253.75 | AJ55: 0 | AK55: 0 | AL55: 0 | AM55: 0 | AN55: 0 | AO55: 0 | AP55: 0 | AQ55: 0 | AR55: 0 | AS55: 0 | AT55: 0 | AU55: 0 | AV55: 0 | AW55: 0 | AX55: 0 | AY55: 0 | AZ55: 0 | BA55: 0 | BB55: 0 | BC55: 0 | BD55: 0 | BE55: 0 | BF55: 0 | BG55: 0 | BH55: 0 | BI55: 0 | BJ55: 0 | BK55: 0 | BL55: 0 | BM55: 0 | BN55: 0 | BO55: 0 | BP55: 0 | BQ55: 0 | BR55: 0 | BS55: 0 | BT55: 0 | BU55: 0 | BV55: 0 | BW55: 0 | BX55: 0 | BY55: 0 | BZ55: 0 | CA55: 0 | CB55: 0 | CC55: 0 | CD55: 0 | CE55: 0 | CF55: 0 | CG55: 0 | CH55: 0 | CI55: 0 | CJ55: 0 | CK55: 0 | CL55: 0 | CM55: 2000.844007 | CN55: 0 | CO55: 0 | CP55: 0 | CQ55: 0 | CR55: 0 | CS55: 0 | CT55: 0 | CU55: 0 | CV55: 0 | CW55: 0 | CX55: 0 | CY55: 0 | CZ55: 0 | DA55: 0 | DB55: 0 | DC55: 0 | DD55: 0.1 | DE55: 0.3 | DF55: 0.5 | DG55: 0.7 | DH55: 0.9 | DI55: 1 | DJ55: 0 | DK55: 620540.739 | DL55: 620540.739 | DM55: 0 | DN55: 0 | DO55: 0 | DP55: 0 | DQ55: 0 | DR55: 0 | DS55: 0 | DT55: 0 | DU55: 0 | DV55: 0 | DW55: 0 | DX55: 0 | DY55: 0 | DZ55: 0 | EA55: 0 | EB55: 0 | EC55: 0 | ED55: 0 | EE55: 0 | EF55: 0.1 | EG55: 0.3 | EH55: 0.5 | EI55: 0.7 | EJ55: 0.8 | EK55: 0 | EL55: 0 | EM55: 0 | EN55: 0 | EO55: 0 | EP55: 0 | EQ55: 0 | ER55: 0 | ES55: 0 | ET55: 0 | EU55: 0 | EV55: 0 | EW55: 0 | EX55: 0 | EY55: 0 | EZ55: 0 | FA55: 0 | FB55: 0 | FC55: 0 | FD55: 0.1 | FE55: 0.3 | FF55: 0.5 | FG55: 0.6 | FH55: 0 | FI55: 0 | FJ55: 0 | FK55: 0 | FL55: 0 | FM55: 0 | FN55: 0 | FO55: 0 | FP55: 0 | FQ55: 0 | FR55: 0 | FS55: 0 | FT55: 0 | FU55: 0 | FV55: 0 | FW55: 0 | FX55: 0 | FY55: 0 | FZ55: 0 | GA55: 0 | GB55: 0.1 | GC55: 0.3 | GD55: 0.4 | GE55: 0 | GF55: 0 | GG55: 0 | GH55: 0 | GI55: 0 | GJ55: 0 | GK55: 0 | GL55: 0 | GM55: 0 | GN55: 0 | GO55: 0 | GP55: 0 | GQ55: 0 | GR55: 0 | GS55: 0 | GT55: 0 | GU55: 0 | GV55: 0 | GW55: 0 | GX55: 0 | GY55: 0 | GZ55: 0.1 | HA55: 0.2 | HB55: 0
B56: Equipos de comunicaciones | C56: 8 | D56: 6629.975605 | E56: 0 | F56: 6358.588023 | G56: 14676.94 | H56: 0 | I56: 0 | J56: 0 | K56: 0 | L56: 0 | M56: 0 | N56: 0 | O56: 19068 | P56: 0 | Q56: 0 | R56: 0 | S56: 0 | T56: 0 | U56: 0 | V56: 0 | W56: 0 | X56: 0 | Y56: 0 | Z56: 0 | AA56: 1499.4 | AB56: 0 | AC56: 0 | AD56: 0 | AE56: 0 | AF56: 0 | AG56: 0 | AH56: 0 | AI56: 0 | AJ56: 0 | AK56: 0 | AL56: 0 | AM56: 0 | AN56: 0 | AO56: 0 | AP56: 0 | AQ56: 0 | AR56: 0 | AS56: 0 | AT56: 0 | AU56: 0 | AV56: 0 | AW56: 0 | AX56: 0 | AY56: 0 | AZ56: 0 | BA56: 0 | BB56: 0 | BC56: 0 | BD56: 0 | BE56: 0 | BF56: 0 | BG56: 0 | BH56: 0 | BI56: 0 | BJ56: 0 | BK56: 0 | BL56: 0 | BM56: 0 | BN56: 0 | BO56: 0 | BP56: 0 | BQ56: 0 | BR56: 0 | BS56: 0 | BT56: 0 | BU56: 0 | BV56: 0 | BW56: 0 | BX56: 0 | BY56: 0 | BZ56: 0 | CA56: 0 | CB56: 0 | CC56: 0 | CD56: 0 | CE56: 0 | CF56: 0 | CG56: 0 | CH56: 0 | CI56: 0 | CJ56: 0 | CK56: 0 | CL56: 0 | CM56: 2000.672533 | CN56: 0 | CO56: 0 | CP56: 0 | CQ56: 0 | CR56: 0 | CS56: 0 | CT56: 0 | CU56: 0 | CV56: 0 | CW56: 0 | CX56: 0 | CY56: 0 | CZ56: 0 | DA56: 0.0625 | DB56: 0.1875 | DC56: 0.3125 | DD56: 0.4375 | DE56: 0.5625 | DF56: 0.6875 | DG56: 0.8125 | DH56: 0.9375 | DI56: 1 | DJ56: 0 | DK56: 37543.59012 | DL56: 37543.59012 | DM56: 0 | DN56: 0 | DO56: 0 | DP56: 0 | DQ56: 0 | DR56: 0 | DS56: 0 | DT56: 0 | DU56: 0 | DV56: 0 | DW56: 0 | DX56: 0 | DY56: 0 | DZ56: 0 | EA56: 0 | EB56: 0 | EC56: 0.0625 | ED56: 0.1875 | EE56: 0.3125 | EF56: 0.4375 | EG56: 0.5625 | EH56: 0.6875 | EI56: 0.8125 | EJ56: 0.875 | EK56: 0 | EL56: 0 | EM56: 0 | EN56: 0 | EO56: 0 | EP56: 0 | EQ56: 0 | ER56: 0 | ES56: 0 | ET56: 0 | EU56: 0 | EV56: 0 | EW56: 0 | EX56: 0 | EY56: 0 | EZ56: 0 | FA56: 0.0625 | FB56: 0.1875 | FC56: 0.3125 | FD56: 0.4375 | FE56: 0.5625 | FF56: 0.6875 | FG56: 0.75 | FH56: 0 | FI56: 0 | FJ56: 0 | FK56: 0 | FL56: 0 | FM56: 0 | FN56: 0 | FO56: 0 | FP56: 0 | FQ56: 0 | FR56: 0 | FS56: 0 | FT56: 0 | FU56: 0 | FV56: 0 | FW56: 0 | FX56: 0 | FY56: 0.0625 | FZ56: 0.1875 | GA56: 0.3125 | GB56: 0.4375 | GC56: 0.5625 | GD56: 0.625 | GE56: 0 | GF56: 0 | GG56: 0 | GH56: 0 | GI56: 0 | GJ56: 0 | GK56: 0 | GL56: 0 | GM56: 0 | GN56: 0 | GO56: 0 | GP56: 0 | GQ56: 0 | GR56: 0 | GS56: 0 | GT56: 0 | GU56: 0 | GV56: 0 | GW56: 0.0625 | GX56: 0.1875 | GY56: 0.3125 | GZ56: 0.4375 | HA56: 0.5 | HB56: 0
B57: Otros equipos del sistema de comercialización | C57: 17 | D57: 22487.00647 | E57: 0 | F57: 18528.83416 | G57: 10956.42 | H57: 0 | I57: 0 | J57: 0 | K57: 17460 | L57: 0 | M57: 0 | N57: 0 | O57: 22053.4 | P57: 0 | Q57: 0 | R57: 0 | S57: 156002.22 | T57: 0 | U57: 0 | V57: 0 | W57: 34618.15 | X57: 0 | Y57: 0 | Z57: 0 | AA57: 16372.66 | AB57: 0 | AC57: 0 | AD57: 0 | AE57: 40137.66 | AF57: 0 | AG57: 0 | AH57: 0 | AI57: 260022.97 | AJ57: 0 | AK57: 0 | AL57: 0 | AM57: 406259.45 | AN57: 0 | AO57: 0 | AP57: 0 | AQ57: 554389.4 | AR57: 0 | AS57: 0 | AT57: 0 | AU57: 728942.26 | AV57: 0 | AW57: 0 | AX57: 0 | AY57: 2897.56 | AZ57: 0 | BA57: 0 | BB57: 0 | BC57: 4550.26 | BD57: 0 | BE57: 0 | BF57: 0 | BG57: 1100867.86 | BH57: 0 | BI57: 0 | BJ57: 0 | BK57: 649762.81 | BL57: 0 | BM57: 0 | BN57: 0 | BO57: 600200.45 | BP57: 0 | BQ57: 0 | BR57: 0 | BS57: 159084.38 | BT57: 0 | BU57: 0 | BV57: 0 | BW57: 423213.74 | BX57: 0 | BY57: 0 | BZ57: 0 | CA57: 310931.46 | CB57: 0 | CC57: 0 | CD57: 0 | CE57: 37125.19 | CF57: 0 | CG57: 0 | CH57: 0 | CI57: 22227.33 | CJ57: 0 | CK57: 0 | CL57: 0 | CM57: 1998.007653 | CN57: 0 | CO57: 0 | CP57: 0 | CQ57: 0 | CR57: 0.02941176471 | CS57: 0.08823529412 | CT57: 0.1470588235 | CU57: 0.2058823529 | CV57: 0.2647058824 | CW57: 0.3235294118 | CX57: 0.3823529412 | CY57: 0.4411764706 | CZ57: 0.5 | DA57: 0.5588235294 | DB57: 0.6176470588 | DC57: 0.6764705882 | DD57: 0.7352941176 | DE57: 0.7941176471 | DF57: 0.8529411765 | DG57: 0.9117647059 | DH57: 0.9705882353 | DI57: 1 | DJ57: 289717.62 | DK57: 4994561.098 | DL57: 69361.5576 | DM57: 2819869.114 | DN57: 289717.62 | DO57: 0 | DP57: 0 | DQ57: 0 | DR57: 0 | DS57: 0 | DT57: 0.02941176471 | DU57: 0.08823529412 | DV57: 0.1470588235 | DW57: 0.2058823529 | DX57: 0.2647058824 | DY57: 0.3235294118 | DZ57: 0.3823529412 | EA57: 0.4411764706 | EB57: 0.5 | EC57: 0.5588235294 | ED57: 0.6176470588 | EE57: 0.6764705882 | EF57: 0.7352941176 | EG57: 0.7941176471 | EH57: 0.8529411765 | EI57: 0.9117647059 | EJ57: 0.9411764706 | EK57: 280636.1705 | EL57: 0 | EM57: 0 | EN57: 0 | EO57: 0 | EP57: 0 | EQ57: 0 | ER57: 0.02941176471 | ES57: 0.08823529412 | ET57: 0.1470588235 | EU57: 0.2058823529 | EV57: 0.2647058824 | EW57: 0.3235294118 | EX57: 0.3823529412 | EY57: 0.4411764706 | EZ57: 0.5 | FA57: 0.5588235294 | FB57: 0.6176470588 | FC57: 0.6764705882 | FD57: 0.7352941176 | FE57: 0.7941176471 | FF57: 0.8529411765 | FG57: 0.8823529412 | FH57: 278962.0102 | FI57: 0 | FJ57: 0 | FK57: 0 | FL57: 0 | FM57: 0 | FN57: 0 | FO57: 0 | FP57: 0.02941176471 | FQ57: 0.08823529412 | FR57: 0.1470588235 | FS57: 0.2058823529 | FT57: 0.2647058824 | FU57: 0.3235294118 | FV57: 0.3823529412 | FW57: 0.4411764706 | FX57: 0.5 | FY57: 0.5588235294 | FZ57: 0.6176470588 | GA57: 0.6764705882 | GB57: 0.7352941176 | GC57: 0.7941176471 | GD57: 0.8235294118 | GE57: 278090.3396 | GF57: 0 | GG57: 0 | GH57: 0 | GI57: 0 | GJ57: 0 | GK57: 0 | GL57: 0 | GM57: 0 | GN57: 0.02941176471 | GO57: 0.08823529412 | GP57: 0.1470588235 | GQ57: 0.2058823529 | GR57: 0.2647058824 | GS57: 0.3235294118 | GT57: 0.3823529412 | GU57: 0.4411764706 | GV57: 0.5 | GW57: 0.5588235294 | GX57: 0.6176470588 | GY57: 0.6764705882 | GZ57: 0.7352941176 | HA57: 0.7647058824 | HB57: 275970.0131
B58: TOTAL SISTEMA DE COMERCIALIZACIÓN | D58: =SUM(D48:D57) -> 18373190.31 | E58: =SUM(E48:E57) -> 0 | F58: 13988411.18 | G58: =SUM(G48:G57) -> 4213037.9 | H58: =SUM(H48:H57) -> 0 | I58: 0 | J58: 0 | K58: =SUM(K48:K57) -> 2213587 | L58: =SUM(L48:L57) -> 0 | M58: =SUM(M48:M57) -> 0 | N58: =SUM(N48:N57) -> 0 | O58: =SUM(O48:O57) -> 3133263.4 | P58: =SUM(P48:P57) -> 0 | Q58: =SUM(Q48:Q57) -> 0 | R58: =SUM(R48:R57) -> 0 | S58: =SUM(S48:S57) -> 3353340.896 | T58: =SUM(T48:T57) -> 0 | U58: =SUM(U48:U57) -> 0 | V58: =SUM(V48:V57) -> 0 | W58: =SUM(W48:W57) -> 2335671.07 | X58: =SUM(X48:X57) -> 0 | Y58: =SUM(Y48:Y57) -> 0 | Z58: =SUM(Z48:Z57) -> 0 | AA58: =SUM(AA48:AA57) -> 3975327.67 | AB58: =SUM(AB48:AB57) -> 0 | AC58: =SUM(AC48:AC57) -> 0 | AD58: =SUM(AD48:AD57) -> 0 | AE58: =SUM(AE48:AE57) -> 3386198.52 | AF58: =SUM(AF48:AF57) -> 0 | AG58: =SUM(AG48:AG57) -> 0 | AH58: =SUM(AH48:AH57) -> 0 | AI58: =SUM(AI48:AI57) -> 2701086.46 | AJ58: =SUM(AJ48:AJ57) -> 0 | AK58: =SUM(AK48:AK57) -> 0 | AL58: =SUM(AL48:AL57) -> 0 | AM58: =SUM(AM48:AM57) -> 2654456.18 | AN58: =SUM(AN48:AN57) -> 3928.78 | AO58: =SUM(AO48:AO57) -> 0 | AP58: =SUM(AP48:AP57) -> 0 | AQ58: =SUM(AQ48:AQ57) -> 2817745.61 | AR58: =SUM(AR48:AR57) -> 1707.17 | AS58: =SUM(AS48:AS57) -> 0 | AT58: =SUM(AT48:AT57) -> 0 | AU58: =SUM(AU48:AU57) -> 5011011.31 | AV58: =SUM(AV48:AV57) -> 88.28 | AW58: =SUM(AW48:AW57) -> 0 | AX58: =SUM(AX48:AX57) -> 0 | AY58: =SUM(AY48:AY57) -> 4342818.23 | AZ58: =SUM(AZ48:AZ57) -> 773.84 | BA58: =SUM(BA48:BA57) -> 0 | BB58: =SUM(BB48:BB57) -> 0 | BC58: =SUM(BC48:BC57) -> 4220614.65 | BD58: =SUM(BD48:BD57) -> 0 | BE58: =SUM(BE48:BE57) -> 0 | BF58: =SUM(BF48:BF57) -> 0 | BG58: =SUM(BG48:BG57) -> 7611629.54 | BH58: =SUM(BH48:BH57) -> 1578.2 | BI58: =SUM(BI48:BI57) -> 0 | BJ58: =SUM(BJ48:BJ57) -> 0 | BK58: =SUM(BK48:BK57) -> 9644589.97 | BL58: =SUM(BL48:BL57) -> 1687.45 | BM58: =SUM(BM48:BM57) -> 0 | BN58: =SUM(BN48:BN57) -> 0 | BO58: =SUM(BO48:BO57) -> 7947264.17 | BP58: =SUM(BP48:BP57) -> 0 | BQ58: =SUM(BQ48:BQ57) -> 0 | BR58: =SUM(BR48:BR57) -> 0 | BS58: =SUM(BS48:BS57) -> 5627562.09 | BT58: =SUM(BT48:BT57) -> 1065.28 | BU58: =SUM(BU48:BU57) -> 0 | BV58: =SUM(BV48:BV57) -> 0 | BW58: =SUM(BW48:BW57) -> 6032133.27 | BX58: =SUM(BX48:BX57) -> 1855.47 | BY58: =SUM(BY48:BY57) -> 0 | BZ58: =SUM(BZ48:BZ57) -> 0 | CA58: =SUM(CA48:CA57) -> 8936779 | CB58: =SUM(CB48:CB57) -> 2953.37 | CC58: =SUM(CC48:CC57) -> 0 | CD58: =SUM(CD48:CD57) -> 0 | CE58: =SUM(CE48:CE57) -> 10706763 | CF58: =SUM(CF48:CF57) -> 74.05 | CG58: =SUM(CG48:CG57) -> 0 | CH58: =SUM(CH48:CH57) -> 0 | CI58: =SUM(CI48:CI57) -> 5671600.55 | CJ58: =SUM(CJ48:CJ57) -> 0 | CK58: =SUM(CK48:CK57) -> 0 | CL58: =SUM(CL48:CL57) -> 0 | DJ58: =SUM(DJ48:DJ57) -> 4388104.739 | DK58: =SUM(DK48:DK57) -> 114119766.9 | DL58: =SUM(DL48:DL57) -> 16757170.13 | DM58: =SUM(DM48:DM57) -> 64306842.11 | DN58: =SUM(DN48:DN57) -> 4388104.739 | EK58: =SUM(EK48:EK57) -> 4379023.289 | FH58: =SUM(FH48:FH57) -> 4377349.129 | GE58: =SUM(GE48:GE57) -> 4264745.332 | HB58: =SUM(HB48:HB57) -> 4172051.787
B59: TOTAL PROPIEDADES Y PLANTA + SISTEMA DE DISTRIBUCIÓN + ALUMBRADO PÚBLICO + COMERCIALIZACIÓN | D59: =D13+D45+D47+D58 -> 248150869.5 | E59: =E13+E45+E47+E58 -> 0 | F59: 170975821.3 | G59: 23926114.98 | H59: =H13+H45+H47+H58 -> 945168 | I59: 0 | J59: 0 | K59: 20616705 | L59: =L13+L45+L47+L58 -> 1225093 | M59: 0 | N59: 0 | O59: 19317701.28 | P59: 832125 | Q59: 0 | R59: 0 | S59: 18144201.57 | T59: 673516 | U59: 0 | V59: 0 | W59: 17161417.78 | X59: 111212.25 | Y59: 0 | Z59: 0 | AA59: 22004486.33 | AB59: 1668.33 | AC59: 0 | AD59: 0 | AE59: 16871738.4 | AF59: 4120.59 | AG59: 0 | AH59: 0 | AI59: 28273249.26 | AJ59: 968965.4882 | AK59: 0 | AL59: 0 | AM59: 22940994.7 | AN59: 1115453.36 | AO59: 0 | AP59: 0 | AQ59: 24272581.81 | AR59: 522072.98 | AS59: 0 | AT59: 0 | AU59: 27064281.5 | AV59: 499505.5 | AW59: 0 | AX59: 0 | AY59: 52691494.18 | AZ59: 1142953.04 | BA59: 0 | BB59: 0 | BC59: 58756529.44 | BD59: 594293.41 | BE59: 0 | BF59: 0 | BG59: 79808505.31 | BH59: 1287098.96 | BI59: 0 | BJ59: 0 | BK59: 91687724.74 | BL59: 1008725.08 | BM59: 0 | BN59: 0 | BO59: 62790834.94 | BP59: 0 | BQ59: 0 | BR59: 0 | BS59: 54238127.79 | BT59: 577911.68 | BU59: 0 | BV59: 0 | BW59: 37201509.57 | BX59: =BX13+BX45+BX47+BX58 -> 702403.94 | BY59: 0 | BZ59: 0 | CA59: 59711487.16 | CB59: 960098.14 | CC59: 0 | CD59: 0 | CE59: 66985215.27 | CF59: 591835.73 | CG59: 0 | CH59: 0 | CI59: 35775300.69 | CJ59: 179302.76 | CK59: 0 | CL59: 0 | DJ59: =DJ13+DJ45+DJ47+DJ58 -> 34442596.25 | DK59: =DK13+DK45+DK47+DK58 -> 975312650.1 | DL59: =DL13+DL45+DL47+DL58 -> 202720681.2 | DM59: =DM13+DM45+DM47+DM58 -> 512622327.7 | DN59: =DN13+DN45+DN47+DN58 -> 34442596.25 | EK59: =EK13+EK45+EK47+EK58 -> 33508499.13 | FH59: =FH13+FH45+FH47+FH58 -> 32084648.19 | GE59: =GE13+GE45+GE47+GE58 -> 30157978.4 | HB59: =HB13+HB45+HB47+HB58 -> 24307825.21
A60: COEFICIENTE DE EFICIENCIA | B60: PROPIEDADES Y PLANTA | D60: 1 | G60: 0.8701514176 | K60: 0.7931690079 | O60: 0.9094355943 | S60: 0.913547683 | W60: 0.8046587668 | AA60: 0.8567810186 | AE60: 0.929821271 | AI60: 0.9165333208 | AM60: 0.7911880365 | AQ60: 0.4717338476 | AU60: 0.7799135761 | AY60: 0.7837786165 | BC60: 0.9044275648 | BG60: 0.9 | BK60: 0.9 | BO60: 0.9 | BS60: 0.9 | BW60: 0.9 | CA60: 0.9 | CE60: 0.8636385682 | CI60: 0.6812573382
B61: SISTEMA DE DISTRIBUCIÓN | D61: 1 | G61: 0.9272851151 | K61: 0.9095110902 | O61: 0.9675595007 | S61: 0.9166873278 | W61: 0.7731540142 | AA61: 0.8536310266 | AE61: 0.8641917872 | AI61: 0.8131367952 | AM61: 0.7884668205 | AQ61: 0.8272592034 | AU61: 0.8456097436 | AY61: 0.8831790645 | BC61: 0.8989297431 | BG61: 0.8884738478 | BK61: 0.8957420236 | BO61: 0.8700647653 | BS61: 0.8895254097 | BW61: 0.8941119786 | CA61: 0.8715762238 | CE61: 0.8879668972 | CI61: 0.8644454422
B62: ALUMBRADO PÚBLICO | D62: 1 | G62: 1 | K62: 1 | O62: 1 | S62: 1 | W62: 0.8206127084 | AA62: 0.8666530126 | AE62: 0.92 | AI62: 0.909902219 | AM62: 0.7955656096 | AQ62: 0.939932485 | AU62: 0.8942507105 | AY62: 0.9455369963 | BC62: 0.9 | BG62: 0.9 | BK62: 0.9013543469 | BO62: 0.9052172041 | BS62: 0.9 | BW62: 0.9 | CA62: 0.9 | CE62: 0.9 | CI62: 0.8999827568 | DK62: 0 | DL62: 0 | DM62: 0
B63: SISTEMA DE COMERCIALIZACIÓN | D63: 1 | G63: 0.7703276574 | K63: 0.9923602732 | O63: 0.9571271282 | S63: 0.9896310572 | W63: 0.8221330596 | AA63: 0.9050697796 | AE63: 0.8980481394 | AI63: 0.9015183224 | AM63: 0.7108675736 | AQ63: 0.9286006653 | AU63: 0.9263155604 | AY63: 0.9620207558 | BC63: 0.9 | BG63: 0.9 | BK63: 0.9 | BO63: 0.900256979 | BS63: 0.8990690512 | BW63: 0.9 | CA63: 0.8947693158 | CE63: 0.8981646436 | CI63: 0.8988705284
D65: 0 | E65: 0 | F65: 0 | G65: 0 | H65: 0 | I65: 0 | J65: 0 | K65: 0 | L65: 0 | M65: 0 | N65: 0 | O65: 0 | P65: 0 | Q65: 0 | R65: 0 | S65: 0 | T65: 0 | U65: 0 | V65: 0 | W65: 0 | X65: 0 | Y65: 0 | Z65: 0 | AA65: 0 | AB65: 0 | AC65: 0 | AD65: 0 | AE65: 0 | AF65: 0 | AG65: 0 | AH65: 0 | AI65: 0 | AJ65: 0 | AK65: 0 | AL65: 0 | AM65: 0 | AN65: 0 | AO65: 0 | AP65: 0 | AQ65: 0 | AR65: 0 | AS65: 0 | AT65: 0 | AU65: 0 | AV65: 0 | AW65: 0 | AX65: 0 | AY65: 0 | AZ65: 0 | BA65: 0 | BB65: 0 | BC65: 0 | BD65: 0 | BE65: 0 | BF65: 0 | BG65: 0 | BH65: 0 | BI65: 0 | BJ65: 0 | BK65: 0 | BL65: 0 | BM65: 0 | BN65: 0 | BO65: 0 | BP65: 0 | BQ65: 0 | BR65: 0 | BS65: 0 | BT65: 0 | BU65: 0 | BV65: 0 | BW65: 0 | BX65: 0 | BY65: 0 | BZ65: 0 | CA65: 0 | CB65: 0 | CC65: 0 | CD65: 0 | CE65: 0 | CF65: 0 | CG65: 0 | CH65: 0 | CI65: 0 | CJ65: 0 | CK65: 0 | CL65: 0
B67: Base de Capital | C67: Jul 2021 - Jun 2022 | D67: Jul 2021 - Jun 2023 | E67: Jul 2021 - Jun 2024 | F67: Jul 2021 - Jun 2025 | G67: Jul 2021 - Jun 2026
B68: BCD | C68: =DK45+DK13*(DK45/SUM(DK45,DK58)) -> 791570041 | D68: =C68 -> 791570041 | E68: =D68 -> 791570041 | F68: 791570041 | G68: 791570041
B69: BCAP | C69: =DK47 -> 49639458.06 | D69: =C69 -> 49639458.06 | E69: 49639458.06 | F69: 49639458.06 | G69: 49639458.06
B70: BCC | C70: =DK58+DK13*(DK58/SUM(DK45,DK58)) -> 134103151.1 | D70: 134103151.1 | E70: 134103151.1 | F70: 134103151.1 | G70: 134103151.1
B71: Total BC | C71: =SUM(C68:C70) -> 975312650.1 | D71: =SUM(D68:D70) -> 975312650.1 | E71: 975312650.1 | F71: 975312650.1 | G71: 975312650.1
B72: BCDtd | C72: =DL45+DL13*(DL45/SUM(DL45,DL58)) -> 170375358.7
B73: BCAPtd | C73: =DL47 -> 9501020.871
B74: BCCtd | C74: =DL58+DL13*(DL58/SUM(DL45,DL58)) -> 22844301.69
B75: Total BCtd | C75: =SUM(C72:C74) -> 202720681.2 | D75: =SUM(D72:D74) -> 0 | E75: 0 | F75: 0 | G75: 0
B76: BCDN | C76: =DM45+DM13*(DM45/SUM(DM45,DM58)) -> 410476903.5
B77: BCNAP | C77: =DM47 -> 27431394.87
B78: BCNC | C78: =DM58+DM13*(DM58/SUM(DM45,DM58)) -> 74714029.3
B79: Total BCN | C79: =SUM(C76:C78) -> 512622327.7 | D79: =SUM(D76:D78) -> 0 | E79: 0 | F79: 0 | G79: 0
B80: Depreciación D | C80: =DJ45+DJ13*(DJ45/SUM(DJ45,DJ58)) -> 26673710.36 | D80: =EK45+EK13*(EK45/SUM(EK45,EK58)) -> 25904158.43 | E80: =FH45+FH13*(FH45/SUM(FH45,FH58)) -> 24727000.29 | F80: =GE45+GE13*(GE45/SUM(GE45,GE58)) -> 23308893.26 | G80: =HB45+HB13*(HB45/SUM(HB45,HB58)) -> 18222236.35
B81: Depreciación AP | C81: =DJ47 -> 1824474.418 | D81: =EK47 -> 1824474.418 | E81: =FH47 -> 1824474.418 | F81: =GE47 -> 1721407.827 | G81: =HB47 -> 1631934.039
B82: Depreciación C | C82: =DJ58+DJ13*(DJ58/SUM(DJ45,DJ58)) -> 5944411.464 | D82: =EK58+EK13*(EK58/SUM(EK45,EK58)) -> 5779866.28 | E82: =FH58+FH13*(FH58/SUM(FH45,FH58)) -> 5533173.479 | F82: =GE58+GE13*(GE58/SUM(GE45,GE58)) -> 5127677.313 | G82: =HB58+HB13*(HB58/SUM(HB45,HB58)) -> 4453654.822
B83: Total Depreciación | C83: =SUM(C80:C82) -> 34442596.25 | D83: =SUM(D80:D82) -> 33508499.13 | E83: 32084648.19 | F83: 30157978.4 | G83: 24307825.21
B84: % Depreciación s/BC D | C84: =C80/(C68-C72) -> 0.04293937332
B85: % Depreciación s/BC AP | C85: =C81/(C69-C73) -> 0.04545454545
B86: % Depreciación s/BC C | C86: 0.05342866204
B87: % Total Depreciación | C87: =C83/(C71-C75) -> 0.04458057763
B88: Check BC | C88: =C71-DK59 -> 0
B89: Check BC | C89: =C75-DL59 -> 0
B90: Check BCN | C90: =C79-DM59 -> 0
B91: Check Depreciación | C91: =C83-DJ59 -> 0

Sheet PERDIDAS y OTROS
B2: ENSA
B4: PERDIDAS Y OTROS DATOS
B6: CONCEPTO | D6: UNIDADES | E6: =ACTIVOS!G7 -> JUL22/ JUN23 | F6: =ACTIVOS!H7 -> JUL23 / JUN24 | G6: =ACTIVOS!I7 -> JUL24 / JUN25 | H6: =ACTIVOS!J7 -> JUL25/ JUN26
B8: Costo Monómico en Mercado Mayorista | C8: CMM | D8: Balboas/MWh | E8: 128.1321054 | F8: 124.9234142 | G8: 131.3816537 | H8: 135.2384693
B9: Pérdidas Ecuaciones de Eficiencia | C9: PD% | D9: % | E9: =+'Costos y Pérdidas Eficientes'!N92 -> 0.07642854693 | F9: =+'Costos y Pérdidas Eficientes'!O92 -> 0.07642361092 | G9: =+'Costos y Pérdidas Eficientes'!P92 -> 0.07641860154 | H9: =+'Costos y Pérdidas Eficientes'!Q92 -> 0.07641354954
B10: Pérdidas carga EDEMET | C10: PD% | D10: % | E10: 0.015 | F10: 0.015 | G10: 0.015 | H10: 0.015
B11: Pérdidas No Técnicas en Zonas Rojas (PNT) | C11: PD% | D11: % | E11: 0.0176 | F11: =E11 -> 0.0176 | G11: =F11 -> 0.0176 | H11: 0.0176
B12: Depreciaciones Activos de Distribución | C12: DEP% | D12: % | E12: ='BC y Dep'!C84 -> 0.04293937332 | F12: =+E12 -> 0.04293937332 | G12: =+F12 -> 0.04293937332 | H12: 0.04293937332
B13: Depreciaciones Activos de Comercialización | C13: DEP% | D13: % | E13: ='BC y Dep'!C86 -> 0.05342866204 | F13: =+E13 -> 0.05342866204 | G13: 0.05342866204 | H13: 0.05342866204
B14: Depreciaciones Activos de AP | C14: DEP% | D14: % | E14: ='BC y Dep'!C85 -> 0.04545454545 | F14: 0.04545454545 | G14: 0.04545454545 | H14: 0.04545454545
B15: Operación y Mantenimiento de AP | C15: O&Malum | D15: Miles de Balboas | E15: =ALUMPU!D12 -> 837.8094415 | F15: =ALUMPU!E12 -> 940.7601937 | G15: =ALUMPU!F12 -> 1078.009679 | H15: =ALUMPU!G12 -> 1215.2367

Sheet RETORNO
B1: ENSA
B2: RETORNO SOBRE CAPITAL DISTRIBUCION
B4: Componentes | D4: Formula | E4: Características | F4: Caso Alto | G4: Caso Medio | H4: Caso Bajo
B5: Tasa Libre de Riesgo en USD | C5: rf | E5: Caso Alto: Rendimiento del UST20, Caso Medio: Rendimiento del UST30 y Caso Bajo: Rendimiento del UST10 - Promedio último año | F5: 2.3475 | G5: 2.295 | H5: 1.9325
B6: Adicional por riesgo local en USD | C6: rc | E6: EMBI+ Panamá - Promedio último año | F6: 2.046666667 | G6: =F6 -> 2.046666667 | H6: =F6 -> 2.046666667
B7: Beta sin apalancamiento [adimensional] | C7: βUSA unl | E7: Beta (Value Line) de utilities eléctricas de US | F7: 0.6 | G7: =F7 -> 0.6 | H7: =F7 -> 0.6
B8: Beta ajustado por apalancamiento [adimensional] | C8: βUSA lev | D8: βUSA unl*[1+(1-t)*D/E] | E8: Beta ajustado por el apalancamiento | F8: =+(F7*((1+(1-(F18/100))*(F24/(1-F24))))) -> 1.02 | G8: =+(G7*((1+(1-(G18/100))*(G24/(1-G24))))) -> 1.131000815 | H8: =+(H7*((1+(1-(H18/100))*(H24/(1-H24))))) -> 1.131000815
B9: Premio por riesgo | C9: pm | D9: rm-rf | E9: Estimado sobre el mercado de EUA como spread entre el rendimiento del UST Bond y el rendimiento del S&P500. Casos Alto y Medio promedio 1928 - 2021. Caso Bajo promedio 1972 - 2021 - [%] | F9: 6.710096191 | G9: =F9 -> 6.710096191 | H9: 5.465070637
B11: Costo Nominal del Capital Propio después de impuestos, en USD | C11: re | D11: rf+rc+β*pm | E11: Aplicación CAPM [%] | F11: =(F5+F6+F8*F9) -> 11.23846478 | G11: =(G5+G6+G8*G9) -> 11.93079093 | H11: =(H5+H6+H8*H9) -> 10.16016601
B13: Componentes | D13: Formula | E13: Características | F13: Caso Alto | G13: =G4 -> Caso Medio | H13: Caso Bajo
B14: =+B5 -> Tasa Libre de Riesgo en USD | C14: rf | E14: =+E5 -> Caso Alto: Rendimiento del UST20, Caso Medio: Rendimiento del UST30 y Caso Bajo: Rendimiento del UST10 - Promedio último año | F14: 2.3475 | G14: 2.295 | H14: =H5 -> 1.9325
B15: =+B6 -> Adicional por riesgo local en USD | C15: rc | E15: EMBI+ Panamá - Promedio último año | F15: 2.046666667 | G15: 2.046666667 | H15: =F15 -> 2.046666667
B16: Adicional por riesgo crediticio | C16: rs | E16: Spread Calificación BBB y Baa2 Caso Alto: Estimación a 30 años. Casos medio y bajo estimación Damodaran 10 años | F16: 1.76 | G16: 1.76 | H16: 1.76
B17: Costo Nominal de la Deuda antes de impuestos , en USD | C17: rd | D17: rF + rC + rS | E17: Resultado [%] | F17: =F14+F15+F16 -> 6.154166667 | G17: =G14+G15+G16 -> 6.101666667 | H17: =H14+H15+H16 -> 5.739166667
B18: Tasa impositiva | C18: t | E18: Alícuota Impuesto a las Ganancias [%] | F18: 30 | G18: 30 | H18: =F18 -> 30
B19: Costo Nominal de la Deuda después de impuestos, en USD | C19: r'd | D19: rd*(1-t) | E19: Resultado [%] | F19: =(F17)*(1-F18/100) -> 4.307916667 | G19: =(G17)*(1-G18/100) -> 4.271166667 | H19: =(H17)*(1-H18/100) -> 4.017416667
B21: Componentes | D21: Formula | E21: Características | F21: Caso Alto | G21: =G13 -> Caso Medio | H21: Caso Bajo
B22: Costo Nominal del Capital Propio después de impuestos , en USD | C22: re | D22: rF+rL+βL*rM | E22: Aplicación CAPM [%] | F22: =+F11 -> 11.23846478 | G22: =+G11 -> 11.93079093 | H22: =+H11 -> 10.16016601
B23: Costo Nominal de la Deuda después de impuestos , en USD | C23: r'd | D23: rd*(1-t) | E23: Resultado [%] | F23: =+F19 -> 4.307916667 | G23: =+G19 -> 4.271166667 | H23: =+H19 -> 4.017416667
